Workbook

Sheet Info
A1: akko | D1: -1 | E1: 0 | F1: 1 | G1: 2 | H1: 3 | I1: 4 | J1: 5 | K1: 6 | L1: 7 | M1: 8 | N1: 9 | O1: 10 | P1: 11 | Q1: 12 | R1: 13 | S1: 14 | T1: 15 | Y1: =IF(OR(Z3="",Z4=""),"※ 市町村（左側）から順に選択してください","") ->  | AD1: ｖ | AK1: v
V2: 表示行 | W2: 旧市町村数 | X2: 市町村行 | Y2: 参照シート、セル | Z2: check | AA2: 表示名 | AD2: 表示行 | AE2: 集落数 | AF2: 旧市町村行 | AG2: 参照シート | AH2: check | AK2: 表示行 | AL2: 集落数 | AM2: 旧市町村行 | AN2: 参照シート | AO2: check
D3: 都県名 | G3: 市区町村名 | V3: =IF(M4="",-1,IFERROR(MATCH(M4,OFFSET(集落2010,1,0,ROWS(集落2010),1),0)-1,3000))+AF3 -> 6 | W3: =COUNTIF('2015年'!B:B,Info!G4)-1 -> 18 | X3: =IF(G4="",6,MATCH(G4,'2015年'!B:B,0)) -> 7 | Y3: '2015年'!$A$1 | Z3: =OFFSET(INDIRECT(Y3),V3,1)&OFFSET(INDIRECT(Y3),V3,2)&OFFSET(INDIRECT(Y3),V3,3) -> 水戸市201-00 | AA3: =IF(OR(ISERROR(G4),ISERROR(V7),ISERROR(M4)),"表示できません",IF(G4&V7&M4="",D4,IF(M4<>"",M4,IF(V7<>"",IF($G$4=$V$7,"（旧）","")&$V$7,IF(V7<>"",V7,G4))))) -> 水戸市 | AD3: =IF(M4="",-1,IFERROR(MATCH(M4,OFFSET(集落2010,1,0,ROWS(集落2010),1),0)-1,999))+AF3 -> 6 | AE3: =COUNTIF('2015年'!C:C,Info!V7)-1 -> 1048181 | AF3: =IF(V7="",X3,MATCH(V7,'2015年'!C:C,0)) -> 7 | AG3: '2015年'!$A$1 | AH3: =OFFSET(INDIRECT(AG3),AD3,1)&OFFSET(INDIRECT(AG3),AD3,2)&OFFSET(INDIRECT(AG3),AD3,3) -> 水戸市201-00 | AI3: =IF(OR(ISERROR(AJ3),ISERROR(AL3)),"表示できません",IF(V4<>"",V4,IF(R4<>"",IF($G$4=$V$7,"（旧）","")&$V$7,IF(#REF!<>"",#REF!,X7)))) -> 6 | AK3: =IF(M4="",-1,IFERROR(MATCH(M4,OFFSET(集落2010,1,0,ROWS(集落2010),1),0)-1,999))+AM3 -> 6 | AL3: =COUNTIF('2015年'!C:C,Info!V7)-1 -> 1048181 | AM3: =IF(V7="",X3,MATCH(V7,'2015年'!C:C,0)) -> 7 | AN3: '2015年'!$A$1 | AO3: =OFFSET(INDIRECT(AN3),AK3,1)&OFFSET(INDIRECT(AN3),AK3,2)&OFFSET(INDIRECT(AN3),AK3,3) -> 水戸市201-00 | AP3: =IF(OR(ISERROR(AQ3),ISERROR(AS3)),"表示できません",IF(AC4<>"",AC4,IF(Y4<>"",IF($G$4=$V$7,"（旧）","")&$V$7,IF(V4<>"",V4,S4)))) -> 
D4: =元データ!AA2 -> 茨城県 | G4: 水戸市 | O4: 農林水産省関東農政局統計部 | V4: =IF(M4="",-1,IFERROR(MATCH(M4,OFFSET(集落2015,1,0,ROWS(集落2015),1),0)-1,3000))+AF4 -> 6 | W4: =COUNTIF('2020年'!B:B,Info!G4)-1 -> 18 | X4: =IF(G4="",6,MATCH(G4,'2020年'!B:B,0)) -> 7 | Y4: '2020年'!$A$1 | Z4: =OFFSET(INDIRECT(Y4),V4,1)&OFFSET(INDIRECT(Y4),V4,2)&OFFSET(INDIRECT(Y4),V4,3) -> 水戸市201-00 | AD4: =IF(M4="",-1,IFERROR(MATCH(M4,OFFSET(集落2015,1,0,ROWS(集落2015),1),0)-1,999))+AF4 -> 6 | AE4: =COUNTIF('2020年'!C:C,Info!V7)-1 -> 1048181 | AF4: =IF(V7="",X3,MATCH(V7,'2020年'!C:C,0)) -> 7 | AG4: '2020年'!$A$1 | AH4: =OFFSET(INDIRECT(AG4),AD4,1)&OFFSET(INDIRECT(AG4),AD4,2)&OFFSET(INDIRECT(AG4),AD4,3) -> 水戸市201-00 | AK4: =IF(M4="",-1,IFERROR(MATCH(M4,OFFSET(集落2015,1,0,ROWS(集落2015),1),0)-1,999))+AM4 -> 6 | AL4: =COUNTIF('2020年'!C:C,Info!V7)-1 -> 1048181 | AM4: =IF(V7="",X4,MATCH(V7,'2015年'!C:C,0)) -> 7 | AN4: '2020年'!$A$1 | AO4: =OFFSET(INDIRECT(AN4),AK4,1)&OFFSET(INDIRECT(AN4),AK4,2)&OFFSET(INDIRECT(AN4),AK4,3) -> 水戸市201-00
U5: 非表示列
B6: １. 農業経営体数（主副業別） | V6: 旧市町村名
D7: =IF(LEFT(R9,1)="県",IFERROR("◎ "&W12&"のうち主業経営体の占める割合は "&TEXT(G13/F13%,"0.0")&"%"&IFERROR(" で、"&IF($G$4="","全国"&"（"&TEXT(G14,"0.0"),D4&"（"&TEXT(G15,"0.0"))&"%） "&X15,""),""),IFERROR("◎ "&W12&"は "&TEXT(F13,"#,###経営体 で ")&"2015年に比べて"&W14&"し"&IFERROR("、うち主業経営体は "&TEXT(G13,"#,### 経営体")&X14,""),"")) -> ◎ 個人経営体は 2,103経営体 で 2015年に比べて540（20.4%） 減少し、うち主業経営体は 270 経営体で67経営体（19.9%）減少 | AE7: 農 業 経営体 | AF7: （参考）
M8: 《主副業別割合》 | V8: 【参考】 | AF8: 団 体 経営体
I9: 単位：経営体 | M9: =" "&IF(AND(LEFT(R9,1)<>"県",G4=""),D4,IF(LEFT(R9,1)="県",C13,$AA$3)) -> 水戸市 | R9: 前回との比較 | V9: 解説 | W9: =F13-F12 -> (540) | X9: =1-F13/F12 -> 20.4% | Y9: =G13-G12 -> (67) | Z9: =1-G13/G12 -> 19.9% | AG9: 法 人 経営体
F10: 個 人 経営体 | AE10: =IFERROR(OFFSET(INDIRECT($Y$3),$V$3,$V12+E$1),"nc") -> 2,666 | AF10: =IFERROR(OFFSET(INDIRECT($Y$3),$V$3,$V12+J$1),"nc") -> 23 | AG10: =IFERROR(OFFSET(INDIRECT($Y$3),$V$3,$V12+K$1),"nc") -> 14
G11: 主 業 経営体 | H11: 準主業 経営体 | I11: 副業的 経営体 | Q11: ="外円："&IF(AND(LEFT(R9,1)="県",G4=""),$D$4,IF(LEFT(R9,1)="県",$AA$3,"2020年"))&CHAR(10)&"内円："&IF(AND(G4<>"",LEFT(R9,1)="県"),$D$4,IF(LEFT(R9,1)="県","全国計","2015年")) -> 外円：2020年 内円：2015年 | V11: 列番号 | W11: 概要 | Y11: 凡例 | AC11: 内円 | AE11: =IFERROR(OFFSET(INDIRECT($Y$4),$V$4,$V13+E$1),"nc") -> 2,129 | AF11: =IFERROR(OFFSET(INDIRECT($Y$4),$V$4,$V13+J$1),"nc") -> 26 | AG11: =IFERROR(OFFSET(INDIRECT($Y$4),$V$4,$V13+K$1),"nc") -> 20
C12: 2015年 | F12: =IFERROR(OFFSET(INDIRECT($Y$3),$V$3,$V12+F$1),"nc") -> 2,643 | G12: =IFERROR(OFFSET(INDIRECT($Y$3),$V$3,$V12+G$1),"nc") -> 337 | H12: =IFERROR(OFFSET(INDIRECT($Y$3),$V$3,$V12+H$1),"nc") -> 656 | I12: =IFERROR(OFFSET(INDIRECT($Y$3),$V$3,$V12+I$1),"nc") -> 1,650 | V12: =CELL("col",'2015年'!E6)-1 -> 4 | W12: 個人経営体 | X12: 主業経営体 | Y12: 主業経営体 | Z12: 準主業経営体 | AA12: 副業的経営体 | AB12: 団体経営体 | AC12: =IF(LEFT(R9,1)="県",2,-1) -> -1 | AE12: =IF(OR(AND(ISTEXT($F13),$F13<>"x",$F13<>"-"),AND(ISTEXT(F13),F13<>"x",F13<>"-")),"nc",IF(OR($F13="x",F13="x"),"x",IF(ROUND(SUM($F13),0)=0,"nc",SUM(F13)/$F13%))) -> 100.0 | AF12: =IF($G$4="",'2020年'!J475/'2020年'!$E475%,IF(OR($AE11="x",AF11="x",SUM($AE11)=1,SUM($AE11)=2),"x",IF(SUM($AE11)=0,"nc",IFERROR(SUM(AF11)/$AE10%,"-")))) -> 1.0 | AG12: =IF($G$4="",'2020年'!K475/'2020年'!$E475%,IF(OR($AE11="x",AG11="x",SUM($AE11)=1,SUM($AE11)=2),"x",IF(SUM($AE11)=0,"nc",IFERROR(SUM(AG11)/$AE10%,"-")))) -> 0.8 | AI12: #006601 | AJ12: ：農業経営体(タイトル／問い合わせ) | AN12: #FFFF00 | AO12: ：調査年修正箇所(非表示部分)
C13: 2020年 | F13: =IFERROR(OFFSET(INDIRECT($Y$4),$V$4,$V13+F$1),"nc") -> 2,103 | G13: =IFERROR(OFFSET(INDIRECT($Y$4),$V$4,$V13+G$1),"nc") -> 270 | H13: =IFERROR(OFFSET(INDIRECT($Y$4),$V$4,$V13+H$1),"nc") -> 321 | I13: =IFERROR(OFFSET(INDIRECT($Y$4),$V$4,$V13+I$1),"nc") -> 1,512 | V13: =CELL("col",'2020年'!E6)-1 -> 4 | W13: =F13/F12-1 -> -0.2043132804 | X13: =IF(LEFT(R9,1)="県",IF($G$4="",G15-G14,G14-G15),(G13/G12-1)*100) -> -19.88130564 | Y13: =IF(LEFT($R$9,1)="県",IF($G$4="",G15,G14),G13) -> 270 | Z13: =IF(LEFT($R$9,1)="県",IF($G$4="",H15,H14),H13) -> 321 | AA13: =IF(LEFT($R$9,1)="県",IF($G$4="",I15,I14),I13) -> 1512 | AB13: ←円外側 | AE13: 100.0 | AF13: =IFERROR(OFFSET(INDIRECT($Y$4),5,$V$13+J1)/OFFSET(INDIRECT($Y$4),5,V13)*100,"nc") -> 1.9 | AG13: =IFERROR(OFFSET(INDIRECT($Y$4),5,$V$13+K1)/OFFSET(INDIRECT($Y$4),5,V13)*100,"nc") -> 1.7 | AI13: #1F497D | AJ13: ：個人経営体(タイトル／問い合わせ) | AN13: #92CDDC | AO13: ：2020数式追加・修正(〃)
C14: 構成比(%) | F14: =IF(OR(AND(ISTEXT($F13),$F13<>"x",$F13<>"-"),AND(ISTEXT(F13),F13<>"x",F13<>"-")),"nc",IF(OR($F13="x",F13="x"),"x",IF(ROUND(SUM($F13),0)=0,"nc",SUM(F13)/$F13%))) -> 100.0 | G14: =IF($G$4="",'2020年'!G475/'2020年'!$F475%,IF(OR($F13="x",G13="x",SUM($F13)=1,SUM($F13)=2),"x",IF(SUM($F13)=0,"nc",IFERROR(SUM(G13)/$F13%,"-")))) -> 12.8 | H14: =IF($G$4="",'2020年'!H475/'2020年'!$F475%,IF(OR($F13="x",H13="x",SUM($F13)=1,SUM($F13)=2),"x",IF(SUM($F13)=0,"nc",IFERROR(SUM(H13)/$F13%,"-")))) -> 15.3 | I14: =IF($G$4="",'2020年'!I475/'2020年'!$F475%,IF(OR($F13="x",I13="x",SUM($F13)=1,SUM($F13)=2),"x",IF(SUM($F13)=0,"nc",IFERROR(SUM(I13)/$F13%,"-")))) -> 71.9 | W14: =IF(W13=0,"変化な",TEXT(ABS(F13-F12),"#,##0")&"（"&TEXT(ABS(W13),"0.0%")&"） "&IF(W13>0,"増加","減少")) -> 540（20.4%） 減少 | X14: =IF(X13=0,"と変化なし","で"&TEXT(ABS(G13-G12),"#,###")&"経営体（"&TEXT(ABS(X13),"#,##0.0")&"%）"&IF(X13>0,"増加","減少")) -> で67経営体（19.9%）減少 | Y14: =IF(LEFT($R$9,1)="県",IF($G$4="",G14,G15),G12) -> 337 | Z14: =IF(LEFT($R$9,1)="県",IF($G$4="",H14,H15),H12) -> 656 | AA14: =IF(LEFT($R$9,1)="県",IF($G$4="",I14,I15),I12) -> 1650 | AB14: ←円内側 | AI14: #EEECE1 | AJ14: ：統計表(表頭)
D15: ="（参考） "&$D$4 -> （参考） 茨城県 | F15: 100.0 | G15: =IFERROR(OFFSET(INDIRECT($Y$4),5,$V$13+G1)/OFFSET(INDIRECT($Y$4),5,V13+F$1)*100,"nc") -> 21.9 | H15: =IFERROR(OFFSET(INDIRECT($Y$4),5,$V$13+H1)/OFFSET(INDIRECT($Y$4),5,V13+F$1)*100,"nc") -> 10.9 | I15: =IFERROR(OFFSET(INDIRECT($Y$4),5,$V$13+I1)/OFFSET(INDIRECT($Y$4),5,V13+F$1)*100,"nc") -> 67.1 | X15: =IF(X13=0,"と同率","と比べて"&TEXT(ABS(X13),"#,##0.0")&"ポイント "&IF(X13>0,"上回る","下回る")) -> と比べて19.9ポイント 下回る | AI15: #95B3D7 | AJ15: ：縦棒・二重円グラフ(2015年／県／全国)
V16: 【参考】 | W16: グラフ | X16: 主業 | Y16: 準主業 | Z16: 副業的 | AI16: #D99694 | AJ16: ：縦棒・二重円グラフ(2020年／市区町村／県)
V17: 前回比較 | W17: 外円2020 | X17: =G13/$F$13 -> 12.8% | Y17: =H13/$F$13 -> 15.3% | Z17: =I13/$F$13 -> 71.9% | AI17: その他 | AJ17: ：上記グラフ色以外を使用 | AM17: ※タイトルは項目の区切りを明確にするため濃色を使用し、グラフ色は値が見えるように薄い色を使用した。
V18: 前回比較 | W18: 内円2015 | X18: =G12/$F$12 -> 12.8% | Y18: =H12/$F$12 -> 24.8% | Z18: =I12/$F$12 -> 62.4% | AI18: #006606 | AJ18: ：解説に表記する値(非表示部分)
AI19: #006607 | AJ19: ：グラフに表記する値(〃)
B20: ２. | D20: 農業従事者数 | V20: 【参考】
D21: =IFERROR("◎ "&IF($G$4="",D4,G4)&"の"&D20&"は "&TEXT(F25,"#,##0人 で")&" 2015年と比べて"&W26&IFERROR("、平均年齢 "&TEXT(S25,"0.0歳は")&IF(LEFT(R30,1)="県",IF($G$4="","全国平均","県平均"),"前回")&X26,""),"") -> ◎ 水戸市の農業従事者数は 4,977人 で 2015年と比べて1,757人（26.1%） 減少、平均年齢 63.1歳は前回を 2.7歳上回る | V21: 解説 | W21: =F25-F24 -> -1757 | X21: =(F25/F24)-1 -> -26.1% | Y21: =S25 -> 63.1 | Z21: =IF($G$4="",S28-S26,S28-S26) -> 62.4
S22: 単位：人
F23: 計 | G23: 15～39歳 | H23: 40～44 | I23: 45～49 | J23: 50～54 | K23: 55～59 | L23: 60～64 | M23: 65～69 | N23: 70～74 | O23: 75～79 | P23: 80～84 | Q23: 85歳以上 | R23: 65歳以上 | S23: 平均 年齢 （歳） | V23: 列番号 | W23: 概要 | Y23: 縦棒 左 | Z23: 縦棒 右 | AA23: 凡例
C24: 2015年 | F24: =IFERROR(OFFSET(INDIRECT($Y$3),$V$3,V25-1),"nc") -> 6,734 | G24: =IFERROR(IF(COUNTIF(OFFSET(INDIRECT($Y$3),$V$3,V25,1,5),"@")>0,"@",IF(COUNTIF(OFFSET(INDIRECT($Y$3),$V$3,V25,1,5),"x")>0,"x",SUM(OFFSET(INDIRECT($Y$3),$V$3,V25,1,5)))),"nc") -> 903 | H24: =IFERROR(OFFSET(INDIRECT($Y$3),$V$3,$V25+J$1),"nc") -> 292 | I24: 335 | J24: 562 | K24: 715 | L24: 928 | M24: 800 | N24: 711 | O24: 698 | P24: 500 | Q24: 290 | R24: =IF(COUNTIF(M24:Q24,"@"),"@",(IF(COUNTIF(M24:Q24,"x"),"x",SUM(M24:Q24)))) -> 2,999 | S24: =IFERROR(OFFSET(INDIRECT($Y$3),$V$3,V25+15),"nc") -> 60.4 | V24: =IF(D20="農業従事者数",1,IF(D20="農業就業人口",2,IF(D20="基幹的農業従事者数",3,ERROR.TYPE(5)))) -> 1 | W24: 人数 | X24: 平均年齢 | Y24: =IF(LEFT(R30,1)="県",IF($G$4="",1,3),-1) -> -1 | Z24: =IF(LEFT(R30,1)="県",IF($G$4="",3,1),0) -> 0 | AA24: =IF(LEFT(R30,1)="県",IF($G$4="","全国",$D$4),$C24) -> 2015年
C25: 2020年 | F25: =IFERROR(OFFSET(INDIRECT($Y$4),$V$4,$V26-1),"nc") -> 4,977 | G25: =IFERROR(IF(COUNTIF(OFFSET(INDIRECT($Y$4),$V$4,$V26,1,5),"x")>0,"x",SUM(OFFSET(INDIRECT($Y$4),$V$4,$V26,1,5))),"nc") -> 531 | H25: =IFERROR(OFFSET(INDIRECT($Y$4),$V$4,$V26+5),"nc") -> 180 | I25: =IFERROR(OFFSET(INDIRECT($Y$4),$V$4,$V26+6),"nc") -> 236 | J25: =IFERROR(OFFSET(INDIRECT($Y$4),$V$4,$V26+7),"nc") -> 267 | K25: =IFERROR(OFFSET(INDIRECT($Y$4),$V$4,$V26+8),"nc") -> 457 | L25: =IFERROR(OFFSET(INDIRECT($Y$4),$V$4,$V26+9),"nc") -> 610 | M25: =IFERROR(OFFSET(INDIRECT($Y$4),$V$4,$V26+10),"nc") -> 790 | N25: =IFERROR(OFFSET(INDIRECT($Y$4),$V$4,$V26+11),"nc") -> 677 | O25: =IFERROR(OFFSET(INDIRECT($Y$4),$V$4,$V26+12),"nc") -> 519 | P25: =IFERROR(OFFSET(INDIRECT($Y$4),$V$4,$V26+13),"nc") -> 400 | Q25: =IFERROR(OFFSET(INDIRECT($Y$4),$V$4,$V26+14),"nc") -> 310 | R25: =IF(COUNTIF(M25:Q25,"x"),"x",SUM(M25:Q25)) -> 2,696 | S25: =IFERROR(OFFSET(INDIRECT($Y$4),$V$4,$V26+15),"nc") -> 63.1 | V25: =IFERROR(CHOOSE(V24,CELL("col",'2015年'!N6),CELL("col",'2015年'!AG6),CELL("col",'2015年'!AZ6))-1,555) -> 13 | W25: =F25/F24-1 -> -0.2609147609 | X25: =S25-IF(LEFT(R30,1)="県",IF($G$4="",S26,S28),S24) -> 2.7 | AA25: =IF(AND(LEFT(R30,1)="県",G4=""),D4,IF(LEFT(R30,1)="県",AA3,C25)) -> 2020年
C26: 構成比(%) | F26: =IF(OR(AND(ISTEXT($F25),$F25<>"x",$F25<>"-"),AND(ISTEXT(F25),F25<>"x",F25<>"-")),"nc",IF(OR($F25="x",F25="x"),"x",IF(ROUND(SUM($F25),0)=0,"nc",SUM(F25)/$F25%))) -> 100.0 | G26: =IF(AND($G$4="",LEFT($D$20,1)="農"),X33/$W33%,IF(AND($G$4="",LEFT($D$20,1)="基"),X34/$W34%,IF(OR(AND(ISTEXT($F25),$F25<>"x",$F25<>"-"),AND(ISTEXT(G25),G25<>"x",G25<>"-")),"nc",IF(OR($F25="x",G25="x"),"x",IF(ROUND(SUM($F25),0)=0,"nc",SUM(G25)/$F25%))))) -> 10.7 | H26: 3.6 | I26: 4.7 | J26: 5.4 | K26: 9.2 | L26: 12.3 | M26: 15.9 | N26: 13.6 | O26: 10.4 | P26: 8.0 | Q26: 6.2 | R26: 54.2 | V26: =IFERROR(CHOOSE(V24,CELL("col",'2020年'!N6),CELL("col",'2020年'!AG6),CELL("col",'2020年'!AZ6))-1,555) -> 13 | W26: =IF(W25=0,"変化なし",TEXT(ABS(F25-F24),"#,##0人")&"（"&TEXT(ABS(W25),"0.0%")&"） "&IF(W25>0,"増加","減少")) -> 1,757人（26.1%） 減少 | X26: =IF(X25=0,"と同じである","を "&TEXT(ABS(X25),"0.0歳")&IF(X25>0,"上回る","下回る")) -> を 2.7歳上回る
E27: 2020年 | F27: =IFERROR(OFFSET(INDIRECT($Y$4),5,V26-1),"nc") -> 104,547 | G27: =IFERROR(SUM(OFFSET(INDIRECT($Y$4),5,V26,1,5)),"nc") -> 11,075 | H27: =IFERROR(OFFSET(INDIRECT($Y$4),5,V26+5),"nc") -> 4,750 | I27: =IFERROR(OFFSET(INDIRECT($Y$4),5,V26+6),"nc") -> 5,345 | J27: =IFERROR(OFFSET(INDIRECT($Y$4),5,V26+7),"nc") -> 6,055 | K27: =IFERROR(OFFSET(INDIRECT($Y$4),5,V26+8),"nc") -> 8,862 | L27: =IFERROR(OFFSET(INDIRECT($Y$4),5,V26+9),"nc") -> 13,118 | M27: =IFERROR(OFFSET(INDIRECT($Y$4),5,V26+10),"nc") -> 17,541 | N27: =IFERROR(OFFSET(INDIRECT($Y$4),5,V26+11),"nc") -> 14,794 | O27: =IFERROR(OFFSET(INDIRECT($Y$4),5,V26+12),"nc") -> 10,239 | P27: =IFERROR(OFFSET(INDIRECT($Y$4),5,V26+13),"nc") -> 7,523 | Q27: =IFERROR(OFFSET(INDIRECT($Y$4),5,V26+14),"nc") -> 5,245 | R27: =SUM(M27:Q27) -> 55,342
D28: ="（参考） "&$D$4 -> （参考） 茨城県 | F28: 100.0 | G28: =IFERROR(ROUND(G27/$F27*100,1),"nc") -> 10.6 | H28: 4.5 | I28: 5.1 | J28: 5.8 | K28: 8.5 | L28: 12.5 | M28: 16.8 | N28: 14.2 | O28: 9.8 | P28: 7.2 | Q28: 5.0 | R28: 52.9 | S28: =IFERROR(OFFSET(INDIRECT($Y$4),5,V26+15),"nc") -> 62.4
G29: ="《年齢階層別"&D20&IF(LEFT(R30,1)="県","割合","")&"》 "&IF(AND(LEFT(R30,1)<>"県",G4=""),D4,IF(LEFT(R30,1)="県",C25,AA3)) -> 《年齢階層別農業従事者数》 水戸市
D30: =IF(LEFT(R30,1)="県","（％）","（人）") -> （人） | R30: 前回との比較
V31: 【参考】 | W31: 2020年シートよりリンク
V32: 全国計 | W32: 計 | X32: 15～39歳 | Y32: 40～44 | Z32: 45～49 | AA32: 50～54 | AB32: 55～59 | AC32: 60～64 | AD32: 65～69 | AE32: 70～74 | AF32: 75～79 | AG32: 80～84 | AH32: 85歳以上 | AI32: 65歳以上 | AJ32: 平均年齢(歳)
V33: 農業 | W33: ='2020年'!M475 -> 2,493,672 | X33: =SUM('2020年'!N475:R475) -> 279,141 | Y33: ='2020年'!S475 -> 113,247 | Z33: ='2020年'!T475 -> 129,224 | AA33: ='2020年'!U475 -> 146,335 | AB33: ='2020年'!V475 -> 213,014 | AC33: ='2020年'!W475 -> 303,018 | AD33: ='2020年'!X475 -> 392,290 | AE33: ='2020年'!Y475 -> 350,225 | AF33: ='2020年'!Z475 -> 243,039 | AG33: ='2020年'!AA475 -> 185,104 | AH33: ='2020年'!AB475 -> 139,035 | AI33: =SUM('2020年'!X475:AB475) -> 1,309,693 | AJ33: ='2020年'!AC475 -> 62.3
V34: 基幹的 | W34: ='2020年'!AY475 -> 1,363,038 | X34: =SUM('2020年'!AZ475:BD475) -> 66,535 | Y34: ='2020年'!BE475 -> 37,702 | Z34: ='2020年'!BF475 -> 43,231 | AA34: ='2020年'!BG475 -> 50,169 | AB34: ='2020年'!BH475 -> 76,733 | AC34: ='2020年'!BI475 -> 140,047 | AD34: ='2020年'!BJ475 -> 252,668 | AE34: ='2020年'!BK475 -> 264,193 | AF34: ='2020年'!BL475 -> 196,217 | AG34: ='2020年'!BM475 -> 144,412 | AH34: ='2020年'!BN475 -> 91,131 | AI34: =SUM('2020年'!BJ475:BN475) -> 948,621 | AJ34: ='2020年'!BO475 -> 67.8
V35: 構成比 | W35: =SUM(X35:AH35) -> 100.0% | X35: =X33/$W33 -> 11.2% | Y35: =Y33/$W33 -> 4.5% | Z35: 5.2% | AA35: 5.9% | AB35: 8.5% | AC35: 12.2% | AD35: 15.7% | AE35: 14.0% | AF35: 9.7% | AG35: 7.4% | AH35: 5.6% | AI35: 52.5%
V36: 構成比 | W36: =SUM(X36:AH36) -> 100.0% | X36: =X34/$W34 -> 4.9% | Y36: 2.8% | Z36: 3.2% | AA36: 3.7% | AB36: 5.6% | AC36: 10.3% | AD36: 18.5% | AE36: 19.4% | AF36: 14.4% | AG36: 10.6% | AH36: 6.7% | AI36: 69.6%
B42: ３. 後継者の確保状況（個人経営体） | V42: 【参考】
D43: =IFERROR(" ◎ "&IF($G$4="",D4,G4)&"で後継者を確保している経営体の割合は "&TEXT(IF($G$4="",H52,H51),"0.0")&"％（"&TEXT(H48,"#,##0")&"経営体）で、"&IF(LEFT(Z49,1)="県",IF($G$4="","全国平均の","県平均の ")&TEXT(IF($G$4="",H51,H52),"0.0"),"2015年の "&TEXT(#REF!,"0.0"))&"％"&AB50,"") -> ◎ 水戸市で後継者を確保している経営体の割合は 26.6％（559経営体）で、県平均の 21.1％ を 5.5ポイント 上回る | V43: 解説 | W43: =H48/$H$47 -> 26.6% | X43: =H48 -> 559 | Y43: =H52/100 -> 21.1% | Z43: =W43-Y43 -> 5.5%
K44: ="《後継者の確保状況"&IF(LEFT(Z50,1)="県","割合","")&"》" -> 《後継者の確保状況》 | Q44: ="《後継者を確保している経営体数"&IF(LEFT(Z49,1)="県","割合","")&"》" -> 《後継者を確保している経営体数割合》
H45: 単位：経営体 | K45: =IF(AND(LEFT(Z50,1)<>"県",G4=""),D4,IF(LEFT(Z50,1)="県","2015年",AA3)) -> 水戸市 | Q45: =IF(AND(LEFT(Z49,1)<>"県",M4=""),V7,IF(LEFT(Z49,1)="県","2020年",AA3)) -> 2020年
H46: 計 | V46: 列番号 | W46: 2020年 | X46: 2015年 | Y46: 縦棒左 | Z46: 縦棒右 | AA46: 凡例 | AB46: 差 | AD46: 追加
D47: 2020年 | E47: =IF($G$4="","県 計",$G$4) -> 水戸市 | G47: 経営体数 | H47: =IFERROR(OFFSET(INDIRECT($Y$4),$V$4,W47-1),"nc") -> 2,103 | V47: 経営体数 | W47: =CELL("col",'2020年'!BS6)-1 -> 70 | X47: =CELL("col",'2015年'!BS6)-1 -> 70 | Y47: 1 | Z47: 0 | AA47: =IF(LEFT(Z50,1)="県",$D$4,#REF!) ->  | AB47: =H51-IF(LEFT(Z50,1)="県",H52,#REF!) ->  | AD47: =ROUND(IF($G$4="",H51,H52),1) -> 21.1
G48: 後継者を確保している経営体数 | H48: =IFERROR(OFFSET(INDIRECT($Y$4),$V$4,$W48-1),"nc") -> 559 | V48: 後継者有 | W48: =CELL("col",'2020年'!CI5) -> 87 | X48: =CELL("col",'2015年'!CI5) -> 87 | Y48: -4 | Z48: -1 | AA48: =IF(AND(LEFT(Z50,1)="県",G4=""),D4,IF(LEFT(Z50,1)="県",AA3,D47)) -> 2020年 | AB48: =IF(AB47=0,"と同率である"," を "&TEXT(ABS(AB47),"0.0")&"ポイント "&IF(AB47>0,"上回る","下回る")) ->  | AD48: =ROUND(IF($G$4="",H52,H51),1) -> 26.6
G49: ５年以内に農業経営を引き継がない | H49: =IFERROR(OFFSET(INDIRECT($Y$4),$V$4,$W48+3),"nc") -> 109 | Z49: 県との比較 | AA49: =IF(LEFT(Z49,1)="県",$D$4,#REF!) -> 茨城県 | AB49: =IF($G$4="",H52-H51,H51-H52) -> 5.48084515674273 | AD49: =IF($G$4="","全国",D4) -> 茨城県
G50: 後継者を確保していない | H50: =IFERROR(OFFSET(INDIRECT($Y$4),$V$4,$W48+4),"nc") -> 1,435 | Z50: 前回との比較 | AA50: =IF($G$4="","全国計",AA3) -> 水戸市 | AB50: =IF(AB49=0,"と同率である"," を "&TEXT(ABS(AB49),"0.0")&"ポイント "&IF(AB49>0,"上回る","下回る")) -> を 5.5ポイント 上回る | AD50: =IF($G$4="",D4,G4) -> 水戸市
D51: 後継者を確保している割合(%) | H51: =IF($G$4="",'2020年'!CI475/'2020年'!BR475%,IF(OR(AND(ISTEXT(H47),H47<>"x",H47<>"-"),AND(ISTEXT(H48),H48<>"x",H48<>"-")),"nc",IF(OR(H47="x",H48="x"),"x",IF(ROUND(SUM(H47),0)=0,"nc",SUM(H48)/H47%)))) -> 26.6 | V51: 【参考】
E52: ="（参考） "&$D$4 -> （参考） 茨城県 | H52: =IFERROR(OFFSET(INDIRECT($Y$4),5,$W$48-1)/OFFSET(INDIRECT($Y$4),5,$W$47-1)*100,"nc") -> 21.1 | V52: 県比較 | W52: グラフ | X52: =H48/$H$47 -> 26.6% | Y52: =H49/$H$47 -> 5.2% | Z52: =H50/$H$47 -> 68.2%
B59: ４. | D59: 過去１年間の生活の主な状態別世帯員数（計） | V59: 【参考】 | W59: グラフ | X59: 小計 | Y59: 自営農業 | Z59: 勤務 | AA59: 農業以外 | AB59: 学生 | AC59: 家事育児
D60: =IFERROR(" ◎ "&IF($G$4="",D4,G4)&"の「自営農業が主」の割合は "&TEXT(IF($G$4="",H67,H66)/100,"0.0%")&"（"&TEXT(H65,"#,###")&"人）で、"&IF(LEFT(R62,1)="県",IF($G$4=""," 全国平均"," 県平均")&"の "&TEXT(IF($G$4="",H66,H67)/100,"0.0%")&W65,"2015年の "&TEXT(H64/F64,"0.0%")&X65),"") -> ◎ 水戸市の「自営農業が主」の割合は 37.1%（2,375人）で、2015年の 35.2% を 1.8ポイント 上回る | V60: 前回比較 | W60: 内円2015 | X60: =G64/$F$64 -> 75.3% | Y60: 35.2% | Z60: 35.1% | AA60: 4.9% | AB60: 5.8% | AC60: 18.9%
L61: 単位：人 | N61: =" 《主な状態別世帯員数割合》 " -> 《主な状態別世帯員数割合》
F62: 計 | G62: 主 に 仕 事 | K62: 主に 学生 | L62: 主に 家事・育児・その他 | N62: =" "&IF(AND(LEFT(R62,1)<>"県",G4=""),D4,IF(LEFT(R62,1)="県",C65,AA3)) -> 水戸市 | R62: 前回との比較 | W62: 自営農業の増減 | Y62: 凡例用 | AE62: 内円
G63: 小計 | H63: 自営農 業が主 | I63: 勤務 が主 | J63: 農業以 外の自 営が主 | R63: ="外円："&IF(AND(LEFT(R62,1)="県",G4=""),$D$4,IF(LEFT(R62,1)="県",$AA$3,"2020年"))&CHAR(10)&"内円："&IF(AND(G4<>"",LEFT(R62,1)="県"),$D$4,IF(LEFT(R62,1)="県","全国計","2015年")) -> 外円：2020年 内円：2015年 | V63: 列番号 | W63: 県 | X63: 前回 | Y63: 自営農業 | Z63: 勤務 | AA63: 農業以外の自営 | AB63: 学生 | AC63: 家事・育児他 | AD63: その他 | AE63: offset 行数
A64: 15 | C64: 2015年 | F64: =IFERROR(OFFSET(INDIRECT($Y$3),$V$3,$V70-1),"nc") -> 8,912 | G64: =IFERROR(OFFSET(INDIRECT($Y$3),$V$3,$V70),"nc") -> 6,711 | H64: =IFERROR(OFFSET(INDIRECT($Y$3),$V$3,$V70+1),"nc") -> 3,140 | I64: =IFERROR(OFFSET(INDIRECT($Y$3),$V$3,$V70+2),"nc") -> 3,131 | J64: =IFERROR(OFFSET(INDIRECT($Y$3),$V$3,$V70+3),"nc") -> 440 | K64: =IFERROR(OFFSET(INDIRECT($Y$3),$V$3,$V70+4),"nc") -> 514 | L64: =IFERROR(OFFSET(INDIRECT($Y$3),$V$3,$V70+5),"nc") -> 1,687 | V64: =CELL("col",'2015年'!DC6)-1 -> 106 | W64: =IF($G$4="",H67-H66,H66-H67) -> -3.01 | X64: =H66-H64/F64*100 -> 1.823870046 | AD64: 内側→ | AE64: =IF(LEFT(R62,1)="県",IF($G$4="",1,2),-1) -> -1
C65: 2020年 | F65: =IFERROR(OFFSET(INDIRECT($Y$4),$V$4,$V71-1),"nc") -> 6,409 | G65: =IFERROR((OFFSET(INDIRECT($Y$4),$V$4,$V71)),"nc") -> 4,880 | H65: =IFERROR((OFFSET(INDIRECT($Y$4),$V$4,$V71+1)),"nc") -> 2,375 | I65: =IFERROR((OFFSET(INDIRECT($Y$4),$V$4,$V71+2)),"nc") -> 2,190 | J65: =IFERROR((OFFSET(INDIRECT($Y$4),$V$4,$V71+3)),"nc") -> 315 | K65: =IFERROR((OFFSET(INDIRECT($Y$4),$V$4,$V71+4)),"nc") -> 275 | L65: =IFERROR((OFFSET(INDIRECT($Y$4),$V$4,$V71+5)),"nc") -> 1,254 | V65: =CELL("col",'2020年'!DC6)-1 -> 106 | W65: =" "&IF(W64=0,"と同率である"," を "&TEXT(ABS(W64),"0.0")&"ポイント "&IF(W64>0,"上回る","下回る")) -> を 3.0ポイント 下回る | X65: =IF(X64=0,"と同率である"," を "&TEXT(ABS(X64),"0.0")&"ポイント "&IF(X64>0,"上回る","下回る")) -> を 1.8ポイント 上回る | AE65: =IF(LEFT(R62,1)="県",IF($G$4="",1,0),-1) -> -1
C66: 構成比(%) | F66: =IF(OR(AND(ISTEXT($F65),$F65<>"x",$F65<>"-"),AND(ISTEXT(F65),F65<>"x",F65<>"-")),"nc",IF(OR($F65="x",F65="x"),"x",IF(ROUND(SUM($F65),0)=0,"nc",SUM(F65)/$F65%))) -> 100.0 | G66: =IF($G$4="",'2020年'!DD475/'2020年'!$DC$475%,IF(OR(AND(ISTEXT($F65),$F65<>"x",$F65<>"-"),AND(ISTEXT(G65),G65<>"x",G65<>"-")),"nc",IF(OR($F65="x",G65="x"),"x",IF(ROUND(SUM($F65),0)=0,"nc",SUM(G65)/$F65%)))) -> 76.1 | H66: =IF($G$4="",'2020年'!DE475/'2020年'!$DC$475%,IF(OR(AND(ISTEXT($F65),$F65<>"x",$F65<>"-"),AND(ISTEXT(H65),H65<>"x",H65<>"-")),"nc",IF(OR($F65="x",H65="x"),"x",IF(ROUND(SUM($F65),0)=0,"nc",SUM(H65)/$F65%)))) -> 37.1 | I66: =IF($G$4="",'2020年'!DF475/'2020年'!$DC$475%,IF(OR(AND(ISTEXT($F65),$F65<>"x",$F65<>"-"),AND(ISTEXT(I65),I65<>"x",I65<>"-")),"nc",IF(OR($F65="x",I65="x"),"x",IF(ROUND(SUM($F65),0)=0,"nc",SUM(I65)/$F65%)))) -> 34.2 | J66: =IF($G$4="",'2020年'!DG475/'2020年'!$DC$475%,IF(OR(AND(ISTEXT($F65),$F65<>"x",$F65<>"-"),AND(ISTEXT(J65),J65<>"x",J65<>"-")),"nc",IF(OR($F65="x",J65="x"),"x",IF(ROUND(SUM($F65),0)=0,"nc",SUM(J65)/$F65%)))) -> 4.9 | K66: =IF($G$4="",'2020年'!DH475/'2020年'!$DC$475%,IF(OR(AND(ISTEXT($F65),$F65<>"x",$F65<>"-"),AND(ISTEXT(K65),K65<>"x",K65<>"-")),"nc",IF(OR($F65="x",K65="x"),"x",IF(ROUND(SUM($F65),0)=0,"nc",SUM(K65)/$F65%)))) -> 4.3 | L66: =IF($G$4="",'2020年'!DI475/'2020年'!$DC$475%,IF(OR(AND(ISTEXT($F65),$F65<>"x",$F65<>"-"),AND(ISTEXT(L65),L65<>"x",L65<>"-")),"nc",IF(OR($F65="x",L65="x"),"x",IF(ROUND(SUM($F65),0)=0,"nc",SUM(L65)/$F65%)))) -> 19.6
D67: ="（参考） "&$D$4 -> （参考） 茨城県 | F67: 100.0 | G67: =IFERROR(OFFSET(INDIRECT($Y$4),5,$V$71)/OFFSET(INDIRECT($Y$4),5,$V$71-1)*100,"nc") -> 76.0 | H67: =IFERROR(OFFSET(INDIRECT($Y$4),5,$V$71+F1)/OFFSET(INDIRECT($Y$4),5,$V$71-1)*100,"nc") -> 40.1 | I67: =IFERROR(OFFSET(INDIRECT($Y$4),5,$V$71+G1)/OFFSET(INDIRECT($Y$4),5,$V$71-1)*100,"nc") -> 31.9 | J67: =IFERROR(OFFSET(INDIRECT($Y$4),5,$V$71+H1)/OFFSET(INDIRECT($Y$4),5,$V$71-1)*100,"nc") -> 4.0 | K67: =IFERROR(OFFSET(INDIRECT($Y$4),5,$V$71+I1)/OFFSET(INDIRECT($Y$4),5,$V$71-1)*100,"nc") -> 4.9 | L67: =IFERROR(OFFSET(INDIRECT($Y$4),5,$V$71+J1)/OFFSET(INDIRECT($Y$4),5,$V$71-1)*100,"nc") -> 19.1
V68: 列番号 | W68: 概要 | Y68: 縦棒 左 | Z68: 縦棒 右 | AA68: 凡例
V69: =IF(D59="過去１年間の生活の主な状態別世帯員数（計）",1,IF(D59="過去１年間の生活の主な状態別世帯員数（男）",2,IF(D59="過去１年間の生活の主な状態別世帯員数（女）",3,ERROR.TYPE(5)))) -> 1 | W69: 人数 | X69: 平均年齢 | Y69: =IF(LEFT(R75,1)="県",3,-1) -> -1 | Z69: =IF(LEFT(R75,1)="県",1,0) -> 0 | AA69: =IF(LEFT(R75,1)="県",$D$4,$D69) -> 0
V70: =IFERROR(CHOOSE(V69,CELL("col",'2015年'!DD6),CELL("col",'2015年'!EG6),CELL("col",'2015年'!EO6))-1,555) -> 107 | W70: =F70/F69-1 ->  | X70: =S70-IF(LEFT(R75,1)="県",S73,S69) -> 0.0 | AA70: =IF(LEFT(R75,1)="県",#REF!,D70) -> 0
V71: =IFERROR(CHOOSE(V69,CELL("col",'2020年'!DD6),CELL("col",'2020年'!EG6),CELL("col",'2020年'!EO6))-1,555) -> 107 | W71: =IF(W70=0,"変化なし",TEXT(ABS(F70-F69),"#,##0人")&"（"&TEXT(ABS(W70),"0.0%")&"） "&IF(W70>0,"増加","減少")) ->  | X71: =IF(X70=0,"と同じである","を "&TEXT(ABS(X70),"0.0歳")&IF(X70>0,"上回る","下回る")) -> と同じである
B73: ５. 農産物販売金額１位の部門別経営体数（個人経営体）
D74: =IF(AA80="",""," ◎ "&AA80&"（"&TEXT(Z80,"0.0")&"%） が最も多く、次いで"&SUBSTITUTE(AA81&AA82,"」「","」、「")&"の順で、この"&DBCS(COUNTIF(AB78:AN78,"<4"))&"部門で全体の "&TEXT(Z79,"0.0")&"% を占める") -> ◎ 「稲作」（80.5%） が最も多く、次いで「露地野菜」、「果樹類」の順で、この３部門で全体の 92.4% を占める
S75: 単位：経営体
F76: 販売し た経営 体計 | G76: 稲作 | H76: 麦類作 | I76: 雑穀・ いも類・ 豆類 | J76: 工芸 農作物 | K76: 野菜類 | M76: 果樹類 | N76: 花き・ 花木 | O76: その他 の作物 | P76: 酪農 | Q76: 肉用牛 | R76: 養豚 | S76: 養鶏
K77: 露地 | L77: 施設 | O77: その他の作物 | P77: 畜産 | V77: 列番号 | W77: offset行数 | Y77: 凡例 | Z77: 上位 | AB77: 稲作 | AC77: 麦類作 | AD77: 雑穀・ いも類・ 豆類 | AE77: 工芸 農作物 | AF77: 露地 野菜 | AG77: 施設 野菜 | AH77: 果樹類 | AI77: 花き・ 花木 | AJ77: その他 の作物 | AK77: 酪農 | AL77: 肉用牛 | AM77: 養豚 | AN77: 養鶏
C78: 2015年 | F78: =IFERROR(OFFSET(INDIRECT($Y$3),$V$3,$V78),"nc") -> 2,376 | G78: =IFERROR(OFFSET(INDIRECT($Y$3),$V$3,$V78+F$1),"nc") -> 1,908 | H78: 2 | I78: 18 | J78: - | K78: 203 | L78: 79 | M78: 87 | N78: 21 | O78: 15 | P78: 17 | Q78: 16 | R78: 9 | S78: 1 | V78: =CELL("col",'2015年'!DK6)-1 -> 114 | W78: 縦棒左 | X78: 縦棒右 | Y78: =IF(LEFT(R83,1)="県",IF($G$4="","全国計",D4),C78) -> 2015年 | Z78: ３品目計 | AA78: 順位 | AB78: =IFERROR(RANK(G79,$G$79:$S$79,0),99) -> 1 | AC78: 11 | AD78: 6 | AE78: 12 | AF78: 2 | AG78: 4 | AH78: 3 | AI78: 6 | AJ78: 5 | AK78: 8 | AL78: 10 | AM78: 9 | AN78: 99
C79: 2020年 | F79: =IFERROR(OFFSET(INDIRECT($Y$4),$V$4,V79),"nc") -> 1,917 | G79: =IFERROR(OFFSET(INDIRECT($Y$4),$V$4,$V79+F1),"nc") -> 1,543 | H79: 3 | I79: 17 | J79: 1 | K79: 155 | L79: 59 | M79: 73 | N79: 17 | O79: 18 | P79: 14 | Q79: 8 | R79: 9 | S79: - | V79: =CELL("col",'2020年'!DK6)-1 -> 114 | W79: =IF(LEFT(R83,1)="県",IF($G$4="",1,2),-1) -> -1 | X79: =IF(LEFT(R83,1)="県",IF($G$4="",2,1),0) -> 0 | Y79: =IF(LEFT(R83,1)="県",AA3,C79) -> 2020年 | Z79: =SUM(AB79:AN79) -> 92.38393323 | AA79: ％ | AB79: =IF(AB78<4,G79/$F$79%,0) -> 80.4903495 | AC79: 0 | AD79: 0 | AE79: 0 | AF79: 8.085550339 | AG79: 0 | AH79: 3.808033385 | AI79: 0 | AJ79: 0 | AK79: 0 | AL79: 0 | AM79: 0 | AN79: 0
C80: 構成比(%) | F80: =IF(OR(AND(ISTEXT($F79),$F79<>"x",$F79<>"-"),AND(ISTEXT(F79),F79<>"x",F79<>"-")),"nc",IF(OR($F79="x",F79="x"),"x",IF(ROUND(SUM($F79),0)=0,"nc",SUM(F79)/$F79%))) -> 100.0 | G80: =IF($G$4="",'2020年'!DL475/'2020年'!$DK$475%,IF(OR(AND(ISTEXT($F79),$F79<>"x",$F79<>"-"),AND(ISTEXT(G79),G79<>"x",G79<>"-")),"nc",IF(OR($F79="x",G79="x"),"x",IF(ROUND(SUM($F79),0)=0,"nc",SUM(G79)/$F79%)))) -> 80.5 | H80: =IF($G$4="",'2020年'!DM475/'2020年'!$DK$475%,IF(OR(AND(ISTEXT($F79),$F79<>"x",$F79<>"-"),AND(ISTEXT(H79),H79<>"x",H79<>"-")),"nc",IF(OR($F79="x",H79="x"),"x",IF(ROUND(SUM($F79),0)=0,"nc",SUM(H79)/$F79%)))) -> 0.2 | I80: =IF($G$4="",'2020年'!DN475/'2020年'!$DK$475%,IF(OR(AND(ISTEXT($F79),$F79<>"x",$F79<>"-"),AND(ISTEXT(I79),I79<>"x",I79<>"-")),"nc",IF(OR($F79="x",I79="x"),"x",IF(ROUND(SUM($F79),0)=0,"nc",SUM(I79)/$F79%)))) -> 0.9 | J80: =IF($G$4="",'2020年'!DO475/'2020年'!$DK$475%,IF(OR(AND(ISTEXT($F79),$F79<>"x",$F79<>"-"),AND(ISTEXT(J79),J79<>"x",J79<>"-")),"nc",IF(OR($F79="x",J79="x"),"x",IF(ROUND(SUM($F79),0)=0,"nc",SUM(J79)/$F79%)))) -> 0.1 | K80: =IF($G$4="",'2020年'!DP475/'2020年'!$DK$475%,IF(OR(AND(ISTEXT($F79),$F79<>"x",$F79<>"-"),AND(ISTEXT(K79),K79<>"x",K79<>"-")),"nc",IF(OR($F79="x",K79="x"),"x",IF(ROUND(SUM($F79),0)=0,"nc",SUM(K79)/$F79%)))) -> 8.1 | L80: =IF($G$4="",'2020年'!DQ475/'2020年'!$DK$475%,IF(OR(AND(ISTEXT($F79),$F79<>"x",$F79<>"-"),AND(ISTEXT(L79),L79<>"x",L79<>"-")),"nc",IF(OR($F79="x",L79="x"),"x",IF(ROUND(SUM($F79),0)=0,"nc",SUM(L79)/$F79%)))) -> 3.1 | M80: =IF($G$4="",'2020年'!DR475/'2020年'!$DK$475%,IF(OR(AND(ISTEXT($F79),$F79<>"x",$F79<>"-"),AND(ISTEXT(M79),M79<>"x",M79<>"-")),"nc",IF(OR($F79="x",M79="x"),"x",IF(ROUND(SUM($F79),0)=0,"nc",SUM(M79)/$F79%)))) -> 3.8 | N80: =IF($G$4="",'2020年'!DS475/'2020年'!$DK$475%,IF(OR(AND(ISTEXT($F79),$F79<>"x",$F79<>"-"),AND(ISTEXT(N79),N79<>"x",N79<>"-")),"nc",IF(OR($F79="x",N79="x"),"x",IF(ROUND(SUM($F79),0)=0,"nc",SUM(N79)/$F79%)))) -> 0.9 | O80: =IF($G$4="",'2020年'!DT475/'2020年'!$DK$475%,IF(OR(AND(ISTEXT($F79),$F79<>"x",$F79<>"-"),AND(ISTEXT(O79),O79<>"x",O79<>"-")),"nc",IF(OR($F79="x",O79="x"),"x",IF(ROUND(SUM($F79),0)=0,"nc",SUM(O79)/$F79%)))) -> 0.9 | P80: =IF($G$4="",'2020年'!DU475/'2020年'!$DK$475%,IF(OR(AND(ISTEXT($F79),$F79<>"x",$F79<>"-"),AND(ISTEXT(P79),P79<>"x",P79<>"-")),"nc",IF(OR($F79="x",P79="x"),"x",IF(ROUND(SUM($F79),0)=0,"nc",SUM(P79)/$F79%)))) -> 0.7 | Q80: =IF($G$4="",'2020年'!DV475/'2020年'!$DK$475%,IF(OR(AND(ISTEXT($F79),$F79<>"x",$F79<>"-"),AND(ISTEXT(Q79),Q79<>"x",Q79<>"-")),"nc",IF(OR($F79="x",Q79="x"),"x",IF(ROUND(SUM($F79),0)=0,"nc",SUM(Q79)/$F79%)))) -> 0.4 | R80: =IF($G$4="",'2020年'!DW475/'2020年'!$DK$475%,IF(OR(AND(ISTEXT($F79),$F79<>"x",$F79<>"-"),AND(ISTEXT(R79),R79<>"x",R79<>"-")),"nc",IF(OR($F79="x",R79="x"),"x",IF(ROUND(SUM($F79),0)=0,"nc",SUM(R79)/$F79%)))) -> 0.5 | S80: =IF($G$4="",'2020年'!DX475/'2020年'!$DK$475%,IF(OR(AND(ISTEXT($F79),$F79<>"x",$F79<>"-"),AND(ISTEXT(S79),S79<>"x",S79<>"-")),"nc",IF(OR($F79="x",S79="x"),"x",IF(ROUND(SUM($F79),0)=0,"nc",SUM(S79)/$F79%)))) -> 0 | Y80: １位 | Z80: =SUMIF($AB$78:$AN$78,1,AB79:AN79) -> 80.4903495 | AA80: =SUBSTITUTE(AB80&AC80&AD80&AE80&AF80&AG80&AH80&AI80&AJ80&AK80&AL80&AM80&AN80,"」「","」と「") -> 「稲作」 | AB80: =IF(AB78=1,"「"&CLEAN(AB77)&"」","") -> 「稲作」
D81: ="（参考） "&$D$4 -> （参考） 茨城県 | F81: 100.0 | G81: =IFERROR(IF(OFFSET(INDIRECT($Y$4),5,$V$79+F1)="-","-",ROUND(OFFSET(INDIRECT($Y$4),5,$V$79+F1)/OFFSET(INDIRECT($Y$4),5,$V$79)*100,1)),"nc") -> 62.4 | H81: 0.1 | I81: 4.6 | J81: 0.4 | K81: 13.0 | L81: 8.2 | M81: 6.0 | N81: 1.6 | O81: 1.8 | P81: 0.7 | Q81: 0.6 | R81: 0.3 | S81: 0.2 | Y81: ２位 | Z81: =SUMIF($AB$78:$AN$78,2,$AB$79:$AN$79) -> 8.085550339 | AA81: =SUBSTITUTE(AB81&AC81&AD81&AE81&AF81&AG81&AH81&AI81&AJ81&AK81&AL81&AM81&AN81,"」「","」と「") -> 「露地野菜」 | AB81: =IF(AB78=2,"「"&CLEAN(AB77)&"」","") ->  | AF81: 「露地野菜」
D82: =IF(LEFT(R83,1)="県","（％）","（経営体）") -> （経営体） | H82: ="《農産物販売金額１位の部門別経営体数"&IF(LEFT(R83,1)="県","割合","")&"》 "&IF(AND(LEFT(R83,1)<>"県",G4=""),D4,IF(LEFT(R83,1)="県","2020年",AA3)) -> 《農産物販売金額１位の部門別経営体数》 水戸市 | Y82: ３位 | Z82: =SUMIF($AB$78:$AN$78,3,$AB$79:$AN$79) -> 3.808033385 | AA82: =SUBSTITUTE(AB82&AC82&AD82&AE82&AF82&AG82&AH82&AI82&AJ82&AK82&AL82&AM82&AN82,"」「","」と「") -> 「果樹類」 | AB82: =IF(AB78=3,"「"&CLEAN(AB77)&"」","") ->  | AH82: 「果樹類」
R83: 前回との比較
B96: ６. 経営耕地面積（個人経営体） | V96: 【参考】
D97: =IFERROR(" ◎ 経営耕地面積は2015年に比べて "&IF(G102=G101,"変化な",TEXT(ABS(G102-G101),"#,##0")&"ha（"&TEXT(ABS(G102/G101-1),"0.0%"&"） "))&IF(F102=F101,"",IF(G102<G101,"減少",IF(G101=G102,"","増加")))&"し、１経営体当たりでは "&IF(X101=0,"変動無し",TEXT(ABS(X101),"0.00")&"ha "&IF(X101>0,"増加","減少")),"") -> ◎ 経営耕地面積は2015年に比べて 365ha（9.7%) 減少し、１経営体当たりでは 0.19ha 増加 | V97: 解説 | W97: =G102-G101 -> (365) | X97: =G102/G101-1 -> -9.7% | Y97: =K102-K101 -> 0.19
K98: 単位：ha | O98: 《経営耕地の状況》 | Q98: =G4 -> 水戸市
F99: 経営耕 地のあ る経営 体 数 | G99: 経 営 耕 地 面 積 | K99: １経営体 当たり 経営耕 地面積
H100: 田 | I100: 畑 （樹園地を除く） | J100: 樹園地 | V100: 列番号 | W100: 凡例用 | X100: １戸当たり増減 | Y100: 調査年
C101: 2015年 | F101: =IFERROR(OFFSET(INDIRECT($Y$3),$V$3,V101),"nc") -> 2,641 | G101: =IFERROR(ROUND(OFFSET(INDIRECT($Y$3),$V$3,$V$101+F1)/100,0),OFFSET(INDIRECT($Y$3),$V$3,$V$101+F1)) -> 3,770 | H101: =IFERROR(ROUND(OFFSET(INDIRECT($Y$3),$V$3,$V$101+G1)/100,0),OFFSET(INDIRECT($Y$3),$V$3,$V$101+G1)) -> 2,913 | I101: =IFERROR(ROUND(OFFSET(INDIRECT($Y$3),$V$3,$V$101+H1)/100,0),OFFSET(INDIRECT($Y$3),$V$3,$V$101+H1)) -> 739 | J101: =IFERROR(ROUND(OFFSET(INDIRECT($Y$3),$V$3,$V$101+I1)/100,0),OFFSET(INDIRECT($Y$3),$V$3,$V$101+I1)) -> 118 | K101: =IF(OR(AND(ISTEXT($F101),$F101<>"x",$F101<>"-"),AND(ISTEXT(G101),G101<>"x",G101<>"-")),"nc",IF(OR($F101="x",G101="x"),"x",IF(ROUND(SUM($F101),0)=0,"nc",ROUND(SUM(G101)/$F101,2)))) -> 1.43 | V101: =CELL("col",'2015年'!EA6)-1 -> 130 | W101: 田 | X101: =K102-K101 -> 0.19 | Y101: 2015年
C102: 2020年 | F102: =IFERROR(OFFSET(INDIRECT($Y$4),$V$4,$V102),"nc") -> 2,100 | G102: =IFERROR(ROUND(OFFSET(INDIRECT($Y$4),$V$4,$V102+F1)/100,0),OFFSET(INDIRECT($Y$4),$V$4,$V102+F1)) -> 3,405 | H102: =IFERROR(ROUND(OFFSET(INDIRECT($Y$4),$V$4,$V102+G1)/100,0),OFFSET(INDIRECT($Y$4),$V$4,$V102+G1)) -> 2,760 | I102: =IFERROR(ROUND(OFFSET(INDIRECT($Y$4),$V$4,$V102+H1)/100,0),OFFSET(INDIRECT($Y$4),$V$4,$V102+H1)) -> 565 | J102: =IFERROR(ROUND(OFFSET(INDIRECT($Y$4),$V$4,$V102+I1)/100,0),OFFSET(INDIRECT($Y$4),$V$4,$V102+I1)) -> 81 | K102: =IF(OR(AND(ISTEXT($F102),$F102<>"x",$F102<>"-"),AND(ISTEXT(G102),G102<>"x",G102<>"-")),"nc",IF(OR($F102="x",G102="x"),"x",IF(ROUND(SUM($F102),0)=0,"nc",ROUND(SUM(G102)/$F102,2)))) -> 1.62 | V102: =CELL("col",'2020年'!EA6)-1 -> 130 | W102: 畑 | Y102: 2020年
C103: 構成比(%) | G103: =IF(OR(AND(ISTEXT($G102),$G102<>"x",$G102<>"-"),AND(ISTEXT(G102),G102<>"x",G102<>"-")),"nc",IF(OR($G102="x",G102="x"),"x",IF(ROUND(SUM($G102),0)=0,"nc",SUM(G102)/$G102%))) -> 100.0 | H103: =IF($G$4="",'2020年'!EC475/'2020年'!EB475%,IF(OR(AND(ISTEXT($G102),$G102<>"x",$G102<>"-"),AND(ISTEXT(H102),H102<>"x",H102<>"-")),"nc",IF(OR($G102="x",H102="x"),"x",IF(ROUND(SUM($G102),0)=0,"nc",SUM(H102)/$G102%)))) -> 81.1 | I103: =IF($G$4="",'2020年'!ED475/'2020年'!EB475%,IF(OR(AND(ISTEXT($G102),$G102<>"x",$G102<>"-"),AND(ISTEXT(I102),I102<>"x",I102<>"-")),"nc",IF(OR($G102="x",I102="x"),"x",IF(ROUND(SUM($G102),0)=0,"nc",SUM(I102)/$G102%)))) -> 16.6 | J103: =IF($G$4="",'2020年'!EE475/'2020年'!EB475%,IF(OR(AND(ISTEXT($G102),$G102<>"x",$G102<>"-"),AND(ISTEXT(J102),J102<>"x",J102<>"-")),"nc",IF(OR($G102="x",J102="x"),"x",IF(ROUND(SUM($G102),0)=0,"nc",SUM(J102)/$G102%)))) -> 2.4 | W103: 樹園地
D104: ="（参考） "&$D$4 -> （参考） 茨城県 | G104: 100.0 | H104: =IFERROR(ROUND(OFFSET(INDIRECT($Y$4),5,$V$102+G1)/OFFSET(INDIRECT($Y$4),5,$V$102+1)*100,1),"nc") -> 65.0 | I104: =IFERROR(ROUND(OFFSET(INDIRECT($Y$4),5,$V$102+H1)/OFFSET(INDIRECT($Y$4),5,$V$102+1)*100,1),"nc") -> 31.6 | J104: =IFERROR(ROUND(OFFSET(INDIRECT($Y$4),5,$V$102+I1)/OFFSET(INDIRECT($Y$4),5,$V$102+1)*100,1),"nc") -> 3.4 | K104: =IFERROR(OFFSET(INDIRECT($Y$4),5,V102+1)/OFFSET(INDIRECT($Y$4),5,V102)/100,"nc") -> 2.13
D110: 資料：農林水産省「農林業センサス」
U112: 非表示列

Sheet Info(県(都))
A1: akko | D1: -1 | E1: 0 | F1: 1 | G1: 2 | H1: 3 | I1: 4 | J1: 5 | K1: 6 | L1: 7 | M1: 8 | N1: 9 | O1: 10 | P1: 11 | Q1: 12 | R1: 13 | S1: 14 | T1: 15 | Y1: =IF(OR(Z3="",Z4=""),"※ 市町村（左側）から順に選択してください","") ->  | AD1: ｖ | AK1: v
V2: 表示行 | W2: 旧市町村数 | X2: 市町村行 | Y2: 参照シート、セル | Z2: check | AA2: 表示名 | AD2: 表示行 | AE2: 集落数 | AF2: 旧市町村行 | AG2: 参照シート | AH2: check | AK2: 表示行 | AL2: 集落数 | AM2: 旧市町村行 | AN2: 参照シート | AO2: check
D3: 都県名 | V3: =IF(M4="",-1,IFERROR(MATCH(M4,OFFSET(集落2010,1,0,ROWS(集落2010),1),0)-1,3000))+AF3 -> 5 | W3: =COUNTIF('2015年'!B:B,'Info(県(都))'!Z7)-1 -> -1 | X3: =IF(Z7="",6,MATCH(Z7,'2015年'!B:B,0)) -> 6 | Y3: '2015年'!$A$1 | Z3: =OFFSET(INDIRECT(Y3),V3,1)&OFFSET(INDIRECT(Y3),V3,2)&OFFSET(INDIRECT(Y3),V3,3) -> 000-00 | AA3: =IF(OR(ISERROR(Z7),ISERROR(V7),ISERROR(M4)),"表示できません",IF(Z7&V7&M4="",D4,IF(M4<>"",M4,IF(V7<>"",IF($Z$7=$V$7,"（旧）","")&$V$7,IF(V7<>"",V7,Z7))))) -> 茨城県 | AD3: =IF(M4="",-1,IFERROR(MATCH(M4,OFFSET(集落2010,1,0,ROWS(集落2010),1),0)-1,999))+AF3 -> 5 | AE3: =COUNTIF('2015年'!C:C,'Info(県(都))'!V7)-1 -> 1048181 | AF3: =IF(V7="",X3,MATCH(V7,'2015年'!C:C,0)) -> 6 | AG3: '2015年'!$A$1 | AH3: =OFFSET(INDIRECT(AG3),AD3,1)&OFFSET(INDIRECT(AG3),AD3,2)&OFFSET(INDIRECT(AG3),AD3,3) -> 000-00 | AI3: =IF(OR(ISERROR(AJ3),ISERROR(AL3)),"表示できません",IF(V4<>"",V4,IF(R4<>"",IF($Z$7=$V$7,"（旧）","")&$V$7,IF(#REF!<>"",#REF!,X7)))) -> 5 | AK3: =IF(M4="",-1,IFERROR(MATCH(M4,OFFSET(集落2010,1,0,ROWS(集落2010),1),0)-1,999))+AM3 -> 5 | AL3: =COUNTIF('2015年'!C:C,'Info(県(都))'!V7)-1 -> 1048181 | AM3: =IF(V7="",X3,MATCH(V7,'2015年'!C:C,0)) -> 6 | AN3: '2015年'!$A$1 | AO3: =OFFSET(INDIRECT(AN3),AK3,1)&OFFSET(INDIRECT(AN3),AK3,2)&OFFSET(INDIRECT(AN3),AK3,3) -> 000-00 | AP3: =IF(OR(ISERROR(AQ3),ISERROR(AS3)),"表示できません",IF(AC4<>"",AC4,IF(Y4<>"",IF($Z$7=$V$7,"（旧）","")&$V$7,IF(V4<>"",V4,S4)))) -> （旧）
D4: =元データ!AA2 -> 茨城県 | O4: 農林水産省関東農政局統計部 | V4: =IF(M4="",-1,IFERROR(MATCH(M4,OFFSET(集落2015,1,0,ROWS(集落2015),1),0)-1,3000))+AF4 -> 5 | W4: =COUNTIF('2020年'!B:B,'Info(県(都))'!Z7)-1 -> -1 | X4: =IF(Z7="",6,MATCH(Z7,'2020年'!B:B,0)) -> 6 | Y4: '2020年'!$A$1 | Z4: =OFFSET(INDIRECT(Y4),V4,1)&OFFSET(INDIRECT(Y4),V4,2)&OFFSET(INDIRECT(Y4),V4,3) -> 000-00 | AD4: =IF(M4="",-1,IFERROR(MATCH(M4,OFFSET(集落2015,1,0,ROWS(集落2015),1),0)-1,999))+AF4 -> 5 | AE4: =COUNTIF('2020年'!C:C,'Info(県(都))'!V7)-1 -> 1048181 | AF4: =IF(V7="",X3,MATCH(V7,'2020年'!C:C,0)) -> 6 | AG4: '2020年'!$A$1 | AH4: =OFFSET(INDIRECT(AG4),AD4,1)&OFFSET(INDIRECT(AG4),AD4,2)&OFFSET(INDIRECT(AG4),AD4,3) -> 000-00 | AK4: =IF(M4="",-1,IFERROR(MATCH(M4,OFFSET(集落2015,1,0,ROWS(集落2015),1),0)-1,999))+AM4 -> 5 | AL4: =COUNTIF('2020年'!C:C,'Info(県(都))'!V7)-1 -> 1048181 | AM4: =IF(V7="",X4,MATCH(V7,'2015年'!C:C,0)) -> 6 | AN4: '2020年'!$A$1 | AO4: =OFFSET(INDIRECT(AN4),AK4,1)&OFFSET(INDIRECT(AN4),AK4,2)&OFFSET(INDIRECT(AN4),AK4,3) -> 000-00
U5: 非表示列
B6: １. 農業経営体数（主副業別） | V6: 旧市町村名 | Z6: 市区町村名
D7: =IF(LEFT(R9,1)="全",IFERROR("◎ "&W12&"のうち主業経営体の占める割合は "&TEXT(G13/F13%,"0.0")&"%"&IFERROR(" で、"&IF($Z$7="","全国"&"（"&TEXT(G15,"0.0"),D4&"（"&TEXT(G14,"0.0"))&"%） "&X15,""),""),IFERROR("◎ "&W12&"は "&TEXT(F13,"#,###経営体 で ")&"2015年に比べて"&W14&"し"&IFERROR("、うち主業経営体は "&TEXT(G13,"#,### 経営体")&X14,""),"")) -> ◎ 個人経営体は 44,009経営体 で 2015年に比べて13,208（23.1%） 減少し、うち主業経営体は 9,654 経営体で2,447経営体（20.2%）減少 | AE7: 農 業 経営体 | AF7: （参考）
M8: 《主副業別割合》 | V8: 【参考】 | AF8: 団 体 経営体
I9: 単位：経営体 | M9: =" "&IF(AND(LEFT(R9,1)<>"全",Z7=""),D4,IF(LEFT(R9,1)="全",C13,$AA$3)) -> 茨城県 | R9: 前回との比較 | V9: 解説 | W9: =F13-F12 -> (13,208) | X9: =1-F13/F12 -> 23.1% | Y9: =G13-G12 -> (2,447) | Z9: =1-G13/G12 -> 20.2% | AG9: 法 人 経営体
F10: 個 人 経営体 | AE10: =IFERROR(OFFSET(INDIRECT($Y$3),$V$3,$V12+E$1),"nc") -> 57,989 | AF10: =IFERROR(OFFSET(INDIRECT($Y$3),$V$3,$V12+J$1),"nc") -> 772 | AG10: =IFERROR(OFFSET(INDIRECT($Y$3),$V$3,$V12+K$1),"nc") -> 660
G11: 主 業 経営体 | H11: 準主業 経営体 | I11: 副業的 経営体 | Q11: ="外円："&IF(AND(LEFT(R9,1)="全",Z7=""),$D$4,IF(LEFT(R9,1)="全",$AA$3,"2020年"))&CHAR(10)&"内円："&IF(AND(Z7<>"",LEFT(R9,1)="全"),$D$4,IF(LEFT(R9,1)="全","全 国","2015年")) -> 外円：2020年 内円：2015年 | V11: 列番号 | W11: 概要 | Y11: 凡例 | AC11: 内円 | AE11: =IFERROR(OFFSET(INDIRECT($Y$4),$V$4,$V13+E$1),"nc") -> 44,852 | AF11: =IFERROR(OFFSET(INDIRECT($Y$4),$V$4,$V13+J$1),"nc") -> 843 | AG11: =IFERROR(OFFSET(INDIRECT($Y$4),$V$4,$V13+K$1),"nc") -> 770
C12: 2015年 | F12: =IFERROR(OFFSET(INDIRECT($Y$3),$V$3,$V12+F$1),"nc") -> 57,217 | G12: =IFERROR(OFFSET(INDIRECT($Y$3),$V$3,$V12+G$1),"nc") -> 12,101 | H12: =IFERROR(OFFSET(INDIRECT($Y$3),$V$3,$V12+H$1),"nc") -> 10,023 | I12: =IFERROR(OFFSET(INDIRECT($Y$3),$V$3,$V12+I$1),"nc") -> 35,093 | V12: =CELL("col",'2015年'!E6)-1 -> 4 | W12: 個人経営体 | X12: 主業経営体 | Y12: 主業経営体 | Z12: 準主業経営体 | AA12: 副業的経営体 | AB12: 団体経営体 | AC12: =IF(LEFT(R9,1)="全",2,-1) -> -1 | AE12: =IF(OR(AND(ISTEXT($F13),$F13<>"x",$F13<>"-"),AND(ISTEXT(F13),F13<>"x",F13<>"-")),"nc",IF(OR($F13="x",F13="x"),"x",IF(ROUND(SUM($F13),0)=0,"nc",SUM(F13)/$F13%))) -> 100.0 | AF12: =IF($Z$7="",'2020年'!J475/'2020年'!$E475%,IF(OR($AE11="x",AF11="x",SUM($AE11)=1,SUM($AE11)=2),"x",IF(SUM($AE11)=0,"nc",IFERROR(SUM(AF11)/$AE10%,"-")))) -> 3.6 | AG12: =IF($Z$7="",'2020年'!K475/'2020年'!$E475%,IF(OR($AE11="x",AG11="x",SUM($AE11)=1,SUM($AE11)=2),"x",IF(SUM($AE11)=0,"nc",IFERROR(SUM(AG11)/$AE10%,"-")))) -> 2.9 | AI12: #006601 | AJ12: ：農業経営体(タイトル／問い合わせ) | AN12: #FFFF00 | AO12: ：調査年修正箇所(非表示部分)
C13: 2020年 | F13: =IFERROR(OFFSET(INDIRECT($Y$4),$V$4,$V13+F$1),"nc") -> 44,009 | G13: =IFERROR(OFFSET(INDIRECT($Y$4),$V$4,$V13+G$1),"nc") -> 9,654 | H13: =IFERROR(OFFSET(INDIRECT($Y$4),$V$4,$V13+H$1),"nc") -> 4,809 | I13: =IFERROR(OFFSET(INDIRECT($Y$4),$V$4,$V13+I$1),"nc") -> 29,546 | V13: =CELL("col",'2020年'!E6)-1 -> 4 | W13: =F13/F12-1 -> -0.2308404845 | X13: =IF(LEFT(R9,1)="全",IF($Z$7="",G14-G15,G15-G14),(G13/G12-1)*100) -> -20.2214693 | Y13: =IF(LEFT($R$9,1)="全",IF($Z$7="",G14,G15),G13) -> 9654 | Z13: =IF(LEFT($R$9,1)="全",IF($Z$7="",H14,H15),H13) -> 4809 | AA13: =IF(LEFT($R$9,1)="全",IF($Z$7="",I14,I15),I13) -> 29546 | AB13: ←円外側 | AE13: 100.0 | AF13: =IFERROR(OFFSET(INDIRECT($Y$4),5,$V$13+J1)/OFFSET(INDIRECT($Y$4),5,V13)*100,"nc") -> 1.9 | AG13: =IFERROR(OFFSET(INDIRECT($Y$4),5,$V$13+K1)/OFFSET(INDIRECT($Y$4),5,V13)*100,"nc") -> 1.7 | AI13: #1F497D | AJ13: ：個人経営体(タイトル／問い合わせ) | AN13: #92CDDC | AO13: ：2020数式追加・修正(〃)
C14: 構成比(%) | F14: 100.0 | G14: =IFERROR(OFFSET(INDIRECT($Y$4),5,$V$13+G1)/OFFSET(INDIRECT($Y$4),5,V13+F$1)*100,"nc") -> 21.9 | H14: =IFERROR(OFFSET(INDIRECT($Y$4),5,$V$13+H1)/OFFSET(INDIRECT($Y$4),5,V13+F$1)*100,"nc") -> 10.9 | I14: =IFERROR(OFFSET(INDIRECT($Y$4),5,$V$13+I1)/OFFSET(INDIRECT($Y$4),5,V13+F$1)*100,"nc") -> 67.1 | W14: =IF(W13=0,"変化な",TEXT(ABS(F13-F12),"#,##0")&"（"&TEXT(ABS(W13),"0.0%")&"） "&IF(W13>0,"増加","減少")) -> 13,208（23.1%） 減少 | X14: =IF(X13=0,"と変化なし","で"&TEXT(ABS(G13-G12),"#,###")&"経営体（"&TEXT(ABS(X13),"#,##0.0")&"%）"&IF(X13>0,"増加","減少")) -> で2,447経営体（20.2%）減少 | Y14: =IF(LEFT($R$9,1)="全",IF($Z$7="",G15,G14),G12) -> 12101 | Z14: =IF(LEFT($R$9,1)="全",IF($Z$7="",H15,H14),H12) -> 10023 | AA14: =IF(LEFT($R$9,1)="全",IF($Z$7="",I15,I14),I12) -> 35093 | AB14: ←円内側 | AI14: #EEECE1 | AJ14: ：統計表(表頭)
D15: （参考） 全 国 | F15: =IF(OR(AND(ISTEXT($F13),$F13<>"x",$F13<>"-"),AND(ISTEXT(F13),F13<>"x",F13<>"-")),"nc",IF(OR($F13="x",F13="x"),"x",IF(ROUND(SUM($F13),0)=0,"nc",SUM(F13)/$F13%))) -> 100.0 | G15: =IF($Z$7="",'2020年'!G475/'2020年'!$F475%,IF(OR($F13="x",G13="x",SUM($F13)=1,SUM($F13)=2),"x",IF(SUM($F13)=0,"nc",IFERROR(SUM(G13)/$F13%,"-")))) -> 22.3 | H15: =IF($Z$7="",'2020年'!H475/'2020年'!$F475%,IF(OR($F13="x",H13="x",SUM($F13)=1,SUM($F13)=2),"x",IF(SUM($F13)=0,"nc",IFERROR(SUM(H13)/$F13%,"-")))) -> 13.7 | I15: =IF($Z$7="",'2020年'!I475/'2020年'!$F475%,IF(OR($F13="x",I13="x",SUM($F13)=1,SUM($F13)=2),"x",IF(SUM($F13)=0,"nc",IFERROR(SUM(I13)/$F13%,"-")))) -> 64.0 | X15: =IF(X13=0,"と同率","と比べて"&TEXT(ABS(X13),"#,##0.0")&"ポイント "&IF(X13>0,"上回る","下回る")) -> と比べて20.2ポイント 下回る | AI15: #95B3D7 | AJ15: ：縦棒・二重円グラフ(2015年／県／全国)
V16: 【参考】 | W16: グラフ | X16: 主業 | Y16: 準主業 | Z16: 副業的 | AI16: #D99694 | AJ16: ：縦棒・二重円グラフ(2020年／市区町村／県)
V17: 前回比較 | W17: 外円2020 | X17: =G13/$F$13 -> 21.9% | Y17: =H13/$F$13 -> 10.9% | Z17: =I13/$F$13 -> 67.1% | AI17: その他 | AJ17: ：上記グラフ色以外を使用 | AM17: ※タイトルは項目の区切りを明確にするため濃色を使用し、グラフ色は値が見えるように薄い色を使用した。
V18: 前回比較 | W18: 内円2015 | X18: =G12/$F$12 -> 21.1% | Y18: =H12/$F$12 -> 17.5% | Z18: =I12/$F$12 -> 61.3% | AI18: #006606 | AJ18: ：解説に表記する値(非表示部分)
AI19: #006607 | AJ19: ：グラフに表記する値(〃)
B20: ２. | D20: 農業従事者数 | V20: 【参考】
D21: =IFERROR("◎ "&IF($Z$7="",D4,Z7)&"の"&D20&"は "&TEXT(F25,"#,##0人 で")&" 2015年と比べて"&W26&IFERROR("、平均年齢 "&TEXT(S25,"0.0歳は")&IF(LEFT(R30,1)="全",IF($Z$7="","全国平均","全平均"),"前回")&X26,""),"") -> ◎ 茨城県の農業従事者数は 104,547人 で 2015年と比べて41,169人（28.3%） 減少、平均年齢 62.4歳は前回を 2.4歳上回る | V21: 解説 | W21: =F25-F24 -> -41169 | X21: =(F25/F24)-1 -> -28.3% | Y21: =S25 -> 62.4 | Z21: =IF($Z$7="",V30-S28,V30-S28) -> 0.1
S22: 単位：人
F23: 計 | G23: 15～39歳 | H23: 40～44 | I23: 45～49 | J23: 50～54 | K23: 55～59 | L23: 60～64 | M23: 65～69 | N23: 70～74 | O23: 75～79 | P23: 80～84 | Q23: 85歳以上 | R23: 65歳以上 | S23: 平均 年齢 （歳） | V23: 列番号 | W23: 概要 | Y23: 縦棒 左 | Z23: 縦棒 右 | AA23: 凡例
C24: 2015年 | F24: =IFERROR(OFFSET(INDIRECT($Y$3),$V$3,V25-1),"nc") -> 145,716 | G24: =IFERROR(IF(COUNTIF(OFFSET(INDIRECT($Y$3),$V$3,V25,1,5),"@")>0,"@",IF(COUNTIF(OFFSET(INDIRECT($Y$3),$V$3,V25,1,5),"x")>0,"x",SUM(OFFSET(INDIRECT($Y$3),$V$3,V25,1,5)))),"nc") -> 19,510 | H24: =IFERROR(OFFSET(INDIRECT($Y$3),$V$3,$V25+J$1),"nc") -> 6,954 | I24: =IFERROR(OFFSET(INDIRECT($Y$3),$V$3,$V25+K$1),"nc") -> 7,997 | J24: 11,263 | K24: 16,030 | L24: 21,290 | M24: 18,939 | N24: 14,991 | O24: 13,865 | P24: 9,755 | Q24: 5,122 | R24: =IF(COUNTIF(M24:Q24,"@"),"@",(IF(COUNTIF(M24:Q24,"x"),"x",SUM(M24:Q24)))) -> 62,672 | S24: =IFERROR(OFFSET(INDIRECT($Y$3),$V$3,V25+15),"nc") -> 60.0 | V24: =IF(D20="農業従事者数",1,IF(D20="農業就業人口",2,IF(D20="基幹的農業従事者数",3,ERROR.TYPE(5)))) -> 1 | W24: 人数 | X24: 平均年齢 | Y24: =IF(LEFT(R30,1)="全",IF($Z$7="",3,1),-1) -> -1 | Z24: =IF(LEFT(R30,1)="全",IF($Z$7="",1,3),0) -> 0 | AA24: =IF(LEFT(R30,1)="全",IF($Z$7="","全 国",$D$4),$C24) -> 2015年
C25: 2020年 | F25: =IFERROR(OFFSET(INDIRECT($Y$4),$V$4,$V26-1),"nc") -> 104,547 | G25: =IFERROR(IF(COUNTIF(OFFSET(INDIRECT($Y$4),$V$4,$V26,1,5),"x")>0,"x",SUM(OFFSET(INDIRECT($Y$4),$V$4,$V26,1,5))),"nc") -> 11,075 | H25: =IFERROR(OFFSET(INDIRECT($Y$4),$V$4,$V26+5),"nc") -> 4,750 | I25: =IFERROR(OFFSET(INDIRECT($Y$4),$V$4,$V26+6),"nc") -> 5,345 | J25: =IFERROR(OFFSET(INDIRECT($Y$4),$V$4,$V26+7),"nc") -> 6,055 | K25: =IFERROR(OFFSET(INDIRECT($Y$4),$V$4,$V26+8),"nc") -> 8,862 | L25: =IFERROR(OFFSET(INDIRECT($Y$4),$V$4,$V26+9),"nc") -> 13,118 | M25: =IFERROR(OFFSET(INDIRECT($Y$4),$V$4,$V26+10),"nc") -> 17,541 | N25: =IFERROR(OFFSET(INDIRECT($Y$4),$V$4,$V26+11),"nc") -> 14,794 | O25: =IFERROR(OFFSET(INDIRECT($Y$4),$V$4,$V26+12),"nc") -> 10,239 | P25: =IFERROR(OFFSET(INDIRECT($Y$4),$V$4,$V26+13),"nc") -> 7,523 | Q25: =IFERROR(OFFSET(INDIRECT($Y$4),$V$4,$V26+14),"nc") -> 5,245 | R25: =IF(COUNTIF(M25:Q25,"x"),"x",SUM(M25:Q25)) -> 55,342 | S25: =IFERROR(OFFSET(INDIRECT($Y$4),$V$4,$V26+15),"nc") -> 62.4 | V25: =IFERROR(CHOOSE(V24,CELL("col",'2015年'!N6),CELL("col",'2015年'!AG6),CELL("col",'2015年'!AZ6))-1,555) -> 13 | W25: =F25/F24-1 -> -0.2825290291 | X25: =S25-IF(LEFT(R30,1)="全",IF($Z$7="",S28,V30),S24) -> 2.4 | AA25: =IF(AND(LEFT(R30,1)="全",Z7=""),D4,IF(LEFT(R30,1)="全",AA3,C25)) -> 2020年
C26: 構成比(%) | F26: 100.0 | G26: =IFERROR(ROUND(G27/$F27*100,1),"nc") -> 10.6 | H26: 4.5 | I26: 5.1 | J26: 5.8 | K26: 8.5 | L26: 12.5 | M26: 16.8 | N26: 14.2 | O26: 9.8 | P26: 7.2 | Q26: 5.0 | R26: 52.9 | V26: =IFERROR(CHOOSE(V24,CELL("col",'2020年'!N6),CELL("col",'2020年'!AG6),CELL("col",'2020年'!AZ6))-1,555) -> 13 | W26: =IF(W25=0,"変化なし",TEXT(ABS(F25-F24),"#,##0人")&"（"&TEXT(ABS(W25),"0.0%")&"） "&IF(W25>0,"増加","減少")) -> 41,169人（28.3%） 減少 | X26: =IF(X25=0,"と同じである","を "&TEXT(ABS(X25),"0.0歳")&IF(X25>0,"上回る","下回る")) -> を 2.4歳上回る
E27: 2020年 | F27: =IFERROR(OFFSET(INDIRECT($Y$4),5,V26-1),"nc") -> 104,547 | G27: =IFERROR(SUM(OFFSET(INDIRECT($Y$4),5,V26,1,5)),"nc") -> 11,075 | H27: =IFERROR(OFFSET(INDIRECT($Y$4),5,V26+5),"nc") -> 4,750 | I27: =IFERROR(OFFSET(INDIRECT($Y$4),5,V26+6),"nc") -> 5,345 | J27: =IFERROR(OFFSET(INDIRECT($Y$4),5,V26+7),"nc") -> 6,055 | K27: =IFERROR(OFFSET(INDIRECT($Y$4),5,V26+8),"nc") -> 8,862 | L27: =IFERROR(OFFSET(INDIRECT($Y$4),5,V26+9),"nc") -> 13,118 | M27: =IFERROR(OFFSET(INDIRECT($Y$4),5,V26+10),"nc") -> 17,541 | N27: =IFERROR(OFFSET(INDIRECT($Y$4),5,V26+11),"nc") -> 14,794 | O27: =IFERROR(OFFSET(INDIRECT($Y$4),5,V26+12),"nc") -> 10,239 | P27: =IFERROR(OFFSET(INDIRECT($Y$4),5,V26+13),"nc") -> 7,523 | Q27: =IFERROR(OFFSET(INDIRECT($Y$4),5,V26+14),"nc") -> 5,245 | R27: =SUM(M27:Q27) -> 55,342
D28: （参考） 全 国 | F28: =IF(OR(AND(ISTEXT($F25),$F25<>"x",$F25<>"-"),AND(ISTEXT(F25),F25<>"x",F25<>"-")),"nc",IF(OR($F25="x",F25="x"),"x",IF(ROUND(SUM($F25),0)=0,"nc",SUM(F25)/$F25%))) -> 100.0 | G28: =IF(AND($Z$7="",LEFT($D$20,1)="農"),X33/$W33%,IF(AND($Z$7="",LEFT($D$20,1)="基"),X34/$W34%,IF(OR(AND(ISTEXT($F25),$F25<>"x",$F25<>"-"),AND(ISTEXT(G25),G25<>"x",G25<>"-")),"nc",IF(OR($F25="x",G25="x"),"x",IF(ROUND(SUM($F25),0)=0,"nc",SUM(G25)/$F25%))))) -> 11.2 | H28: 4.5 | I28: 5.2 | J28: 5.9 | K28: 8.5 | L28: 12.2 | M28: 15.7 | N28: 14.0 | O28: 9.7 | P28: 7.4 | Q28: 5.6 | R28: 52.5 | S28: =IF(LEFT(D20,1)="農",AJ33,IF(LEFT(D20,1)="基",AJ34,"")) -> 62.3
G29: ="《年齢階層別"&D20&IF(LEFT(R30,1)="全","割合","")&"》 "&IF(AND(LEFT(R30,1)<>"全",Z7=""),D4,IF(LEFT(R30,1)="全",C25,AA3)) -> 《年齢階層別農業従事者数》 茨城県
D30: =IF(LEFT(R30,1)="全","（％）","（人）") -> （人） | R30: 前回との比較 | V30: =IFERROR(OFFSET(INDIRECT($Y$4),5,V26+15),"nc") -> 62.4 | W30: ※S29セル
V31: 【参考】 | W31: 2020年シートよりリンク
V32: 全国計 | W32: 計 | X32: 15～39歳 | Y32: 40～44 | Z32: 45～49 | AA32: 50～54 | AB32: 55～59 | AC32: 60～64 | AD32: 65～69 | AE32: 70～74 | AF32: 75～79 | AG32: 80～84 | AH32: 85歳以上 | AI32: 65歳以上 | AJ32: 平均年齢(歳)
V33: 農業 | W33: ='2020年'!M475 -> 2,493,672 | X33: =SUM('2020年'!N475:R475) -> 279,141 | Y33: ='2020年'!S475 -> 113,247 | Z33: ='2020年'!T475 -> 129,224 | AA33: ='2020年'!U475 -> 146,335 | AB33: ='2020年'!V475 -> 213,014 | AC33: ='2020年'!W475 -> 303,018 | AD33: ='2020年'!X475 -> 392,290 | AE33: ='2020年'!Y475 -> 350,225 | AF33: ='2020年'!Z475 -> 243,039 | AG33: ='2020年'!AA475 -> 185,104 | AH33: ='2020年'!AB475 -> 139,035 | AI33: =SUM('2020年'!X475:AB475) -> 1,309,693 | AJ33: ='2020年'!AC475 -> 62.3
V34: 基幹的 | W34: ='2020年'!AY475 -> 1,363,038 | X34: =SUM('2020年'!AZ475:BD475) -> 66,535 | Y34: ='2020年'!BE475 -> 37,702 | Z34: ='2020年'!BF475 -> 43,231 | AA34: ='2020年'!BG475 -> 50,169 | AB34: ='2020年'!BH475 -> 76,733 | AC34: ='2020年'!BI475 -> 140,047 | AD34: ='2020年'!BJ475 -> 252,668 | AE34: ='2020年'!BK475 -> 264,193 | AF34: ='2020年'!BL475 -> 196,217 | AG34: ='2020年'!BM475 -> 144,412 | AH34: ='2020年'!BN475 -> 91,131 | AI34: =SUM('2020年'!BJ475:BN475) -> 948,621 | AJ34: ='2020年'!BO475 -> 67.8
V35: 構成比 | W35: =SUM(X35:AH35) -> 100.0% | X35: =X33/$W33 -> 11.2% | Y35: =Y33/$W33 -> 4.5% | Z35: 5.2% | AA35: 5.9% | AB35: 8.5% | AC35: 12.2% | AD35: 15.7% | AE35: 14.0% | AF35: 9.7% | AG35: 7.4% | AH35: 5.6% | AI35: 52.5%
V36: 構成比 | W36: =SUM(X36:AH36) -> 100.0% | X36: =X34/$W34 -> 4.9% | Y36: 2.8% | Z36: 3.2% | AA36: 3.7% | AB36: 5.6% | AC36: 10.3% | AD36: 18.5% | AE36: 19.4% | AF36: 14.4% | AG36: 10.6% | AH36: 6.7% | AI36: 69.6%
B42: ３. 後継者の確保状況（個人経営体） | V42: 【参考】
D43: =IFERROR(" ◎ "&IF($Z$7="",D4,Z7)&"で後継者を確保している経営体の割合は "&TEXT(IF($Z$7="",H51,H52),"0.0")&"％（"&TEXT(H48,"#,##0")&"経営体）で、"&IF(LEFT(Z49,1)="全",IF($Z$7="","全国平均の","全平均の ")&TEXT(IF($Z$7="",H52,H51),"0.0"),"2015年の "&TEXT(#REF!,"0.0"))&"％"&AB50,"") -> ◎ 茨城県で後継者を確保している経営体の割合は 21.1％（9,286経営体）で、全国平均の23.7％ を 2.6ポイント 下回る | V43: 解説 | W43: =H48/$H$47 -> 21.1% | X43: =H48 -> 9,286 | Y43: =H51/100 -> 21.1% | Z43: =W43-Y43 -> 0.0%
K44: ="《後継者の確保状況"&IF(LEFT(Z50,1)="全","割合","")&"》" -> 《後継者の確保状況》 | Q44: ="《後継者を確保している経営体数"&IF(LEFT(Z49,1)="全","割合","")&"》" -> 《後継者を確保している経営体数割合》
H45: 単位：経営体 | K45: =IF(AND(LEFT(Z50,1)<>"全",Z7=""),D4,IF(LEFT(Z50,1)="全","2015年",AA3)) -> 茨城県 | Q45: =IF(AND(LEFT(Z49,1)<>"全",M4=""),V7,IF(LEFT(Z49,1)="全","2020年",AA3)) -> 2020年
H46: 計 | V46: 列番号 | W46: 2020年 | X46: 2015年 | Y46: 縦棒左 | Z46: 縦棒右 | AA46: 凡例 | AB46: 差 | AD46: 追加
D47: 2020年 | E47: =IF($Z$7="","県 計",$Z$7) -> 県 計 | G47: 経営体数 | H47: =IFERROR(OFFSET(INDIRECT($Y$4),$V$4,W47-1),"nc") -> 44,009 | V47: 農家数 | W47: =CELL("col",'2020年'!BS6)-1 -> 70 | X47: =CELL("col",'2015年'!BS6)-1 -> 70 | Y47: 1 | Z47: 0 | AA47: =IF(LEFT(Z50,1)="全",$D$4,#REF!) ->  | AB47: =H52-IF(LEFT(Z50,1)="全",H51,#REF!) ->  | AD47: =ROUND(IF($Z$7="",H52,H51),1) -> 23.7
G48: 後継者を確保している経営体数 | H48: =IFERROR(OFFSET(INDIRECT($Y$4),$V$4,$W48-1),"nc") -> 9,286 | V48: 後継者有 | W48: =CELL("col",'2020年'!CI5) -> 87 | X48: =CELL("col",'2015年'!CI5) -> 87 | Y48: -4 | Z48: -1 | AA48: =IF(AND(LEFT(Z50,1)="全",Z7=""),D4,IF(LEFT(Z50,1)="全",AA3,D47)) -> 2020年 | AB48: =IF(AB47=0,"と同率である"," を "&TEXT(ABS(AB47),"0.0")&"ポイント "&IF(AB47>0,"上回る","下回る")) ->  | AD48: =ROUND(IF($Z$7="",H51,H52),1) -> 21.1
G49: ５年以内に農業経営を引き継がない | H49: =IFERROR(OFFSET(INDIRECT($Y$4),$V$4,$W48+3),"nc") -> 1,685 | Z49: 全国との比較 | AA49: =IF(LEFT(Z49,1)="全",$D$4,#REF!) -> 茨城県 | AB49: =IF($Z$7="",H51-H52,H52-H51) -> -2.60901971727252 | AD49: =IF($Z$7="","全 国",D4) -> 全 国
G50: 後継者を確保していない | H50: =IFERROR(OFFSET(INDIRECT($Y$4),$V$4,$W48+4),"nc") -> 33,038 | Z50: 前回との比較 | AA50: =IF($Z$7="","全国計",AA3) -> 全国計 | AB50: =IF(AB49=0,"と同率である"," を "&TEXT(ABS(AB49),"0.0")&"ポイント "&IF(AB49>0,"上回る","下回る")) -> を 2.6ポイント 下回る | AD50: =IF($Z$7="",D4,Z7) -> 茨城県
D51: 後継者を確保している割合(%) | H51: =IFERROR(OFFSET(INDIRECT($Y$4),5,$W$48-1)/OFFSET(INDIRECT($Y$4),5,$W$47-1)*100,"nc") -> 21.1 | V51: 【参考】
E52: （参考） 全 国 | H52: =IF($Z$7="",'2020年'!CI475/'2020年'!BR475%,IF(OR(AND(ISTEXT(H47),H47<>"x",H47<>"-"),AND(ISTEXT(H48),H48<>"x",H48<>"-")),"nc",IF(OR(H47="x",H48="x"),"x",IF(ROUND(SUM(H47),0)=0,"nc",SUM(H48)/H47%)))) -> 23.7 | V52: 全国比較 | W52: グラフ | X52: =H48/$H$47 -> 21.1% | Y52: =H49/$H$47 -> 3.8% | Z52: =H50/$H$47 -> 75.1%
B59: ４. | D59: 過去１年間の生活の主な状態別世帯員数（計） | V59: 【参考】 | W59: グラフ | X59: 小計 | Y59: 自営農業 | Z59: 勤務 | AA59: 農業以外 | AB59: 学生 | AC59: 家事育児
D60: =IFERROR(" ◎ "&IF($Z$7="",D4,Z7)&"の「自営農業が主」の割合は "&TEXT(IF($Z$7="",H66,H67)/100,"0.0%")&"（"&TEXT(H65,"#,###")&"人）で、"&IF(LEFT(R62,1)="全",IF($Z$7=""," 全国平均"," 全平均")&"の "&TEXT(IF($Z$7="",H67,H66)/100,"0.0%")&W65,"2015年の "&TEXT(H64/F64,"0.0%")&X65),"") -> ◎ 茨城県の「自営農業が主」の割合は 40.1%（57,496人）で、2015年の 37.6% を 2.5ポイント 上回る | V60: 前回比較 | W60: 内円2015 | X60: =G64/$F$64 -> 75.5% | Y60: 37.6% | Z60: 33.7% | AA60: 4.2% | AB60: 5.9% | AC60: 18.6%
L61: 単位：人 | N61: =" 《主な状態別世帯員数割合》 " -> 《主な状態別世帯員数割合》
F62: 計 | G62: 主 に 仕 事 | K62: 主に 学生 | L62: 主に 家事・育児・その他 | N62: =" "&IF(AND(LEFT(R62,1)<>"全",Z7=""),D4,IF(LEFT(R62,1)="全",C65,AA3)) -> 茨城県 | R62: 前回との比較 | W62: 自営農業の増減 | Y62: 凡例用 | AE62: 内円
G63: 小計 | H63: 自営農 業が主 | I63: 勤務 が主 | J63: 農業以 外の自 営が主 | R63: ="外円："&IF(AND(LEFT(R62,1)="全",Z7=""),$D$4,IF(LEFT(R62,1)="全",$AA$3,"2020年"))&CHAR(10)&"内円："&IF(AND(Z7<>"",LEFT(R62,1)="全"),$D$4,IF(LEFT(R62,1)="全","全 国","2015年")) -> 外円：2020年 内円：2015年 | V63: 列番号 | W63: 県 | X63: 前回 | Y63: 自営農業 | Z63: 勤務 | AA63: 農業以外の自営 | AB63: 学生 | AC63: 家事・育児他 | AD63: その他 | AE63: offset 行数
A64: 15 | C64: 2015年 | F64: =IFERROR(OFFSET(INDIRECT($Y$3),$V$3,$V70-1),"nc") -> 203,505 | G64: =IFERROR(OFFSET(INDIRECT($Y$3),$V$3,$V70),"nc") -> 153,666 | H64: =IFERROR(OFFSET(INDIRECT($Y$3),$V$3,$V70+1),"nc") -> 76,477 | I64: =IFERROR(OFFSET(INDIRECT($Y$3),$V$3,$V70+2),"nc") -> 68,611 | J64: =IFERROR(OFFSET(INDIRECT($Y$3),$V$3,$V70+3),"nc") -> 8,578 | K64: =IFERROR(OFFSET(INDIRECT($Y$3),$V$3,$V70+4),"nc") -> 11,996 | L64: =IFERROR(OFFSET(INDIRECT($Y$3),$V$3,$V70+5),"nc") -> 37,843 | V64: =CELL("col",'2015年'!DC6)-1 -> 106 | W64: =IF($Z$7="",H66-H67,H67-H66) -> -2.07 | X64: =H66-H64/F64*100 -> 2.490058479 | AD64: 内側→ | AE64: =IF(LEFT(R62,1)="全",IF($Z$7="",1,2),-1) -> -1
C65: 2020年 | F65: =IFERROR(OFFSET(INDIRECT($Y$4),$V$4,$V71-1),"nc") -> 143,489 | G65: =IFERROR((OFFSET(INDIRECT($Y$4),$V$4,$V71)),"nc") -> 109,080 | H65: =IFERROR((OFFSET(INDIRECT($Y$4),$V$4,$V71+1)),"nc") -> 57,496 | I65: =IFERROR((OFFSET(INDIRECT($Y$4),$V$4,$V71+2)),"nc") -> 45,811 | J65: =IFERROR((OFFSET(INDIRECT($Y$4),$V$4,$V71+3)),"nc") -> 5,773 | K65: =IFERROR((OFFSET(INDIRECT($Y$4),$V$4,$V71+4)),"nc") -> 7,027 | L65: =IFERROR((OFFSET(INDIRECT($Y$4),$V$4,$V71+5)),"nc") -> 27,382 | V65: =CELL("col",'2020年'!DC6)-1 -> 106 | W65: =" "&IF(W64=0,"と同率である"," を "&TEXT(ABS(W64),"0.0")&"ポイント "&IF(W64>0,"上回る","下回る")) -> を 2.1ポイント 下回る | X65: =IF(X64=0,"と同率である"," を "&TEXT(ABS(X64),"0.0")&"ポイント "&IF(X64>0,"上回る","下回る")) -> を 2.5ポイント 上回る | AE65: =IF(LEFT(R62,1)="全",IF($Z$7="",1,0),-1) -> -1
C66: 構成比(%) | F66: 100.0 | G66: =IFERROR(OFFSET(INDIRECT($Y$4),5,$V$71)/OFFSET(INDIRECT($Y$4),5,$V$71-1)*100,"nc") -> 76.0 | H66: =IFERROR(OFFSET(INDIRECT($Y$4),5,$V$71+F1)/OFFSET(INDIRECT($Y$4),5,$V$71-1)*100,"nc") -> 40.1 | I66: =IFERROR(OFFSET(INDIRECT($Y$4),5,$V$71+G1)/OFFSET(INDIRECT($Y$4),5,$V$71-1)*100,"nc") -> 31.9 | J66: =IFERROR(OFFSET(INDIRECT($Y$4),5,$V$71+H1)/OFFSET(INDIRECT($Y$4),5,$V$71-1)*100,"nc") -> 4.0 | K66: =IFERROR(OFFSET(INDIRECT($Y$4),5,$V$71+I1)/OFFSET(INDIRECT($Y$4),5,$V$71-1)*100,"nc") -> 4.9 | L66: =IFERROR(OFFSET(INDIRECT($Y$4),5,$V$71+J1)/OFFSET(INDIRECT($Y$4),5,$V$71-1)*100,"nc") -> 19.1 | V66: ※内円（全国）元データ
D67: （参考） 全 国 | F67: =IF(OR(AND(ISTEXT($F65),$F65<>"x",$F65<>"-"),AND(ISTEXT(F65),F65<>"x",F65<>"-")),"nc",IF(OR($F65="x",F65="x"),"x",IF(ROUND(SUM($F65),0)=0,"nc",SUM(F65)/$F65%))) -> 100.0 | G67: =IF(MID($D$59,20,1)="計",'2020年'!DD475/'2020年'!$DC$475%,IF(MID($D$59,20,1)="男",'2020年'!EG475/'2020年'!$EF$475%,IF(MID($D$59,20,1)="女",'2020年'!EO475/'2020年'!$EN$475%,IF(OR(AND(ISTEXT($F65),$F65<>"x",$F65<>"-"),AND(ISTEXT(G65),G65<>"x",G65<>"-")),"nc",IF(OR($F65="x",G65="x"),"x",IF(ROUND(SUM($F65),0)=0,"nc",SUM(G65)/$F65%)))))) -> 76.6 | H67: =IF(MID($D$59,20,1)="計",'2020年'!DE475/'2020年'!$DC$475%,IF(MID($D$59,20,1)="男",'2020年'!EH475/'2020年'!$EF$475%,IF(MID($D$59,20,1)="女",'2020年'!EP475/'2020年'!$EN$475%,IF(OR(AND(ISTEXT($F65),$F65<>"x",$F65<>"-"),AND(ISTEXT(H65),H65<>"x",H65<>"-")),"nc",IF(OR($F65="x",H65="x"),"x",IF(ROUND(SUM($F65),0)=0,"nc",SUM(H65)/$F65%)))))) -> 42.1 | I67: =IF(MID($D$59,20,1)="計",'2020年'!DF475/'2020年'!$DC$475%,IF(MID($D$59,20,1)="男",'2020年'!EI475/'2020年'!$EF$475%,IF(MID($D$59,20,1)="女",'2020年'!EQ475/'2020年'!$EN$475%,IF(OR(AND(ISTEXT($F65),$F65<>"x",$F65<>"-"),AND(ISTEXT(I65),I65<>"x",I65<>"-")),"nc",IF(OR($F65="x",I65="x"),"x",IF(ROUND(SUM($F65),0)=0,"nc",SUM(I65)/$F65%)))))) -> 30.6 | J67: =IF(MID($D$59,20,1)="計",'2020年'!DG475/'2020年'!$DC$475%,IF(MID($D$59,20,1)="男",'2020年'!EJ475/'2020年'!$EF$475%,IF(MID($D$59,20,1)="女",'2020年'!ER475/'2020年'!$EN$475%,IF(OR(AND(ISTEXT($F65),$F65<>"x",$F65<>"-"),AND(ISTEXT(J65),J65<>"x",J65<>"-")),"nc",IF(OR($F65="x",J65="x"),"x",IF(ROUND(SUM($F65),0)=0,"nc",SUM(J65)/$F65%)))))) -> 3.8 | K67: =IF(MID($D$59,20,1)="計",'2020年'!DH475/'2020年'!$DC$475%,IF(MID($D$59,20,1)="男",'2020年'!EK475/'2020年'!$EF$475%,IF(MID($D$59,20,1)="女",'2020年'!ES475/'2020年'!$EN$475%,IF(OR(AND(ISTEXT($F65),$F65<>"x",$F65<>"-"),AND(ISTEXT(K65),K65<>"x",K65<>"-")),"nc",IF(OR($F65="x",K65="x"),"x",IF(ROUND(SUM($F65),0)=0,"nc",SUM(K65)/$F65%)))))) -> 4.7 | L67: =IF(MID($D$59,20,1)="計",'2020年'!DI475/'2020年'!$DC$475%,IF(MID($D$59,20,1)="男",'2020年'!EL475/'2020年'!$EF$475%,IF(MID($D$59,20,1)="女",'2020年'!ET475/'2020年'!$EN$475%,IF(OR(AND(ISTEXT($F65),$F65<>"x",$F65<>"-"),AND(ISTEXT(L65),L65<>"x",L65<>"-")),"nc",IF(OR($F65="x",L65="x"),"x",IF(ROUND(SUM($F65),0)=0,"nc",SUM(L65)/$F65%)))))) -> 18.8 | V67: =IF(LEFT($R$62,1)="全",H67,H64/$F$64) -> 0.4 | W67: =IF(LEFT($R$62,1)="全",I67,I64/$F$64) -> 0.3 | X67: =IF(LEFT($R$62,1)="全",J67,J64/$F$64) -> 0.0 | Y67: =IF(LEFT($R$62,1)="全",K67,K64/$F$64) -> 0.1 | Z67: =IF(LEFT($R$62,1)="全",L67,L64/$F$64) -> 0.2
V68: 列番号 | W68: 概要 | Y68: 縦棒 左 | Z68: 縦棒 右 | AA68: 凡例
V69: =IF(D59="過去１年間の生活の主な状態別世帯員数（計）",1,IF(D59="過去１年間の生活の主な状態別世帯員数（男）",2,IF(D59="過去１年間の生活の主な状態別世帯員数（女）",3,ERROR.TYPE(5)))) -> 1 | W69: 人数 | X69: 平均年齢 | Y69: =IF(LEFT(R75,1)="全",3,-1) -> -1 | Z69: =IF(LEFT(R75,1)="全",1,0) -> 0 | AA69: =IF(LEFT(R75,1)="全",$D$4,$D69) -> 0
V70: =IFERROR(CHOOSE(V69,CELL("col",'2015年'!DD6),CELL("col",'2015年'!EG6),CELL("col",'2015年'!EO6))-1,555) -> 107 | W70: =F70/F69-1 ->  | X70: =S70-IF(LEFT(R75,1)="全",S73,S69) -> 0.0 | AA70: =IF(LEFT(R75,1)="全",#REF!,D70) -> 0
V71: =IFERROR(CHOOSE(V69,CELL("col",'2020年'!DD6),CELL("col",'2020年'!EG6),CELL("col",'2020年'!EO6))-1,555) -> 107 | W71: =IF(W70=0,"変化なし",TEXT(ABS(F70-F69),"#,##0人")&"（"&TEXT(ABS(W70),"0.0%")&"） "&IF(W70>0,"増加","減少")) ->  | X71: =IF(X70=0,"と同じである","を "&TEXT(ABS(X70),"0.0歳")&IF(X70>0,"上回る","下回る")) -> と同じである
B73: ５. 農産物販売金額１位の部門別経営体数（個人経営体）
D74: =IF(AA80="",""," ◎ "&AA80&"（"&TEXT(Z80,"0.0")&"%） が最も多く、次いで"&SUBSTITUTE(AA81&AA82,"」「","」、「")&"の順で、この"&DBCS(COUNTIF(AB78:AN78,"<4"))&"部門で全体の "&TEXT(Z79,"0.0")&"% を占める") -> ◎ 「稲作」（62.4%） が最も多く、次いで「露地野菜」、「施設野菜」の順で、この３部門で全体の 83.7% を占める
S75: 単位：経営体
F76: 販売し た経営 体計 | G76: 稲作 | H76: 麦類作 | I76: 雑穀・ いも類・ 豆類 | J76: 工芸 農作物 | K76: 野菜類 | M76: 果樹類 | N76: 花き・ 花木 | O76: その他 の作物 | P76: 酪農 | Q76: 肉用牛 | R76: 養豚 | S76: 養鶏
K77: 露地 | L77: 施設 | O77: その他の作物 | P77: 畜産 | V77: 列番号 | W77: offset行数 | Y77: 凡例 | Z77: 上位 | AB77: 稲作 | AC77: 麦類作 | AD77: 雑穀・ いも類・ 豆類 | AE77: 工芸 農作物 | AF77: 露地 野菜 | AG77: 施設 野菜 | AH77: 果樹類 | AI77: 花き・ 花木 | AJ77: その他 の作物 | AK77: 酪農 | AL77: 肉用牛 | AM77: 養豚 | AN77: 養鶏
C78: 2015年 | F78: =IFERROR(OFFSET(INDIRECT($Y$3),$V$3,$V78),"nc") -> 51,876 | G78: =IFERROR(OFFSET(INDIRECT($Y$3),$V$3,$V78+F$1),"nc") -> 33,685 | H78: 78 | I78: 2,040 | J78: 260 | K78: 6,372 | L78: 4,019 | M78: 2,755 | N78: 824 | O78: 817 | P78: 366 | Q78: 352 | R78: 205 | S78: 87 | V78: =CELL("col",'2015年'!DK6)-1 -> 114 | W78: 縦棒左 | X78: 縦棒右 | Y78: =IF(LEFT(R83,1)="全",IF($Z$7="","全 国",D4),C78) -> 2015年 | Z78: ３品目計 | AA78: 順位 | AB78: =IFERROR(RANK(G79,$G$79:$S$79,0),99) -> 1 | AC78: 13 | AD78: 5 | AE78: 10 | AF78: 2 | AG78: 3 | AH78: 4 | AI78: 7 | AJ78: 6 | AK78: 8 | AL78: 9 | AM78: 11 | AN78: 12
C79: 2020年 | F79: =IFERROR(OFFSET(INDIRECT($Y$4),$V$4,V79),"nc") -> 40,072 | G79: =IFERROR(OFFSET(INDIRECT($Y$4),$V$4,$V79+F1),"nc") -> 25,022 | H79: 56 | I79: 1,830 | J79: 162 | K79: 5,226 | L79: 3,285 | M79: 2,390 | N79: 660 | O79: 709 | P79: 271 | Q79: 255 | R79: 139 | S79: 61 | V79: =CELL("col",'2020年'!DK6)-1 -> 114 | W79: =IF(LEFT(R83,1)="全",IF($Z$7="",2,1),-1) -> -1 | X79: =IF(LEFT(R83,1)="全",IF($Z$7="",1,2),0) -> 0 | Y79: =IF(LEFT(R83,1)="全",AA3,C79) -> 2020年 | Z79: =SUM(AB79:AN79) -> 83.68187263 | AA79: ％ | AB79: =IF(AB78<4,G79/$F$79%,0) -> 62.44260331 | AC79: =IF(AC78<4,H79/$F$79%,0) -> 0 | AD79: =IF(AD78<4,I79/$F$79%,0) -> 0 | AE79: 0 | AF79: 13.04152525 | AG79: 8.197744061 | AH79: 0 | AI79: 0 | AJ79: 0 | AK79: 0 | AL79: 0 | AM79: 0 | AN79: 0
C80: 構成比(%) | F80: 100.0 | G80: =IFERROR(IF(OFFSET(INDIRECT($Y$4),5,$V$79+F1)="-","-",ROUND(OFFSET(INDIRECT($Y$4),5,$V$79+F1)/OFFSET(INDIRECT($Y$4),5,$V$79)*100,1)),"nc") -> 62.4 | H80: 0.1 | I80: 4.6 | J80: 0.4 | K80: 13.0 | L80: 8.2 | M80: 6.0 | N80: 1.6 | O80: 1.8 | P80: 0.7 | Q80: 0.6 | R80: 0.3 | S80: 0.2 | Y80: １位 | Z80: =SUMIF($AB$78:$AN$78,1,AB79:AN79) -> 62.44260331 | AA80: =SUBSTITUTE(AB80&AC80&AD80&AE80&AF80&AG80&AH80&AI80&AJ80&AK80&AL80&AM80&AN80,"」「","」と「") -> 「稲作」 | AB80: =IF(AB78=1,"「"&CLEAN(AB77)&"」","") -> 「稲作」
D81: （参考） 全 国 | F81: =IF(OR(AND(ISTEXT($F79),$F79<>"x",$F79<>"-"),AND(ISTEXT(F79),F79<>"x",F79<>"-")),"nc",IF(OR($F79="x",F79="x"),"x",IF(ROUND(SUM($F79),0)=0,"nc",SUM(F79)/$F79%))) -> 100.0 | G81: =IF($Z$7="",'2020年'!DL475/'2020年'!$DK$475%,IF(OR(AND(ISTEXT($F79),$F79<>"x",$F79<>"-"),AND(ISTEXT(G79),G79<>"x",G79<>"-")),"nc",IF(OR($F79="x",G79="x"),"x",IF(ROUND(SUM($F79),0)=0,"nc",SUM(G79)/$F79%)))) -> 56.1 | H81: =IF($Z$7="",'2020年'!DM475/'2020年'!$DK$475%,IF(OR(AND(ISTEXT($F79),$F79<>"x",$F79<>"-"),AND(ISTEXT(H79),H79<>"x",H79<>"-")),"nc",IF(OR($F79="x",H79="x"),"x",IF(ROUND(SUM($F79),0)=0,"nc",SUM(H79)/$F79%)))) -> 0.4 | I81: =IF($Z$7="",'2020年'!DN475/'2020年'!$DK$475%,IF(OR(AND(ISTEXT($F79),$F79<>"x",$F79<>"-"),AND(ISTEXT(I79),I79<>"x",I79<>"-")),"nc",IF(OR($F79="x",I79="x"),"x",IF(ROUND(SUM($F79),0)=0,"nc",SUM(I79)/$F79%)))) -> 2.4 | J81: =IF($Z$7="",'2020年'!DO475/'2020年'!$DK$475%,IF(OR(AND(ISTEXT($F79),$F79<>"x",$F79<>"-"),AND(ISTEXT(J79),J79<>"x",J79<>"-")),"nc",IF(OR($F79="x",J79="x"),"x",IF(ROUND(SUM($F79),0)=0,"nc",SUM(J79)/$F79%)))) -> 2.6 | K81: =IF($Z$7="",'2020年'!DP475/'2020年'!$DK$475%,IF(OR(AND(ISTEXT($F79),$F79<>"x",$F79<>"-"),AND(ISTEXT(K79),K79<>"x",K79<>"-")),"nc",IF(OR($F79="x",K79="x"),"x",IF(ROUND(SUM($F79),0)=0,"nc",SUM(K79)/$F79%)))) -> 10.7 | L81: =IF($Z$7="",'2020年'!DQ475/'2020年'!$DK$475%,IF(OR(AND(ISTEXT($F79),$F79<>"x",$F79<>"-"),AND(ISTEXT(L79),L79<>"x",L79<>"-")),"nc",IF(OR($F79="x",L79="x"),"x",IF(ROUND(SUM($F79),0)=0,"nc",SUM(L79)/$F79%)))) -> 6.2 | M81: =IF($Z$7="",'2020年'!DR475/'2020年'!$DK$475%,IF(OR(AND(ISTEXT($F79),$F79<>"x",$F79<>"-"),AND(ISTEXT(M79),M79<>"x",M79<>"-")),"nc",IF(OR($F79="x",M79="x"),"x",IF(ROUND(SUM($F79),0)=0,"nc",SUM(M79)/$F79%)))) -> 13.4 | N81: =IF($Z$7="",'2020年'!DS475/'2020年'!$DK$475%,IF(OR(AND(ISTEXT($F79),$F79<>"x",$F79<>"-"),AND(ISTEXT(N79),N79<>"x",N79<>"-")),"nc",IF(OR($F79="x",N79="x"),"x",IF(ROUND(SUM($F79),0)=0,"nc",SUM(N79)/$F79%)))) -> 2.5 | O81: =IF($Z$7="",'2020年'!DT475/'2020年'!$DK$475%,IF(OR(AND(ISTEXT($F79),$F79<>"x",$F79<>"-"),AND(ISTEXT(O79),O79<>"x",O79<>"-")),"nc",IF(OR($F79="x",O79="x"),"x",IF(ROUND(SUM($F79),0)=0,"nc",SUM(O79)/$F79%)))) -> 1.2 | P81: =IF($Z$7="",'2020年'!DU475/'2020年'!$DK$475%,IF(OR(AND(ISTEXT($F79),$F79<>"x",$F79<>"-"),AND(ISTEXT(P79),P79<>"x",P79<>"-")),"nc",IF(OR($F79="x",P79="x"),"x",IF(ROUND(SUM($F79),0)=0,"nc",SUM(P79)/$F79%)))) -> 1.2 | Q81: =IF($Z$7="",'2020年'!DV475/'2020年'!$DK$475%,IF(OR(AND(ISTEXT($F79),$F79<>"x",$F79<>"-"),AND(ISTEXT(Q79),Q79<>"x",Q79<>"-")),"nc",IF(OR($F79="x",Q79="x"),"x",IF(ROUND(SUM($F79),0)=0,"nc",SUM(Q79)/$F79%)))) -> 2.8 | R81: =IF($Z$7="",'2020年'!DW475/'2020年'!$DK$475%,IF(OR(AND(ISTEXT($F79),$F79<>"x",$F79<>"-"),AND(ISTEXT(R79),R79<>"x",R79<>"-")),"nc",IF(OR($F79="x",R79="x"),"x",IF(ROUND(SUM($F79),0)=0,"nc",SUM(R79)/$F79%)))) -> 0.1 | S81: =IF($Z$7="",'2020年'!DX475/'2020年'!$DK$475%,IF(OR(AND(ISTEXT($F79),$F79<>"x",$F79<>"-"),AND(ISTEXT(S79),S79<>"x",S79<>"-")),"nc",IF(OR($F79="x",S79="x"),"x",IF(ROUND(SUM($F79),0)=0,"nc",SUM(S79)/$F79%)))) -> 0.2 | Y81: ２位 | Z81: =SUMIF($AB$78:$AN$78,2,$AB$79:$AN$79) -> 13.04152525 | AA81: =SUBSTITUTE(AB81&AC81&AD81&AE81&AF81&AG81&AH81&AI81&AJ81&AK81&AL81&AM81&AN81,"」「","」と「") -> 「露地野菜」 | AB81: =IF(AB78=2,"「"&CLEAN(AB77)&"」","") ->  | AF81: 「露地野菜」
D82: =IF(LEFT(R83,1)="全","（％）","（経営体）") -> （経営体） | H82: ="《農産物販売金額１位の部門別経営体数"&IF(LEFT(R83,1)="全","割合","")&"》 "&IF(AND(LEFT(R83,1)<>"全",Z7=""),D4,IF(LEFT(R83,1)="全","2020年",AA3)) -> 《農産物販売金額１位の部門別経営体数》 茨城県 | Y82: ３位 | Z82: =SUMIF($AB$78:$AN$78,3,$AB$79:$AN$79) -> 8.197744061 | AA82: =SUBSTITUTE(AB82&AC82&AD82&AE82&AF82&AG82&AH82&AI82&AJ82&AK82&AL82&AM82&AN82,"」「","」と「") -> 「施設野菜」 | AB82: =IF(AB78=3,"「"&CLEAN(AB77)&"」","") ->  | AG82: 「施設野菜」
R83: 前回との比較
B96: ６. 経営耕地面積（個人経営体） | V96: 【参考】
D97: =IFERROR(" ◎ 経営耕地面積は2015年に比べて "&IF(G102=G101,"変化な",TEXT(ABS(G102-G101),"#,##0")&"ha（"&TEXT(ABS(G102/G101-1),"0.0%"&"） "))&IF(F102=F101,"",IF(G102<G101,"減少",IF(G101=G102,"","増加")))&"し、１経営体当たりでは "&IF(X101=0,"変動無し",TEXT(ABS(X101),"0.00")&"ha "&IF(X101>0,"増加","減少")),"") -> ◎ 経営耕地面積は2015年に比べて 13,025ha（12.3%) 減少し、１経営体当たりでは 0.27ha 増加 | V97: 解説 | W97: =G102-G101 -> (13,025) | X97: =G102/G101-1 -> -12.3% | Y97: =K102-K101 -> 0.27
K98: 単位：ha | O98: 《経営耕地の状況》 | Q98: =D4 -> 茨城県
F99: 経営耕 地のあ る経営 体 数 | G99: 経 営 耕 地 面 積 | K99: １経営体 当たり 経営耕 地面積
H100: 田 | I100: 畑 （樹園地を除く） | J100: 樹園地 | V100: 列番号 | W100: 凡例用 | X100: １戸当たり増減 | Y100: 調査年
C101: 2015年 | F101: =IFERROR(OFFSET(INDIRECT($Y$3),$V$3,V101),"nc") -> 57,089 | G101: =IFERROR(ROUND(OFFSET(INDIRECT($Y$3),$V$3,$V$101+F1)/100,0),OFFSET(INDIRECT($Y$3),$V$3,$V$101+F1)) -> 105,973 | H101: =IFERROR(ROUND(OFFSET(INDIRECT($Y$3),$V$3,$V$101+G1)/100,0),OFFSET(INDIRECT($Y$3),$V$3,$V$101+G1)) -> 67,335 | I101: =IFERROR(ROUND(OFFSET(INDIRECT($Y$3),$V$3,$V$101+H1)/100,0),OFFSET(INDIRECT($Y$3),$V$3,$V$101+H1)) -> 34,392 | J101: =IFERROR(ROUND(OFFSET(INDIRECT($Y$3),$V$3,$V$101+I1)/100,0),OFFSET(INDIRECT($Y$3),$V$3,$V$101+I1)) -> 4,245 | K101: =IF(OR(AND(ISTEXT($F101),$F101<>"x",$F101<>"-"),AND(ISTEXT(G101),G101<>"x",G101<>"-")),"nc",IF(OR($F101="x",G101="x"),"x",IF(ROUND(SUM($F101),0)=0,"nc",ROUND(SUM(G101)/$F101,2)))) -> 1.86 | V101: =CELL("col",'2015年'!EA6)-1 -> 130 | W101: 田 | X101: =K102-K101 -> 0.27 | Y101: 2015年
C102: 2020年 | F102: =IFERROR(OFFSET(INDIRECT($Y$4),$V$4,$V102),"nc") -> 43,562 | G102: =IFERROR(ROUND(OFFSET(INDIRECT($Y$4),$V$4,$V102+F1)/100,0),OFFSET(INDIRECT($Y$4),$V$4,$V102+F1)) -> 92,948 | H102: =IFERROR(ROUND(OFFSET(INDIRECT($Y$4),$V$4,$V102+G1)/100,0),OFFSET(INDIRECT($Y$4),$V$4,$V102+G1)) -> 60,405 | I102: =IFERROR(ROUND(OFFSET(INDIRECT($Y$4),$V$4,$V102+H1)/100,0),OFFSET(INDIRECT($Y$4),$V$4,$V102+H1)) -> 29,389 | J102: =IFERROR(ROUND(OFFSET(INDIRECT($Y$4),$V$4,$V102+I1)/100,0),OFFSET(INDIRECT($Y$4),$V$4,$V102+I1)) -> 3,154 | K102: =IF(OR(AND(ISTEXT($F102),$F102<>"x",$F102<>"-"),AND(ISTEXT(G102),G102<>"x",G102<>"-")),"nc",IF(OR($F102="x",G102="x"),"x",IF(ROUND(SUM($F102),0)=0,"nc",ROUND(SUM(G102)/$F102,2)))) -> 2.13 | V102: =CELL("col",'2020年'!EA6)-1 -> 130 | W102: 畑 | Y102: 2020年
C103: 構成比(%) | G103: 100.0 | H103: =IFERROR(ROUND(OFFSET(INDIRECT($Y$4),5,$V$102+G1)/OFFSET(INDIRECT($Y$4),5,$V$102+1)*100,1),"nc") -> 65.0 | I103: =IFERROR(ROUND(OFFSET(INDIRECT($Y$4),5,$V$102+H1)/OFFSET(INDIRECT($Y$4),5,$V$102+1)*100,1),"nc") -> 31.6 | J103: =IFERROR(ROUND(OFFSET(INDIRECT($Y$4),5,$V$102+I1)/OFFSET(INDIRECT($Y$4),5,$V$102+1)*100,1),"nc") -> 3.4 | W103: 樹園地
D104: （参考） 全 国 | G104: =IF(OR(AND(ISTEXT($G102),$G102<>"x",$G102<>"-"),AND(ISTEXT(G102),G102<>"x",G102<>"-")),"nc",IF(OR($G102="x",G102="x"),"x",IF(ROUND(SUM($G102),0)=0,"nc",SUM(G102)/$G102%))) -> 100.0 | H104: =IF($Z$7="",'2020年'!EC475/'2020年'!EB475%,IF(OR(AND(ISTEXT($G102),$G102<>"x",$G102<>"-"),AND(ISTEXT(H102),H102<>"x",H102<>"-")),"nc",IF(OR($G102="x",H102="x"),"x",IF(ROUND(SUM($G102),0)=0,"nc",SUM(H102)/$G102%)))) -> 55.7 | I104: =IF($Z$7="",'2020年'!ED475/'2020年'!EB475%,IF(OR(AND(ISTEXT($G102),$G102<>"x",$G102<>"-"),AND(ISTEXT(I102),I102<>"x",I102<>"-")),"nc",IF(OR($G102="x",I102="x"),"x",IF(ROUND(SUM($G102),0)=0,"nc",SUM(I102)/$G102%)))) -> 38.4 | J104: =IF($Z$7="",'2020年'!EE475/'2020年'!EB475%,IF(OR(AND(ISTEXT($G102),$G102<>"x",$G102<>"-"),AND(ISTEXT(J102),J102<>"x",J102<>"-")),"nc",IF(OR($G102="x",J102="x"),"x",IF(ROUND(SUM($G102),0)=0,"nc",SUM(J102)/$G102%)))) -> 5.8 | K104: =IF($Z$7="",ROUND('2020年'!EB475/100/'2020年'!EA475,2),IF(OR(AND(ISTEXT($F102),$F102<>"x",$F102<>"-"),AND(ISTEXT(G102),G102<>"x",G102<>"-")),"nc",IF(OR($F102="x",G102="x"),"x",IF(ROUND(SUM($F102),0)=0,"nc",ROUND(SUM(G102)/$F102,2))))) -> 2.41
D110: 資料：農林水産省「農林業センサス」
U112: 非表示列

Sheet 2020年 (hidden)
A1: 注）赤字：数式／■：Infoに未使用／475行目：全国値 | E1: 農 業 経営体 | F1: 《項目変更》 | M1: （７）年齢別の農業従事者数（自営農業に従事した世帯員数）男女計 | AC1: 農業従事者の平均年齢 | AF1: 年齢別の農業就業人口（自営農業に主として従事した世帯員数）男女計 | AV1: 農業就業人口 | AY1: （11）年齢別の基幹的農業従事者数（自営農業に主として従事した世帯員のうち仕事が主の世帯員数）男女計 | BO1: 基幹的農業従事者 平均年齢 | BR1: （２）年齢別の経営者数男女計 | CH1: （４）後継者の確保状況別経営体数 | CV1: （４）家族経営構成別農家数 | DC1: （６）過去１年間の生活の主な状態別世帯員数 | DH1: 男女計 | DK1: （４）農産物販売金額１位の部門別農家数 | EA1: （１）経営耕地の状況 | EF1: （６）過去１年間の生活の主な状態別世帯員数(男) | EN1: （６）過去１年間の生活の主な状態別世帯員数(女)
F2: 個人経営 | J2: 団体経営 | L2: 《空き》 | CH2: 計 | CI2: 後継者を確保している | CM2: ５年以内に 農業経営を 引き継が な い | CN2: 確保して い な い | CO2: 経営主が６５歳以上の経営体 | DD2: 主に仕事 | DN2: 雑穀・ | EA2: 経営耕地 のある 農家数 | EB2: 経営耕地 総面積 | EC2: 田 | ED2: 畑（樹園地を除く） | EE2: 樹園地 | EG2: 主に仕事 | EO2: 主に仕事
A3: 都道府県名 (支庁名) | B3: 市区町村名 | C3: 旧市区町村名 | D3: コード （新-旧） | G3: 主業 | H3: 準主業 | I3: 副業的 | K3: 法人経営 | M3: 計 | N3: 15～19歳 | O3: 20～24 | P3: 25～29 | Q3: 30～34 | R3: 35～39 | S3: 40～44 | T3: 45～49 | U3: 50～54 | V3: 55～59 | W3: 60～64 | X3: 65～69 | Y3: 70～74 | Z3: 75～79 | AA3: 80～84 | AB3: 85歳以上 | AC3: 男女計 | AD3: 男 | AE3: 女 | AF3: 計 | AG3: 15～19歳 | AH3: 20～24 | AI3: 25～29 | AJ3: 30～34 | AK3: 35～39 | AL3: 40～44 | AM3: 45～49 | AN3: 50～54 | AO3: 55～59 | AP3: 60～64 | AQ3: 65～69 | AR3: 70～74 | AS3: 75～79 | AT3: 80～84 | AU3: 85歳以上 | AV3: 男女計の 平均年齢 | AW3: 男の 平均年齢 | AX3: 女の 平均年齢 | AY3: 計 | AZ3: 15～19歳 | BA3: 20～24 | BB3: 25～29 | BC3: 30～34 | BD3: 35～39 | BE3: 40～44 | BF3: 45～49 | BG3: 50～54 | BH3: 55～59 | BI3: 60～64 | BJ3: 65～69 | BK3: 70～74 | BL3: 75～79 | BM3: 80～84 | BN3: 85歳以上 | BO3: 男女計 | BP3: 男 | BQ3: 女 | BR3: 計 | BS3: 15～19歳 | BT3: 20～24 | BU3: 25～29 | BV3: 30～34 | BW3: 35～39 | BX3: 40～44 | BY3: 45～49 | BZ3: 50～54 | CA3: 55～59 | CB3: 60～64 | CC3: 65～69 | CD3: 70～74 | CE3: 75～79 | CF3: 80～84 | CG3: 85歳以上 | CI3: 小 計 | CJ3: 親 族 | CK3: 親族以外の 経営内部の 人 材 | CL3: 経営外部 の 人 材 | CO3: 計 | CP3: 後継者を確保している | CT3: ５年以内に 農業経営を 引き継が な い | CU3: 確保して い な い | CV3: 《空き》 | CW3: 《空き》 | CX3: 《空き》 | CY3: 《空き》 | CZ3: 《空き》 | DA3: 《空き》 | DB3: 《空き》 | DC3: 計 | DD3: 小計 | DE3: 自営農業 が主 | DF3: 勤務が主 | DG3: 農業以外の | DH3: 学生 | DI3: 主に家事 ・育児 | DJ3: 《空き》 | DK3: 計 | DL3: 稲作 | DM3: 麦類作 | DN3: いも類 | DO3: 工芸農作物 | DP3: 露地野菜 | DQ3: 施設野菜 | DR3: 果樹類 | DS3: 花き・花木 | DT3: その他の 作物 | DU3: 酪農 | DV3: 肉用牛 | DW3: 養豚 | DX3: 養鶏 | DY3: 養蚕 | DZ3: その他の 畜産 | EF3: 計 | EG3: 小計 | EH3: 自営農業 が主 | EI3: 勤務が主 | EJ3: 農業以外の 自営業が主 | EK3: 学生 | EL3: 主に家事 ・育児 | EM3: 《空き》 | EN3: 計 | EO3: 小計 | EP3: 自営農業 が主 | EQ3: 勤務が主 | ER3: 農業以外の 自営業が主 | ES3: 学生 | ET3: 主に家事 ・育児 | EU3: 《空き》
AF4: ************************ 結果表無し《空き》 ************************** | CP4: 小 計 | CQ4: 親 族 | CR4: 親族以外の 経営内部の 人 材 | CS4: 経営外部 の 人 材 | DG4: 自営業が主 | DI4: その他 | DN4: ・豆類 | EL4: その他 | ET4: その他
F5: 秘匿無し
A6: 茨城県 | D6: 000-00 | E6: 44,852 | F6: 44,009 | G6: 9,654 | H6: 4,809 | I6: 29,546 | J6: 843 | K6: 770 | M6: 104,547 | N6: 773 | O6: 1,442 | P6: 2,143 | Q6: 2,924 | R6: 3,793 | S6: 4,750 | T6: 5,345 | U6: 6,055 | V6: 8,862 | W6: 13,118 | X6: 17,541 | Y6: 14,794 | Z6: 10,239 | AA6: 7,523 | AB6: 5,245 | AC6: 62.4 | AD6: 61.3 | AE6: 63.9 | AY6: 57,496 | AZ6: 34 | BA6: 209 | BB6: 503 | BC6: 868 | BD6: 1,330 | BE6: 1,684 | BF6: 1,822 | BG6: 2,001 | BH6: 2,997 | BI6: 5,902 | BJ6: 11,273 | BK6: 11,285 | BL6: 8,313 | BM6: 5,874 | BN6: 3,401 | BO6: 67.5 | BP6: 67.0 | BQ6: 68.2 | BR6: 44,009 | BS6: - | BT6: 7 | BU6: 49 | BV6: 150 | BW6: 380 | BX6: 817 | BY6: 1,324 | BZ6: 2,094 | CA6: 3,836 | CB6: 6,522 | CC6: 9,310 | CD6: 8,294 | CE6: 5,453 | CF6: 3,651 | CG6: 2,122 | CH6: 44 009 | CI6: 9 286 | CJ6: 9 186 | CK6: 30 | CL6: 70 | CM6: 1 685 | CN6: 33 038 | CO6: 28 830 | CP6: 6 811 | CQ6: 6 750 | CR6: 14 | CS6: 47 | CT6: 507 | CU6: 21 512 | DC6: 143,489 | DD6: 109,080 | DE6: 57,496 | DF6: 45,811 | DG6: 5,773 | DH6: 7,027 | DI6: 27,382 | DK6: 40,072 | DL6: 25,022 | DM6: 56 | DN6: 1,830 | DO6: 162 | DP6: 5,226 | DQ6: 3,285 | DR6: 2,390 | DS6: 660 | DT6: 709 | DU6: 271 | DV6: 255 | DW6: 139 | DX6: 61 | DY6: 2 | DZ6: 4 | EA6: 43,562 | EB6: 9,294,777 | EC6: 6,040,505 | ED6: 2,938,887 | EE6: 315,385 | EF6: 73,400 | EG6: 64,522 | EH6: 34,390 | EI6: 26,110 | EJ6: 4,022 | EK6: 3,510 | EL6: 5,368 | EN6: 70,089 | EO6: 44,558 | EP6: 23,106 | EQ6: 19,701 | ER6: 1,751 | ES6: 3,517 | ET6: 22,014
A7: 茨城県 | B7: 水戸市 | D7: 201-00 | E7: 2,129 | F7: 2,103 | G7: 270 | H7: 321 | I7: 1,512 | J7: 26 | K7: 20 | M7: 4,977 | N7: 47 | O7: 83 | P7: 97 | Q7: 141 | R7: 163 | S7: 180 | T7: 236 | U7: 267 | V7: 457 | W7: 610 | X7: 790 | Y7: 677 | Z7: 519 | AA7: 400 | AB7: 310 | AC7: 63.1 | AD7: 61.8 | AE7: 64.7 | AY7: 2,375 | AZ7: - | BA7: 3 | BB7: 4 | BC7: 17 | BD7: 35 | BE7: 29 | BF7: 44 | BG7: 36 | BH7: 99 | BI7: 222 | BJ7: 470 | BK7: 479 | BL7: 424 | BM7: 309 | BN7: 204 | BO7: 70.9 | BP7: 70.6 | BQ7: 71.4 | BR7: 2,103 | BS7: - | BT7: - | BU7: - | BV7: 5 | BW7: 10 | BX7: 22 | BY7: 43 | BZ7: 69 | CA7: 181 | CB7: 286 | CC7: 412 | CD7: 402 | CE7: 289 | CF7: 217 | CG7: 167 | CH7: 2 103 | CI7: 559 | CJ7: 549 | CK7: 1 | CL7: 9 | CM7: 109 | CN7: 1 435 | CO7: 1 487 | CP7: 450 | CQ7: 444 | CR7: 1 | CS7: 5 | CT7: 46 | CU7: 991 | DC7: 6,409 | DD7: 4,880 | DE7: 2,375 | DF7: 2,190 | DG7: 315 | DH7: 275 | DI7: 1,254 | DK7: 1,917 | DL7: 1,543 | DM7: 3 | DN7: 17 | DO7: 1 | DP7: 155 | DQ7: 59 | DR7: 73 | DS7: 17 | DT7: 18 | DU7: 14 | DV7: 8 | DW7: 9 | DX7: - | DY7: - | DZ7: - | EA7: 2,100 | EB7: 340,541 | EC7: 276,006 | ED7: 56,460 | EE7: 8,075 | EF7: 3,246 | EG7: 2,884 | EH7: 1,397 | EI7: 1,274 | EJ7: 213 | EK7: 143 | EL7: 219 | EN7: 3,163 | EO7: 1,996 | EP7: 978 | EQ7: 916 | ER7: 102 | ES7: 132 | ET7: 1,035
A8: 茨城県 | B8: 水戸市 | C8: 水戸市 | D8: 201-01 | E8: 17 | F8: 15 | G8: 1 | H8: 1 | I8: 13 | J8: 2 | K8: 2 | M8: 34 | N8: - | O8: 2 | P8: - | Q8: - | R8: 1 | S8: 2 | T8: 4 | U8: 4 | V8: 1 | W8: 1 | X8: 5 | Y8: 5 | Z8: 7 | AA8: 1 | AB8: 1 | AC8: 61.0 | AD8: 61.8 | AE8: 59.9 | AY8: 14 | AZ8: - | BA8: - | BB8: - | BC8: - | BD8: - | BE8: 1 | BF8: - | BG8: - | BH8: - | BI8: - | BJ8: 2 | BK8: 2 | BL8: 7 | BM8: 1 | BN8: 1 | BO8: 73.6 | BP8: 75.6 | BQ8: 70.2 | BR8: 15 | BS8: - | BT8: - | BU8: - | BV8: - | BW8: - | BX8: - | BY8: 2 | BZ8: 1 | CA8: - | CB8: - | CC8: 2 | CD8: 3 | CE8: 5 | CF8: 1 | CG8: 1 | CH8: 15 | CI8: 6 | CJ8: 6 | CK8: - | CL8: - | CM8: - | CN8: 9 | CO8: 12 | CP8: 5 | CQ8: 5 | CR8: - | CS8: - | CT8: - | CU8: 7 | DC8: 56 | DD8: 37 | DE8: 14 | DF8: 16 | DG8: 7 | DH8: 7 | DI8: 12 | DK8: 10 | DL8: 9 | DM8: - | DN8: - | DO8: - | DP8: 1 | DQ8: - | DR8: - | DS8: - | DT8: - | DU8: - | DV8: - | DW8: - | DX8: - | DY8: - | DZ8: - | EA8: 15 | EB8: 1,865 | EC8: 1,584 | ED8: 261 | EE8: 20 | EF8: 28 | EG8: 22 | EH8: 9 | EI8: 10 | EJ8: 3 | EK8: 5 | EL8: 1 | EN8: 28 | EO8: 15 | EP8: 5 | EQ8: 6 | ER8: 4 | ES8: 2 | ET8: 11
A9: 茨城県 | B9: 水戸市 | C9: 国田村 | D9: 201-02 | E9: 214 | F9: 214 | G9: 19 | H9: 26 | I9: 169 | J9: - | K9: - | M9: 483 | N9: 4 | O9: 7 | P9: 6 | Q9: 10 | R9: 13 | S9: 12 | T9: 20 | U9: 28 | V9: 40 | W9: 49 | X9: 70 | Y9: 76 | Z9: 66 | AA9: 39 | AB9: 43 | AC9: 65.5 | AD9: 64.7 | AE9: 66.4 | AY9: 232 | AZ9: - | BA9: - | BB9: - | BC9: - | BD9: 2 | BE9: - | BF9: 2 | BG9: 2 | BH9: 6 | BI9: 17 | BJ9: 39 | BK9: 53 | BL9: 54 | BM9: 30 | BN9: 27 | BO9: 73.6 | BP9: 72.9 | BQ9: 74.6 | BR9: 214 | BS9: - | BT9: - | BU9: - | BV9: - | BW9: 1 | BX9: - | BY9: 3 | BZ9: 11 | CA9: 15 | CB9: 21 | CC9: 35 | CD9: 46 | CE9: 37 | CF9: 21 | CG9: 24 | CH9: 214 | CI9: 56 | CJ9: 53 | CK9: - | CL9: 3 | CM9: 8 | CN9: 150 | CO9: 163 | CP9: 50 | CQ9: 49 | CR9: - | CS9: 1 | CT9: 5 | CU9: 108 | DC9: 604 | DD9: 461 | DE9: 232 | DF9: 205 | DG9: 24 | DH9: 22 | DI9: 121 | DK9: 196 | DL9: 185 | DM9: - | DN9: - | DO9: - | DP9: 5 | DQ9: 5 | DR9: - | DS9: 1 | DT9: - | DU9: - | DV9: - | DW9: - | DX9: - | DY9: - | DZ9: - | EA9: 214 | EB9: 27,531 | EC9: 23,130 | ED9: 4,060 | EE9: 341 | EF9: 295 | EG9: 260 | EH9: 133 | EI9: 114 | EJ9: 13 | EK9: 10 | EL9: 25 | EN9: 309 | EO9: 201 | EP9: 99 | EQ9: 91 | ER9: 11 | ES9: 12 | ET9: 96
A10: 茨城県 | B10: 水戸市 | C10: 吉田村 | D10: 201-03 | E10: 23 | F10: 23 | G10: - | H10: 5 | I10: 18 | J10: - | K10: - | M10: 59 | N10: - | O10: - | P10: 1 | Q10: 3 | R10: 3 | S10: 1 | T10: 4 | U10: 4 | V10: 4 | W10: 4 | X10: 13 | Y10: 11 | Z10: 2 | AA10: 5 | AB10: 4 | AC10: 63.3 | AD10: 62.1 | AE10: 65.4 | AY10: 30 | AZ10: - | BA10: - | BB10: - | BC10: 1 | BD10: - | BE10: - | BF10: 1 | BG10: 1 | BH10: - | BI10: 2 | BJ10: 10 | BK10: 9 | BL10: 2 | BM10: 2 | BN10: 2 | BO10: 68.9 | BP10: 69.5 | BQ10: 67.9 | BR10: 23 | BS10: - | BT10: - | BU10: - | BV10: - | BW10: - | BX10: - | BY10: - | BZ10: - | CA10: 1 | CB10: 2 | CC10: 5 | CD10: 7 | CE10: 1 | CF10: 3 | CG10: 4 | CH10: 23 | CI10: 4 | CJ10: 4 | CK10: - | CL10: - | CM10: 1 | CN10: 18 | CO10: 20 | CP10: 4 | CQ10: 4 | CR10: - | CS10: - | CT10: 1 | CU10: 15 | DC10: 77 | DD10: 58 | DE10: 30 | DF10: 25 | DG10: 3 | DH10: 4 | DI10: 15 | DK10: 20 | DL10: 14 | DM10: - | DN10: 2 | DO10: 1 | DP10: 2 | DQ10: 1 | DR10: - | DS10: - | DT10: - | DU10: - | DV10: - | DW10: - | DX10: - | DY10: - | DZ10: - | EA10: 23 | EB10: 2,190 | EC10: 1,560 | ED10: 630 | EE10: - | EF10: 43 | EG10: 39 | EH10: 20 | EI10: 17 | EJ10: 2 | EK10: - | EL10: 4 | EN10: 34 | EO10: 19 | EP10: 10 | EQ10: 8 | ER10: 1 | ES10: 4 | ET10: 11
A11: 茨城県 | B11: 水戸市 | C11: 酒門村2-1 | D11: 201-04 | E11: 123 | F11: 120 | G11: 19 | H11: 18 | I11: 83 | J11: 3 | K11: 3 | M11: 290 | N11: - | O11: 4 | P11: 5 | Q11: 6 | R11: 9 | S11: 8 | T11: 19 | U11: 17 | V11: 29 | W11: 31 | X11: 50 | Y11: 49 | Z11: 20 | AA11: 26 | AB11: 17 | AC11: 63.8 | AD11: 63.1 | AE11: 64.5 | AY11: 139 | AZ11: - | BA11: 1 | BB11: - | BC11: - | BD11: 2 | BE11: - | BF11: 2 | BG11: 1 | BH11: 8 | BI11: 11 | BJ11: 32 | BK11: 35 | BL11: 15 | BM11: 22 | BN11: 10 | BO11: 71.1 | BP11: 70.5 | BQ11: 71.7 | BR11: 120 | BS11: - | BT11: - | BU11: - | BV11: - | BW11: 2 | BX11: - | BY11: 3 | BZ11: 2 | CA11: 12 | CB11: 14 | CC11: 25 | CD11: 27 | CE11: 14 | CF11: 12 | CG11: 9 | CH11: 120 | CI11: 35 | CJ11: 35 | CK11: - | CL11: - | CM11: 3 | CN11: 82 | CO11: 87 | CP11: 28 | CQ11: 28 | CR11: - | CS11: - | CT11: - | CU11: 59 | DC11: 360 | DD11: 286 | DE11: 139 | DF11: 126 | DG11: 21 | DH11: 12 | DI11: 62 | DK11: 115 | DL11: 102 | DM11: - | DN11: 1 | DO11: - | DP11: 7 | DQ11: 2 | DR11: 1 | DS11: 1 | DT11: - | DU11: - | DV11: - | DW11: 1 | DX11: - | DY11: - | DZ11: - | EA11: 120 | EB11: 17,782 | EC11: 16,018 | ED11: 1,654 | EE11: 110 | EF11: 176 | EG11: 160 | EH11: 75 | EI11: 68 | EJ11: 17 | EK11: 7 | EL11: 9 | EN11: 184 | EO11: 126 | EP11: 64 | EQ11: 58 | ER11: 4 | ES11: 5 | ET11: 53
A12: 茨城県 | B12: 水戸市 | C12: 柳河村 | D12: 201-05 | E12: 123 | F12: 123 | G12: 15 | H12: 13 | I12: 95 | J12: - | K12: - | M12: 280 | N12: 3 | O12: 6 | P12: 5 | Q12: 5 | R12: 4 | S12: 7 | T12: 7 | U12: 19 | V12: 32 | W12: 21 | X12: 40 | Y12: 39 | Z12: 37 | AA12: 31 | AB12: 24 | AC12: 65.6 | AD12: 64.5 | AE12: 66.7 | AY12: 152 | AZ12: - | BA12: - | BB12: - | BC12: - | BD12: 1 | BE12: 4 | BF12: 1 | BG12: 4 | BH12: 8 | BI12: 11 | BJ12: 20 | BK12: 25 | BL12: 32 | BM12: 27 | BN12: 19 | BO12: 72.9 | BP12: 72.1 | BQ12: 73.9 | BR12: 123 | BS12: - | BT12: - | BU12: - | BV12: - | BW12: 1 | BX12: 1 | BY12: - | BZ12: 3 | CA12: 15 | CB12: 9 | CC12: 17 | CD12: 25 | CE12: 22 | CF12: 16 | CG12: 14 | CH12: 123 | CI12: 33 | CJ12: 33 | CK12: - | CL12: - | CM12: 10 | CN12: 80 | CO12: 94 | CP12: 31 | CQ12: 31 | CR12: - | CS12: - | CT12: 5 | CU12: 58 | DC12: 348 | DD12: 273 | DE12: 152 | DF12: 109 | DG12: 12 | DH12: 16 | DI12: 59 | DK12: 104 | DL12: 62 | DM12: - | DN12: - | DO12: - | DP12: 39 | DQ12: 3 | DR12: - | DS12: - | DT12: - | DU12: - | DV12: - | DW12: - | DX12: - | DY12: - | DZ12: - | EA12: 123 | EB12: 16,496 | EC12: 11,627 | ED12: 4,869 | EE12: - | EF12: 172 | EG12: 150 | EH12: 83 | EI12: 59 | EJ12: 8 | EK12: 9 | EL12: 13 | EN12: 176 | EO12: 123 | EP12: 69 | EQ12: 50 | ER12: 4 | ES12: 7 | ET12: 46
A13: 茨城県 | B13: 水戸市 | C13: 渡里村 | D13: 201-06 | E13: 46 | F13: 45 | G13: 6 | H13: 7 | I13: 32 | J13: 1 | K13: 1 | M13: 92 | N13: - | O13: 1 | P13: 2 | Q13: 2 | R13: 1 | S13: 1 | T13: 7 | U13: 3 | V13: 11 | W13: 9 | X13: 12 | Y13: 20 | Z13: 11 | AA13: 6 | AB13: 6 | AC13: 65.3 | AD13: 64.6 | AE13: 66.3 | AY13: 47 | AZ13: - | BA13: - | BB13: 1 | BC13: 1 | BD13: 1 | BE13: - | BF13: 2 | BG13: 1 | BH13: 2 | BI13: 6 | BJ13: 6 | BK13: 10 | BL13: 10 | BM13: 4 | BN13: 3 | BO13: 68.5 | BP13: 67.7 | BQ13: 69.9 | BR13: 45 | BS13: - | BT13: - | BU13: - | BV13: - | BW13: - | BX13: - | BY13: 1 | BZ13: 1 | CA13: 4 | CB13: 4 | CC13: 8 | CD13: 10 | CE13: 7 | CF13: 2 | CG13: 8 | CH13: 45 | CI13: 11 | CJ13: 11 | CK13: - | CL13: - | CM13: 3 | CN13: 31 | CO13: 35 | CP13: 10 | CQ13: 10 | CR13: - | CS13: - | CT13: 1 | CU13: 24 | DC13: 124 | DD13: 90 | DE13: 47 | DF13: 36 | DG13: 7 | DH13: 1 | DI13: 33 | DK13: 37 | DL13: 29 | DM13: - | DN13: - | DO13: - | DP13: 4 | DQ13: 3 | DR13: - | DS13: - | DT13: - | DU13: 1 | DV13: - | DW13: - | DX13: - | DY13: - | DZ13: - | EA13: 45 | EB13: 6,560 | EC13: 4,666 | ED13: 1,834 | EE13: 60 | EF13: 65 | EG13: 59 | EH13: 30 | EI13: 23 | EJ13: 6 | EK13: 1 | EL13: 5 | EN13: 59 | EO13: 31 | EP13: 17 | EQ13: 13 | ER13: 1 | ES13: - | ET13: 28
A14: 茨城県 | B14: 水戸市 | C14: 上大野村 | D14: 201-07 | E14: 123 | F14: 123 | G14: 22 | H14: 14 | I14: 87 | J14: - | K14: - | M14: 294 | N14: 5 | O14: 4 | P14: 7 | Q14: 7 | R14: 15 | S14: 10 | T14: 11 | U14: 17 | V14: 31 | W14: 31 | X14: 41 | Y14: 42 | Z14: 35 | AA14: 22 | AB14: 16 | AC14: 62.4 | AD14: 61.5 | AE14: 63.5 | AY14: 154 | AZ14: - | BA14: - | BB14: 1 | BC14: 1 | BD14: 2 | BE14: 3 | BF14: 1 | BG14: 2 | BH14: 6 | BI14: 14 | BJ14: 27 | BK14: 38 | BL14: 31 | BM14: 19 | BN14: 9 | BO14: 70.9 | BP14: 72.1 | BQ14: 69.3 | BR14: 123 | BS14: - | BT14: - | BU14: - | BV14: 1 | BW14: - | BX14: 2 | BY14: 3 | BZ14: 6 | CA14: 11 | CB14: 10 | CC14: 25 | CD14: 20 | CE14: 22 | CF14: 16 | CG14: 7 | CH14: 123 | CI14: 44 | CJ14: 44 | CK14: - | CL14: - | CM14: - | CN14: 79 | CO14: 90 | CP14: 39 | CQ14: 39 | CR14: - | CS14: - | CT14: - | CU14: 51 | DC14: 384 | DD14: 301 | DE14: 154 | DF14: 132 | DG14: 15 | DH14: 18 | DI14: 65 | DK14: 117 | DL14: 106 | DM14: - | DN14: - | DO14: - | DP14: 10 | DQ14: 1 | DR14: - | DS14: - | DT14: - | DU14: - | DV14: - | DW14: - | DX14: - | DY14: - | DZ14: - | EA14: 123 | EB14: 23,463 | EC14: 21,057 | ED14: 2,406 | EE14: - | EF14: 194 | EG14: 178 | EH14: 89 | EI14: 79 | EJ14: 10 | EK14: 6 | EL14: 10 | EN14: 190 | EO14: 123 | EP14: 65 | EQ14: 53 | ER14: 5 | ES14: 12 | ET14: 55
A15: 茨城県 | B15: 水戸市 | C15: 緑岡村 | D15: 201-08 | E15: 133 | F15: 131 | G15: 11 | H15: 31 | I15: 89 | J15: 2 | K15: 2 | M15: 308 | N15: 4 | O15: 5 | P15: 4 | Q15: 7 | R15: 10 | S15: 8 | T15: 25 | U15: 11 | V15: 24 | W15: 43 | X15: 55 | Y15: 37 | Z15: 34 | AA15: 18 | AB15: 23 | AC15: 63.2 | AD15: 62.6 | AE15: 63.8 | AY15: 154 | AZ15: - | BA15: 1 | BB15: - | BC15: 2 | BD15: 2 | BE15: 1 | BF15: 8 | BG15: 2 | BH15: 7 | BI15: 18 | BJ15: 27 | BK15: 27 | BL15: 25 | BM15: 14 | BN15: 20 | BO15: 69.8 | BP15: 70.5 | BQ15: 68.9 | BR15: 131 | BS15: - | BT15: - | BU15: - | BV15: - | BW15: 1 | BX15: 2 | BY15: 4 | BZ15: 7 | CA15: 6 | CB15: 18 | CC15: 30 | CD15: 20 | CE15: 15 | CF15: 12 | CG15: 16 | CH15: 131 | CI15: 37 | CJ15: 37 | CK15: - | CL15: - | CM15: 6 | CN15: 88 | CO15: 93 | CP15: 29 | CQ15: 29 | CR15: - | CS15: - | CT15: 2 | CU15: 62 | DC15: 392 | DD15: 295 | DE15: 154 | DF15: 121 | DG15: 20 | DH15: 20 | DI15: 77 | DK15: 118 | DL15: 83 | DM15: - | DN15: 1 | DO15: - | DP15: 14 | DQ15: 5 | DR15: 12 | DS15: 1 | DT15: - | DU15: 2 | DV15: - | DW15: - | DX15: - | DY15: - | DZ15: - | EA15: 131 | EB15: 15,311 | EC15: 9,620 | ED15: 4,986 | EE15: 705 | EF15: 197 | EG15: 171 | EH15: 84 | EI15: 74 | EJ15: 13 | EK15: 11 | EL15: 15 | EN15: 195 | EO15: 124 | EP15: 70 | EQ15: 47 | ER15: 7 | ES15: 9 | ET15: 62
A16: 茨城県 | B16: 水戸市 | C16: 飯富村 | D16: 201-09 | E16: 101 | F16: 98 | G16: 18 | H16: 12 | I16: 68 | J16: 3 | K16: 3 | M16: 214 | N16: - | O16: 2 | P16: 4 | Q16: 7 | R16: 4 | S16: 4 | T16: 6 | U16: 11 | V16: 16 | W16: 31 | X16: 37 | Y16: 19 | Z16: 25 | AA16: 33 | AB16: 15 | AC16: 66.3 | AD16: 64.5 | AE16: 68.6 | AY16: 136 | AZ16: - | BA16: - | BB16: - | BC16: 3 | BD16: 2 | BE16: 3 | BF16: 3 | BG16: 1 | BH16: 4 | BI16: 16 | BJ16: 27 | BK16: 15 | BL16: 21 | BM16: 29 | BN16: 12 | BO16: 71.0 | BP16: 69.7 | BQ16: 72.8 | BR16: 98 | BS16: - | BT16: - | BU16: - | BV16: - | BW16: - | BX16: 1 | BY16: 2 | BZ16: 5 | CA16: 6 | CB16: 12 | CC16: 23 | CD16: 10 | CE16: 11 | CF16: 20 | CG16: 8 | CH16: 98 | CI16: 18 | CJ16: 18 | CK16: - | CL16: - | CM16: 3 | CN16: 77 | CO16: 72 | CP16: 16 | CQ16: 16 | CR16: - | CS16: - | CT16: 2 | CU16: 54 | DC16: 283 | DD16: 225 | DE16: 136 | DF16: 86 | DG16: 3 | DH16: 8 | DI16: 50 | DK16: 93 | DL16: 47 | DM16: - | DN16: 2 | DO16: - | DP16: 32 | DQ16: 3 | DR16: 2 | DS16: 3 | DT16: 2 | DU16: 1 | DV16: 1 | DW16: - | DX16: - | DY16: - | DZ16: - | EA16: 98 | EB16: 14,076 | EC16: 7,195 | ED16: 6,708 | EE16: 173 | EF16: 142 | EG16: 129 | EH16: 77 | EI16: 50 | EJ16: 2 | EK16: 5 | EL16: 8 | EN16: 141 | EO16: 96 | EP16: 59 | EQ16: 36 | ER16: 1 | ES16: 3 | ET16: 42
A17: 茨城県 | B17: 水戸市 | C17: 上中妻村 | D17: 201-10 | E17: 93 | F17: 93 | G17: 8 | H17: 16 | I17: 69 | J17: - | K17: - | M17: 203 | N17: 1 | O17: 2 | P17: 5 | Q17: 6 | R17: 3 | S17: 8 | T17: 9 | U17: 6 | V17: 13 | W17: 28 | X17: 28 | Y17: 37 | Z17: 25 | AA17: 18 | AB17: 14 | AC17: 65.2 | AD17: 63.9 | AE17: 67.0 | AY17: 102 | AZ17: - | BA17: 1 | BB17: - | BC17: 1 | BD17: - | BE17: - | BF17: 6 | BG17: 1 | BH17: 3 | BI17: 6 | BJ17: 15 | BK17: 20 | BL17: 23 | BM17: 17 | BN17: 9 | BO17: 71.9 | BP17: 71.5 | BQ17: 72.5 | BR17: 93 | BS17: - | BT17: - | BU17: - | BV17: - | BW17: - | BX17: 1 | BY17: 3 | BZ17: 3 | CA17: 7 | CB17: 13 | CC17: 13 | CD17: 22 | CE17: 14 | CF17: 13 | CG17: 4 | CH17: 93 | CI17: 19 | CJ17: 19 | CK17: - | CL17: - | CM17: 5 | CN17: 69 | CO17: 66 | CP17: 14 | CQ17: 14 | CR17: - | CS17: - | CT17: 2 | CU17: 50 | DC17: 273 | DD17: 205 | DE17: 102 | DF17: 92 | DG17: 11 | DH17: 11 | DI17: 57 | DK17: 86 | DL17: 62 | DM17: - | DN17: 1 | DO17: - | DP17: 11 | DQ17: 1 | DR17: 4 | DS17: 2 | DT17: 5 | DU17: - | DV17: - | DW17: - | DX17: - | DY17: - | DZ17: - | EA17: 92 | EB17: 13,013 | EC17: 9,379 | ED17: 2,993 | EE17: 641 | EF17: 135 | EG17: 122 | EH17: 64 | EI17: 50 | EJ17: 8 | EK17: 3 | EL17: 10 | EN17: 138 | EO17: 83 | EP17: 38 | EQ17: 42 | ER17: 3 | ES17: 8 | ET17: 47
A18: 茨城県 | B18: 水戸市 | C18: 山根村 | D18: 201-11 | E18: 66 | F18: 65 | G18: 10 | H18: 7 | I18: 48 | J18: 1 | K18: 1 | M18: 154 | N18: 5 | O18: 1 | P18: 2 | Q18: 5 | R18: 4 | S18: 3 | T18: 13 | U18: 7 | V18: 13 | W18: 23 | X18: 16 | Y18: 20 | Z18: 18 | AA18: 20 | AB18: 4 | AC18: 62.4 | AD18: 61.1 | AE18: 64.4 | AY18: 73 | AZ18: - | BA18: - | BB18: - | BC18: - | BD18: 2 | BE18: - | BF18: 1 | BG18: - | BH18: 3 | BI18: 8 | BJ18: 13 | BK18: 12 | BL18: 12 | BM18: 19 | BN18: 3 | BO18: 72.1 | BP18: 71.6 | BQ18: 73.2 | BR18: 65 | BS18: - | BT18: - | BU18: - | BV18: - | BW18: 1 | BX18: 1 | BY18: 2 | BZ18: 1 | CA18: 3 | CB18: 12 | CC18: 9 | CD18: 11 | CE18: 9 | CF18: 13 | CG18: 3 | CH18: 65 | CI18: 21 | CJ18: 21 | CK18: - | CL18: - | CM18: - | CN18: 44 | CO18: 45 | CP18: 15 | CQ18: 15 | CR18: - | CS18: - | CT18: - | CU18: 30 | DC18: 191 | DD18: 147 | DE18: 73 | DF18: 61 | DG18: 13 | DH18: 8 | DI18: 36 | DK18: 55 | DL18: 38 | DM18: - | DN18: 2 | DO18: - | DP18: 2 | DQ18: - | DR18: 11 | DS18: - | DT18: - | DU18: 2 | DV18: - | DW18: - | DX18: - | DY18: - | DZ18: - | EA18: 65 | EB18: 5,467 | EC18: 3,504 | ED18: 1,374 | EE18: 589 | EF18: 102 | EG18: 97 | EH18: 49 | EI18: 39 | EJ18: 9 | EK18: 3 | EL18: 2 | EN18: 89 | EO18: 50 | EP18: 24 | EQ18: 22 | ER18: 4 | ES18: 5 | ET18: 34
A19: 茨城県 | B19: 水戸市 | C19: 河和田村 | D19: 201-12 | E19: 113 | F19: 111 | G19: 12 | H19: 20 | I19: 79 | J19: 2 | K19: 2 | M19: 279 | N19: 3 | O19: 3 | P19: 3 | Q19: 14 | R19: 16 | S19: 10 | T19: 10 | U19: 9 | V19: 16 | W19: 43 | X19: 71 | Y19: 30 | Z19: 18 | AA19: 17 | AB19: 16 | AC19: 62.0 | AD19: 61.1 | AE19: 63.1 | AY19: 137 | AZ19: - | BA19: - | BB19: - | BC19: 1 | BD19: 4 | BE19: 1 | BF19: 1 | BG19: - | BH19: 3 | BI19: 14 | BJ19: 49 | BK19: 23 | BL19: 16 | BM19: 15 | BN19: 10 | BO19: 70.2 | BP19: 70.0 | BQ19: 70.3 | BR19: 111 | BS19: - | BT19: - | BU19: - | BV19: - | BW19: 1 | BX19: - | BY19: 1 | BZ19: 2 | CA19: 3 | CB19: 15 | CC19: 38 | CD19: 20 | CE19: 14 | CF19: 9 | CG19: 8 | CH19: 111 | CI19: 25 | CJ19: 25 | CK19: - | CL19: - | CM19: 13 | CN19: 73 | CO19: 89 | CP19: 22 | CQ19: 22 | CR19: - | CS19: - | CT19: 6 | CU19: 61 | DC19: 344 | DD19: 270 | DE19: 137 | DF19: 121 | DG19: 12 | DH19: 14 | DI19: 60 | DK19: 100 | DL19: 72 | DM19: - | DN19: - | DO19: - | DP19: 6 | DQ19: - | DR19: 9 | DS19: 1 | DT19: 8 | DU19: 3 | DV19: 1 | DW19: - | DX19: - | DY19: - | DZ19: - | EA19: 111 | EB19: 16,488 | EC19: 12,596 | ED19: 2,540 | EE19: 1,352 | EF19: 178 | EG19: 163 | EH19: 82 | EI19: 74 | EJ19: 7 | EK19: 9 | EL19: 6 | EN19: 166 | EO19: 107 | EP19: 55 | EQ19: 47 | ER19: 5 | ES19: 5 | ET19: 54
A20: 茨城県 | B20: 水戸市 | C20: 下大野村 | D20: 201-13 | E20: 184 | F20: 181 | G20: 34 | H20: 23 | I20: 124 | J20: 3 | K20: 2 | M20: 458 | N20: 5 | O20: 5 | P20: 16 | Q20: 15 | R20: 11 | S20: 19 | T20: 20 | U20: 29 | V20: 43 | W20: 56 | X20: 79 | Y20: 65 | Z20: 47 | AA20: 17 | AB20: 31 | AC20: 62.0 | AD20: 60.6 | AE20: 63.7 | AY20: 206 | AZ20: - | BA20: - | BB20: - | BC20: 1 | BD20: 1 | BE20: 6 | BF20: 4 | BG20: 8 | BH20: 10 | BI20: 18 | BJ20: 42 | BK20: 48 | BL20: 37 | BM20: 11 | BN20: 20 | BO20: 69.8 | BP20: 69.2 | BQ20: 70.6 | BR20: 181 | BS20: - | BT20: - | BU20: - | BV20: - | BW20: - | BX20: 4 | BY20: 4 | BZ20: 5 | CA20: 15 | CB20: 30 | CC20: 41 | CD20: 40 | CE20: 26 | CF20: 7 | CG20: 9 | CH20: 181 | CI20: 48 | CJ20: 45 | CK20: 1 | CL20: 2 | CM20: 8 | CN20: 125 | CO20: 123 | CP20: 40 | CQ20: 37 | CR20: 1 | CS20: 2 | CT20: - | CU20: 83 | DC20: 581 | DD20: 458 | DE20: 206 | DF20: 213 | DG20: 39 | DH20: 23 | DI20: 100 | DK20: 177 | DL20: 162 | DM20: - | DN20: - | DO20: - | DP20: 2 | DQ20: 10 | DR20: - | DS20: 3 | DT20: - | DU20: - | DV20: - | DW20: - | DX20: - | DY20: - | DZ20: - | EA20: 180 | EB20: 46,598 | EC20: 44,899 | ED20: 1,669 | EE20: 30 | EF20: 288 | EG20: 261 | EH20: 109 | EI20: 123 | EJ20: 29 | EK20: 13 | EL20: 14 | EN20: 293 | EO20: 197 | EP20: 97 | EQ20: 90 | ER20: 10 | ES20: 10 | ET20: 86
A21: 茨城県 | B21: 水戸市 | C21: 稲荷村 | D21: 201-14 | E21: 155 | F21: 154 | G21: 15 | H21: 30 | I21: 109 | J21: 1 | K21: - | M21: 375 | N21: 4 | O21: 8 | P21: 8 | Q21: 9 | R21: 15 | S21: 26 | T21: 15 | U21: 14 | V21: 47 | W21: 48 | X21: 67 | Y21: 42 | Z21: 34 | AA21: 20 | AB21: 18 | AC21: 60.9 | AD21: 59.1 | AE21: 63.2 | AY21: 144 | AZ21: - | BA21: - | BB21: - | BC21: - | BD21: 4 | BE21: 1 | BF21: 2 | BG21: 2 | BH21: 8 | BI21: 12 | BJ21: 41 | BK21: 29 | BL21: 28 | BM21: 10 | BN21: 7 | BO21: 69.4 | BP21: 68.7 | BQ21: 70.6 | BR21: 154 | BS21: - | BT21: - | BU21: - | BV21: - | BW21: - | BX21: 3 | BY21: 5 | BZ21: 7 | CA21: 22 | CB21: 21 | CC21: 33 | CD21: 27 | CE21: 19 | CF21: 8 | CG21: 9 | CH21: 154 | CI21: 37 | CJ21: 35 | CK21: - | CL21: 2 | CM21: 11 | CN21: 106 | CO21: 96 | CP21: 28 | CQ21: 26 | CR21: - | CS21: 2 | CT21: 2 | CU21: 66 | DC21: 498 | DD21: 352 | DE21: 144 | DF21: 185 | DG21: 23 | DH21: 22 | DI21: 124 | DK21: 148 | DL21: 145 | DM21: - | DN21: 1 | DO21: - | DP21: 1 | DQ21: - | DR21: - | DS21: 1 | DT21: - | DU21: - | DV21: - | DW21: - | DX21: - | DY21: - | DZ21: - | EA21: 154 | EB21: 28,634 | EC21: 26,793 | ED21: 1,821 | EE21: 20 | EF21: 254 | EG21: 218 | EH21: 90 | EI21: 110 | EJ21: 18 | EK21: 12 | EL21: 24 | EN21: 244 | EO21: 134 | EP21: 54 | EQ21: 75 | ER21: 5 | ES21: 10 | ET21: 100
A22: 茨城県 | B22: 水戸市 | C22: 大場村 | D22: 201-15 | E22: 145 | F22: 142 | G22: 19 | H22: 25 | I22: 98 | J22: 3 | K22: 2 | M22: 360 | N22: 2 | O22: 10 | P22: 7 | Q22: 11 | R22: 22 | S22: 19 | T22: 15 | U22: 19 | V22: 23 | W22: 60 | X22: 66 | Y22: 40 | Z22: 23 | AA22: 30 | AB22: 13 | AC22: 60.6 | AD22: 58.4 | AE22: 63.4 | AY22: 155 | AZ22: - | BA22: - | BB22: 1 | BC22: 1 | BD22: 6 | BE22: 1 | BF22: 1 | BG22: 4 | BH22: 7 | BI22: 19 | BJ22: 38 | BK22: 31 | BL22: 16 | BM22: 21 | BN22: 9 | BO22: 68.8 | BP22: 67.9 | BQ22: 70.3 | BR22: 142 | BS22: - | BT22: - | BU22: - | BV22: - | BW22: 1 | BX22: 1 | BY22: 1 | BZ22: 5 | CA22: 10 | CB22: 26 | CC22: 38 | CD22: 28 | CE22: 11 | CF22: 16 | CG22: 5 | CH22: 142 | CI22: 32 | CJ22: 32 | CK22: - | CL22: - | CM22: 2 | CN22: 108 | CO22: 98 | CP22: 23 | CQ22: 23 | CR22: - | CS22: - | CT22: - | CU22: 75 | DC22: 462 | DD22: 343 | DE22: 155 | DF22: 160 | DG22: 28 | DH22: 19 | DI22: 100 | DK22: 129 | DL22: 111 | DM22: - | DN22: 3 | DO22: - | DP22: 5 | DQ22: 5 | DR22: - | DS22: 2 | DT22: 2 | DU22: - | DV22: - | DW22: 1 | DX22: - | DY22: - | DZ22: - | EA22: 142 | EB22: 27,618 | EC22: 24,838 | ED22: 2,778 | EE22: 2 | EF22: 239 | EG22: 207 | EH22: 94 | EI22: 94 | EJ22: 19 | EK22: 14 | EL22: 18 | EN22: 223 | EO22: 136 | EP22: 61 | EQ22: 66 | ER22: 9 | ES22: 5 | ET22: 82
A23: 茨城県 | B23: 水戸市 | C23: 下中妻村 | D23: 201-16 | E23: 111 | F23: 107 | G23: 10 | H23: 18 | I23: 79 | J23: 4 | K23: 2 | M23: 254 | N23: 2 | O23: 7 | P23: 6 | Q23: 10 | R23: 9 | S23: 9 | T23: 12 | U23: 17 | V23: 25 | W23: 24 | X23: 40 | Y23: 27 | Z23: 34 | AA23: 22 | AB23: 10 | AC23: 61.8 | AD23: 60.2 | AE23: 64.0 | AY23: 102 | AZ23: - | BA23: - | BB23: 1 | BC23: 2 | BD23: 1 | BE23: - | BF23: - | BG23: 2 | BH23: 3 | BI23: 12 | BJ23: 20 | BK23: 15 | BL23: 27 | BM23: 11 | BN23: 8 | BO23: 71.2 | BP23: 71.4 | BQ23: 70.9 | BR23: 107 | BS23: - | BT23: - | BU23: - | BV23: 2 | BW23: 1 | BX23: 1 | BY23: 1 | BZ23: 2 | CA23: 11 | CB23: 14 | CC23: 23 | CD23: 16 | CE23: 18 | CF23: 12 | CG23: 6 | CH23: 107 | CI23: 29 | CJ23: 29 | CK23: - | CL23: - | CM23: 12 | CN23: 66 | CO23: 75 | CP23: 23 | CQ23: 23 | CR23: - | CS23: - | CT23: 6 | CU23: 46 | DC23: 322 | DD23: 227 | DE23: 102 | DF23: 111 | DG23: 14 | DH23: 15 | DI23: 80 | DK23: 94 | DL23: 83 | DM23: 2 | DN23: 2 | DO23: - | DP23: 1 | DQ23: 2 | DR23: 4 | DS23: - | DT23: - | DU23: - | DV23: - | DW23: - | DX23: - | DY23: - | DZ23: - | EA23: 107 | EB23: 22,938 | EC23: 16,539 | ED23: 6,012 | EE23: 387 | EF23: 166 | EG23: 148 | EH23: 67 | EI23: 71 | EJ23: 10 | EK23: 8 | EL23: 10 | EN23: 156 | EO23: 79 | EP23: 35 | EQ23: 40 | ER23: 4 | ES23: 7 | ET23: 70
A24: 茨城県 | B24: 水戸市 | C24: 中妻村 | D24: 201-17 | E24: 135 | F24: 135 | G24: 17 | H24: 21 | I24: 97 | J24: - | K24: - | M24: 324 | N24: 5 | O24: 7 | P24: 6 | Q24: 12 | R24: 10 | S24: 9 | T24: 13 | U24: 20 | V24: 26 | W24: 42 | X24: 44 | Y24: 53 | Z24: 32 | AA24: 24 | AB24: 21 | AC24: 62.7 | AD24: 61.4 | AE24: 64.7 | AY24: 152 | AZ24: - | BA24: - | BB24: - | BC24: 1 | BD24: 1 | BE24: 1 | BF24: 1 | BG24: 1 | BH24: 4 | BI24: 17 | BJ24: 24 | BK24: 40 | BL24: 26 | BM24: 22 | BN24: 14 | BO24: 72.4 | BP24: 72.2 | BQ24: 72.8 | BR24: 135 | BS24: - | BT24: - | BU24: - | BV24: 1 | BW24: 1 | BX24: - | BY24: 2 | BZ24: 4 | CA24: 10 | CB24: 25 | CC24: 20 | CD24: 28 | CE24: 18 | CF24: 14 | CG24: 12 | CH24: 135 | CI24: 30 | CJ24: 29 | CK24: - | CL24: 1 | CM24: 7 | CN24: 98 | CO24: 92 | CP24: 26 | CQ24: 26 | CR24: - | CS24: - | CT24: 3 | CU24: 63 | DC24: 410 | DD24: 325 | DE24: 152 | DF24: 149 | DG24: 24 | DH24: 18 | DI24: 67 | DK24: 117 | DL24: 98 | DM24: - | DN24: - | DO24: - | DP24: 7 | DQ24: 7 | DR24: 1 | DS24: - | DT24: 1 | DU24: 2 | DV24: - | DW24: 1 | DX24: - | DY24: - | DZ24: - | EA24: 135 | EB24: 22,126 | EC24: 18,305 | ED24: 3,340 | EE24: 481 | EF24: 211 | EG24: 194 | EH24: 94 | EI24: 86 | EJ24: 14 | EK24: 9 | EL24: 8 | EN24: 199 | EO24: 131 | EP24: 58 | EQ24: 63 | ER24: 10 | ES24: 9 | ET24: 59
A25: 茨城県 | B25: 水戸市 | C25: 鯉渕村2-1 | D25: 201-18 | E25: 224 | F25: 223 | G25: 34 | H25: 34 | I25: 155 | J25: 1 | K25: - | M25: 516 | N25: 4 | O25: 9 | P25: 10 | Q25: 12 | R25: 13 | S25: 24 | T25: 26 | U25: 32 | V25: 63 | W25: 66 | X25: 56 | Y25: 65 | Z25: 51 | AA25: 51 | AB25: 34 | AC25: 63.0 | AD25: 61.5 | AE25: 65.0 | AY25: 246 | AZ25: - | BA25: - | BB25: - | BC25: 2 | BD25: 4 | BE25: 7 | BF25: 8 | BG25: 4 | BH25: 17 | BI25: 21 | BJ25: 38 | BK25: 47 | BL25: 42 | BM25: 35 | BN25: 21 | BO25: 70.1 | BP25: 69.7 | BQ25: 70.7 | BR25: 223 | BS25: - | BT25: - | BU25: - | BV25: 1 | BW25: - | BX25: 5 | BY25: 6 | BZ25: 4 | CA25: 30 | CB25: 40 | CC25: 27 | CD25: 42 | CE25: 26 | CF25: 22 | CG25: 20 | CH25: 223 | CI25: 74 | CJ25: 73 | CK25: - | CL25: 1 | CM25: 17 | CN25: 132 | CO25: 137 | CP25: 47 | CQ25: 47 | CR25: - | CS25: - | CT25: 11 | CU25: 79 | DC25: 700 | DD25: 527 | DE25: 246 | DF25: 242 | DG25: 39 | DH25: 37 | DI25: 136 | DK25: 201 | DL25: 135 | DM25: 1 | DN25: 2 | DO25: - | DP25: 6 | DQ25: 11 | DR25: 29 | DS25: 2 | DT25: - | DU25: 3 | DV25: 6 | DW25: 6 | DX25: - | DY25: - | DZ25: - | EA25: 222 | EB25: 32,385 | EC25: 22,696 | ED25: 6,525 | EE25: 3,164 | EF25: 361 | EG25: 306 | EH25: 148 | EI25: 133 | EJ25: 25 | EK25: 18 | EL25: 37 | EN25: 339 | EO25: 221 | EP25: 98 | EQ25: 109 | ER25: 14 | ES25: 19 | ET25: 99
A26: 茨城県 | B26: 日立市 | D26: 202-00 | E26: 386 | F26: 382 | G26: 35 | H26: 41 | I26: 306 | J26: 4 | K26: 4 | M26: 778 | N26: 1 | O26: 6 | P26: 17 | Q26: 12 | R26: 25 | S26: 22 | T26: 18 | U26: 26 | V26: 56 | W26: 105 | X26: 134 | Y26: 125 | Z26: 87 | AA26: 66 | AB26: 78 | AC26: 66.6 | AD26: 65.8 | AE26: 67.7 | AY26: 454 | AZ26: - | BA26: - | BB26: 2 | BC26: - | BD26: 6 | BE26: 5 | BF26: 3 | BG26: 11 | BH26: 6 | BI26: 39 | BJ26: 93 | BK26: 102 | BL26: 73 | BM26: 56 | BN26: 58 | BO26: 72.5 | BP26: 72.5 | BQ26: 72.5 | BR26: 382 | BS26: - | BT26: - | BU26: 1 | BV26: - | BW26: 2 | BX26: 3 | BY26: 3 | BZ26: 6 | CA26: 17 | CB26: 48 | CC26: 81 | CD26: 73 | CE26: 58 | CF26: 42 | CG26: 48 | CH26: 382 | CI26: 77 | CJ26: 76 | CK26: - | CL26: 1 | CM26: 18 | CN26: 287 | CO26: 302 | CP26: 71 | CQ26: 70 | CR26: - | CS26: 1 | CT26: 3 | CU26: 228 | DC26: 949 | DD26: 749 | DE26: 454 | DF26: 269 | DG26: 26 | DH26: 11 | DI26: 189 | DK26: 298 | DL26: 209 | DM26: - | DN26: 5 | DO26: - | DP26: 52 | DQ26: 2 | DR26: 22 | DS26: 3 | DT26: 2 | DU26: - | DV26: 2 | DW26: - | DX26: 1 | DY26: - | DZ26: - | EA26: 382 | EB26: 38,165 | EC26: 29,662 | ED26: 7,151 | EE26: 1,352 | EF26: 495 | EG26: 466 | EH26: 275 | EI26: 172 | EJ26: 19 | EK26: 5 | EL26: 24 | EN26: 454 | EO26: 283 | EP26: 179 | EQ26: 97 | ER26: 7 | ES26: 6 | ET26: 165
A27: 茨城県 | B27: 日立市 | C27: 中里村 | D27: 202-01 | E27: 45 | F27: 45 | G27: 7 | H27: 3 | I27: 35 | J27: - | K27: - | M27: 93 | N27: - | O27: 1 | P27: 3 | Q27: - | R27: 2 | S27: 2 | T27: - | U27: 2 | V27: 7 | W27: 18 | X27: 19 | Y27: 12 | Z27: 4 | AA27: 8 | AB27: 15 | AC27: 68.3 | AD27: 67.9 | AE27: 68.7 | AY27: 49 | AZ27: - | BA27: - | BB27: 1 | BC27: - | BD27: 1 | BE27: - | BF27: - | BG27: 1 | BH27: 1 | BI27: 6 | BJ27: 13 | BK27: 10 | BL27: 4 | BM27: 6 | BN27: 6 | BO27: 71.2 | BP27: 73.0 | BQ27: 68.4 | BR27: 45 | BS27: - | BT27: - | BU27: - | BV27: - | BW27: - | BX27: - | BY27: - | BZ27: - | CA27: 2 | CB27: 8 | CC27: 10 | CD27: 7 | CE27: 4 | CF27: 5 | CG27: 9 | CH27: 45 | CI27: 7 | CJ27: 7 | CK27: - | CL27: - | CM27: 1 | CN27: 37 | CO27: 35 | CP27: 6 | CQ27: 6 | CR27: - | CS27: - | CT27: - | CU27: 29 | DC27: 105 | DD27: 80 | DE27: 49 | DF27: 30 | DG27: 1 | DH27: 1 | DI27: 24 | DK27: 32 | DL27: 13 | DM27: - | DN27: 1 | DO27: - | DP27: 1 | DQ27: - | DR27: 14 | DS27: 1 | DT27: 2 | DU27: - | DV27: - | DW27: - | DX27: - | DY27: - | DZ27: - | EA27: 45 | EB27: 2,758 | EC27: 1,652 | ED27: 470 | EE27: 636 | EF27: 54 | EG27: 47 | EH27: 30 | EI27: 16 | EJ27: 1 | EK27: 1 | EL27: 6 | EN27: 51 | EO27: 33 | EP27: 19 | EQ27: 14 | ER27: - | ES27: - | ET27: 18
A28: 茨城県 | B28: 日立市 | C28: 豊浦町 | D28: 202-02 | E28: 21 | F28: 20 | G28: 2 | H28: 2 | I28: 16 | J28: 1 | K28: 1 | M28: 38 | N28: - | O28: 1 | P28: 2 | Q28: - | R28: 1 | S28: 1 | T28: 2 | U28: - | V28: 3 | W28: 4 | X28: 5 | Y28: 7 | Z28: 4 | AA28: 2 | AB28: 6 | AC28: 66.7 | AD28: 66.6 | AE28: 66.9 | AY28: 20 | AZ28: - | BA28: - | BB28: 1 | BC28: - | BD28: 1 | BE28: - | BF28: - | BG28: - | BH28: - | BI28: 1 | BJ28: 3 | BK28: 5 | BL28: 3 | BM28: 2 | BN28: 4 | BO28: 72.4 | BP28: 70.7 | BQ28: 77.6 | BR28: 20 | BS28: - | BT28: - | BU28: 1 | BV28: - | BW28: - | BX28: - | BY28: - | BZ28: - | CA28: 2 | CB28: 3 | CC28: 2 | CD28: 5 | CE28: 3 | CF28: 2 | CG28: 2 | CH28: 20 | CI28: 5 | CJ28: 5 | CK28: - | CL28: - | CM28: - | CN28: 15 | CO28: 14 | CP28: 5 | CQ28: 5 | CR28: - | CS28: - | CT28: - | CU28: 9 | DC28: 50 | DD28: 34 | DE28: 20 | DF28: 11 | DG28: 3 | DH28: 1 | DI28: 15 | DK28: 18 | DL28: 11 | DM28: - | DN28: - | DO28: - | DP28: 3 | DQ28: - | DR28: 4 | DS28: - | DT28: - | DU28: - | DV28: - | DW28: - | DX28: - | DY28: - | DZ28: - | EA28: 20 | EB28: 1,266 | EC28: 790 | ED28: 316 | EE28: 160 | EF28: 22 | EG28: 22 | EH28: 15 | EI28: 6 | EJ28: 1 | EK28: - | EL28: - | EN28: 28 | EO28: 12 | EP28: 5 | EQ28: 5 | ER28: 2 | ES28: 1 | ET28: 15
A29: 茨城県 | B29: 日立市 | C29: 日高村 | D29: 202-03 | E29: 19 | F29: 19 | G29: 1 | H29: 3 | I29: 15 | J29: - | K29: - | M29: 47 | N29: - | O29: 1 | P29: 2 | Q29: 3 | R29: 3 | S29: 3 | T29: 1 | U29: 1 | V29: 1 | W29: 6 | X29: 5 | Y29: 7 | Z29: 6 | AA29: 4 | AB29: 4 | AC29: 61.7 | AD29: 60.7 | AE29: 63.1 | AY29: 29 | AZ29: - | BA29: - | BB29: - | BC29: - | BD29: 1 | BE29: 1 | BF29: 1 | BG29: 1 | BH29: - | BI29: 1 | BJ29: 5 | BK29: 6 | BL29: 5 | BM29: 4 | BN29: 4 | BO29: 71.3 | BP29: 70.6 | BQ29: 72.6 | BR29: 19 | BS29: - | BT29: - | BU29: - | BV29: - | BW29: 1 | BX29: 1 | BY29: - | BZ29: - | CA29: 1 | CB29: 1 | CC29: 3 | CD29: 3 | CE29: 4 | CF29: 2 | CG29: 3 | CH29: 19 | CI29: 3 | CJ29: 3 | CK29: - | CL29: - | CM29: 2 | CN29: 14 | CO29: 15 | CP29: 2 | CQ29: 2 | CR29: - | CS29: - | CT29: - | CU29: 13 | DC29: 50 | DD29: 41 | DE29: 29 | DF29: 12 | DG29: - | DH29: - | DI29: 9 | DK29: 13 | DL29: 5 | DM29: - | DN29: - | DO29: - | DP29: 6 | DQ29: 1 | DR29: 1 | DS29: - | DT29: - | DU29: - | DV29: - | DW29: - | DX29: - | DY29: - | DZ29: - | EA29: 19 | EB29: 1,544 | EC29: 947 | ED29: 492 | EE29: 105 | EF29: 29 | EG29: 28 | EH29: 18 | EI29: 10 | EJ29: - | EK29: - | EL29: 1 | EN29: 21 | EO29: 13 | EP29: 11 | EQ29: 2 | ER29: - | ES29: - | ET29: 8
A30: 茨城県 | B30: 日立市 | C30: 日立市 | D30: 202-04 | E30: 5 | F30: 5 | G30: x | H30: x | I30: x | J30: - | K30: - | M30: x | N30: x | O30: x | P30: x | Q30: x | R30: x | S30: x | T30: x | U30: x | V30: x | W30: x | X30: x | Y30: x | Z30: x | AA30: x | AB30: x | AC30: x | AD30: x | AE30: x | AY30: x | AZ30: x | BA30: x | BB30: x | BC30: x | BD30: x | BE30: x | BF30: x | BG30: x | BH30: x | BI30: x | BJ30: x | BK30: x | BL30: x | BM30: x | BN30: x | BO30: x | BP30: x | BQ30: x | BR30: x | BS30: x | BT30: x | BU30: x | BV30: x | BW30: x | BX30: x | BY30: x | BZ30: x | CA30: x | CB30: x | CC30: x | CD30: x | CE30: x | CF30: x | CG30: x | CH30: 5 | CI30: - | CJ30: - | CK30: - | CL30: - | CM30: - | CN30: 5 | CO30: 4 | CP30: - | CQ30: - | CR30: - | CS30: - | CT30: - | CU30: 4 | DC30: x | DD30: x | DE30: x | DF30: x | DG30: x | DH30: x | DI30: x | DK30: x | DL30: x | DM30: x | DN30: x | DO30: x | DP30: x | DQ30: x | DR30: x | DS30: x | DT30: x | DU30: x | DV30: x | DW30: x | DX30: x | DY30: x | DZ30: x | EA30: x | EB30: x | EC30: x | ED30: x | EE30: x | EF30: x | EG30: x | EH30: x | EI30: x | EJ30: x | EK30: x | EL30: x | EN30: x | EO30: x | EP30: x | EQ30: x | ER30: x | ES30: x | ET30: x
A31: 茨城県 | B31: 日立市 | C31: 多賀町 | D31: 202-05 | E31: 12 | F31: 12 | G31: - | H31: 2 | I31: 10 | J31: - | K31: - | M31: 21 | N31: - | O31: - | P31: - | Q31: - | R31: - | S31: - | T31: - | U31: - | V31: 2 | W31: 2 | X31: 5 | Y31: 2 | Z31: 3 | AA31: 4 | AB31: 3 | AC31: 73.4 | AD31: 73.4 | AE31: 73.4 | AY31: 14 | AZ31: - | BA31: - | BB31: - | BC31: - | BD31: - | BE31: - | BF31: - | BG31: - | BH31: 1 | BI31: 1 | BJ31: 4 | BK31: 1 | BL31: 1 | BM31: 4 | BN31: 2 | BO31: 74.6 | BP31: 74.1 | BQ31: 75.4 | BR31: 12 | BS31: - | BT31: - | BU31: - | BV31: - | BW31: - | BX31: - | BY31: - | BZ31: - | CA31: - | CB31: - | CC31: 4 | CD31: 2 | CE31: 2 | CF31: 3 | CG31: 1 | CH31: 12 | CI31: 2 | CJ31: 2 | CK31: - | CL31: - | CM31: - | CN31: 10 | CO31: 12 | CP31: 2 | CQ31: 2 | CR31: - | CS31: - | CT31: - | CU31: 10 | DC31: 34 | DD31: 28 | DE31: 14 | DF31: 12 | DG31: 2 | DH31: - | DI31: 6 | DK31: 8 | DL31: 1 | DM31: - | DN31: 1 | DO31: - | DP31: 6 | DQ31: - | DR31: - | DS31: - | DT31: - | DU31: - | DV31: - | DW31: - | DX31: - | DY31: - | DZ31: - | EA31: 12 | EB31: 651 | EC31: 350 | ED31: 271 | EE31: 30 | EF31: 19 | EG31: 19 | EH31: 9 | EI31: 8 | EJ31: 2 | EK31: - | EL31: - | EN31: 15 | EO31: 9 | EP31: 5 | EQ31: 4 | ER31: - | ES31: - | ET31: 6
A32: 茨城県 | B32: 日立市 | C32: 久慈町 | D32: 202-06 | E32: 1 | F32: 1 | G32: x | H32: x | I32: x | J32: - | K32: - | M32: x | N32: x | O32: x | P32: x | Q32: x | R32: x | S32: x | T32: x | U32: x | V32: x | W32: x | X32: x | Y32: x | Z32: x | AA32: x | AB32: x | AC32: x | AD32: x | AE32: x | AY32: x | AZ32: x | BA32: x | BB32: x | BC32: x | BD32: x | BE32: x | BF32: x | BG32: x | BH32: x | BI32: x | BJ32: x | BK32: x | BL32: x | BM32: x | BN32: x | BO32: x | BP32: x | BQ32: x | BR32: x | BS32: x | BT32: x | BU32: x | BV32: x | BW32: x | BX32: x | BY32: x | BZ32: x | CA32: x | CB32: x | CC32: x | CD32: x | CE32: x | CF32: x | CG32: x | CH32: 1 | CI32: - | CJ32: - | CK32: - | CL32: - | CM32: - | CN32: 1 | CO32: 1 | CP32: - | CQ32: - | CR32: - | CS32: - | CT32: - | CU32: 1 | DC32: x | DD32: x | DE32: x | DF32: x | DG32: x | DH32: x | DI32: x | DK32: x | DL32: x | DM32: x | DN32: x | DO32: x | DP32: x | DQ32: x | DR32: x | DS32: x | DT32: x | DU32: x | DV32: x | DW32: x | DX32: x | DY32: x | DZ32: x | EA32: x | EB32: x | EC32: x | ED32: x | EE32: x | EF32: x | EG32: x | EH32: x | EI32: x | EJ32: x | EK32: x | EL32: x | EN32: x | EO32: x | EP32: x | EQ32: x | ER32: x | ES32: x | ET32: x
A33: 茨城県 | B33: 日立市 | C33: 坂本村 | D33: 202-07 | E33: 54 | F33: 54 | G33: 5 | H33: 5 | I33: 44 | J33: - | K33: - | M33: 115 | N33: - | O33: - | P33: 2 | Q33: 3 | R33: 3 | S33: 3 | T33: 3 | U33: 4 | V33: 6 | W33: 21 | X33: 20 | Y33: 16 | Z33: 11 | AA33: 10 | AB33: 13 | AC33: 67.0 | AD33: 65.5 | AE33: 69.2 | AY33: 67 | AZ33: - | BA33: - | BB33: - | BC33: - | BD33: 1 | BE33: - | BF33: 1 | BG33: 1 | BH33: - | BI33: 8 | BJ33: 15 | BK33: 13 | BL33: 9 | BM33: 8 | BN33: 11 | BO33: 73.2 | BP33: 72.5 | BQ33: 74.5 | BR33: 54 | BS33: - | BT33: - | BU33: - | BV33: - | BW33: - | BX33: - | BY33: - | BZ33: - | CA33: 2 | CB33: 8 | CC33: 13 | CD33: 11 | CE33: 6 | CF33: 8 | CG33: 6 | CH33: 54 | CI33: 8 | CJ33: 8 | CK33: - | CL33: - | CM33: 5 | CN33: 41 | CO33: 44 | CP33: 8 | CQ33: 8 | CR33: - | CS33: - | CT33: 1 | CU33: 35 | DC33: 146 | DD33: 112 | DE33: 67 | DF33: 41 | DG33: 4 | DH33: 1 | DI33: 33 | DK33: 47 | DL33: 39 | DM33: - | DN33: - | DO33: - | DP33: 5 | DQ33: - | DR33: 3 | DS33: - | DT33: - | DU33: - | DV33: - | DW33: - | DX33: - | DY33: - | DZ33: - | EA33: 54 | EB33: 6,663 | EC33: 5,583 | ED33: 926 | EE33: 154 | EF33: 77 | EG33: 71 | EH33: 42 | EI33: 26 | EJ33: 3 | EK33: - | EL33: 6 | EN33: 69 | EO33: 41 | EP33: 25 | EQ33: 15 | ER33: 1 | ES33: 1 | ET33: 27
A34: 茨城県 | B34: 日立市 | C34: 東小沢村 | D34: 202-08 | E34: 65 | F34: 65 | G34: 7 | H34: 7 | I34: 51 | J34: - | K34: - | M34: 132 | N34: - | O34: 2 | P34: 3 | Q34: 1 | R34: 2 | S34: 2 | T34: 2 | U34: 6 | V34: 12 | W34: 14 | X34: 23 | Y34: 22 | Z34: 20 | AA34: 13 | AB34: 10 | AC34: 67.3 | AD34: 66.7 | AE34: 68.1 | AY34: 78 | AZ34: - | BA34: - | BB34: - | BC34: - | BD34: - | BE34: 1 | BF34: - | BG34: 2 | BH34: 1 | BI34: 7 | BJ34: 15 | BK34: 15 | BL34: 18 | BM34: 11 | BN34: 8 | BO34: 73.2 | BP34: 72.5 | BQ34: 74.3 | BR34: 65 | BS34: - | BT34: - | BU34: - | BV34: - | BW34: - | BX34: 1 | BY34: - | BZ34: 1 | CA34: 2 | CB34: 9 | CC34: 14 | CD34: 11 | CE34: 13 | CF34: 8 | CG34: 6 | CH34: 65 | CI34: 17 | CJ34: 16 | CK34: - | CL34: 1 | CM34: 6 | CN34: 42 | CO34: 52 | CP34: 15 | CQ34: 14 | CR34: - | CS34: 1 | CT34: 2 | CU34: 35 | DC34: 154 | DD34: 121 | DE34: 78 | DF34: 39 | DG34: 4 | DH34: 1 | DI34: 32 | DK34: 52 | DL34: 51 | DM34: - | DN34: - | DO34: - | DP34: 1 | DQ34: - | DR34: - | DS34: - | DT34: - | DU34: - | DV34: - | DW34: - | DX34: - | DY34: - | DZ34: - | EA34: 65 | EB34: 7,468 | EC34: 6,979 | ED34: 489 | EE34: - | EF34: 80 | EG34: 73 | EH34: 48 | EI34: 21 | EJ34: 4 | EK34: 1 | EL34: 6 | EN34: 74 | EO34: 48 | EP34: 30 | EQ34: 18 | ER34: - | ES34: - | ET34: 26
A35: 茨城県 | B35: 日立市 | C35: 黒前村2-1 | D35: 202-09 | E35: 64 | F35: 64 | G35: 2 | H35: 9 | I35: 53 | J35: - | K35: - | M35: 132 | N35: 1 | O35: 1 | P35: 2 | Q35: 5 | R35: 2 | S35: 5 | T35: 3 | U35: 1 | V35: 17 | W35: 21 | X35: 17 | Y35: 23 | Z35: 10 | AA35: 8 | AB35: 16 | AC35: 65.5 | AD35: 64.4 | AE35: 66.9 | AY35: 79 | AZ35: - | BA35: - | BB35: - | BC35: - | BD35: - | BE35: - | BF35: - | BG35: 1 | BH35: 1 | BI35: 9 | BJ35: 15 | BK35: 22 | BL35: 10 | BM35: 7 | BN35: 14 | BO35: 74.0 | BP35: 75.7 | BQ35: 72.0 | BR35: 64 | BS35: - | BT35: - | BU35: - | BV35: - | BW35: - | BX35: - | BY35: - | BZ35: - | CA35: 5 | CB35: 12 | CC35: 8 | CD35: 14 | CE35: 6 | CF35: 5 | CG35: 14 | CH35: 64 | CI35: 12 | CJ35: 12 | CK35: - | CL35: - | CM35: - | CN35: 52 | CO35: 47 | CP35: 12 | CQ35: 12 | CR35: - | CS35: - | CT35: - | CU35: 35 | DC35: 162 | DD35: 135 | DE35: 79 | DF35: 55 | DG35: 1 | DH35: 5 | DI35: 22 | DK35: 39 | DL35: 34 | DM35: - | DN35: 1 | DO35: - | DP35: 2 | DQ35: 1 | DR35: - | DS35: - | DT35: - | DU35: - | DV35: 1 | DW35: - | DX35: - | DY35: - | DZ35: - | EA35: 64 | EB35: 4,469 | EC35: 3,527 | ED35: 714 | EE35: 228 | EF35: 85 | EG35: 80 | EH35: 41 | EI35: 38 | EJ35: 1 | EK35: 2 | EL35: 3 | EN35: 77 | EO35: 55 | EP35: 38 | EQ35: 17 | ER35: - | ES35: 3 | ET35: 19
A36: 茨城県 | B36: 日立市 | C36: 櫛形村 | D36: 202-10 | E36: 100 | F36: 97 | G36: 11 | H36: 9 | I36: 77 | J36: 3 | K36: 3 | M36: 189 | N36: - | O36: - | P36: 2 | Q36: - | R36: 12 | S36: 6 | T36: 7 | U36: 12 | V36: 7 | W36: 17 | X36: 39 | Y36: 34 | Z36: 28 | AA36: 16 | AB36: 9 | AC36: 66.0 | AD36: 64.9 | AE36: 67.6 | AY36: 111 | AZ36: - | BA36: - | BB36: - | BC36: - | BD36: 2 | BE36: 3 | BF36: 1 | BG36: 5 | BH36: 2 | BI36: 5 | BJ36: 22 | BK36: 28 | BL36: 22 | BM36: 13 | BN36: 8 | BO36: 71.0 | BP36: 70.9 | BQ36: 71.2 | BR36: 97 | BS36: - | BT36: - | BU36: - | BV36: - | BW36: 1 | BX36: 1 | BY36: 3 | BZ36: 5 | CA36: 3 | CB36: 6 | CC36: 26 | CD36: 19 | CE36: 19 | CF36: 9 | CG36: 5 | CH36: 97 | CI36: 23 | CJ36: 23 | CK36: - | CL36: - | CM36: 4 | CN36: 70 | CO36: 78 | CP36: 21 | CQ36: 21 | CR36: - | CS36: - | CT36: - | CU36: 57 | DC36: 235 | DD36: 186 | DE36: 111 | DF36: 67 | DG36: 8 | DH36: 2 | DI36: 47 | DK36: 84 | DL36: 54 | DM36: - | DN36: 1 | DO36: - | DP36: 25 | DQ36: - | DR36: - | DS36: 2 | DT36: - | DU36: - | DV36: 1 | DW36: - | DX36: 1 | DY36: - | DZ36: - | EA36: 97 | EB36: 12,955 | EC36: 9,551 | ED36: 3,365 | EE36: 39 | EF36: 123 | EG36: 120 | EH36: 68 | EI36: 46 | EJ36: 6 | EK36: 1 | EL36: 2 | EN36: 112 | EO36: 66 | EP36: 43 | EQ36: 21 | ER36: 2 | ES36: 1 | ET36: 45
A37: 茨城県 | B37: 土浦市 | D37: 203-00 | E37: 944 | F37: 928 | G37: 254 | H37: 118 | I37: 556 | J37: 16 | K37: 14 | M37: 2,234 | N37: 24 | O37: 32 | P37: 42 | Q37: 53 | R37: 82 | S37: 128 | T37: 108 | U37: 143 | V37: 171 | W37: 239 | X37: 359 | Y37: 318 | Z37: 261 | AA37: 156 | AB37: 118 | AC37: 62.5 | AD37: 61.0 | AE37: 64.4 | AY37: 1,423 | AZ37: - | BA37: 6 | BB37: 11 | BC37: 17 | BD37: 42 | BE37: 60 | BF37: 54 | BG37: 68 | BH37: 74 | BI37: 120 | BJ37: 262 | BK37: 264 | BL37: 231 | BM37: 131 | BN37: 83 | BO37: 66.8 | BP37: 65.9 | BQ37: 68.2 | BR37: 928 | BS37: - | BT37: - | BU37: 1 | BV37: 4 | BW37: 14 | BX37: 25 | BY37: 32 | BZ37: 53 | CA37: 64 | CB37: 118 | CC37: 184 | CD37: 171 | CE37: 144 | CF37: 79 | CG37: 39 | CH37: 928 | CI37: 169 | CJ37: 168 | CK37: 1 | CL37: - | CM37: 30 | CN37: 729 | CO37: 617 | CP37: 126 | CQ37: 125 | CR37: 1 | CS37: - | CT37: 6 | CU37: 485 | DC37: 3,067 | DD37: 2,369 | DE37: 1,423 | DF37: 832 | DG37: 114 | DH37: 181 | DI37: 517 | DK37: 828 | DL37: 341 | DM37: - | DN37: 10 | DO37: 2 | DP37: 287 | DQ37: 15 | DR37: 98 | DS37: 34 | DT37: 26 | DU37: - | DV37: 3 | DW37: 7 | DX37: 5 | DY37: - | DZ37: - | EA37: 924 | EB37: 187,024 | EC37: 138,423 | ED37: 37,537 | EE37: 11,064 | EF37: 1,552 | EG37: 1,376 | EH37: 837 | EI37: 460 | EJ37: 79 | EK37: 101 | EL37: 75 | EN37: 1,515 | EO37: 993 | EP37: 586 | EQ37: 372 | ER37: 35 | ES37: 80 | ET37: 442
A38: 茨城県 | B38: 土浦市 | C38: 土浦市 | D38: 203-01 | E38: 406 | F38: 398 | G38: 79 | H38: 62 | I38: 257 | J38: 8 | K38: 8 | M38: 950 | N38: 9 | O38: 12 | P38: 13 | Q38: 18 | R38: 27 | S38: 47 | T38: 53 | U38: 60 | V38: 81 | W38: 100 | X38: 130 | Y38: 142 | Z38: 130 | AA38: 82 | AB38: 46 | AC38: 63.6 | AD38: 62.4 | AE38: 65.1 | AY38: 559 | AZ38: - | BA38: - | BB38: 1 | BC38: 3 | BD38: 11 | BE38: 17 | BF38: 21 | BG38: 19 | BH38: 30 | BI38: 40 | BJ38: 90 | BK38: 112 | BL38: 112 | BM38: 70 | BN38: 33 | BO38: 69.3 | BP38: 68.8 | BQ38: 70.0 | BR38: 398 | BS38: - | BT38: - | BU38: - | BV38: 2 | BW38: 3 | BX38: 8 | BY38: 13 | BZ38: 12 | CA38: 26 | CB38: 48 | CC38: 70 | CD38: 71 | CE38: 76 | CF38: 48 | CG38: 21 | CH38: 398 | CI38: 70 | CJ38: 69 | CK38: 1 | CL38: - | CM38: 9 | CN38: 319 | CO38: 286 | CP38: 57 | CQ38: 56 | CR38: 1 | CS38: - | CT38: 2 | CU38: 227 | DC38: 1,293 | DD38: 980 | DE38: 559 | DF38: 359 | DG38: 62 | DH38: 85 | DI38: 228 | DK38: 341 | DL38: 178 | DM38: - | DN38: 3 | DO38: - | DP38: 90 | DQ38: 13 | DR38: 25 | DS38: 19 | DT38: 10 | DU38: - | DV38: 1 | DW38: 1 | DX38: 1 | DY38: - | DZ38: - | EA38: 395 | EB38: 65,802 | EC38: 45,888 | ED38: 16,922 | EE38: 2,992 | EF38: 653 | EG38: 580 | EH38: 338 | EI38: 199 | EJ38: 43 | EK38: 45 | EL38: 28 | EN38: 640 | EO38: 400 | EP38: 221 | EQ38: 160 | ER38: 19 | ES38: 40 | ET38: 200
A39: 茨城県 | B39: 土浦市 | C39: 上大津村 | D39: 203-02 | E39: 272 | F39: 270 | G39: 126 | H39: 28 | I39: 116 | J39: 2 | K39: 2 | M39: 655 | N39: 6 | O39: 10 | P39: 14 | Q39: 23 | R39: 29 | S39: 46 | T39: 29 | U39: 42 | V39: 46 | W39: 79 | X39: 116 | Y39: 88 | Z39: 60 | AA39: 30 | AB39: 37 | AC39: 60.9 | AD39: 59.8 | AE39: 62.4 | AY39: 517 | AZ39: - | BA39: 5 | BB39: 10 | BC39: 11 | BD39: 24 | BE39: 36 | BF39: 25 | BG39: 35 | BH39: 33 | BI39: 53 | BJ39: 96 | BK39: 77 | BL39: 56 | BM39: 29 | BN39: 27 | BO39: 62.5 | BP39: 61.1 | BQ39: 64.5 | BR39: 270 | BS39: - | BT39: - | BU39: 1 | BV39: 2 | BW39: 9 | BX39: 12 | BY39: 11 | BZ39: 22 | CA39: 20 | CB39: 40 | CC39: 59 | CD39: 48 | CE39: 28 | CF39: 7 | CG39: 11 | CH39: 270 | CI39: 59 | CJ39: 59 | CK39: - | CL39: - | CM39: 13 | CN39: 198 | CO39: 153 | CP39: 39 | CQ39: 39 | CR39: - | CS39: - | CT39: 2 | CU39: 112 | DC39: 896 | DD39: 704 | DE39: 517 | DF39: 167 | DG39: 20 | DH39: 56 | DI39: 136 | DK39: 256 | DL39: 25 | DM39: - | DN39: 3 | DO39: 1 | DP39: 179 | DQ39: - | DR39: 33 | DS39: 5 | DT39: 10 | DU39: - | DV39: - | DW39: - | DX39: - | DY39: - | DZ39: - | EA39: 270 | EB39: 53,310 | EC39: 41,876 | ED39: 7,554 | EE39: 3,880 | EF39: 458 | EG39: 401 | EH39: 298 | EI39: 89 | EJ39: 14 | EK39: 30 | EL39: 27 | EN39: 438 | EO39: 303 | EP39: 219 | EQ39: 78 | ER39: 6 | ES39: 26 | ET39: 109
A40: 茨城県 | B40: 土浦市 | C40: 藤沢村 | D40: 203-03 | E40: 87 | F40: 83 | G40: 23 | H40: 7 | I40: 53 | J40: 4 | K40: 3 | M40: 200 | N40: - | O40: - | P40: 3 | Q40: 2 | R40: 10 | S40: 15 | T40: 8 | U40: 11 | V40: 9 | W40: 22 | X40: 34 | Y40: 30 | Z40: 24 | AA40: 18 | AB40: 14 | AC40: 64.8 | AD40: 62.2 | AE40: 67.8 | AY40: 133 | AZ40: - | BA40: - | BB40: - | BC40: 1 | BD40: 4 | BE40: 5 | BF40: 3 | BG40: 7 | BH40: 2 | BI40: 13 | BJ40: 24 | BK40: 26 | BL40: 21 | BM40: 16 | BN40: 11 | BO40: 69.1 | BP40: 67.4 | BQ40: 71.1 | BR40: 83 | BS40: - | BT40: - | BU40: - | BV40: - | BW40: 1 | BX40: 2 | BY40: 3 | BZ40: 6 | CA40: 1 | CB40: 12 | CC40: 13 | CD40: 17 | CE40: 14 | CF40: 11 | CG40: 3 | CH40: 83 | CI40: 18 | CJ40: 18 | CK40: - | CL40: - | CM40: 3 | CN40: 62 | CO40: 58 | CP40: 16 | CQ40: 16 | CR40: - | CS40: - | CT40: 1 | CU40: 41 | DC40: 276 | DD40: 218 | DE40: 133 | DF40: 81 | DG40: 4 | DH40: 9 | DI40: 49 | DK40: 75 | DL40: 31 | DM40: - | DN40: 4 | DO40: 1 | DP40: 9 | DQ40: 2 | DR40: 16 | DS40: 10 | DT40: 1 | DU40: - | DV40: 1 | DW40: - | DX40: - | DY40: - | DZ40: - | EA40: 83 | EB40: 17,750 | EC40: 9,878 | ED40: 5,615 | EE40: 2,257 | EF40: 130 | EG40: 117 | EH40: 73 | EI40: 44 | EJ40: - | EK40: 4 | EL40: 9 | EN40: 146 | EO40: 101 | EP40: 60 | EQ40: 37 | ER40: 4 | ES40: 5 | ET40: 40
A41: 茨城県 | B41: 土浦市 | C41: 山ﾉ荘村 | D41: 203-04 | E41: 99 | F41: 98 | G41: 17 | H41: 16 | I41: 65 | J41: 1 | K41: - | M41: 241 | N41: 9 | O41: 4 | P41: 6 | Q41: 5 | R41: 6 | S41: 10 | T41: 16 | U41: 14 | V41: 23 | W41: 21 | X41: 45 | Y41: 29 | Z41: 24 | AA41: 13 | AB41: 16 | AC41: 61.3 | AD41: 59.3 | AE41: 63.9 | AY41: 119 | AZ41: - | BA41: - | BB41: - | BC41: 1 | BD41: 1 | BE41: - | BF41: 5 | BG41: 4 | BH41: 4 | BI41: 10 | BJ41: 32 | BK41: 25 | BL41: 20 | BM41: 6 | BN41: 11 | BO41: 69.9 | BP41: 69.5 | BQ41: 70.6 | BR41: 98 | BS41: - | BT41: - | BU41: - | BV41: - | BW41: - | BX41: 2 | BY41: 5 | BZ41: 6 | CA41: 12 | CB41: 11 | CC41: 23 | CD41: 19 | CE41: 12 | CF41: 5 | CG41: 3 | CH41: 98 | CI41: 11 | CJ41: 11 | CK41: - | CL41: - | CM41: 2 | CN41: 85 | CO41: 62 | CP41: 8 | CQ41: 8 | CR41: - | CS41: - | CT41: - | CU41: 54 | DC41: 340 | DD41: 259 | DE41: 119 | DF41: 119 | DG41: 21 | DH41: 23 | DI41: 58 | DK41: 88 | DL41: 54 | DM41: - | DN41: - | DO41: - | DP41: 3 | DQ41: - | DR41: 20 | DS41: - | DT41: 3 | DU41: - | DV41: - | DW41: 5 | DX41: 3 | DY41: - | DZ41: - | EA41: 97 | EB41: 19,367 | EC41: 15,208 | ED41: 2,725 | EE41: 1,434 | EF41: 180 | EG41: 157 | EH41: 70 | EI41: 70 | EJ41: 17 | EK41: 18 | EL41: 5 | EN41: 160 | EO41: 102 | EP41: 49 | EQ41: 49 | ER41: 4 | ES41: 5 | ET41: 53
A42: 茨城県 | B42: 土浦市 | C42: 斗利出村 | D42: 203-05 | E42: 80 | F42: 79 | G42: 9 | H42: 5 | I42: 65 | J42: 1 | K42: 1 | M42: 188 | N42: - | O42: 6 | P42: 6 | Q42: 5 | R42: 10 | S42: 10 | T42: 2 | U42: 16 | V42: 12 | W42: 17 | X42: 34 | Y42: 29 | Z42: 23 | AA42: 13 | AB42: 5 | AC42: 61.5 | AD42: 59.1 | AE42: 64.8 | AY42: 95 | AZ42: - | BA42: 1 | BB42: - | BC42: 1 | BD42: 2 | BE42: 2 | BF42: - | BG42: 3 | BH42: 5 | BI42: 4 | BJ42: 20 | BK42: 24 | BL42: 22 | BM42: 10 | BN42: 1 | BO42: 69.1 | BP42: 68.0 | BQ42: 70.8 | BR42: 79 | BS42: - | BT42: - | BU42: - | BV42: - | BW42: 1 | BX42: 1 | BY42: - | BZ42: 7 | CA42: 5 | CB42: 7 | CC42: 19 | CD42: 16 | CE42: 14 | CF42: 8 | CG42: 1 | CH42: 79 | CI42: 11 | CJ42: 11 | CK42: - | CL42: - | CM42: 3 | CN42: 65 | CO42: 58 | CP42: 6 | CQ42: 6 | CR42: - | CS42: - | CT42: 1 | CU42: 51 | DC42: 262 | DD42: 208 | DE42: 95 | DF42: 106 | DG42: 7 | DH42: 8 | DI42: 46 | DK42: 68 | DL42: 53 | DM42: - | DN42: - | DO42: - | DP42: 6 | DQ42: - | DR42: 4 | DS42: - | DT42: 2 | DU42: - | DV42: 1 | DW42: 1 | DX42: 1 | DY42: - | DZ42: - | EA42: 79 | EB42: 30,795 | EC42: 25,573 | ED42: 4,721 | EE42: 501 | EF42: 131 | EG42: 121 | EH42: 58 | EI42: 58 | EJ42: 5 | EK42: 4 | EL42: 6 | EN42: 131 | EO42: 87 | EP42: 37 | EQ42: 48 | ER42: 2 | ES42: 4 | ET42: 40
A43: 茨城県 | B43: 古河市 | D43: 204-00 | E43: 1,355 | F43: 1,331 | G43: 379 | H43: 125 | I43: 827 | J43: 24 | K43: 24 | M43: 3,116 | N43: 18 | O43: 39 | P43: 46 | Q43: 102 | R43: 122 | S43: 130 | T43: 153 | U43: 176 | V43: 284 | W43: 416 | X43: 540 | Y43: 406 | Z43: 299 | AA43: 238 | AB43: 147 | AC43: 62.6 | AD43: 61.3 | AE43: 64.3 | AY43: 2,005 | AZ43: 1 | BA43: 14 | BB43: 16 | BC43: 55 | BD43: 72 | BE43: 74 | BF43: 67 | BG43: 69 | BH43: 140 | BI43: 233 | BJ43: 373 | BK43: 334 | BL43: 262 | BM43: 196 | BN43: 99 | BO43: 65.6 | BP43: 64.5 | BQ43: 67.1 | BR43: 1,331 | BS43: - | BT43: - | BU43: - | BV43: 8 | BW43: 12 | BX43: 31 | BY43: 41 | BZ43: 56 | CA43: 130 | CB43: 207 | CC43: 291 | CD43: 221 | CE43: 168 | CF43: 117 | CG43: 49 | CH43: 1 331 | CI43: 267 | CJ43: 265 | CK43: 2 | CL43: - | CM43: 37 | CN43: 1 027 | CO43: 846 | CP43: 186 | CQ43: 186 | CR43: - | CS43: - | CT43: 11 | CU43: 649 | DC43: 4,535 | DD43: 3,444 | DE43: 2,005 | DF43: 1,271 | DG43: 168 | DH43: 204 | DI43: 887 | DK43: 1,184 | DL43: 547 | DM43: - | DN43: 5 | DO43: 9 | DP43: 527 | DQ43: 39 | DR43: 9 | DS43: 17 | DT43: 9 | DU43: 7 | DV43: 3 | DW43: 8 | DX43: 3 | DY43: - | DZ43: 1 | EA43: 1,244 | EB43: 244,877 | EC43: 116,008 | ED43: 127,028 | EE43: 1,841 | EF43: 2,354 | EG43: 2,019 | EH43: 1,171 | EI43: 731 | EJ43: 117 | EK43: 99 | EL43: 236 | EN43: 2,181 | EO43: 1,425 | EP43: 834 | EQ43: 540 | ER43: 51 | ES43: 105 | ET43: 651
A44: 茨城県 | B44: 古河市 | C44: 古河町 | D44: 204-01 | E44: 4 | F44: 4 | G44: - | H44: 1 | I44: 3 | J44: - | K44: - | M44: 9 | N44: - | O44: - | P44: - | Q44: - | R44: - | S44: - | T44: 1 | U44: - | V44: - | W44: 2 | X44: 2 | Y44: 2 | Z44: 1 | AA44: - | AB44: 1 | AC44: 68.3 | AD44: 70.5 | AE44: 66.6 | AY44: 6 | AZ44: - | BA44: - | BB44: - | BC44: - | BD44: - | BE44: - | BF44: 1 | BG44: - | BH44: - | BI44: 1 | BJ44: 1 | BK44: 2 | BL44: 1 | BM44: - | BN44: - | BO44: 66.5 | BP44: 72.3 | BQ44: 60.7 | BR44: 4 | BS44: - | BT44: - | BU44: - | BV44: - | BW44: - | BX44: - | BY44: - | BZ44: - | CA44: - | CB44: 1 | CC44: - | CD44: 1 | CE44: 1 | CF44: - | CG44: 1 | CH44: 4 | CI44: - | CJ44: - | CK44: - | CL44: - | CM44: - | CN44: 4 | CO44: 3 | CP44: - | CQ44: - | CR44: - | CS44: - | CT44: - | CU44: 3 | DC44: 13 | DD44: 12 | DE44: 6 | DF44: 3 | DG44: 3 | DH44: 1 | DI44: - | DK44: 3 | DL44: 1 | DM44: - | DN44: - | DO44: - | DP44: 1 | DQ44: 1 | DR44: - | DS44: - | DT44: - | DU44: - | DV44: - | DW44: - | DX44: - | DY44: - | DZ44: - | EA44: 4 | EB44: 163 | EC44: 80 | ED44: 83 | EE44: - | EF44: 8 | EG44: 7 | EH44: 3 | EI44: 3 | EJ44: 1 | EK44: 1 | EL44: - | EN44: 5 | EO44: 5 | EP44: 3 | EQ44: - | ER44: 2 | ES44: - | ET44: -
A45: 茨城県 | B45: 古河市 | C45: 新郷村 | D45: 204-02 | E45: 95 | F45: 95 | G45: 19 | H45: 8 | I45: 68 | J45: - | K45: - | M45: 221 | N45: - | O45: - | P45: 7 | Q45: 6 | R45: 10 | S45: 5 | T45: 12 | U45: 11 | V45: 25 | W45: 26 | X45: 39 | Y45: 33 | Z45: 21 | AA45: 12 | AB45: 14 | AC45: 63.2 | AD45: 62.0 | AE45: 64.7 | AY45: 120 | AZ45: - | BA45: - | BB45: 2 | BC45: 3 | BD45: 7 | BE45: - | BF45: 4 | BG45: 1 | BH45: 11 | BI45: 11 | BJ45: 28 | BK45: 24 | BL45: 15 | BM45: 8 | BN45: 6 | BO45: 65.8 | BP45: 65.1 | BQ45: 66.8 | BR45: 95 | BS45: - | BT45: - | BU45: - | BV45: 1 | BW45: 2 | BX45: - | BY45: 5 | BZ45: - | CA45: 9 | CB45: 14 | CC45: 23 | CD45: 16 | CE45: 10 | CF45: 9 | CG45: 6 | CH45: 95 | CI45: 5 | CJ45: 5 | CK45: - | CL45: - | CM45: 5 | CN45: 85 | CO45: 64 | CP45: 3 | CQ45: 3 | CR45: - | CS45: - | CT45: 2 | CU45: 59 | DC45: 315 | DD45: 232 | DE45: 120 | DF45: 101 | DG45: 11 | DH45: 10 | DI45: 73 | DK45: 77 | DL45: 50 | DM45: - | DN45: 1 | DO45: - | DP45: 16 | DQ45: 8 | DR45: 2 | DS45: - | DT45: - | DU45: - | DV45: - | DW45: - | DX45: - | DY45: - | DZ45: - | EA45: 89 | EB45: 12,703 | EC45: 9,854 | ED45: 2,804 | EE45: 45 | EF45: 164 | EG45: 142 | EH45: 71 | EI45: 62 | EJ45: 9 | EK45: 4 | EL45: 18 | EN45: 151 | EO45: 90 | EP45: 49 | EQ45: 39 | ER45: 2 | ES45: 6 | ET45: 55
A46: 茨城県 | B46: 古河市 | C46: 勝鹿村 | D46: 204-03 | E46: 154 | F46: 153 | G46: 34 | H46: 23 | I46: 96 | J46: 1 | K46: 1 | M46: 366 | N46: 3 | O46: 3 | P46: 4 | Q46: 9 | R46: 7 | S46: 14 | T46: 23 | U46: 25 | V46: 32 | W46: 45 | X46: 54 | Y46: 44 | Z46: 48 | AA46: 34 | AB46: 21 | AC46: 64.1 | AD46: 62.2 | AE46: 66.6 | AY46: 248 | AZ46: - | BA46: - | BB46: 1 | BC46: 3 | BD46: 5 | BE46: 5 | BF46: 6 | BG46: 8 | BH46: 16 | BI46: 26 | BJ46: 44 | BK46: 42 | BL46: 44 | BM46: 33 | BN46: 15 | BO46: 68.9 | BP46: 67.5 | BQ46: 71.0 | BR46: 153 | BS46: - | BT46: - | BU46: - | BV46: - | BW46: - | BX46: 1 | BY46: 5 | BZ46: 2 | CA46: 12 | CB46: 21 | CC46: 34 | CD46: 20 | CE46: 30 | CF46: 19 | CG46: 9 | CH46: 153 | CI46: 60 | CJ46: 60 | CK46: - | CL46: - | CM46: 2 | CN46: 91 | CO46: 112 | CP46: 47 | CQ46: 47 | CR46: - | CS46: - | CT46: - | CU46: 65 | DC46: 497 | DD46: 397 | DE46: 248 | DF46: 133 | DG46: 16 | DH46: 21 | DI46: 79 | DK46: 137 | DL46: 58 | DM46: - | DN46: 1 | DO46: 1 | DP46: 63 | DQ46: 4 | DR46: 1 | DS46: 3 | DT46: 2 | DU46: - | DV46: - | DW46: 3 | DX46: 1 | DY46: - | DZ46: - | EA46: 146 | EB46: 24,777 | EC46: 14,732 | ED46: 9,692 | EE46: 353 | EF46: 257 | EG46: 230 | EH46: 147 | EI46: 72 | EJ46: 11 | EK46: 9 | EL46: 18 | EN46: 240 | EO46: 167 | EP46: 101 | EQ46: 61 | ER46: 5 | ES46: 12 | ET46: 61
A47: 茨城県 | B47: 古河市 | C47: 香取村 | D47: 204-04 | E47: 170 | F47: 168 | G47: 57 | H47: 15 | I47: 96 | J47: 2 | K47: 2 | M47: 412 | N47: 7 | O47: 8 | P47: 4 | Q47: 14 | R47: 13 | S47: 10 | T47: 20 | U47: 31 | V47: 27 | W47: 65 | X47: 53 | Y47: 49 | Z47: 44 | AA47: 38 | AB47: 29 | AC47: 63.0 | AD47: 61.2 | AE47: 65.3 | AY47: 277 | AZ47: 1 | BA47: 1 | BB47: 1 | BC47: 9 | BD47: 7 | BE47: 8 | BF47: 11 | BG47: 15 | BH47: 14 | BI47: 41 | BJ47: 36 | BK47: 41 | BL47: 37 | BM47: 32 | BN47: 23 | BO47: 66.5 | BP47: 65.5 | BQ47: 67.9 | BR47: 168 | BS47: - | BT47: - | BU47: - | BV47: 1 | BW47: 1 | BX47: 3 | BY47: 3 | BZ47: 8 | CA47: 12 | CB47: 30 | CC47: 30 | CD47: 27 | CE47: 23 | CF47: 24 | CG47: 6 | CH47: 168 | CI47: 36 | CJ47: 35 | CK47: 1 | CL47: - | CM47: 5 | CN47: 127 | CO47: 110 | CP47: 26 | CQ47: 26 | CR47: - | CS47: - | CT47: 1 | CU47: 83 | DC47: 589 | DD47: 452 | DE47: 277 | DF47: 149 | DG47: 26 | DH47: 26 | DI47: 111 | DK47: 158 | DL47: 53 | DM47: - | DN47: - | DO47: - | DP47: 86 | DQ47: 14 | DR47: - | DS47: 1 | DT47: - | DU47: 2 | DV47: - | DW47: 1 | DX47: 1 | DY47: - | DZ47: - | EA47: 156 | EB47: 34,133 | EC47: 14,846 | ED47: 19,257 | EE47: 30 | EF47: 292 | EG47: 254 | EH47: 159 | EI47: 79 | EJ47: 16 | EK47: 7 | EL47: 31 | EN47: 297 | EO47: 198 | EP47: 118 | EQ47: 70 | ER47: 10 | ES47: 19 | ET47: 80
A48: 茨城県 | B48: 古河市 | C48: 桜井村 | D48: 204-05 | E48: 126 | F48: 123 | G48: 34 | H48: 6 | I48: 83 | J48: 3 | K48: 3 | M48: 276 | N48: 1 | O48: 7 | P48: 5 | Q48: 10 | R48: 11 | S48: 11 | T48: 8 | U48: 5 | V48: 22 | W48: 40 | X48: 57 | Y48: 26 | Z48: 26 | AA48: 31 | AB48: 16 | AC48: 63.6 | AD48: 61.5 | AE48: 66.7 | AY48: 186 | AZ48: - | BA48: 5 | BB48: 3 | BC48: 5 | BD48: 9 | BE48: 6 | BF48: 4 | BG48: - | BH48: 9 | BI48: 20 | BJ48: 41 | BK48: 21 | BL48: 23 | BM48: 26 | BN48: 14 | BO48: 66.2 | BP48: 64.5 | BQ48: 68.7 | BR48: 123 | BS48: - | BT48: - | BU48: - | BV48: 3 | BW48: 1 | BX48: 4 | BY48: 1 | BZ48: - | CA48: 11 | CB48: 18 | CC48: 30 | CD48: 17 | CE48: 16 | CF48: 15 | CG48: 7 | CH48: 123 | CI48: 35 | CJ48: 35 | CK48: - | CL48: - | CM48: 1 | CN48: 87 | CO48: 85 | CP48: 27 | CQ48: 27 | CR48: - | CS48: - | CT48: 1 | CU48: 57 | DC48: 398 | DD48: 299 | DE48: 186 | DF48: 101 | DG48: 12 | DH48: 13 | DI48: 86 | DK48: 108 | DL48: 48 | DM48: - | DN48: - | DO48: 1 | DP48: 53 | DQ48: 1 | DR48: - | DS48: 2 | DT48: - | DU48: - | DV48: 2 | DW48: 1 | DX48: - | DY48: - | DZ48: - | EA48: 119 | EB48: 23,101 | EC48: 7,201 | ED48: 15,866 | EE48: 34 | EF48: 211 | EG48: 177 | EH48: 109 | EI48: 59 | EJ48: 9 | EK48: 5 | EL48: 29 | EN48: 187 | EO48: 122 | EP48: 77 | EQ48: 42 | ER48: 3 | ES48: 8 | ET48: 57
A49: 茨城県 | B49: 古河市 | C49: 岡郷村 | D49: 204-06 | E49: 165 | F49: 163 | G49: 47 | H49: 22 | I49: 94 | J49: 2 | K49: 2 | M49: 373 | N49: 1 | O49: 3 | P49: 4 | Q49: 9 | R49: 13 | S49: 19 | T49: 16 | U49: 18 | V49: 43 | W49: 51 | X49: 70 | Y49: 52 | Z49: 29 | AA49: 33 | AB49: 12 | AC49: 63.0 | AD49: 61.8 | AE49: 64.7 | AY49: 228 | AZ49: - | BA49: 1 | BB49: - | BC49: 4 | BD49: 8 | BE49: 14 | BF49: 2 | BG49: 6 | BH49: 19 | BI49: 27 | BJ49: 49 | BK49: 41 | BL49: 26 | BM49: 24 | BN49: 7 | BO49: 66.0 | BP49: 64.8 | BQ49: 67.8 | BR49: 163 | BS49: - | BT49: - | BU49: - | BV49: - | BW49: 2 | BX49: 4 | BY49: 1 | BZ49: 10 | CA49: 17 | CB49: 24 | CC49: 34 | CD49: 31 | CE49: 21 | CF49: 12 | CG49: 7 | CH49: 163 | CI49: 20 | CJ49: 20 | CK49: - | CL49: - | CM49: 1 | CN49: 142 | CO49: 105 | CP49: 14 | CQ49: 14 | CR49: - | CS49: - | CT49: - | CU49: 91 | DC49: 537 | DD49: 424 | DE49: 228 | DF49: 178 | DG49: 18 | DH49: 23 | DI49: 90 | DK49: 149 | DL49: 81 | DM49: - | DN49: - | DO49: - | DP49: 60 | DQ49: 2 | DR49: 2 | DS49: - | DT49: 1 | DU49: - | DV49: 1 | DW49: - | DX49: 1 | DY49: - | DZ49: 1 | EA49: 155 | EB49: 34,132 | EC49: 17,815 | ED49: 16,227 | EE49: 90 | EF49: 284 | EG49: 251 | EH49: 137 | EI49: 102 | EJ49: 12 | EK49: 10 | EL49: 23 | EN49: 253 | EO49: 173 | EP49: 91 | EQ49: 76 | ER49: 6 | ES49: 13 | ET49: 67
A50: 茨城県 | B50: 古河市 | C50: 幸島村 | D50: 204-07 | E50: 253 | F50: 249 | G50: 47 | H50: 26 | I50: 176 | J50: 4 | K50: 4 | M50: 544 | N50: 1 | O50: 3 | P50: 5 | Q50: 18 | R50: 25 | S50: 21 | T50: 20 | U50: 30 | V50: 52 | W50: 65 | X50: 114 | Y50: 74 | Z50: 53 | AA50: 44 | AB50: 19 | AC50: 63.3 | AD50: 62.8 | AE50: 64.1 | AY50: 307 | AZ50: - | BA50: - | BB50: 1 | BC50: 5 | BD50: 11 | BE50: 6 | BF50: 8 | BG50: 8 | BH50: 21 | BI50: 25 | BJ50: 67 | BK50: 60 | BL50: 48 | BM50: 35 | BN50: 12 | BO50: 67.8 | BP50: 67.0 | BQ50: 69.0 | BR50: 249 | BS50: - | BT50: - | BU50: - | BV50: - | BW50: - | BX50: 6 | BY50: 5 | BZ50: 14 | CA50: 24 | CB50: 32 | CC50: 68 | CD50: 43 | CE50: 30 | CF50: 21 | CG50: 6 | CH50: 249 | CI50: 41 | CJ50: 41 | CK50: - | CL50: - | CM50: 6 | CN50: 202 | CO50: 168 | CP50: 30 | CQ50: 30 | CR50: - | CS50: - | CT50: 3 | CU50: 135 | DC50: 807 | DD50: 608 | DE50: 307 | DF50: 268 | DG50: 33 | DH50: 36 | DI50: 163 | DK50: 211 | DL50: 123 | DM50: - | DN50: 1 | DO50: 4 | DP50: 73 | DQ50: 1 | DR50: 2 | DS50: 6 | DT50: 1 | DU50: - | DV50: - | DW50: - | DX50: - | DY50: - | DZ50: - | EA50: 238 | EB50: 35,790 | EC50: 20,184 | ED50: 14,953 | EE50: 653 | EF50: 411 | EG50: 353 | EH50: 181 | EI50: 147 | EJ50: 25 | EK50: 18 | EL50: 40 | EN50: 396 | EO50: 255 | EP50: 126 | EQ50: 121 | ER50: 8 | ES50: 18 | ET50: 123
A51: 茨城県 | B51: 古河市 | C51: 名崎村2-1 | D51: 204-08 | E51: 165 | F51: 163 | G51: 63 | H51: 12 | I51: 88 | J51: 2 | K51: 2 | M51: 399 | N51: 2 | O51: 6 | P51: 10 | Q51: 19 | R51: 17 | S51: 20 | T51: 27 | U51: 23 | V51: 35 | W51: 50 | X51: 60 | Y51: 49 | Z51: 37 | AA51: 25 | AB51: 19 | AC51: 60.7 | AD51: 59.5 | AE51: 62.2 | AY51: 286 | AZ51: - | BA51: 5 | BB51: 4 | BC51: 12 | BD51: 11 | BE51: 14 | BF51: 17 | BG51: 14 | BH51: 21 | BI51: 36 | BJ51: 43 | BK51: 42 | BL51: 33 | BM51: 20 | BN51: 14 | BO51: 62.5 | BP51: 61.0 | BQ51: 64.6 | BR51: 163 | BS51: - | BT51: - | BU51: - | BV51: 3 | BW51: 1 | BX51: 5 | BY51: 12 | BZ51: 11 | CA51: 20 | CB51: 26 | CC51: 28 | CD51: 26 | CE51: 13 | CF51: 12 | CG51: 6 | CH51: 163 | CI51: 29 | CJ51: 29 | CK51: - | CL51: - | CM51: 9 | CN51: 125 | CO51: 85 | CP51: 17 | CQ51: 17 | CR51: - | CS51: - | CT51: 3 | CU51: 65 | DC51: 590 | DD51: 439 | DE51: 286 | DF51: 138 | DG51: 15 | DH51: 21 | DI51: 130 | DK51: 147 | DL51: 58 | DM51: - | DN51: - | DO51: 3 | DP51: 83 | DQ51: 2 | DR51: - | DS51: - | DT51: - | DU51: - | DV51: - | DW51: 1 | DX51: - | DY51: - | DZ51: - | EA51: 129 | EB51: 28,062 | EC51: 10,317 | ED51: 17,645 | EE51: 100 | EF51: 316 | EG51: 264 | EH51: 164 | EI51: 92 | EJ51: 8 | EK51: 17 | EL51: 35 | EN51: 274 | EO51: 175 | EP51: 122 | EQ51: 46 | ER51: 7 | ES51: 4 | ET51: 95
A52: 茨城県 | B52: 古河市 | C52: 八俣村 | D52: 204-09 | E52: 223 | F52: 213 | G52: 78 | H52: 12 | I52: 123 | J52: 10 | K52: 10 | M52: 516 | N52: 3 | O52: 9 | P52: 7 | Q52: 17 | R52: 26 | S52: 30 | T52: 26 | U52: 33 | V52: 48 | W52: 72 | X52: 91 | Y52: 77 | Z52: 40 | AA52: 21 | AB52: 16 | AC52: 60.5 | AD52: 59.5 | AE52: 61.8 | AY52: 347 | AZ52: - | BA52: 2 | BB52: 4 | BC52: 14 | BD52: 14 | BE52: 21 | BF52: 14 | BG52: 17 | BH52: 29 | BI52: 46 | BJ52: 64 | BK52: 61 | BL52: 35 | BM52: 18 | BN52: 8 | BO52: 62.3 | BP52: 61.5 | BQ52: 63.4 | BR52: 213 | BS52: - | BT52: - | BU52: - | BV52: - | BW52: 5 | BX52: 8 | BY52: 9 | BZ52: 11 | CA52: 25 | CB52: 41 | CC52: 44 | CD52: 40 | CE52: 24 | CF52: 5 | CG52: 1 | CH52: 213 | CI52: 41 | CJ52: 40 | CK52: 1 | CL52: - | CM52: 8 | CN52: 164 | CO52: 114 | CP52: 22 | CQ52: 22 | CR52: - | CS52: - | CT52: 1 | CU52: 91 | DC52: 789 | DD52: 581 | DE52: 347 | DF52: 200 | DG52: 34 | DH52: 53 | DI52: 155 | DK52: 194 | DL52: 75 | DM52: - | DN52: 2 | DO52: - | DP52: 92 | DQ52: 6 | DR52: 2 | DS52: 5 | DT52: 5 | DU52: 5 | DV52: - | DW52: 2 | DX52: - | DY52: - | DZ52: - | EA52: 208 | EB52: 52,016 | EC52: 20,979 | ED52: 30,501 | EE52: 536 | EF52: 411 | EG52: 341 | EH52: 200 | EI52: 115 | EJ52: 26 | EK52: 28 | EL52: 42 | EN52: 378 | EO52: 240 | EP52: 147 | EQ52: 85 | ER52: 8 | ES52: 25 | ET52: 113
A53: 茨城県 | B53: 石岡市 | D53: 205-00 | E53: 2,022 | F53: 1,997 | G53: 323 | H53: 263 | I53: 1,411 | J53: 25 | K53: 22 | M53: 4,622 | N53: 35 | O53: 58 | P53: 92 | Q53: 117 | R53: 141 | S53: 223 | T53: 199 | U53: 283 | V53: 391 | W53: 577 | X53: 821 | Y53: 635 | Z53: 449 | AA53: 340 | AB53: 261 | AC53: 62.9 | AD53: 62.1 | AE53: 64.1 | AY53: 2,373 | AZ53: - | BA53: 3 | BB53: 13 | BC53: 23 | BD53: 28 | BE53: 58 | BF53: 44 | BG53: 75 | BH53: 120 | BI53: 196 | BJ53: 502 | BK53: 492 | BL53: 379 | BM53: 272 | BN53: 168 | BO53: 69.5 | BP53: 69.5 | BQ53: 69.5 | BR53: 1,997 | BS53: - | BT53: - | BU53: 2 | BV53: 3 | BW53: 14 | BX53: 34 | BY53: 49 | BZ53: 98 | CA53: 165 | CB53: 285 | CC53: 465 | CD53: 387 | CE53: 237 | CF53: 170 | CG53: 88 | CH53: 1 997 | CI53: 306 | CJ53: 305 | CK53: - | CL53: 1 | CM53: 75 | CN53: 1 616 | CO53: 1 347 | CP53: 242 | CQ53: 242 | CR53: - | CS53: - | CT53: 35 | CU53: 1 070 | DC53: 6,550 | DD53: 4,893 | DE53: 2,373 | DF53: 2,261 | DG53: 259 | DH53: 374 | DI53: 1,283 | DK53: 1,767 | DL53: 1,068 | DM53: 1 | DN53: 15 | DO53: 7 | DP53: 132 | DQ53: 55 | DR53: 351 | DS53: 61 | DT53: 34 | DU53: 20 | DV53: 4 | DW53: 9 | DX53: 10 | DY53: - | DZ53: - | EA53: 1,985 | EB53: 311,697 | EC53: 199,273 | ED53: 70,671 | EE53: 41,753 | EF53: 3,350 | EG53: 2,890 | EH53: 1,414 | EI53: 1,285 | EJ53: 191 | EK53: 185 | EL53: 275 | EN53: 3,200 | EO53: 2,003 | EP53: 959 | EQ53: 976 | ER53: 68 | ES53: 189 | ET53: 1,008
A54: 茨城県 | B54: 石岡市 | C54: 石岡町 | D54: 205-01 | E54: 270 | F54: 263 | G54: 36 | H54: 33 | I54: 194 | J54: 7 | K54: 7 | M54: 568 | N54: 1 | O54: 3 | P54: 10 | Q54: 12 | R54: 5 | S54: 30 | T54: 27 | U54: 33 | V54: 50 | W54: 67 | X54: 91 | Y54: 100 | Z54: 59 | AA54: 49 | AB54: 31 | AC54: 64.8 | AD54: 64.6 | AE54: 65.0 | AY54: 318 | AZ54: - | BA54: - | BB54: 1 | BC54: - | BD54: 2 | BE54: 8 | BF54: 5 | BG54: 9 | BH54: 16 | BI54: 29 | BJ54: 60 | BK54: 77 | BL54: 52 | BM54: 39 | BN54: 20 | BO54: 70.4 | BP54: 70.4 | BQ54: 70.5 | BR54: 263 | BS54: - | BT54: - | BU54: - | BV54: - | BW54: 1 | BX54: 3 | BY54: 2 | BZ54: 12 | CA54: 20 | CB54: 35 | CC54: 53 | CD54: 61 | CE54: 35 | CF54: 28 | CG54: 13 | CH54: 263 | CI54: 43 | CJ54: 43 | CK54: - | CL54: - | CM54: 8 | CN54: 212 | CO54: 190 | CP54: 37 | CQ54: 37 | CR54: - | CS54: - | CT54: 4 | CU54: 149 | DC54: 824 | DD54: 614 | DE54: 318 | DF54: 263 | DG54: 33 | DH54: 48 | DI54: 162 | DK54: 229 | DL54: 122 | DM54: - | DN54: 4 | DO54: - | DP54: 28 | DQ54: 1 | DR54: 62 | DS54: 8 | DT54: 1 | DU54: 2 | DV54: 1 | DW54: - | DX54: - | DY54: - | DZ54: - | EA54: 263 | EB54: 38,361 | EC54: 23,211 | ED54: 9,023 | EE54: 6,127 | EF54: 410 | EG54: 358 | EH54: 188 | EI54: 149 | EJ54: 21 | EK54: 20 | EL54: 32 | EN54: 414 | EO54: 256 | EP54: 130 | EQ54: 114 | ER54: 12 | ES54: 28 | ET54: 130
A55: 茨城県 | B55: 石岡市 | C55: 高浜町 | D55: 205-02 | E55: 121 | F55: 121 | G55: 12 | H55: 16 | I55: 93 | J55: - | K55: - | M55: 268 | N55: 4 | O55: 2 | P55: 1 | Q55: 7 | R55: 5 | S55: 16 | T55: 11 | U55: 20 | V55: 19 | W55: 27 | X55: 49 | Y55: 30 | Z55: 35 | AA55: 27 | AB55: 15 | AC55: 64.3 | AD55: 63.6 | AE55: 65.1 | AY55: 132 | AZ55: - | BA55: - | BB55: - | BC55: 2 | BD55: 1 | BE55: 3 | BF55: - | BG55: 2 | BH55: 3 | BI55: 7 | BJ55: 32 | BK55: 21 | BL55: 31 | BM55: 18 | BN55: 12 | BO55: 72.3 | BP55: 71.6 | BQ55: 73.3 | BR55: 121 | BS55: - | BT55: - | BU55: - | BV55: 1 | BW55: - | BX55: - | BY55: 5 | BZ55: 5 | CA55: 8 | CB55: 14 | CC55: 27 | CD55: 21 | CE55: 15 | CF55: 16 | CG55: 9 | CH55: 121 | CI55: 26 | CJ55: 26 | CK55: - | CL55: - | CM55: 3 | CN55: 92 | CO55: 88 | CP55: 22 | CQ55: 22 | CR55: - | CS55: - | CT55: - | CU55: 66 | DC55: 367 | DD55: 276 | DE55: 132 | DF55: 131 | DG55: 13 | DH55: 19 | DI55: 72 | DK55: 103 | DL55: 82 | DM55: - | DN55: - | DO55: 1 | DP55: 6 | DQ55: 1 | DR55: 10 | DS55: 2 | DT55: 1 | DU55: - | DV55: - | DW55: - | DX55: - | DY55: - | DZ55: - | EA55: 121 | EB55: 20,287 | EC55: 14,387 | ED55: 3,591 | EE55: 2,309 | EF55: 176 | EG55: 158 | EH55: 78 | EI55: 69 | EJ55: 11 | EK55: 10 | EL55: 8 | EN55: 191 | EO55: 118 | EP55: 54 | EQ55: 62 | ER55: 2 | ES55: 9 | ET55: 64
A56: 茨城県 | B56: 石岡市 | C56: 三村 | D56: 205-03 | E56: 129 | F56: 125 | G56: 21 | H56: 15 | I56: 89 | J56: 4 | K56: 4 | M56: 300 | N56: 3 | O56: 5 | P56: 4 | Q56: 6 | R56: 10 | S56: 12 | T56: 8 | U56: 19 | V56: 22 | W56: 28 | X56: 42 | Y56: 57 | Z56: 44 | AA56: 27 | AB56: 13 | AC56: 64.5 | AD56: 62.5 | AE56: 67.1 | AY56: 177 | AZ56: - | BA56: 1 | BB56: 2 | BC56: 1 | BD56: - | BE56: 6 | BF56: 3 | BG56: 8 | BH56: 3 | BI56: 11 | BJ56: 29 | BK56: 48 | BL56: 34 | BM56: 23 | BN56: 8 | BO56: 70.0 | BP56: 69.6 | BQ56: 70.5 | BR56: 125 | BS56: - | BT56: - | BU56: - | BV56: - | BW56: - | BX56: 1 | BY56: 2 | BZ56: 4 | CA56: 8 | CB56: 20 | CC56: 22 | CD56: 31 | CE56: 26 | CF56: 8 | CG56: 3 | CH56: 125 | CI56: 25 | CJ56: 25 | CK56: - | CL56: - | CM56: 10 | CN56: 90 | CO56: 90 | CP56: 21 | CQ56: 21 | CR56: - | CS56: - | CT56: 3 | CU56: 66 | DC56: 432 | DD56: 334 | DE56: 177 | DF56: 142 | DG56: 15 | DH56: 29 | DI56: 69 | DK56: 121 | DL56: 71 | DM56: - | DN56: 1 | DO56: - | DP56: 7 | DQ56: 8 | DR56: 6 | DS56: 24 | DT56: 4 | DU56: - | DV56: - | DW56: - | DX56: - | DY56: - | DZ56: - | EA56: 125 | EB56: 22,490 | EC56: 13,070 | ED56: 8,011 | EE56: 1,409 | EF56: 222 | EG56: 194 | EH56: 105 | EI56: 78 | EJ56: 11 | EK56: 16 | EL56: 12 | EN56: 210 | EO56: 140 | EP56: 72 | EQ56: 64 | ER56: 4 | ES56: 13 | ET56: 57
A57: 茨城県 | B57: 石岡市 | C57: 関川村 | D57: 205-04 | E57: 115 | F57: 112 | G57: 21 | H57: 15 | I57: 76 | J57: 3 | K57: 3 | M57: 253 | N57: 1 | O57: 4 | P57: 2 | Q57: 5 | R57: 8 | S57: 10 | T57: 6 | U57: 12 | V57: 22 | W57: 26 | X57: 43 | Y57: 57 | Z57: 15 | AA57: 25 | AB57: 17 | AC57: 65.1 | AD57: 64.2 | AE57: 66.3 | AY57: 162 | AZ57: - | BA57: - | BB57: - | BC57: 3 | BD57: 3 | BE57: 3 | BF57: 2 | BG57: 4 | BH57: 9 | BI57: 13 | BJ57: 29 | BK57: 52 | BL57: 12 | BM57: 22 | BN57: 10 | BO57: 69.3 | BP57: 69.3 | BQ57: 69.3 | BR57: 112 | BS57: - | BT57: - | BU57: - | BV57: - | BW57: 1 | BX57: 3 | BY57: 2 | BZ57: 3 | CA57: 13 | CB57: 12 | CC57: 24 | CD57: 29 | CE57: 7 | CF57: 13 | CG57: 5 | CH57: 112 | CI57: 22 | CJ57: 22 | CK57: - | CL57: - | CM57: 3 | CN57: 87 | CO57: 78 | CP57: 18 | CQ57: 18 | CR57: - | CS57: - | CT57: - | CU57: 60 | DC57: 343 | DD57: 268 | DE57: 162 | DF57: 90 | DG57: 16 | DH57: 18 | DI57: 57 | DK57: 112 | DL57: 60 | DM57: - | DN57: 2 | DO57: - | DP57: 15 | DQ57: 6 | DR57: 7 | DS57: 11 | DT57: 11 | DU57: - | DV57: - | DW57: - | DX57: - | DY57: - | DZ57: - | EA57: 112 | EB57: 21,298 | EC57: 13,963 | ED57: 6,454 | EE57: 881 | EF57: 182 | EG57: 160 | EH57: 97 | EI57: 53 | EJ57: 10 | EK57: 11 | EL57: 11 | EN57: 161 | EO57: 108 | EP57: 65 | EQ57: 37 | ER57: 6 | ES57: 7 | ET57: 46
A58: 茨城県 | B58: 石岡市 | C58: 柿岡町 | D58: 205-05 | E58: 111 | F58: 110 | G58: 19 | H58: 6 | I58: 85 | J58: 1 | K58: 1 | M58: 254 | N58: 3 | O58: 6 | P58: 7 | Q58: 7 | R58: 11 | S58: 15 | T58: 13 | U58: 9 | V58: 17 | W58: 31 | X58: 46 | Y58: 44 | Z58: 23 | AA58: 12 | AB58: 10 | AC58: 61.1 | AD58: 60.3 | AE58: 62.2 | AY58: 117 | AZ58: - | BA58: - | BB58: 2 | BC58: 1 | BD58: 4 | BE58: 3 | BF58: 4 | BG58: 1 | BH58: 7 | BI58: 5 | BJ58: 21 | BK58: 34 | BL58: 19 | BM58: 10 | BN58: 6 | BO58: 68.1 | BP58: 67.2 | BQ58: 69.7 | BR58: 110 | BS58: - | BT58: - | BU58: 1 | BV58: - | BW58: 1 | BX58: 2 | BY58: 4 | BZ58: 5 | CA58: 8 | CB58: 13 | CC58: 29 | CD58: 26 | CE58: 15 | CF58: 4 | CG58: 2 | CH58: 110 | CI58: 17 | CJ58: 17 | CK58: - | CL58: - | CM58: - | CN58: 93 | CO58: 76 | CP58: 11 | CQ58: 11 | CR58: - | CS58: - | CT58: - | CU58: 65 | DC58: 371 | DD58: 280 | DE58: 117 | DF58: 146 | DG58: 17 | DH58: 16 | DI58: 75 | DK58: 82 | DL58: 69 | DM58: - | DN58: - | DO58: - | DP58: 4 | DQ58: 2 | DR58: 1 | DS58: 3 | DT58: - | DU58: 2 | DV58: - | DW58: 1 | DX58: - | DY58: - | DZ58: - | EA58: 109 | EB58: 25,653 | EC58: 22,237 | ED58: 2,946 | EE58: 470 | EF58: 194 | EG58: 164 | EH58: 74 | EI58: 77 | EJ58: 13 | EK58: 6 | EL58: 24 | EN58: 177 | EO58: 116 | EP58: 43 | EQ58: 69 | ER58: 4 | ES58: 10 | ET58: 51
A59: 茨城県 | B59: 石岡市 | C59: 小幡村 | D59: 205-06 | E59: 156 | F59: 152 | G59: 21 | H59: 23 | I59: 108 | J59: 4 | K59: 2 | M59: 336 | N59: 1 | O59: 4 | P59: 8 | Q59: 6 | R59: 16 | S59: 12 | T59: 17 | U59: 15 | V59: 33 | W59: 44 | X59: 65 | Y59: 46 | Z59: 36 | AA59: 20 | AB59: 13 | AC59: 62.5 | AD59: 61.8 | AE59: 63.5 | AY59: 173 | AZ59: - | BA59: - | BB59: 1 | BC59: - | BD59: 1 | BE59: 1 | BF59: 5 | BG59: 4 | BH59: 7 | BI59: 17 | BJ59: 45 | BK59: 35 | BL59: 31 | BM59: 18 | BN59: 8 | BO59: 69.8 | BP59: 70.2 | BQ59: 69.3 | BR59: 152 | BS59: - | BT59: - | BU59: - | BV59: - | BW59: 2 | BX59: - | BY59: 5 | BZ59: 5 | CA59: 14 | CB59: 24 | CC59: 40 | CD59: 26 | CE59: 22 | CF59: 10 | CG59: 4 | CH59: 152 | CI59: 25 | CJ59: 25 | CK59: - | CL59: - | CM59: 8 | CN59: 119 | CO59: 102 | CP59: 20 | CQ59: 20 | CR59: - | CS59: - | CT59: 5 | CU59: 77 | DC59: 466 | DD59: 360 | DE59: 173 | DF59: 164 | DG59: 23 | DH59: 22 | DI59: 84 | DK59: 140 | DL59: 70 | DM59: - | DN59: 1 | DO59: 1 | DP59: 2 | DQ59: 3 | DR59: 52 | DS59: 1 | DT59: 2 | DU59: 4 | DV59: - | DW59: 2 | DX59: 2 | DY59: - | DZ59: - | EA59: 151 | EB59: 16,385 | EC59: 10,508 | ED59: 1,777 | EE59: 4,100 | EF59: 247 | EG59: 212 | EH59: 109 | EI59: 87 | EJ59: 16 | EK59: 13 | EL59: 22 | EN59: 219 | EO59: 148 | EP59: 64 | EQ59: 77 | ER59: 7 | ES59: 9 | ET59: 62
A60: 茨城県 | B60: 石岡市 | C60: 葦穂村 | D60: 205-07 | E60: 201 | F60: 201 | G60: 30 | H60: 19 | I60: 152 | J60: - | K60: - | M60: 477 | N60: 5 | O60: 8 | P60: 9 | Q60: 10 | R60: 12 | S60: 30 | T60: 27 | U60: 28 | V60: 35 | W60: 67 | X60: 95 | Y60: 59 | Z60: 37 | AA60: 33 | AB60: 22 | AC60: 61.8 | AD60: 61.6 | AE60: 62.1 | AY60: 222 | AZ60: - | BA60: - | BB60: - | BC60: - | BD60: 3 | BE60: 8 | BF60: 5 | BG60: 7 | BH60: 11 | BI60: 18 | BJ60: 52 | BK60: 46 | BL60: 28 | BM60: 30 | BN60: 14 | BO60: 69.5 | BP60: 69.9 | BQ60: 68.9 | BR60: 201 | BS60: - | BT60: - | BU60: - | BV60: - | BW60: 3 | BX60: 6 | BY60: 3 | BZ60: 12 | CA60: 13 | CB60: 30 | CC60: 49 | CD60: 39 | CE60: 19 | CF60: 18 | CG60: 9 | CH60: 201 | CI60: 24 | CJ60: 24 | CK60: - | CL60: - | CM60: 4 | CN60: 173 | CO60: 134 | CP60: 19 | CQ60: 19 | CR60: - | CS60: - | CT60: 3 | CU60: 112 | DC60: 658 | DD60: 486 | DE60: 222 | DF60: 237 | DG60: 27 | DH60: 39 | DI60: 133 | DK60: 164 | DL60: 109 | DM60: - | DN60: 1 | DO60: 2 | DP60: 12 | DQ60: 7 | DR60: 23 | DS60: 2 | DT60: 3 | DU60: - | DV60: - | DW60: 1 | DX60: 4 | DY60: - | DZ60: - | EA60: 199 | EB60: 27,988 | EC60: 19,170 | ED60: 5,767 | EE60: 3,051 | EF60: 345 | EG60: 299 | EH60: 135 | EI60: 142 | EJ60: 22 | EK60: 20 | EL60: 26 | EN60: 313 | EO60: 187 | EP60: 87 | EQ60: 95 | ER60: 5 | ES60: 19 | ET60: 107
A61: 茨城県 | B61: 石岡市 | C61: 恋瀬村 | D61: 205-08 | E61: 128 | F61: 128 | G61: 23 | H61: 23 | I61: 82 | J61: - | K61: - | M61: 291 | N61: 4 | O61: 4 | P61: 8 | Q61: 12 | R61: 8 | S61: 6 | T61: 7 | U61: 18 | V61: 31 | W61: 66 | X61: 46 | Y61: 24 | Z61: 21 | AA61: 20 | AB61: 16 | AC61: 61.5 | AD61: 60.5 | AE61: 63.0 | AY61: 125 | AZ61: - | BA61: 1 | BB61: 1 | BC61: 4 | BD61: 1 | BE61: 3 | BF61: 2 | BG61: 1 | BH61: 7 | BI61: 24 | BJ61: 25 | BK61: 17 | BL61: 17 | BM61: 14 | BN61: 8 | BO61: 67.5 | BP61: 68.4 | BQ61: 65.9 | BR61: 128 | BS61: - | BT61: - | BU61: - | BV61: - | BW61: - | BX61: 2 | BY61: 3 | BZ61: 7 | CA61: 11 | CB61: 33 | CC61: 28 | CD61: 16 | CE61: 13 | CF61: 10 | CG61: 5 | CH61: 128 | CI61: 19 | CJ61: 19 | CK61: - | CL61: - | CM61: 1 | CN61: 108 | CO61: 72 | CP61: 15 | CQ61: 15 | CR61: - | CS61: - | CT61: 1 | CU61: 56 | DC61: 432 | DD61: 306 | DE61: 125 | DF61: 164 | DG61: 17 | DH61: 19 | DI61: 107 | DK61: 111 | DL61: 85 | DM61: - | DN61: - | DO61: - | DP61: 8 | DQ61: 3 | DR61: 9 | DS61: - | DT61: 2 | DU61: 3 | DV61: 1 | DW61: - | DX61: - | DY61: - | DZ61: - | EA61: 127 | EB61: 22,309 | EC61: 18,161 | ED61: 3,373 | EE61: 775 | EF61: 213 | EG61: 184 | EH61: 78 | EI61: 92 | EJ61: 14 | EK61: 10 | EL61: 19 | EN61: 219 | EO61: 122 | EP61: 47 | EQ61: 72 | ER61: 3 | ES61: 9 | ET61: 88
A62: 茨城県 | B62: 石岡市 | C62: 瓦会村 | D62: 205-09 | E62: 191 | F62: 191 | G62: 40 | H62: 33 | I62: 118 | J62: - | K62: - | M62: 462 | N62: 5 | O62: 4 | P62: 11 | Q62: 8 | R62: 14 | S62: 28 | T62: 19 | U62: 41 | V62: 47 | W62: 51 | X62: 80 | Y62: 47 | Z62: 38 | AA62: 31 | AB62: 38 | AC62: 62.3 | AD62: 61.2 | AE62: 63.7 | AY62: 228 | AZ62: - | BA62: - | BB62: 1 | BC62: - | BD62: 5 | BE62: 6 | BF62: 3 | BG62: 9 | BH62: 19 | BI62: 15 | BJ62: 52 | BK62: 34 | BL62: 34 | BM62: 22 | BN62: 28 | BO62: 69.6 | BP62: 70.2 | BQ62: 68.8 | BR62: 191 | BS62: - | BT62: - | BU62: - | BV62: - | BW62: 2 | BX62: 6 | BY62: 4 | BZ62: 16 | CA62: 22 | CB62: 26 | CC62: 39 | CD62: 31 | CE62: 18 | CF62: 14 | CG62: 13 | CH62: 191 | CI62: 20 | CJ62: 20 | CK62: - | CL62: - | CM62: 10 | CN62: 161 | CO62: 115 | CP62: 16 | CQ62: 16 | CR62: - | CS62: - | CT62: 4 | CU62: 95 | DC62: 666 | DD62: 471 | DE62: 228 | DF62: 211 | DG62: 32 | DH62: 52 | DI62: 143 | DK62: 175 | DL62: 115 | DM62: - | DN62: - | DO62: 1 | DP62: 12 | DQ62: 5 | DR62: 28 | DS62: 1 | DT62: 4 | DU62: 6 | DV62: - | DW62: 1 | DX62: 2 | DY62: - | DZ62: - | EA62: 191 | EB62: 28,471 | EC62: 17,984 | ED62: 7,965 | EE62: 2,522 | EF62: 339 | EG62: 280 | EH62: 137 | EI62: 118 | EJ62: 25 | EK62: 30 | EL62: 29 | EN62: 327 | EO62: 191 | EP62: 91 | EQ62: 93 | ER62: 7 | ES62: 22 | ET62: 114
A63: 茨城県 | B63: 石岡市 | C63: 園部村 | D63: 205-10 | E63: 273 | F63: 269 | G63: 58 | H63: 40 | I63: 171 | J63: 4 | K63: 3 | M63: 666 | N63: 3 | O63: 12 | P63: 18 | Q63: 26 | R63: 15 | S63: 33 | T63: 34 | U63: 51 | V63: 56 | W63: 68 | X63: 112 | Y63: 65 | Z63: 76 | AA63: 49 | AB63: 48 | AC63: 62.3 | AD63: 60.9 | AE63: 64.1 | AY63: 375 | AZ63: - | BA63: 1 | BB63: 4 | BC63: 9 | BD63: 3 | BE63: 11 | BF63: 8 | BG63: 22 | BH63: 25 | BI63: 27 | BJ63: 76 | BK63: 52 | BL63: 69 | BM63: 39 | BN63: 29 | BO63: 68.0 | BP63: 67.5 | BQ63: 68.6 | BR63: 269 | BS63: - | BT63: - | BU63: 1 | BV63: 2 | BW63: - | BX63: 5 | BY63: 9 | BZ63: 16 | CA63: 24 | CB63: 32 | CC63: 69 | CD63: 33 | CE63: 40 | CF63: 24 | CG63: 14 | CH63: 269 | CI63: 36 | CJ63: 35 | CK63: - | CL63: 1 | CM63: 11 | CN63: 222 | CO63: 180 | CP63: 26 | CQ63: 26 | CR63: - | CS63: - | CT63: 6 | CU63: 148 | DC63: 896 | DD63: 683 | DE63: 375 | DF63: 276 | DG63: 32 | DH63: 57 | DI63: 156 | DK63: 252 | DL63: 86 | DM63: - | DN63: 5 | DO63: 2 | DP63: 18 | DQ63: 9 | DR63: 114 | DS63: 8 | DT63: 5 | DU63: 3 | DV63: - | DW63: 1 | DX63: 1 | DY63: - | DZ63: - | EA63: 267 | EB63: 42,668 | EC63: 16,168 | ED63: 10,614 | EE63: 15,886 | EF63: 463 | EG63: 395 | EH63: 211 | EI63: 161 | EJ63: 23 | EK63: 30 | EL63: 38 | EN63: 433 | EO63: 288 | EP63: 164 | EQ63: 115 | ER63: 9 | ES63: 27 | ET63: 118
A64: 茨城県 | B64: 石岡市 | C64: 林村 | D64: 205-11 | E64: 160 | F64: 159 | G64: 20 | H64: 21 | I64: 118 | J64: 1 | K64: 1 | M64: 383 | N64: 5 | O64: 3 | P64: 7 | Q64: 9 | R64: 20 | S64: 18 | T64: 18 | U64: 24 | V64: 27 | W64: 51 | X64: 79 | Y64: 48 | Z64: 28 | AA64: 21 | AB64: 25 | AC64: 62.1 | AD64: 61.5 | AE64: 62.9 | AY64: 161 | AZ64: - | BA64: - | BB64: - | BC64: 2 | BD64: 2 | BE64: 4 | BF64: 5 | BG64: 2 | BH64: 4 | BI64: 14 | BJ64: 39 | BK64: 36 | BL64: 20 | BM64: 18 | BN64: 15 | BO64: 70.0 | BP64: 69.8 | BQ64: 70.4 | BR64: 159 | BS64: - | BT64: - | BU64: - | BV64: - | BW64: 3 | BX64: 4 | BY64: 5 | BZ64: 7 | CA64: 10 | CB64: 24 | CC64: 42 | CD64: 32 | CE64: 12 | CF64: 13 | CG64: 7 | CH64: 159 | CI64: 23 | CJ64: 23 | CK64: - | CL64: - | CM64: 12 | CN64: 124 | CO64: 106 | CP64: 16 | CQ64: 16 | CR64: - | CS64: - | CT64: 5 | CU64: 85 | DC64: 554 | DD64: 413 | DE64: 161 | DF64: 237 | DG64: 15 | DH64: 29 | DI64: 112 | DK64: 145 | DL64: 108 | DM64: 1 | DN64: 1 | DO64: - | DP64: 12 | DQ64: 2 | DR64: 16 | DS64: 1 | DT64: 1 | DU64: - | DV64: 1 | DW64: 2 | DX64: - | DY64: - | DZ64: - | EA64: 157 | EB64: 24,690 | EC64: 15,569 | ED64: 6,676 | EE64: 2,445 | EF64: 275 | EG64: 241 | EH64: 96 | EI64: 136 | EJ64: 9 | EK64: 9 | EL64: 25 | EN64: 279 | EO64: 172 | EP64: 65 | EQ64: 101 | ER64: 6 | ES64: 20 | ET64: 87
A65: 茨城県 | B65: 石岡市 | C65: 小桜村 | D65: 205-12 | E65: 167 | F65: 166 | G65: 22 | H65: 19 | I65: 125 | J65: 1 | K65: 1 | M65: 364 | N65: - | O65: 3 | P65: 7 | Q65: 9 | R65: 17 | S65: 13 | T65: 12 | U65: 13 | V65: 32 | W65: 51 | X65: 73 | Y65: 58 | Z65: 37 | AA65: 26 | AB65: 13 | AC65: 63.5 | AD65: 62.4 | AE65: 65.0 | AY65: 183 | AZ65: - | BA65: - | BB65: 1 | BC65: 1 | BD65: 3 | BE65: 2 | BF65: 2 | BG65: 6 | BH65: 9 | BI65: 16 | BJ65: 42 | BK65: 40 | BL65: 32 | BM65: 19 | BN65: 10 | BO65: 69.7 | BP65: 70.1 | BQ65: 69.2 | BR65: 166 | BS65: - | BT65: - | BU65: - | BV65: - | BW65: 1 | BX65: 2 | BY65: 5 | BZ65: 6 | CA65: 14 | CB65: 22 | CC65: 43 | CD65: 42 | CE65: 15 | CF65: 12 | CG65: 4 | CH65: 166 | CI65: 26 | CJ65: 26 | CK65: - | CL65: - | CM65: 5 | CN65: 135 | CO65: 116 | CP65: 21 | CQ65: 21 | CR65: - | CS65: - | CT65: 4 | CU65: 91 | DC65: 541 | DD65: 402 | DE65: 183 | DF65: 200 | DG65: 19 | DH65: 26 | DI65: 113 | DK65: 133 | DL65: 91 | DM65: - | DN65: - | DO65: - | DP65: 8 | DQ65: 8 | DR65: 23 | DS65: - | DT65: - | DU65: - | DV65: 1 | DW65: 1 | DX65: 1 | DY65: - | DZ65: - | EA65: 163 | EB65: 21,097 | EC65: 14,845 | ED65: 4,474 | EE65: 1,778 | EF65: 284 | EG65: 245 | EH65: 106 | EI65: 123 | EJ65: 16 | EK65: 10 | EL65: 29 | EN65: 257 | EO65: 157 | EP65: 77 | EQ65: 77 | ER65: 3 | ES65: 16 | ET65: 84
A66: 茨城県 | B66: 結城市 | D66: 207-00 | E66: 839 | F66: 817 | G66: 329 | H66: 88 | I66: 400 | J66: 22 | K66: 19 | M66: 2,045 | N66: 11 | O66: 16 | P66: 37 | Q66: 77 | R66: 102 | S66: 127 | T66: 112 | U66: 111 | V66: 178 | W66: 267 | X66: 375 | Y66: 269 | Z66: 162 | AA66: 120 | AB66: 81 | AC66: 61.1 | AD66: 60.3 | AE66: 62.0 | AY66: 1,342 | AZ66: 3 | BA66: 3 | BB66: 17 | BC66: 35 | BD66: 48 | BE66: 59 | BF66: 50 | BG66: 60 | BH66: 111 | BI66: 182 | BJ66: 277 | BK66: 225 | BL66: 133 | BM66: 95 | BN66: 44 | BO66: 63.9 | BP66: 63.3 | BQ66: 64.7 | BR66: 817 | BS66: - | BT66: - | BU66: 1 | BV66: 5 | BW66: 11 | BX66: 26 | BY66: 28 | BZ66: 40 | CA66: 76 | CB66: 136 | CC66: 211 | CD66: 135 | CE66: 80 | CF66: 52 | CG66: 16 | CH66: 817 | CI66: 163 | CJ66: 161 | CK66: - | CL66: 2 | CM66: 24 | CN66: 630 | CO66: 494 | CP66: 105 | CQ66: 104 | CR66: - | CS66: 1 | CT66: 4 | CU66: 385 | DC66: 2,891 | DD66: 2,198 | DE66: 1,342 | DF66: 723 | DG66: 133 | DH66: 166 | DI66: 527 | DK66: 745 | DL66: 335 | DM66: 3 | DN66: 3 | DO66: - | DP66: 328 | DQ66: 20 | DR66: 22 | DS66: 12 | DT66: 3 | DU66: 5 | DV66: 2 | DW66: 10 | DX66: 2 | DY66: - | DZ66: - | EA66: 773 | EB66: 233,504 | EC66: 99,942 | ED66: 130,715 | EE66: 2,847 | EF66: 1,467 | EG66: 1,273 | EH66: 778 | EI66: 411 | EJ66: 84 | EK66: 73 | EL66: 121 | EN66: 1,424 | EO66: 925 | EP66: 564 | EQ66: 312 | ER66: 49 | ES66: 93 | ET66: 406
A67: 茨城県 | B67: 結城市 | C67: 結城町 | D67: 207-01 | E67: 210 | F67: 206 | G67: 62 | H67: 25 | I67: 119 | J67: 4 | K67: 4 | M67: 514 | N67: 4 | O67: 9 | P67: 6 | Q67: 18 | R67: 21 | S67: 29 | T67: 34 | U67: 26 | V67: 36 | W67: 60 | X67: 95 | Y67: 85 | Z67: 48 | AA67: 25 | AB67: 18 | AC67: 61.4 | AD67: 61.0 | AE67: 61.9 | AY67: 311 | AZ67: - | BA67: 1 | BB67: 2 | BC67: 7 | BD67: 7 | BE67: 12 | BF67: 12 | BG67: 9 | BH67: 18 | BI67: 37 | BJ67: 69 | BK67: 69 | BL67: 38 | BM67: 20 | BN67: 10 | BO67: 65.9 | BP67: 66.0 | BQ67: 65.7 | BR67: 206 | BS67: - | BT67: - | BU67: - | BV67: 2 | BW67: 1 | BX67: 6 | BY67: 4 | BZ67: 9 | CA67: 11 | CB67: 34 | CC67: 51 | CD67: 39 | CE67: 30 | CF67: 14 | CG67: 5 | CH67: 206 | CI67: 38 | CJ67: 37 | CK67: - | CL67: 1 | CM67: 6 | CN67: 162 | CO67: 139 | CP67: 30 | CQ67: 29 | CR67: - | CS67: 1 | CT67: 1 | CU67: 108 | DC67: 724 | DD67: 562 | DE67: 311 | DF67: 210 | DG67: 41 | DH67: 45 | DI67: 117 | DK67: 183 | DL67: 97 | DM67: 3 | DN67: 1 | DO67: - | DP67: 60 | DQ67: 5 | DR67: 12 | DS67: 4 | DT67: - | DU67: - | DV67: - | DW67: - | DX67: 1 | DY67: - | DZ67: - | EA67: 204 | EB67: 55,303 | EC67: 32,354 | ED67: 21,674 | EE67: 1,275 | EF67: 373 | EG67: 331 | EH67: 185 | EI67: 124 | EJ67: 22 | EK67: 18 | EL67: 24 | EN67: 351 | EO67: 231 | EP67: 126 | EQ67: 86 | ER67: 19 | ES67: 27 | ET67: 93
A68: 茨城県 | B68: 結城市 | C68: 絹川村 | D68: 207-02 | E68: 38 | F68: 36 | G68: 2 | H68: 5 | I68: 29 | J68: 2 | K68: 1 | M68: 70 | N68: - | O68: - | P68: 1 | Q68: 1 | R68: 4 | S68: 1 | T68: 3 | U68: 2 | V68: 5 | W68: 14 | X68: 14 | Y68: 10 | Z68: 8 | AA68: 4 | AB68: 3 | AC68: 64.5 | AD68: 65.2 | AE68: 63.5 | AY68: 23 | AZ68: - | BA68: - | BB68: - | BC68: - | BD68: - | BE68: - | BF68: 1 | BG68: - | BH68: - | BI68: 2 | BJ68: 3 | BK68: 6 | BL68: 5 | BM68: 4 | BN68: 2 | BO68: 73.7 | BP68: 74.1 | BQ68: 72.9 | BR68: 36 | BS68: - | BT68: - | BU68: - | BV68: - | BW68: 1 | BX68: 1 | BY68: 1 | BZ68: 1 | CA68: 3 | CB68: 8 | CC68: 7 | CD68: 6 | CE68: 4 | CF68: 3 | CG68: 1 | CH68: 36 | CI68: 5 | CJ68: 5 | CK68: - | CL68: - | CM68: 1 | CN68: 30 | CO68: 21 | CP68: 4 | CQ68: 4 | CR68: - | CS68: - | CT68: - | CU68: 17 | DC68: 115 | DD68: 81 | DE68: 23 | DF68: 53 | DG68: 5 | DH68: 8 | DI68: 26 | DK68: 24 | DL68: 20 | DM68: - | DN68: 1 | DO68: - | DP68: 2 | DQ68: - | DR68: - | DS68: - | DT68: - | DU68: - | DV68: 1 | DW68: - | DX68: - | DY68: - | DZ68: - | EA68: 28 | EB68: 5,878 | EC68: 5,527 | ED68: 351 | EE68: - | EF68: 62 | EG68: 52 | EH68: 16 | EI68: 32 | EJ68: 4 | EK68: 6 | EL68: 4 | EN68: 53 | EO68: 29 | EP68: 7 | EQ68: 21 | ER68: 1 | ES68: 2 | ET68: 22
A69: 茨城県 | B69: 結城市 | C69: 上山川村 | D69: 207-03 | E69: 113 | F69: 110 | G69: 36 | H69: 14 | I69: 60 | J69: 3 | K69: 2 | M69: 278 | N69: 3 | O69: 1 | P69: 4 | Q69: 11 | R69: 11 | S69: 19 | T69: 11 | U69: 20 | V69: 23 | W69: 37 | X69: 68 | Y69: 18 | Z69: 20 | AA69: 22 | AB69: 10 | AC69: 61.3 | AD69: 59.6 | AE69: 63.4 | AY69: 158 | AZ69: 2 | BA69: - | BB69: 2 | BC69: 4 | BD69: 5 | BE69: 6 | BF69: 5 | BG69: 11 | BH69: 8 | BI69: 16 | BJ69: 50 | BK69: 13 | BL69: 18 | BM69: 15 | BN69: 3 | BO69: 63.9 | BP69: 62.9 | BQ69: 65.0 | BR69: 110 | BS69: - | BT69: - | BU69: - | BV69: - | BW69: - | BX69: 5 | BY69: 3 | BZ69: 9 | CA69: 9 | CB69: 15 | CC69: 39 | CD69: 10 | CE69: 10 | CF69: 7 | CG69: 3 | CH69: 110 | CI69: 30 | CJ69: 30 | CK69: - | CL69: - | CM69: 5 | CN69: 75 | CO69: 69 | CP69: 19 | CQ69: 19 | CR69: - | CS69: - | CT69: 1 | CU69: 49 | DC69: 374 | DD69: 277 | DE69: 158 | DF69: 102 | DG69: 17 | DH69: 15 | DI69: 82 | DK69: 105 | DL69: 57 | DM69: - | DN69: - | DO69: - | DP69: 25 | DQ69: 3 | DR69: 10 | DS69: 4 | DT69: 1 | DU69: 4 | DV69: - | DW69: 1 | DX69: - | DY69: - | DZ69: - | EA69: 91 | EB69: 15,556 | EC69: 7,678 | ED69: 6,357 | EE69: 1,521 | EF69: 189 | EG69: 160 | EH69: 87 | EI69: 63 | EJ69: 10 | EK69: 5 | EL69: 24 | EN69: 185 | EO69: 117 | EP69: 71 | EQ69: 39 | ER69: 7 | ES69: 10 | ET69: 58
A70: 茨城県 | B70: 結城市 | C70: 山川村 | D70: 207-04 | E70: 205 | F70: 201 | G70: 84 | H70: 21 | I70: 96 | J70: 4 | K70: 4 | M70: 504 | N70: 2 | O70: 4 | P70: 12 | Q70: 24 | R70: 31 | S70: 32 | T70: 27 | U70: 23 | V70: 47 | W70: 68 | X70: 86 | Y70: 68 | Z70: 36 | AA70: 25 | AB70: 19 | AC70: 60.0 | AD70: 59.1 | AE70: 61.1 | AY70: 311 | AZ70: - | BA70: 1 | BB70: 5 | BC70: 11 | BD70: 11 | BE70: 10 | BF70: 19 | BG70: 11 | BH70: 25 | BI70: 50 | BJ70: 58 | BK70: 58 | BL70: 23 | BM70: 18 | BN70: 11 | BO70: 63.0 | BP70: 62.0 | BQ70: 64.3 | BR70: 201 | BS70: - | BT70: - | BU70: - | BV70: 2 | BW70: 2 | BX70: 2 | BY70: 13 | BZ70: 8 | CA70: 19 | CB70: 33 | CC70: 52 | CD70: 38 | CE70: 17 | CF70: 13 | CG70: 2 | CH70: 201 | CI70: 37 | CJ70: 36 | CK70: - | CL70: 1 | CM70: 3 | CN70: 161 | CO70: 122 | CP70: 23 | CQ70: 23 | CR70: - | CS70: - | CT70: 1 | CU70: 98 | DC70: 698 | DD70: 530 | DE70: 311 | DF70: 181 | DG70: 38 | DH70: 42 | DI70: 126 | DK70: 186 | DL70: 107 | DM70: - | DN70: - | DO70: - | DP70: 64 | DQ70: 7 | DR70: - | DS70: 2 | DT70: - | DU70: - | DV70: 1 | DW70: 5 | DX70: - | DY70: - | DZ70: - | EA70: 195 | EB70: 64,326 | EC70: 29,391 | ED70: 34,935 | EE70: - | EF70: 350 | EG70: 310 | EH70: 183 | EI70: 99 | EJ70: 28 | EK70: 15 | EL70: 25 | EN70: 348 | EO70: 220 | EP70: 128 | EQ70: 82 | ER70: 10 | ES70: 27 | ET70: 101
A71: 茨城県 | B71: 結城市 | C71: 江川村 | D71: 207-05 | E71: 273 | F71: 264 | G71: 145 | H71: 23 | I71: 96 | J71: 9 | K71: 8 | M71: 679 | N71: 2 | O71: 2 | P71: 14 | Q71: 23 | R71: 35 | S71: 46 | T71: 37 | U71: 40 | V71: 67 | W71: 88 | X71: 112 | Y71: 88 | Z71: 50 | AA71: 44 | AB71: 31 | AC71: 61.2 | AD71: 60.5 | AE71: 62.0 | AY71: 539 | AZ71: 1 | BA71: 1 | BB71: 8 | BC71: 13 | BD71: 25 | BE71: 31 | BF71: 13 | BG71: 29 | BH71: 60 | BI71: 77 | BJ71: 97 | BK71: 79 | BL71: 49 | BM71: 38 | BN71: 18 | BO71: 62.9 | BP71: 62.1 | BQ71: 63.9 | BR71: 264 | BS71: - | BT71: - | BU71: 1 | BV71: 1 | BW71: 7 | BX71: 12 | BY71: 7 | BZ71: 13 | CA71: 34 | CB71: 46 | CC71: 62 | CD71: 42 | CE71: 19 | CF71: 15 | CG71: 5 | CH71: 264 | CI71: 53 | CJ71: 53 | CK71: - | CL71: - | CM71: 9 | CN71: 202 | CO71: 143 | CP71: 29 | CQ71: 29 | CR71: - | CS71: - | CT71: 1 | CU71: 113 | DC71: 980 | DD71: 748 | DE71: 539 | DF71: 177 | DG71: 32 | DH71: 56 | DI71: 176 | DK71: 247 | DL71: 54 | DM71: - | DN71: 1 | DO71: - | DP71: 177 | DQ71: 5 | DR71: - | DS71: 2 | DT71: 2 | DU71: 1 | DV71: - | DW71: 4 | DX71: 1 | DY71: - | DZ71: - | EA71: 255 | EB71: 92,441 | EC71: 24,992 | ED71: 67,398 | EE71: 51 | EF71: 493 | EG71: 420 | EH71: 307 | EI71: 93 | EJ71: 20 | EK71: 29 | EL71: 44 | EN71: 487 | EO71: 328 | EP71: 232 | EQ71: 84 | ER71: 12 | ES71: 27 | ET71: 132
A72: 茨城県 | B72: 龍ヶ崎市 | D72: 208-00 | E72: 481 | F72: 471 | G72: 70 | H72: 55 | I72: 346 | J72: 10 | K72: 10 | M72: 1,051 | N72: 3 | O72: 20 | P72: 24 | Q72: 16 | R72: 26 | S72: 40 | T72: 52 | U72: 58 | V72: 74 | W72: 116 | X72: 199 | Y72: 163 | Z72: 133 | AA72: 74 | AB72: 53 | AC72: 64.0 | AD72: 62.5 | AE72: 66.0 | AY72: 569 | AZ72: - | BA72: 2 | BB72: 4 | BC72: 2 | BD72: 7 | BE72: 17 | BF72: 11 | BG72: 17 | BH72: 16 | BI72: 49 | BJ72: 124 | BK72: 128 | BL72: 108 | BM72: 54 | BN72: 30 | BO72: 69.3 | BP72: 68.6 | BQ72: 70.5 | BR72: 471 | BS72: - | BT72: - | BU72: - | BV72: 2 | BW72: 3 | BX72: 4 | BY72: 9 | BZ72: 26 | CA72: 28 | CB72: 60 | CC72: 104 | CD72: 92 | CE72: 79 | CF72: 41 | CG72: 23 | CH72: 471 | CI72: 61 | CJ72: 61 | CK72: - | CL72: - | CM72: 5 | CN72: 405 | CO72: 339 | CP72: 50 | CQ72: 50 | CR72: - | CS72: - | CT72: 2 | CU72: 287 | DC72: 1,441 | DD72: 1,067 | DE72: 569 | DF72: 448 | DG72: 50 | DH72: 51 | DI72: 323 | DK72: 466 | DL72: 408 | DM72: - | DN72: 13 | DO72: - | DP72: 20 | DQ72: 11 | DR72: 4 | DS72: 9 | DT72: - | DU72: - | DV72: - | DW72: 1 | DX72: - | DY72: - | DZ72: - | EA72: 466 | EB72: 149,188 | EC72: 141,149 | ED72: 7,597 | EE72: 442 | EF72: 726 | EG72: 658 | EH72: 367 | EI72: 258 | EJ72: 33 | EK72: 26 | EL72: 42 | EN72: 715 | EO72: 409 | EP72: 202 | EQ72: 190 | ER72: 17 | ES72: 25 | ET72: 281
A73: 茨城県 | B73: 龍ヶ崎市 | C73: 長戸村 | D73: 208-01 | E73: 67 | F73: 65 | G73: 9 | H73: 4 | I73: 52 | J73: 2 | K73: 2 | M73: 136 | N73: - | O73: 5 | P73: 2 | Q73: 1 | R73: 5 | S73: 4 | T73: 1 | U73: 7 | V73: 6 | W73: 18 | X73: 30 | Y73: 23 | Z73: 22 | AA73: 10 | AB73: 2 | AC73: 64.4 | AD73: 62.5 | AE73: 67.0 | AY73: 77 | AZ73: - | BA73: 1 | BB73: 1 | BC73: - | BD73: - | BE73: 1 | BF73: - | BG73: 1 | BH73: 2 | BI73: 5 | BJ73: 23 | BK73: 17 | BL73: 18 | BM73: 6 | BN73: 2 | BO73: 69.7 | BP73: 69.1 | BQ73: 70.6 | BR73: 65 | BS73: - | BT73: - | BU73: - | BV73: - | BW73: - | BX73: - | BY73: - | BZ73: 4 | CA73: 4 | CB73: 8 | CC73: 17 | CD73: 12 | CE73: 14 | CF73: 5 | CG73: 1 | CH73: 65 | CI73: 5 | CJ73: 5 | CK73: - | CL73: - | CM73: 1 | CN73: 59 | CO73: 49 | CP73: 4 | CQ73: 4 | CR73: - | CS73: - | CT73: - | CU73: 45 | DC73: 192 | DD73: 145 | DE73: 77 | DF73: 60 | DG73: 8 | DH73: 6 | DI73: 41 | DK73: 64 | DL73: 57 | DM73: - | DN73: - | DO73: - | DP73: 4 | DQ73: - | DR73: - | DS73: 2 | DT73: - | DU73: - | DV73: - | DW73: 1 | DX73: - | DY73: - | DZ73: - | EA73: 64 | EB73: 16,191 | EC73: 14,813 | ED73: 1,378 | EE73: - | EF73: 93 | EG73: 80 | EH73: 46 | EI73: 28 | EJ73: 6 | EK73: 4 | EL73: 9 | EN73: 99 | EO73: 65 | EP73: 31 | EQ73: 32 | ER73: 2 | ES73: 2 | ET73: 32
A74: 茨城県 | B74: 龍ヶ崎市 | C74: 龍ヶ崎市 | D74: 208-02 | E74: 15 | F74: 15 | G74: 3 | H74: 1 | I74: 11 | J74: - | K74: - | M74: 36 | N74: 1 | O74: 1 | P74: 3 | Q74: - | R74: 1 | S74: 3 | T74: - | U74: 4 | V74: 1 | W74: 3 | X74: 8 | Y74: 3 | Z74: 5 | AA74: 1 | AB74: 2 | AC74: 59.5 | AD74: 60.0 | AE74: 59.0 | AY74: 19 | AZ74: - | BA74: - | BB74: - | BC74: - | BD74: 1 | BE74: 2 | BF74: - | BG74: 1 | BH74: 1 | BI74: 2 | BJ74: 3 | BK74: 3 | BL74: 4 | BM74: 1 | BN74: 1 | BO74: 66.4 | BP74: 66.4 | BQ74: 66.4 | BR74: 15 | BS74: - | BT74: - | BU74: - | BV74: - | BW74: - | BX74: - | BY74: - | BZ74: 2 | CA74: 1 | CB74: 1 | CC74: 4 | CD74: 2 | CE74: 3 | CF74: 1 | CG74: 1 | CH74: 15 | CI74: 1 | CJ74: 1 | CK74: - | CL74: - | CM74: - | CN74: 14 | CO74: 11 | CP74: 1 | CQ74: 1 | CR74: - | CS74: - | CT74: - | CU74: 10 | DC74: 49 | DD74: 35 | DE74: 19 | DF74: 16 | DG74: - | DH74: 2 | DI74: 12 | DK74: 15 | DL74: 15 | DM74: - | DN74: - | DO74: - | DP74: - | DQ74: - | DR74: - | DS74: - | DT74: - | DU74: - | DV74: - | DW74: - | DX74: - | DY74: - | DZ74: - | EA74: 15 | EB74: 5,309 | EC74: 5,233 | ED74: 76 | EE74: - | EF74: 20 | EG74: 19 | EH74: 12 | EI74: 7 | EJ74: - | EK74: 1 | EL74: - | EN74: 29 | EO74: 16 | EP74: 7 | EQ74: 9 | ER74: - | ES74: 1 | ET74: 12
A75: 茨城県 | B75: 龍ヶ崎市 | C75: 川原代村 | D75: 208-03 | E75: 50 | F75: 50 | G75: 5 | H75: 6 | I75: 39 | J75: - | K75: - | M75: 101 | N75: - | O75: 1 | P75: 1 | Q75: 2 | R75: 2 | S75: 1 | T75: 4 | U75: 1 | V75: 13 | W75: 16 | X75: 19 | Y75: 16 | Z75: 11 | AA75: 10 | AB75: 4 | AC75: 65.6 | AD75: 63.6 | AE75: 68.4 | AY75: 51 | AZ75: - | BA75: - | BB75: - | BC75: - | BD75: 1 | BE75: - | BF75: - | BG75: 1 | BH75: 1 | BI75: 7 | BJ75: 10 | BK75: 10 | BL75: 9 | BM75: 10 | BN75: 2 | BO75: 71.5 | BP75: 70.9 | BQ75: 72.5 | BR75: 50 | BS75: - | BT75: - | BU75: - | BV75: - | BW75: 1 | BX75: - | BY75: - | BZ75: - | CA75: 3 | CB75: 9 | CC75: 12 | CD75: 9 | CE75: 7 | CF75: 7 | CG75: 2 | CH75: 50 | CI75: 3 | CJ75: 3 | CK75: - | CL75: - | CM75: 1 | CN75: 46 | CO75: 37 | CP75: 1 | CQ75: 1 | CR75: - | CS75: - | CT75: 1 | CU75: 35 | DC75: 146 | DD75: 104 | DE75: 51 | DF75: 50 | DG75: 3 | DH75: 5 | DI75: 37 | DK75: 48 | DL75: 47 | DM75: - | DN75: - | DO75: - | DP75: 1 | DQ75: - | DR75: - | DS75: - | DT75: - | DU75: - | DV75: - | DW75: - | DX75: - | DY75: - | DZ75: - | EA75: 48 | EB75: 12,788 | EC75: 12,632 | ED75: 151 | EE75: 5 | EF75: 71 | EG75: 65 | EH75: 34 | EI75: 28 | EJ75: 3 | EK75: 2 | EL75: 4 | EN75: 75 | EO75: 39 | EP75: 17 | EQ75: 22 | ER75: - | ES75: 3 | ET75: 33
A76: 茨城県 | B76: 龍ヶ崎市 | C76: 馴柴村 | D76: 208-04 | E76: 58 | F76: 56 | G76: 5 | H76: 8 | I76: 43 | J76: 2 | K76: 2 | M76: 135 | N76: 1 | O76: - | P76: 2 | Q76: 2 | R76: 3 | S76: 8 | T76: 6 | U76: 8 | V76: 9 | W76: 12 | X76: 27 | Y76: 17 | Z76: 18 | AA76: 11 | AB76: 11 | AC76: 65.5 | AD76: 63.7 | AE76: 67.5 | AY76: 74 | AZ76: - | BA76: - | BB76: - | BC76: - | BD76: 2 | BE76: 3 | BF76: 1 | BG76: - | BH76: 2 | BI76: 7 | BJ76: 16 | BK76: 15 | BL76: 13 | BM76: 9 | BN76: 6 | BO76: 70.4 | BP76: 70.7 | BQ76: 70.1 | BR76: 56 | BS76: - | BT76: - | BU76: - | BV76: - | BW76: 1 | BX76: 1 | BY76: - | BZ76: 3 | CA76: 2 | CB76: 6 | CC76: 10 | CD76: 13 | CE76: 9 | CF76: 6 | CG76: 5 | CH76: 56 | CI76: 11 | CJ76: 11 | CK76: - | CL76: - | CM76: - | CN76: 45 | CO76: 43 | CP76: 9 | CQ76: 9 | CR76: - | CS76: - | CT76: - | CU76: 34 | DC76: 178 | DD76: 128 | DE76: 74 | DF76: 47 | DG76: 7 | DH76: 10 | DI76: 40 | DK76: 56 | DL76: 44 | DM76: - | DN76: 3 | DO76: - | DP76: 4 | DQ76: - | DR76: 2 | DS76: 3 | DT76: - | DU76: - | DV76: - | DW76: - | DX76: - | DY76: - | DZ76: - | EA76: 56 | EB76: 10,081 | EC76: 8,083 | ED76: 1,845 | EE76: 153 | EF76: 87 | EG76: 76 | EH76: 42 | EI76: 30 | EJ76: 4 | EK76: 6 | EL76: 5 | EN76: 91 | EO76: 52 | EP76: 32 | EQ76: 17 | ER76: 3 | ES76: 4 | ET76: 35
A77: 茨城県 | B77: 龍ヶ崎市 | C77: 八原村 | D77: 208-05 | E77: 92 | F77: 88 | G77: 16 | H77: 12 | I77: 60 | J77: 4 | K77: 4 | M77: 195 | N77: 1 | O77: 4 | P77: 6 | Q77: 2 | R77: 3 | S77: 8 | T77: 13 | U77: 12 | V77: 14 | W77: 24 | X77: 21 | Y77: 36 | Z77: 33 | AA77: 11 | AB77: 7 | AC77: 63.5 | AD77: 62.7 | AE77: 64.6 | AY77: 105 | AZ77: - | BA77: - | BB77: 1 | BC77: 1 | BD77: 1 | BE77: 4 | BF77: 4 | BG77: 5 | BH77: 1 | BI77: 8 | BJ77: 11 | BK77: 30 | BL77: 27 | BM77: 8 | BN77: 4 | BO77: 69.0 | BP77: 68.1 | BQ77: 70.8 | BR77: 88 | BS77: - | BT77: - | BU77: - | BV77: 1 | BW77: 1 | BX77: 2 | BY77: 2 | BZ77: 5 | CA77: 3 | CB77: 12 | CC77: 12 | CD77: 20 | CE77: 20 | CF77: 8 | CG77: 2 | CH77: 88 | CI77: 17 | CJ77: 17 | CK77: - | CL77: - | CM77: 1 | CN77: 70 | CO77: 62 | CP77: 13 | CQ77: 13 | CR77: - | CS77: - | CT77: - | CU77: 49 | DC77: 274 | DD77: 210 | DE77: 105 | DF77: 90 | DG77: 15 | DH77: 7 | DI77: 57 | DK77: 86 | DL77: 65 | DM77: - | DN77: 10 | DO77: - | DP77: 6 | DQ77: 1 | DR77: 2 | DS77: 2 | DT77: - | DU77: - | DV77: - | DW77: - | DX77: - | DY77: - | DZ77: - | EA77: 88 | EB77: 22,826 | EC77: 19,897 | ED77: 2,674 | EE77: 255 | EF77: 135 | EG77: 131 | EH77: 70 | EI77: 53 | EJ77: 8 | EK77: 1 | EL77: 3 | EN77: 139 | EO77: 79 | EP77: 35 | EQ77: 37 | ER77: 7 | ES77: 6 | ET77: 54
A78: 茨城県 | B78: 龍ヶ崎市 | C78: 北文間村 | D78: 208-06 | E78: 89 | F78: 89 | G78: 12 | H78: 12 | I78: 65 | J78: - | K78: - | M78: 194 | N78: - | O78: 3 | P78: 5 | Q78: 6 | R78: 5 | S78: 3 | T78: 12 | U78: 10 | V78: 15 | W78: 18 | X78: 47 | Y78: 27 | Z78: 15 | AA78: 18 | AB78: 10 | AC78: 63.9 | AD78: 61.8 | AE78: 66.6 | AY78: 91 | AZ78: - | BA78: - | BB78: 1 | BC78: 1 | BD78: 1 | BE78: 1 | BF78: 1 | BG78: 3 | BH78: 2 | BI78: 11 | BJ78: 26 | BK78: 16 | BL78: 12 | BM78: 10 | BN78: 6 | BO78: 69.4 | BP78: 68.3 | BQ78: 72.2 | BR78: 89 | BS78: - | BT78: - | BU78: - | BV78: 1 | BW78: - | BX78: - | BY78: 5 | BZ78: 7 | CA78: 7 | CB78: 13 | CC78: 21 | CD78: 14 | CE78: 9 | CF78: 8 | CG78: 4 | CH78: 89 | CI78: 9 | CJ78: 9 | CK78: - | CL78: - | CM78: 1 | CN78: 79 | CO78: 56 | CP78: 9 | CQ78: 9 | CR78: - | CS78: - | CT78: - | CU78: 47 | DC78: 258 | DD78: 182 | DE78: 91 | DF78: 82 | DG78: 9 | DH78: 6 | DI78: 70 | DK78: 89 | DL78: 86 | DM78: - | DN78: - | DO78: - | DP78: 1 | DQ78: 1 | DR78: - | DS78: 1 | DT78: - | DU78: - | DV78: - | DW78: - | DX78: - | DY78: - | DZ78: - | EA78: 87 | EB78: 26,426 | EC78: 26,021 | ED78: 405 | EE78: - | EF78: 137 | EG78: 123 | EH78: 65 | EI78: 52 | EJ78: 6 | EK78: 4 | EL78: 10 | EN78: 121 | EO78: 59 | EP78: 26 | EQ78: 30 | ER78: 3 | ES78: 2 | ET78: 60
A79: 茨城県 | B79: 龍ヶ崎市 | C79: 大宮村 | D79: 208-07 | E79: 93 | F79: 91 | G79: 18 | H79: 11 | I79: 62 | J79: 2 | K79: 2 | M79: 215 | N79: - | O79: 5 | P79: 4 | Q79: 2 | R79: 7 | S79: 12 | T79: 13 | U79: 15 | V79: 11 | W79: 21 | X79: 41 | Y79: 35 | Z79: 25 | AA79: 11 | AB79: 13 | AC79: 63.2 | AD79: 61.9 | AE79: 65.0 | AY79: 132 | AZ79: - | BA79: 1 | BB79: 1 | BC79: - | BD79: 1 | BE79: 5 | BF79: 4 | BG79: 6 | BH79: 6 | BI79: 9 | BJ79: 30 | BK79: 32 | BL79: 21 | BM79: 9 | BN79: 7 | BO79: 67.9 | BP79: 67.1 | BQ79: 69.6 | BR79: 91 | BS79: - | BT79: - | BU79: - | BV79: - | BW79: - | BX79: 1 | BY79: 2 | BZ79: 5 | CA79: 7 | CB79: 9 | CC79: 25 | CD79: 20 | CE79: 13 | CF79: 4 | CG79: 5 | CH79: 91 | CI79: 11 | CJ79: 11 | CK79: - | CL79: - | CM79: 1 | CN79: 79 | CO79: 67 | CP79: 10 | CQ79: 10 | CR79: - | CS79: - | CT79: 1 | CU79: 56 | DC79: 293 | DD79: 221 | DE79: 132 | DF79: 81 | DG79: 8 | DH79: 14 | DI79: 58 | DK79: 91 | DL79: 78 | DM79: - | DN79: - | DO79: - | DP79: 4 | DQ79: 8 | DR79: - | DS79: 1 | DT79: - | DU79: - | DV79: - | DW79: - | DX79: - | DY79: - | DZ79: - | EA79: 91 | EB79: 51,907 | EC79: 50,864 | ED79: 1,014 | EE79: 29 | EF79: 155 | EG79: 138 | EH79: 87 | EI79: 45 | EJ79: 6 | EK79: 7 | EL79: 10 | EN79: 138 | EO79: 83 | EP79: 45 | EQ79: 36 | ER79: 2 | ES79: 7 | ET79: 48
A80: 茨城県 | B80: 龍ヶ崎市 | C80: 高須村2-2 | D80: 208-08 | E80: 17 | F80: 17 | G80: 2 | H80: 1 | I80: 14 | J80: - | K80: - | M80: 39 | N80: - | O80: 1 | P80: 1 | Q80: 1 | R80: - | S80: 1 | T80: 3 | U80: 1 | V80: 5 | W80: 4 | X80: 6 | Y80: 6 | Z80: 4 | AA80: 2 | AB80: 4 | AC80: 64.4 | AD80: 62.5 | AE80: 67.4 | AY80: 20 | AZ80: - | BA80: - | BB80: - | BC80: - | BD80: - | BE80: 1 | BF80: 1 | BG80: - | BH80: 1 | BI80: - | BJ80: 5 | BK80: 5 | BL80: 4 | BM80: 1 | BN80: 2 | BO80: 70.3 | BP80: 70.8 | BQ80: 69.6 | BR80: 17 | BS80: - | BT80: - | BU80: - | BV80: - | BW80: - | BX80: - | BY80: - | BZ80: - | CA80: 1 | CB80: 2 | CC80: 3 | CD80: 2 | CE80: 4 | CF80: 2 | CG80: 3 | CH80: 17 | CI80: 4 | CJ80: 4 | CK80: - | CL80: - | CM80: - | CN80: 13 | CO80: 14 | CP80: 3 | CQ80: 3 | CR80: - | CS80: - | CT80: - | CU80: 11 | DC80: 51 | DD80: 42 | DE80: 20 | DF80: 22 | DG80: - | DH80: 1 | DI80: 8 | DK80: 17 | DL80: 16 | DM80: - | DN80: - | DO80: - | DP80: - | DQ80: 1 | DR80: - | DS80: - | DT80: - | DU80: - | DV80: - | DW80: - | DX80: - | DY80: - | DZ80: - | EA80: 17 | EB80: 3,660 | EC80: 3,606 | ED80: 54 | EE80: - | EF80: 28 | EG80: 26 | EH80: 11 | EI80: 15 | EJ80: - | EK80: 1 | EL80: 1 | EN80: 23 | EO80: 16 | EP80: 9 | EQ80: 7 | ER80: - | ES80: - | ET80: 7
A81: 茨城県 | B81: 下妻市 | D81: 210-00 | E81: 988 | F81: 961 | G81: 181 | H81: 109 | I81: 671 | J81: 27 | K81: 23 | M81: 2,299 | N81: 19 | O81: 31 | P81: 40 | Q81: 76 | R81: 89 | S81: 124 | T81: 149 | U81: 129 | V81: 184 | W81: 255 | X81: 417 | Y81: 351 | Z81: 245 | AA81: 123 | AB81: 67 | AC81: 61.4 | AD81: 60.8 | AE81: 62.1 | AY81: 1,127 | AZ81: 2 | BA81: 5 | BB81: 11 | BC81: 15 | BD81: 26 | BE81: 19 | BF81: 50 | BG81: 27 | BH81: 46 | BI81: 115 | BJ81: 261 | BK81: 248 | BL81: 182 | BM81: 92 | BN81: 28 | BO81: 67.0 | BP81: 66.9 | BQ81: 67.2 | BR81: 961 | BS81: - | BT81: 1 | BU81: 3 | BV81: 4 | BW81: 7 | BX81: 12 | BY81: 38 | BZ81: 41 | CA81: 80 | CB81: 134 | CC81: 229 | CD81: 197 | CE81: 134 | CF81: 60 | CG81: 21 | CH81: 961 | CI81: 202 | CJ81: 201 | CK81: 1 | CL81: - | CM81: 32 | CN81: 727 | CO81: 641 | CP81: 162 | CQ81: 161 | CR81: 1 | CS81: - | CT81: 6 | CU81: 473 | DC81: 3,354 | DD81: 2,452 | DE81: 1,127 | DF81: 1,185 | DG81: 140 | DH81: 162 | DI81: 740 | DK81: 917 | DL81: 663 | DM81: - | DN81: 5 | DO81: - | DP81: 63 | DQ81: 25 | DR81: 130 | DS81: 3 | DT81: 9 | DU81: 1 | DV81: 5 | DW81: 12 | DX81: 1 | DY81: - | DZ81: - | EA81: 953 | EB81: 255,617 | EC81: 192,083 | ED81: 51,594 | EE81: 11,940 | EF81: 1,725 | EG81: 1,488 | EH81: 721 | EI81: 668 | EJ81: 99 | EK81: 80 | EL81: 157 | EN81: 1,629 | EO81: 964 | EP81: 406 | EQ81: 517 | ER81: 41 | ES81: 82 | ET81: 583
A82: 茨城県 | B82: 下妻市 | C82: 下妻町 | D82: 210-01 | E82: 32 | F82: 27 | G82: 3 | H82: 2 | I82: 22 | J82: 5 | K82: 3 | M82: 56 | N82: - | O82: 3 | P82: - | Q82: - | R82: - | S82: 3 | T82: 1 | U82: 5 | V82: 2 | W82: 6 | X82: 8 | Y82: 14 | Z82: 11 | AA82: 2 | AB82: 1 | AC82: 65.0 | AD82: 65.3 | AE82: 64.5 | AY82: 26 | AZ82: - | BA82: - | BB82: - | BC82: - | BD82: - | BE82: 1 | BF82: - | BG82: - | BH82: - | BI82: 3 | BJ82: 3 | BK82: 8 | BL82: 8 | BM82: 2 | BN82: 1 | BO82: 72.0 | BP82: 72.5 | BQ82: 71.4 | BR82: 27 | BS82: - | BT82: - | BU82: - | BV82: - | BW82: - | BX82: 1 | BY82: - | BZ82: 2 | CA82: 2 | CB82: 2 | CC82: 4 | CD82: 8 | CE82: 5 | CF82: 2 | CG82: 1 | CH82: 27 | CI82: 5 | CJ82: 5 | CK82: - | CL82: - | CM82: - | CN82: 22 | CO82: 20 | CP82: 4 | CQ82: 4 | CR82: - | CS82: - | CT82: - | CU82: 16 | DC82: 76 | DD82: 56 | DE82: 26 | DF82: 25 | DG82: 5 | DH82: - | DI82: 20 | DK82: 25 | DL82: 21 | DM82: - | DN82: 1 | DO82: - | DP82: 1 | DQ82: - | DR82: - | DS82: - | DT82: - | DU82: 1 | DV82: 1 | DW82: - | DX82: - | DY82: - | DZ82: - | EA82: 26 | EB82: 10,472 | EC82: 8,355 | ED82: 2,117 | EE82: - | EF82: 39 | EG82: 35 | EH82: 15 | EI82: 15 | EJ82: 5 | EK82: - | EL82: 4 | EN82: 37 | EO82: 21 | EP82: 11 | EQ82: 10 | ER82: - | ES82: - | ET82: 16
A83: 茨城県 | B83: 下妻市 | C83: 大宝村 | D83: 210-02 | E83: 102 | F83: 100 | G83: 18 | H83: 7 | I83: 75 | J83: 2 | K83: 2 | M83: 256 | N83: 5 | O83: 3 | P83: 7 | Q83: 10 | R83: 9 | S83: 11 | T83: 18 | U83: 7 | V83: 20 | W83: 41 | X83: 56 | Y83: 29 | Z83: 18 | AA83: 13 | AB83: 9 | AC83: 60.4 | AD83: 60.0 | AE83: 60.9 | AY83: 99 | AZ83: - | BA83: - | BB83: - | BC83: 2 | BD83: - | BE83: - | BF83: 7 | BG83: 1 | BH83: 3 | BI83: 13 | BJ83: 33 | BK83: 15 | BL83: 14 | BM83: 9 | BN83: 2 | BO83: 67.7 | BP83: 67.0 | BQ83: 69.4 | BR83: 100 | BS83: - | BT83: - | BU83: - | BV83: - | BW83: - | BX83: - | BY83: 2 | BZ83: 1 | CA83: 6 | CB83: 23 | CC83: 30 | CD83: 20 | CE83: 12 | CF83: 4 | CG83: 2 | CH83: 100 | CI83: 16 | CJ83: 16 | CK83: - | CL83: - | CM83: 2 | CN83: 82 | CO83: 68 | CP83: 14 | CQ83: 14 | CR83: - | CS83: - | CT83: - | CU83: 54 | DC83: 358 | DD83: 247 | DE83: 99 | DF83: 132 | DG83: 16 | DH83: 25 | DI83: 86 | DK83: 95 | DL83: 74 | DM83: - | DN83: - | DO83: - | DP83: 1 | DQ83: 2 | DR83: 18 | DS83: - | DT83: - | DU83: - | DV83: - | DW83: - | DX83: - | DY83: - | DZ83: - | EA83: 100 | EB83: 31,632 | EC83: 26,240 | ED83: 4,055 | EE83: 1,337 | EF83: 183 | EG83: 151 | EH83: 67 | EI83: 72 | EJ83: 12 | EK83: 10 | EL83: 22 | EN83: 175 | EO83: 96 | EP83: 32 | EQ83: 60 | ER83: 4 | ES83: 15 | ET83: 64
A84: 茨城県 | B84: 下妻市 | C84: 騰波ﾉ江村 | D84: 210-03 | E84: 111 | F84: 109 | G84: 31 | H84: 10 | I84: 68 | J84: 2 | K84: 2 | M84: 283 | N84: 4 | O84: 5 | P84: 2 | Q84: 13 | R84: 9 | S84: 22 | T84: 18 | U84: 17 | V84: 17 | W84: 27 | X84: 49 | Y84: 43 | Z84: 34 | AA84: 13 | AB84: 10 | AC84: 60.9 | AD84: 61.3 | AE84: 60.3 | AY84: 166 | AZ84: 1 | BA84: 1 | BB84: - | BC84: 5 | BD84: 1 | BE84: 4 | BF84: 6 | BG84: 7 | BH84: 6 | BI84: 21 | BJ84: 35 | BK84: 35 | BL84: 32 | BM84: 7 | BN84: 5 | BO84: 66.4 | BP84: 66.4 | BQ84: 66.4 | BR84: 109 | BS84: - | BT84: - | BU84: - | BV84: 2 | BW84: - | BX84: 3 | BY84: 6 | BZ84: 3 | CA84: 7 | CB84: 13 | CC84: 27 | CD84: 22 | CE84: 18 | CF84: 4 | CG84: 4 | CH84: 109 | CI84: 13 | CJ84: 13 | CK84: - | CL84: - | CM84: 3 | CN84: 93 | CO84: 75 | CP84: 12 | CQ84: 12 | CR84: - | CS84: - | CT84: 2 | CU84: 61 | DC84: 412 | DD84: 309 | DE84: 166 | DF84: 134 | DG84: 9 | DH84: 22 | DI84: 81 | DK84: 104 | DL84: 43 | DM84: - | DN84: 2 | DO84: - | DP84: 3 | DQ84: - | DR84: 50 | DS84: - | DT84: - | DU84: - | DV84: - | DW84: 6 | DX84: - | DY84: - | DZ84: - | EA84: 106 | EB84: 23,703 | EC84: 18,053 | ED84: 896 | EE84: 4,754 | EF84: 202 | EG84: 176 | EH84: 99 | EI84: 72 | EJ84: 5 | EK84: 10 | EL84: 16 | EN84: 210 | EO84: 133 | EP84: 67 | EQ84: 62 | ER84: 4 | ES84: 12 | ET84: 65
A85: 茨城県 | B85: 下妻市 | C85: 上妻村 | D85: 210-04 | E85: 192 | F85: 188 | G85: 45 | H85: 19 | I85: 124 | J85: 4 | K85: 4 | M85: 420 | N85: 1 | O85: 5 | P85: 9 | Q85: 9 | R85: 15 | S85: 29 | T85: 26 | U85: 19 | V85: 34 | W85: 42 | X85: 97 | Y85: 58 | Z85: 40 | AA85: 32 | AB85: 4 | AC85: 61.7 | AD85: 61.6 | AE85: 61.7 | AY85: 252 | AZ85: - | BA85: - | BB85: 2 | BC85: 3 | BD85: 10 | BE85: 8 | BF85: 8 | BG85: 4 | BH85: 12 | BI85: 26 | BJ85: 70 | BK85: 47 | BL85: 31 | BM85: 29 | BN85: 2 | BO85: 66.6 | BP85: 66.6 | BQ85: 66.5 | BR85: 188 | BS85: - | BT85: - | BU85: 1 | BV85: 2 | BW85: 2 | BX85: 3 | BY85: 9 | BZ85: 6 | CA85: 14 | CB85: 21 | CC85: 56 | CD85: 30 | CE85: 24 | CF85: 19 | CG85: 1 | CH85: 188 | CI85: 35 | CJ85: 34 | CK85: 1 | CL85: - | CM85: 8 | CN85: 145 | CO85: 130 | CP85: 31 | CQ85: 30 | CR85: 1 | CS85: - | CT85: 1 | CU85: 98 | DC85: 618 | DD85: 485 | DE85: 252 | DF85: 209 | DG85: 24 | DH85: 24 | DI85: 109 | DK85: 179 | DL85: 96 | DM85: - | DN85: 1 | DO85: - | DP85: 13 | DQ85: 2 | DR85: 58 | DS85: - | DT85: 2 | DU85: - | DV85: 2 | DW85: 5 | DX85: - | DY85: - | DZ85: - | EA85: 184 | EB85: 41,045 | EC85: 27,751 | ED85: 7,617 | EE85: 5,677 | EF85: 311 | EG85: 282 | EH85: 158 | EI85: 109 | EJ85: 15 | EK85: 11 | EL85: 18 | EN85: 307 | EO85: 203 | EP85: 94 | EQ85: 100 | ER85: 9 | ES85: 13 | ET85: 91
A86: 茨城県 | B86: 下妻市 | C86: 総上村 | D86: 210-05 | E86: 66 | F86: 62 | G86: 10 | H86: 7 | I86: 45 | J86: 4 | K86: 3 | M86: 136 | N86: 1 | O86: - | P86: 2 | Q86: - | R86: 6 | S86: 6 | T86: 8 | U86: 5 | V86: 11 | W86: 12 | X86: 32 | Y86: 23 | Z86: 19 | AA86: 10 | AB86: 1 | AC86: 64.2 | AD86: 63.3 | AE86: 65.5 | AY86: 72 | AZ86: 1 | BA86: - | BB86: - | BC86: - | BD86: 2 | BE86: - | BF86: 2 | BG86: 1 | BH86: 2 | BI86: 5 | BJ86: 18 | BK86: 17 | BL86: 16 | BM86: 7 | BN86: 1 | BO86: 69.1 | BP86: 68.6 | BQ86: 70.2 | BR86: 62 | BS86: - | BT86: - | BU86: - | BV86: - | BW86: 2 | BX86: 1 | BY86: 1 | BZ86: 4 | CA86: 6 | CB86: 5 | CC86: 18 | CD86: 12 | CE86: 8 | CF86: 5 | CG86: - | CH86: 62 | CI86: 11 | CJ86: 11 | CK86: - | CL86: - | CM86: 3 | CN86: 48 | CO86: 43 | CP86: 9 | CQ86: 9 | CR86: - | CS86: - | CT86: 1 | CU86: 33 | DC86: 216 | DD86: 165 | DE86: 72 | DF86: 82 | DG86: 11 | DH86: 9 | DI86: 42 | DK86: 61 | DL86: 55 | DM86: - | DN86: - | DO86: - | DP86: 3 | DQ86: - | DR86: - | DS86: 3 | DT86: - | DU86: - | DV86: - | DW86: - | DX86: - | DY86: - | DZ86: - | EA86: 62 | EB86: 10,998 | EC86: 10,020 | ED86: 978 | EE86: - | EF86: 117 | EG86: 104 | EH86: 47 | EI86: 48 | EJ86: 9 | EK86: 4 | EL86: 9 | EN86: 99 | EO86: 61 | EP86: 25 | EQ86: 34 | ER86: 2 | ES86: 5 | ET86: 33
A87: 茨城県 | B87: 下妻市 | C87: 豊加美村 | D87: 210-06 | E87: 141 | F87: 137 | G87: 14 | H87: 10 | I87: 113 | J87: 4 | K87: 4 | M87: 323 | N87: 2 | O87: 2 | P87: - | Q87: 9 | R87: 15 | S87: 23 | T87: 20 | U87: 20 | V87: 26 | W87: 37 | X87: 54 | Y87: 58 | Z87: 34 | AA87: 13 | AB87: 10 | AC87: 61.8 | AD87: 60.2 | AE87: 64.4 | AY87: 129 | AZ87: - | BA87: - | BB87: - | BC87: 1 | BD87: 4 | BE87: 3 | BF87: 3 | BG87: 3 | BH87: 5 | BI87: 8 | BJ87: 32 | BK87: 37 | BL87: 20 | BM87: 10 | BN87: 3 | BO87: 68.3 | BP87: 69.2 | BQ87: 66.4 | BR87: 137 | BS87: - | BT87: - | BU87: - | BV87: - | BW87: - | BX87: 2 | BY87: 4 | BZ87: 7 | CA87: 12 | CB87: 20 | CC87: 29 | CD87: 34 | CE87: 18 | CF87: 8 | CG87: 3 | CH87: 137 | CI87: 44 | CJ87: 44 | CK87: - | CL87: - | CM87: 3 | CN87: 90 | CO87: 92 | CP87: 37 | CQ87: 37 | CR87: - | CS87: - | CT87: 2 | CU87: 53 | DC87: 467 | DD87: 314 | DE87: 129 | DF87: 163 | DG87: 22 | DH87: 22 | DI87: 131 | DK87: 132 | DL87: 118 | DM87: - | DN87: - | DO87: - | DP87: 8 | DQ87: 2 | DR87: 2 | DS87: - | DT87: 1 | DU87: - | DV87: - | DW87: 1 | DX87: - | DY87: - | DZ87: - | EA87: 137 | EB87: 34,975 | EC87: 25,936 | ED87: 9,033 | EE87: 6 | EF87: 239 | EG87: 207 | EH87: 88 | EI87: 105 | EJ87: 14 | EK87: 12 | EL87: 20 | EN87: 228 | EO87: 107 | EP87: 41 | EQ87: 58 | ER87: 8 | ES87: 10 | ET87: 111
A88: 茨城県 | B88: 下妻市 | C88: 高道祖村 | D88: 210-07 | E88: 75 | F88: 74 | G88: 10 | H88: 12 | I88: 52 | J88: 1 | K88: - | M88: 172 | N88: 3 | O88: 1 | P88: 1 | Q88: 7 | R88: 1 | S88: 5 | T88: 13 | U88: 16 | V88: 12 | W88: 16 | X88: 21 | Y88: 35 | Z88: 23 | AA88: 11 | AB88: 7 | AC88: 63.6 | AD88: 63.6 | AE88: 63.7 | AY88: 76 | AZ88: - | BA88: - | BB88: - | BC88: 1 | BD88: - | BE88: - | BF88: 5 | BG88: 3 | BH88: 1 | BI88: 6 | BJ88: 12 | BK88: 23 | BL88: 14 | BM88: 7 | BN88: 4 | BO88: 70.0 | BP88: 70.6 | BQ88: 68.8 | BR88: 74 | BS88: - | BT88: - | BU88: - | BV88: - | BW88: - | BX88: - | BY88: 2 | BZ88: 7 | CA88: 5 | CB88: 8 | CC88: 8 | CD88: 19 | CE88: 14 | CF88: 7 | CG88: 4 | CH88: 74 | CI88: 23 | CJ88: 23 | CK88: - | CL88: - | CM88: - | CN88: 51 | CO88: 52 | CP88: 17 | CQ88: 17 | CR88: - | CS88: - | CT88: - | CU88: 35 | DC88: 262 | DD88: 174 | DE88: 76 | DF88: 87 | DG88: 11 | DH88: 15 | DI88: 73 | DK88: 70 | DL88: 59 | DM88: - | DN88: 1 | DO88: - | DP88: 3 | DQ88: - | DR88: 2 | DS88: - | DT88: 5 | DU88: - | DV88: - | DW88: - | DX88: - | DY88: - | DZ88: - | EA88: 74 | EB88: 26,488 | EC88: 22,700 | ED88: 3,632 | EE88: 156 | EF88: 133 | EG88: 107 | EH88: 51 | EI88: 49 | EJ88: 7 | EK88: 9 | EL88: 17 | EN88: 129 | EO88: 67 | EP88: 25 | EQ88: 38 | ER88: 4 | ES88: 6 | ET88: 56
A89: 茨城県 | B89: 下妻市 | C89: 大形村 | D89: 210-08 | E89: 109 | F89: 106 | G89: 30 | H89: 13 | I89: 63 | J89: 3 | K89: 3 | M89: 266 | N89: 1 | O89: 7 | P89: 10 | Q89: 8 | R89: 17 | S89: 12 | T89: 15 | U89: 17 | V89: 30 | W89: 27 | X89: 33 | Y89: 40 | Z89: 24 | AA89: 14 | AB89: 11 | AC89: 59.5 | AD89: 58.2 | AE89: 61.4 | AY89: 151 | AZ89: - | BA89: 4 | BB89: 6 | BC89: 2 | BD89: 8 | BE89: 2 | BF89: 14 | BG89: 5 | BH89: 11 | BI89: 13 | BJ89: 18 | BK89: 31 | BL89: 20 | BM89: 12 | BN89: 5 | BO89: 62.4 | BP89: 61.0 | BQ89: 64.4 | BR89: 106 | BS89: - | BT89: 1 | BU89: 1 | BV89: - | BW89: 3 | BX89: - | BY89: 7 | BZ89: 3 | CA89: 12 | CB89: 15 | CC89: 17 | CD89: 25 | CE89: 12 | CF89: 6 | CG89: 4 | CH89: 106 | CI89: 24 | CJ89: 24 | CK89: - | CL89: - | CM89: 9 | CN89: 73 | CO89: 64 | CP89: 18 | CQ89: 18 | CR89: - | CS89: - | CT89: - | CU89: 46 | DC89: 389 | DD89: 287 | DE89: 151 | DF89: 127 | DG89: 9 | DH89: 20 | DI89: 82 | DK89: 103 | DL89: 61 | DM89: - | DN89: - | DO89: - | DP89: 28 | DQ89: 13 | DR89: - | DS89: - | DT89: - | DU89: - | DV89: - | DW89: - | DX89: 1 | DY89: - | DZ89: - | EA89: 106 | EB89: 19,895 | EC89: 10,016 | ED89: 9,869 | EE89: 10 | EF89: 201 | EG89: 171 | EH89: 90 | EI89: 72 | EJ89: 9 | EK89: 10 | EL89: 20 | EN89: 188 | EO89: 116 | EP89: 61 | EQ89: 55 | ER89: - | ES89: 10 | ET89: 62
A90: 茨城県 | B90: 下妻市 | C90: 蚕飼村 | D90: 210-09 | E90: 55 | F90: 55 | G90: 7 | H90: 8 | I90: 40 | J90: - | K90: - | M90: 133 | N90: - | O90: 2 | P90: 1 | Q90: 5 | R90: 6 | S90: 4 | T90: 12 | U90: 6 | V90: 12 | W90: 17 | X90: 26 | Y90: 15 | Z90: 17 | AA90: 5 | AB90: 5 | AC90: 61.7 | AD90: 60.9 | AE90: 63.1 | AY90: 54 | AZ90: - | BA90: - | BB90: - | BC90: 1 | BD90: 1 | BE90: - | BF90: 2 | BG90: 2 | BH90: 1 | BI90: 6 | BJ90: 13 | BK90: 10 | BL90: 12 | BM90: 3 | BN90: 3 | BO90: 68.9 | BP90: 67.5 | BQ90: 71.6 | BR90: 55 | BS90: - | BT90: - | BU90: - | BV90: - | BW90: - | BX90: - | BY90: 4 | BZ90: 4 | CA90: 6 | CB90: 10 | CC90: 15 | CD90: 8 | CE90: 7 | CF90: 1 | CG90: - | CH90: 55 | CI90: 14 | CJ90: 14 | CK90: - | CL90: - | CM90: 3 | CN90: 38 | CO90: 31 | CP90: 9 | CQ90: 9 | CR90: - | CS90: - | CT90: - | CU90: 22 | DC90: 187 | DD90: 139 | DE90: 54 | DF90: 74 | DG90: 11 | DH90: 6 | DI90: 42 | DK90: 52 | DL90: 50 | DM90: - | DN90: - | DO90: - | DP90: 1 | DQ90: - | DR90: - | DS90: - | DT90: 1 | DU90: - | DV90: - | DW90: - | DX90: - | DY90: - | DZ90: - | EA90: 55 | EB90: 22,630 | EC90: 13,773 | ED90: 8,857 | EE90: - | EF90: 98 | EG90: 86 | EH90: 36 | EI90: 43 | EJ90: 7 | EK90: 2 | EL90: 10 | EN90: 89 | EO90: 53 | EP90: 18 | EQ90: 31 | ER90: 4 | ES90: 4 | ET90: 32
A91: 茨城県 | B91: 下妻市 | C91: 玉村2-1 | D91: 210-10 | E91: 36 | F91: 36 | G91: 6 | H91: 11 | I91: 19 | J91: - | K91: - | M91: 98 | N91: 2 | O91: 2 | P91: 5 | Q91: 4 | R91: 4 | S91: 2 | T91: 8 | U91: 8 | V91: 11 | W91: 8 | X91: 14 | Y91: 16 | Z91: 7 | AA91: 5 | AB91: 2 | AC91: 58.1 | AD91: 58.0 | AE91: 58.3 | AY91: 41 | AZ91: - | BA91: - | BB91: 2 | BC91: - | BD91: - | BE91: - | BF91: 1 | BG91: 1 | BH91: 3 | BI91: 4 | BJ91: 10 | BK91: 12 | BL91: 5 | BM91: 3 | BN91: - | BO91: 66.8 | BP91: 67.6 | BQ91: 65.4 | BR91: 36 | BS91: - | BT91: - | BU91: - | BV91: - | BW91: - | BX91: - | BY91: 1 | BZ91: 1 | CA91: 5 | CB91: 6 | CC91: 9 | CD91: 7 | CE91: 6 | CF91: 1 | CG91: - | CH91: 36 | CI91: 11 | CJ91: 11 | CK91: - | CL91: - | CM91: - | CN91: 25 | CO91: 23 | CP91: 7 | CQ91: 7 | CR91: - | CS91: - | CT91: - | CU91: 16 | DC91: 140 | DD91: 107 | DE91: 41 | DF91: 51 | DG91: 15 | DH91: 11 | DI91: 22 | DK91: 34 | DL91: 29 | DM91: - | DN91: - | DO91: - | DP91: - | DQ91: 4 | DR91: - | DS91: - | DT91: - | DU91: - | DV91: 1 | DW91: - | DX91: - | DY91: - | DZ91: - | EA91: 36 | EB91: 11,863 | EC91: 11,566 | ED91: 297 | EE91: - | EF91: 75 | EG91: 64 | EH91: 27 | EI91: 27 | EJ91: 10 | EK91: 6 | EL91: 5 | EN91: 65 | EO91: 43 | EP91: 14 | EQ91: 24 | ER91: 5 | ES91: 5 | ET91: 17
A92: 茨城県 | B92: 下妻市 | C92: 宗道村 | D92: 210-11 | E92: 69 | F92: 67 | G92: 7 | H92: 10 | I92: 50 | J92: 2 | K92: 2 | M92: 156 | N92: - | O92: 1 | P92: 3 | Q92: 11 | R92: 7 | S92: 7 | T92: 10 | U92: 9 | V92: 9 | W92: 22 | X92: 27 | Y92: 20 | Z92: 18 | AA92: 5 | AB92: 7 | AC92: 60.7 | AD92: 60.0 | AE92: 61.8 | AY92: 61 | AZ92: - | BA92: - | BB92: 1 | BC92: - | BD92: - | BE92: 1 | BF92: 2 | BG92: - | BH92: 2 | BI92: 10 | BJ92: 17 | BK92: 13 | BL92: 10 | BM92: 3 | BN92: 2 | BO92: 68.3 | BP92: 67.6 | BQ92: 70.1 | BR92: 67 | BS92: - | BT92: - | BU92: 1 | BV92: - | BW92: - | BX92: 2 | BY92: 2 | BZ92: 3 | CA92: 5 | CB92: 11 | CC92: 16 | CD92: 12 | CE92: 10 | CF92: 3 | CG92: 2 | CH92: 67 | CI92: 6 | CJ92: 6 | CK92: - | CL92: - | CM92: 1 | CN92: 60 | CO92: 43 | CP92: 4 | CQ92: 4 | CR92: - | CS92: - | CT92: - | CU92: 39 | DC92: 229 | DD92: 169 | DE92: 61 | DF92: 101 | DG92: 7 | DH92: 8 | DI92: 52 | DK92: 62 | DL92: 57 | DM92: - | DN92: - | DO92: - | DP92: 2 | DQ92: 2 | DR92: - | DS92: - | DT92: - | DU92: - | DV92: 1 | DW92: - | DX92: - | DY92: - | DZ92: - | EA92: 67 | EB92: 21,916 | EC92: 17,673 | ED92: 4,243 | EE92: - | EF92: 127 | EG92: 105 | EH92: 43 | EI92: 56 | EJ92: 6 | EK92: 6 | EL92: 16 | EN92: 102 | EO92: 64 | EP92: 18 | EQ92: 45 | ER92: 1 | ES92: 2 | ET92: 36
A93: 茨城県 | B93: 常総市 | D93: 211-00 | E93: 1,447 | F93: 1,419 | G93: 204 | H93: 135 | I93: 1,080 | J93: 28 | K93: 26 | M93: 3,545 | N93: 29 | O93: 56 | P93: 85 | Q93: 101 | R93: 147 | S93: 196 | T93: 218 | U93: 209 | V93: 240 | W93: 406 | X93: 635 | Y93: 536 | Z93: 358 | AA93: 211 | AB93: 118 | AC93: 61.3 | AD93: 60.1 | AE93: 63.0 | AY93: 1,639 | AZ93: 1 | BA93: 3 | BB93: 8 | BC93: 16 | BD93: 21 | BE93: 44 | BF93: 44 | BG93: 42 | BH93: 59 | BI93: 124 | BJ93: 372 | BK93: 393 | BL93: 283 | BM93: 151 | BN93: 78 | BO93: 68.9 | BP93: 68.6 | BQ93: 69.5 | BR93: 1,419 | BS93: - | BT93: - | BU93: 2 | BV93: 3 | BW93: 6 | BX93: 22 | BY93: 48 | BZ93: 68 | CA93: 102 | CB93: 203 | CC93: 317 | CD93: 323 | CE93: 184 | CF93: 106 | CG93: 35 | CH93: 1 419 | CI93: 343 | CJ93: 341 | CK93: 1 | CL93: 1 | CM93: 35 | CN93: 1 041 | CO93: 965 | CP93: 258 | CQ93: 257 | CR93: - | CS93: 1 | CT93: 12 | CU93: 695 | DC93: 5,076 | DD93: 3,878 | DE93: 1,639 | DF93: 1,979 | DG93: 260 | DH93: 299 | DI93: 899 | DK93: 1,322 | DL93: 1,103 | DM93: 1 | DN93: - | DO93: 5 | DP93: 106 | DQ93: 59 | DR93: 12 | DS93: 14 | DT93: 4 | DU93: 12 | DV93: 4 | DW93: 2 | DX93: - | DY93: - | DZ93: - | EA93: 1,417 | EB93: 403,664 | EC93: 301,625 | ED93: 100,329 | EE93: 1,710 | EF93: 2,579 | EG93: 2,299 | EH93: 1,007 | EI93: 1,098 | EJ93: 194 | EK93: 150 | EL93: 130 | EN93: 2,497 | EO93: 1,579 | EP93: 632 | EQ93: 881 | ER93: 66 | ES93: 149 | ET93: 769
A94: 茨城県 | B94: 常総市 | C94: 水海道町 | D94: 211-01 | E94: 38 | F94: 38 | G94: 5 | H94: 3 | I94: 30 | J94: - | K94: - | M94: 89 | N94: 3 | O94: 1 | P94: 3 | Q94: 2 | R94: 3 | S94: 6 | T94: 5 | U94: 10 | V94: 3 | W94: 7 | X94: 9 | Y94: 11 | Z94: 15 | AA94: 5 | AB94: 6 | AC94: 61.0 | AD94: 59.1 | AE94: 63.8 | AY94: 40 | AZ94: - | BA94: - | BB94: - | BC94: - | BD94: - | BE94: - | BF94: - | BG94: 2 | BH94: - | BI94: 5 | BJ94: 5 | BK94: 9 | BL94: 11 | BM94: 4 | BN94: 4 | BO94: 73.4 | BP94: 73.9 | BQ94: 72.5 | BR94: 38 | BS94: - | BT94: - | BU94: - | BV94: - | BW94: - | BX94: - | BY94: 2 | BZ94: 4 | CA94: 2 | CB94: 4 | CC94: 5 | CD94: 5 | CE94: 10 | CF94: 3 | CG94: 3 | CH94: 38 | CI94: 3 | CJ94: 3 | CK94: - | CL94: - | CM94: 1 | CN94: 34 | CO94: 26 | CP94: 2 | CQ94: 2 | CR94: - | CS94: - | CT94: - | CU94: 24 | DC94: 131 | DD94: 104 | DE94: 40 | DF94: 53 | DG94: 11 | DH94: 6 | DI94: 21 | DK94: 33 | DL94: 28 | DM94: - | DN94: - | DO94: - | DP94: 2 | DQ94: - | DR94: 1 | DS94: 1 | DT94: - | DU94: 1 | DV94: - | DW94: - | DX94: - | DY94: - | DZ94: - | EA94: 38 | EB94: 5,531 | EC94: 4,665 | ED94: 784 | EE94: 82 | EF94: 68 | EG94: 63 | EH94: 24 | EI94: 29 | EJ94: 10 | EK94: 3 | EL94: 2 | EN94: 63 | EO94: 41 | EP94: 16 | EQ94: 24 | ER94: 1 | ES94: 3 | ET94: 19
A95: 茨城県 | B95: 常総市 | C95: 坂手村 | D95: 211-02 | E95: 63 | F95: 60 | G95: 4 | H95: 6 | I95: 50 | J95: 3 | K95: 3 | M95: 136 | N95: 1 | O95: 2 | P95: 1 | Q95: 8 | R95: 5 | S95: 7 | T95: 10 | U95: 4 | V95: 6 | W95: 12 | X95: 33 | Y95: 26 | Z95: 12 | AA95: 6 | AB95: 3 | AC95: 61.3 | AD95: 59.8 | AE95: 63.7 | AY95: 59 | AZ95: - | BA95: - | BB95: - | BC95: 1 | BD95: - | BE95: 1 | BF95: 3 | BG95: - | BH95: - | BI95: 3 | BJ95: 18 | BK95: 16 | BL95: 10 | BM95: 4 | BN95: 3 | BO95: 69.5 | BP95: 70.1 | BQ95: 68.2 | BR95: 60 | BS95: - | BT95: - | BU95: - | BV95: - | BW95: - | BX95: 1 | BY95: 4 | BZ95: 2 | CA95: 3 | CB95: 7 | CC95: 15 | CD95: 19 | CE95: 5 | CF95: 3 | CG95: 1 | CH95: 60 | CI95: 12 | CJ95: 12 | CK95: - | CL95: - | CM95: - | CN95: 48 | CO95: 43 | CP95: 10 | CQ95: 10 | CR95: - | CS95: - | CT95: - | CU95: 33 | DC95: 205 | DD95: 150 | DE95: 59 | DF95: 83 | DG95: 8 | DH95: 14 | DI95: 41 | DK95: 59 | DL95: 53 | DM95: - | DN95: - | DO95: - | DP95: 3 | DQ95: - | DR95: - | DS95: 1 | DT95: 1 | DU95: - | DV95: 1 | DW95: - | DX95: - | DY95: - | DZ95: - | EA95: 60 | EB95: 8,808 | EC95: 8,017 | ED95: 760 | EE95: 31 | EF95: 104 | EG95: 89 | EH95: 39 | EI95: 45 | EJ95: 5 | EK95: 8 | EL95: 7 | EN95: 101 | EO95: 61 | EP95: 20 | EQ95: 38 | ER95: 3 | ES95: 6 | ET95: 34
A96: 茨城県 | B96: 常総市 | C96: 豊岡村 | D96: 211-03 | E96: 94 | F96: 93 | G96: 6 | H96: 7 | I96: 80 | J96: 1 | K96: 1 | M96: 225 | N96: - | O96: 3 | P96: 7 | Q96: 5 | R96: 9 | S96: 12 | T96: 14 | U96: 8 | V96: 15 | W96: 36 | X96: 37 | Y96: 36 | Z96: 18 | AA96: 16 | AB96: 9 | AC96: 62.4 | AD96: 60.2 | AE96: 65.5 | AY96: 83 | AZ96: - | BA96: - | BB96: - | BC96: - | BD96: - | BE96: 1 | BF96: 2 | BG96: 1 | BH96: 1 | BI96: 4 | BJ96: 19 | BK96: 26 | BL96: 14 | BM96: 13 | BN96: 2 | BO96: 71.9 | BP96: 71.6 | BQ96: 72.6 | BR96: 93 | BS96: - | BT96: - | BU96: - | BV96: - | BW96: - | BX96: 2 | BY96: 2 | BZ96: 1 | CA96: 8 | CB96: 18 | CC96: 20 | CD96: 20 | CE96: 11 | CF96: 10 | CG96: 1 | CH96: 93 | CI96: 17 | CJ96: 17 | CK96: - | CL96: - | CM96: 1 | CN96: 75 | CO96: 62 | CP96: 15 | CQ96: 15 | CR96: - | CS96: - | CT96: 1 | CU96: 46 | DC96: 334 | DD96: 254 | DE96: 83 | DF96: 149 | DG96: 22 | DH96: 20 | DI96: 60 | DK96: 83 | DL96: 80 | DM96: - | DN96: - | DO96: - | DP96: 2 | DQ96: - | DR96: - | DS96: - | DT96: - | DU96: 1 | DV96: - | DW96: - | DX96: - | DY96: - | DZ96: - | EA96: 93 | EB96: 19,951 | EC96: 17,738 | ED96: 2,213 | EE96: - | EF96: 171 | EG96: 153 | EH96: 53 | EI96: 82 | EJ96: 18 | EK96: 9 | EL96: 9 | EN96: 163 | EO96: 101 | EP96: 30 | EQ96: 67 | ER96: 4 | ES96: 11 | ET96: 51
A97: 茨城県 | B97: 常総市 | C97: 菅原村 | D97: 211-04 | E97: 151 | F97: 148 | G97: 27 | H97: 9 | I97: 112 | J97: 3 | K97: 2 | M97: 345 | N97: 3 | O97: 2 | P97: 4 | Q97: 11 | R97: 18 | S97: 26 | T97: 24 | U97: 20 | V97: 20 | W97: 51 | X97: 50 | Y97: 48 | Z97: 41 | AA97: 20 | AB97: 7 | AC97: 60.9 | AD97: 59.1 | AE97: 63.5 | AY97: 160 | AZ97: - | BA97: - | BB97: - | BC97: 3 | BD97: 4 | BE97: 6 | BF97: 4 | BG97: 4 | BH97: 3 | BI97: 13 | BJ97: 30 | BK97: 42 | BL97: 33 | BM97: 14 | BN97: 4 | BO97: 68.5 | BP97: 68.2 | BQ97: 68.9 | BR97: 148 | BS97: - | BT97: - | BU97: 1 | BV97: 1 | BW97: 1 | BX97: 2 | BY97: 7 | BZ97: 7 | CA97: 11 | CB97: 28 | CC97: 27 | CD97: 32 | CE97: 20 | CF97: 10 | CG97: 1 | CH97: 148 | CI97: 24 | CJ97: 24 | CK97: - | CL97: - | CM97: 2 | CN97: 122 | CO97: 90 | CP97: 19 | CQ97: 19 | CR97: - | CS97: - | CT97: 2 | CU97: 69 | DC97: 501 | DD97: 384 | DE97: 160 | DF97: 201 | DG97: 23 | DH97: 32 | DI97: 85 | DK97: 135 | DL97: 103 | DM97: - | DN97: - | DO97: 3 | DP97: 10 | DQ97: 14 | DR97: 2 | DS97: 2 | DT97: - | DU97: - | DV97: - | DW97: 1 | DX97: - | DY97: - | DZ97: - | EA97: 148 | EB97: 37,140 | EC97: 28,187 | ED97: 8,892 | EE97: 61 | EF97: 262 | EG97: 232 | EH97: 97 | EI97: 117 | EJ97: 18 | EK97: 16 | EL97: 14 | EN97: 239 | EO97: 152 | EP97: 63 | EQ97: 84 | ER97: 5 | ES97: 16 | ET97: 71
A98: 茨城県 | B98: 常総市 | C98: 大花羽村 | D98: 211-05 | E98: 45 | F98: 44 | G98: 8 | H98: 8 | I98: 28 | J98: 1 | K98: 1 | M98: 112 | N98: - | O98: 2 | P98: 3 | Q98: 5 | R98: 4 | S98: 3 | T98: 12 | U98: 7 | V98: 6 | W98: 13 | X98: 12 | Y98: 10 | Z98: 19 | AA98: 10 | AB98: 6 | AC98: 62.3 | AD98: 60.1 | AE98: 65.5 | AY98: 62 | AZ98: - | BA98: - | BB98: - | BC98: - | BD98: 1 | BE98: 1 | BF98: 2 | BG98: 4 | BH98: 1 | BI98: 6 | BJ98: 9 | BK98: 8 | BL98: 16 | BM98: 9 | BN98: 5 | BO98: 70.9 | BP98: 70.5 | BQ98: 71.6 | BR98: 44 | BS98: - | BT98: - | BU98: - | BV98: - | BW98: 1 | BX98: - | BY98: 1 | BZ98: 3 | CA98: 3 | CB98: 7 | CC98: 7 | CD98: 4 | CE98: 11 | CF98: 5 | CG98: 2 | CH98: 44 | CI98: 6 | CJ98: 6 | CK98: - | CL98: - | CM98: 2 | CN98: 36 | CO98: 29 | CP98: 6 | CQ98: 6 | CR98: - | CS98: - | CT98: 1 | CU98: 22 | DC98: 161 | DD98: 118 | DE98: 62 | DF98: 55 | DG98: 1 | DH98: 13 | DI98: 30 | DK98: 42 | DL98: 36 | DM98: 1 | DN98: - | DO98: - | DP98: 2 | DQ98: 1 | DR98: - | DS98: 1 | DT98: - | DU98: 1 | DV98: - | DW98: - | DX98: - | DY98: - | DZ98: - | EA98: 44 | EB98: 15,376 | EC98: 10,037 | ED98: 5,079 | EE98: 260 | EF98: 81 | EG98: 73 | EH98: 39 | EI98: 33 | EJ98: 1 | EK98: 4 | EL98: 4 | EN98: 80 | EO98: 45 | EP98: 23 | EQ98: 22 | ER98: - | ES98: 9 | ET98: 26
A99: 茨城県 | B99: 常総市 | C99: 三妻村 | D99: 211-06 | E99: 87 | F99: 86 | G99: 10 | H99: 5 | I99: 71 | J99: 1 | K99: 1 | M99: 206 | N99: 2 | O99: - | P99: 3 | Q99: 5 | R99: 7 | S99: 11 | T99: 13 | U99: 8 | V99: 10 | W99: 22 | X99: 50 | Y99: 40 | Z99: 17 | AA99: 10 | AB99: 8 | AC99: 63.3 | AD99: 62.5 | AE99: 64.4 | AY99: 96 | AZ99: - | BA99: - | BB99: - | BC99: 1 | BD99: - | BE99: 5 | BF99: 1 | BG99: 2 | BH99: 2 | BI99: 5 | BJ99: 28 | BK99: 28 | BL99: 12 | BM99: 7 | BN99: 5 | BO99: 69.4 | BP99: 69.7 | BQ99: 68.8 | BR99: 86 | BS99: - | BT99: - | BU99: - | BV99: - | BW99: - | BX99: - | BY99: 2 | BZ99: 3 | CA99: 3 | CB99: 10 | CC99: 26 | CD99: 26 | CE99: 9 | CF99: 5 | CG99: 2 | CH99: 86 | CI99: 22 | CJ99: 22 | CK99: - | CL99: - | CM99: 5 | CN99: 59 | CO99: 68 | CP99: 19 | CQ99: 19 | CR99: - | CS99: - | CT99: 2 | CU99: 47 | DC99: 278 | DD99: 216 | DE99: 96 | DF99: 107 | DG99: 13 | DH99: 10 | DI99: 52 | DK99: 83 | DL99: 76 | DM99: - | DN99: - | DO99: - | DP99: 2 | DQ99: 3 | DR99: 1 | DS99: 1 | DT99: - | DU99: - | DV99: - | DW99: - | DX99: - | DY99: - | DZ99: - | EA99: 86 | EB99: 40,738 | EC99: 27,396 | ED99: 13,309 | EE99: 33 | EF99: 139 | EG99: 130 | EH99: 64 | EI99: 56 | EJ99: 10 | EK99: 6 | EL99: 3 | EN99: 139 | EO99: 86 | EP99: 32 | EQ99: 51 | ER99: 3 | ES99: 4 | ET99: 49
A100: 茨城県 | B100: 常総市 | C100: 五箇村 | D100: 211-07 | E100: 114 | F100: 111 | G100: 7 | H100: 10 | I100: 94 | J100: 3 | K100: 3 | M100: 259 | N100: - | O100: 4 | P100: 7 | Q100: 5 | R100: 13 | S100: 9 | T100: 10 | U100: 9 | V100: 15 | W100: 38 | X100: 58 | Y100: 43 | Z100: 19 | AA100: 18 | AB100: 11 | AC100: 63.0 | AD100: 62.0 | AE100: 64.5 | AY100: 100 | AZ100: - | BA100: - | BB100: - | BC100: - | BD100: 2 | BE100: - | BF100: 2 | BG100: 1 | BH100: 1 | BI100: 5 | BJ100: 26 | BK100: 32 | BL100: 11 | BM100: 12 | BN100: 8 | BO100: 71.4 | BP100: 70.9 | BQ100: 72.4 | BR100: 111 | BS100: - | BT100: - | BU100: - | BV100: - | BW100: - | BX100: - | BY100: 1 | BZ100: 2 | CA100: 6 | CB100: 19 | CC100: 27 | CD100: 29 | CE100: 10 | CF100: 11 | CG100: 6 | CH100: 111 | CI100: 32 | CJ100: 32 | CK100: - | CL100: - | CM100: 2 | CN100: 77 | CO100: 83 | CP100: 24 | CQ100: 24 | CR100: - | CS100: - | CT100: 1 | CU100: 58 | DC100: 382 | DD100: 288 | DE100: 100 | DF100: 169 | DG100: 19 | DH100: 15 | DI100: 79 | DK100: 106 | DL100: 103 | DM100: - | DN100: - | DO100: - | DP100: - | DQ100: 3 | DR100: - | DS100: - | DT100: - | DU100: - | DV100: - | DW100: - | DX100: - | DY100: - | DZ100: - | EA100: 111 | EB100: 32,556 | EC100: 30,553 | ED100: 1,993 | EE100: 10 | EF100: 200 | EG100: 177 | EH100: 66 | EI100: 97 | EJ100: 14 | EK100: 9 | EL100: 14 | EN100: 182 | EO100: 111 | EP100: 34 | EQ100: 72 | ER100: 5 | ES100: 6 | ET100: 65
A101: 茨城県 | B101: 常総市 | C101: 大生村 | D101: 211-08 | E101: 110 | F101: 110 | G101: 10 | H101: 9 | I101: 91 | J101: - | K101: - | M101: 282 | N101: 3 | O101: 7 | P101: 7 | Q101: 8 | R101: 8 | S101: 18 | T101: 23 | U101: 12 | V101: 17 | W101: 23 | X101: 51 | Y101: 53 | Z101: 26 | AA101: 17 | AB101: 9 | AC101: 61.0 | AD101: 60.0 | AE101: 62.4 | AY101: 120 | AZ101: - | BA101: 2 | BB101: 1 | BC101: 2 | BD101: - | BE101: 1 | BF101: 4 | BG101: 3 | BH101: 2 | BI101: 4 | BJ101: 19 | BK101: 36 | BL101: 25 | BM101: 14 | BN101: 7 | BO101: 70.2 | BP101: 70.4 | BQ101: 69.9 | BR101: 110 | BS101: - | BT101: - | BU101: - | BV101: 1 | BW101: - | BX101: 1 | BY101: 2 | BZ101: 3 | CA101: 6 | CB101: 10 | CC101: 30 | CD101: 28 | CE101: 17 | CF101: 8 | CG101: 4 | CH101: 110 | CI101: 51 | CJ101: 51 | CK101: - | CL101: - | CM101: 5 | CN101: 54 | CO101: 87 | CP101: 42 | CQ101: 42 | CR101: - | CS101: - | CT101: 2 | CU101: 43 | DC101: 381 | DD101: 301 | DE101: 120 | DF101: 158 | DG101: 23 | DH101: 23 | DI101: 57 | DK101: 105 | DL101: 104 | DM101: - | DN101: - | DO101: - | DP101: - | DQ101: - | DR101: - | DS101: 1 | DT101: - | DU101: - | DV101: - | DW101: - | DX101: - | DY101: - | DZ101: - | EA101: 110 | EB101: 45,410 | EC101: 37,626 | ED101: 7,779 | EE101: 5 | EF101: 199 | EG101: 181 | EH101: 73 | EI101: 90 | EJ101: 18 | EK101: 13 | EL101: 5 | EN101: 182 | EO101: 120 | EP101: 47 | EQ101: 68 | ER101: 5 | ES101: 10 | ET101: 52
A102: 茨城県 | B102: 常総市 | C102: 内守谷村 | D102: 211-09 | E102: 32 | F102: 31 | G102: 8 | H102: 1 | I102: 22 | J102: 1 | K102: 1 | M102: 87 | N102: 5 | O102: 1 | P102: 1 | Q102: 1 | R102: 2 | S102: 10 | T102: 6 | U102: 7 | V102: 6 | W102: 3 | X102: 12 | Y102: 14 | Z102: 12 | AA102: 7 | AB102: - | AC102: 59.1 | AD102: 58.4 | AE102: 60.0 | AY102: 48 | AZ102: - | BA102: - | BB102: - | BC102: 1 | BD102: 1 | BE102: 2 | BF102: 4 | BG102: - | BH102: 1 | BI102: 3 | BJ102: 8 | BK102: 11 | BL102: 11 | BM102: 6 | BN102: - | BO102: 67.7 | BP102: 66.2 | BQ102: 70.1 | BR102: 31 | BS102: - | BT102: - | BU102: - | BV102: - | BW102: - | BX102: 2 | BY102: 2 | BZ102: 2 | CA102: 2 | CB102: 2 | CC102: 5 | CD102: 7 | CE102: 5 | CF102: 4 | CG102: - | CH102: 31 | CI102: 14 | CJ102: 14 | CK102: - | CL102: - | CM102: - | CN102: 17 | CO102: 21 | CP102: 8 | CQ102: 8 | CR102: - | CS102: - | CT102: - | CU102: 13 | DC102: 105 | DD102: 80 | DE102: 48 | DF102: 28 | DG102: 4 | DH102: 8 | DI102: 17 | DK102: 28 | DL102: 16 | DM102: - | DN102: - | DO102: - | DP102: 9 | DQ102: 2 | DR102: - | DS102: - | DT102: - | DU102: - | DV102: 1 | DW102: - | DX102: - | DY102: - | DZ102: - | EA102: 31 | EB102: 12,631 | EC102: 8,806 | ED102: 3,795 | EE102: 30 | EF102: 56 | EG102: 50 | EH102: 29 | EI102: 18 | EJ102: 3 | EK102: 3 | EL102: 3 | EN102: 49 | EO102: 30 | EP102: 19 | EQ102: 10 | ER102: 1 | ES102: 5 | ET102: 14
A103: 茨城県 | B103: 常総市 | C103: 菅生村 | D103: 211-10 | E103: 104 | F103: 101 | G103: 18 | H103: 13 | I103: 70 | J103: 3 | K103: 3 | M103: 276 | N103: 3 | O103: 4 | P103: 9 | Q103: 8 | R103: 12 | S103: 8 | T103: 17 | U103: 24 | V103: 15 | W103: 26 | X103: 57 | Y103: 29 | Z103: 33 | AA103: 18 | AB103: 13 | AC103: 61.7 | AD103: 60.1 | AE103: 63.7 | AY103: 136 | AZ103: - | BA103: - | BB103: 2 | BC103: 2 | BD103: 2 | BE103: 3 | BF103: 3 | BG103: 2 | BH103: 6 | BI103: 12 | BJ103: 38 | BK103: 19 | BL103: 24 | BM103: 12 | BN103: 11 | BO103: 69.1 | BP103: 68.1 | BQ103: 70.3 | BR103: 101 | BS103: - | BT103: - | BU103: - | BV103: 1 | BW103: - | BX103: 1 | BY103: 3 | BZ103: 7 | CA103: 9 | CB103: 10 | CC103: 28 | CD103: 20 | CE103: 13 | CF103: 8 | CG103: 1 | CH103: 101 | CI103: 22 | CJ103: 22 | CK103: - | CL103: - | CM103: 4 | CN103: 75 | CO103: 70 | CP103: 17 | CQ103: 17 | CR103: - | CS103: - | CT103: 1 | CU103: 52 | DC103: 366 | DD103: 291 | DE103: 136 | DF103: 134 | DG103: 21 | DH103: 23 | DI103: 52 | DK103: 89 | DL103: 72 | DM103: - | DN103: - | DO103: 1 | DP103: 3 | DQ103: - | DR103: 1 | DS103: 2 | DT103: 2 | DU103: 5 | DV103: 2 | DW103: 1 | DX103: - | DY103: - | DZ103: - | EA103: 100 | EB103: 35,671 | EC103: 25,198 | ED103: 10,293 | EE103: 180 | EF103: 192 | EG103: 170 | EH103: 76 | EI103: 79 | EJ103: 15 | EK103: 16 | EL103: 6 | EN103: 174 | EO103: 121 | EP103: 60 | EQ103: 55 | ER103: 6 | ES103: 7 | ET103: 46
A104: 茨城県 | B104: 常総市 | C104: 十和村2-2 | D104: 211-11 | E104: 9 | F104: 9 | G104: - | H104: 1 | I104: 8 | J104: - | K104: - | M104: 20 | N104: - | O104: - | P104: - | Q104: - | R104: 1 | S104: 4 | T104: - | U104: - | V104: - | W104: 3 | X104: 6 | Y104: 4 | Z104: 2 | AA104: - | AB104: - | AC104: 62.1 | AD104: 60.7 | AE104: 64.3 | AY104: 11 | AZ104: - | BA104: - | BB104: - | BC104: - | BD104: - | BE104: - | BF104: - | BG104: - | BH104: - | BI104: - | BJ104: 5 | BK104: 4 | BL104: 2 | BM104: - | BN104: - | BO104: 70.6 | BP104: 71.3 | BQ104: 69.5 | BR104: 9 | BS104: - | BT104: - | BU104: - | BV104: - | BW104: - | BX104: 1 | BY104: - | BZ104: - | CA104: - | CB104: 1 | CC104: 3 | CD104: 2 | CE104: 2 | CF104: - | CG104: - | CH104: 9 | CI104: 1 | CJ104: 1 | CK104: - | CL104: - | CM104: - | CN104: 8 | CO104: 7 | CP104: 1 | CQ104: 1 | CR104: - | CS104: - | CT104: - | CU104: 6 | DC104: 29 | DD104: 24 | DE104: 11 | DF104: 13 | DG104: - | DH104: - | DI104: 5 | DK104: 9 | DL104: 8 | DM104: - | DN104: - | DO104: - | DP104: - | DQ104: - | DR104: - | DS104: 1 | DT104: - | DU104: - | DV104: - | DW104: - | DX104: - | DY104: - | DZ104: - | EA104: 9 | EB104: 1,875 | EC104: 1,786 | ED104: 89 | EE104: - | EF104: 16 | EG104: 15 | EH104: 7 | EI104: 8 | EJ104: - | EK104: - | EL104: 1 | EN104: 13 | EO104: 9 | EP104: 4 | EQ104: 5 | ER104: - | ES104: - | ET104: 4
A105: 茨城県 | B105: 常総市 | C105: 真瀬村2-2 | D105: 211-12 | E105: 26 | F105: 25 | G105: 4 | H105: 4 | I105: 17 | J105: 1 | K105: 1 | M105: 63 | N105: - | O105: 2 | P105: 2 | Q105: 3 | R105: 2 | S105: 4 | T105: 6 | U105: 2 | V105: 5 | W105: 9 | X105: 7 | Y105: 10 | Z105: 7 | AA105: 1 | AB105: 3 | AC105: 59.2 | AD105: 58.3 | AE105: 60.5 | AY105: 27 | AZ105: - | BA105: - | BB105: - | BC105: - | BD105: - | BE105: - | BF105: - | BG105: - | BH105: 1 | BI105: 3 | BJ105: 4 | BK105: 9 | BL105: 6 | BM105: 1 | BN105: 3 | BO105: 72.6 | BP105: 74.3 | BQ105: 70.1 | BR105: 25 | BS105: - | BT105: - | BU105: - | BV105: - | BW105: - | BX105: - | BY105: 1 | BZ105: 2 | CA105: 3 | CB105: 3 | CC105: 3 | CD105: 6 | CE105: 4 | CF105: 1 | CG105: 2 | CH105: 25 | CI105: 3 | CJ105: 3 | CK105: - | CL105: - | CM105: - | CN105: 22 | CO105: 16 | CP105: 1 | CQ105: 1 | CR105: - | CS105: - | CT105: - | CU105: 15 | DC105: 91 | DD105: 75 | DE105: 27 | DF105: 47 | DG105: 1 | DH105: 5 | DI105: 11 | DK105: 22 | DL105: 22 | DM105: - | DN105: - | DO105: - | DP105: - | DQ105: - | DR105: - | DS105: - | DT105: - | DU105: - | DV105: - | DW105: - | DX105: - | DY105: - | DZ105: - | EA105: 25 | EB105: 6,811 | EC105: 6,655 | ED105: 156 | EE105: - | EF105: 44 | EG105: 41 | EH105: 16 | EI105: 24 | EJ105: 1 | EK105: 3 | EL105: - | EN105: 47 | EO105: 34 | EP105: 11 | EQ105: 23 | ER105: - | ES105: 2 | ET105: 11
A106: 茨城県 | B106: 常総市 | C106: 石下町 | D106: 211-13 | E106: 91 | F106: 90 | G106: 6 | H106: 10 | I106: 74 | J106: 1 | K106: 1 | M106: 226 | N106: - | O106: 5 | P106: 8 | Q106: 2 | R106: 8 | S106: 14 | T106: 14 | U106: 13 | V106: 20 | W106: 16 | X106: 37 | Y106: 41 | Z106: 23 | AA106: 18 | AB106: 7 | AC106: 61.9 | AD106: 60.1 | AE106: 64.4 | AY106: 86 | AZ106: - | BA106: - | BB106: 1 | BC106: - | BD106: - | BE106: 4 | BF106: - | BG106: - | BH106: - | BI106: 4 | BJ106: 19 | BK106: 28 | BL106: 17 | BM106: 10 | BN106: 3 | BO106: 71.1 | BP106: 70.3 | BQ106: 72.3 | BR106: 90 | BS106: - | BT106: - | BU106: 1 | BV106: - | BW106: 1 | BX106: 3 | BY106: 1 | BZ106: 3 | CA106: 8 | CB106: 6 | CC106: 19 | CD106: 25 | CE106: 11 | CF106: 10 | CG106: 2 | CH106: 90 | CI106: 19 | CJ106: 17 | CK106: 1 | CL106: 1 | CM106: 5 | CN106: 66 | CO106: 67 | CP106: 13 | CQ106: 12 | CR106: - | CS106: 1 | CT106: 2 | CU106: 52 | DC106: 332 | DD106: 241 | DE106: 86 | DF106: 137 | DG106: 18 | DH106: 20 | DI106: 71 | DK106: 83 | DL106: 76 | DM106: - | DN106: - | DO106: - | DP106: 1 | DQ106: 4 | DR106: 1 | DS106: - | DT106: - | DU106: 1 | DV106: - | DW106: - | DX106: - | DY106: - | DZ106: - | EA106: 90 | EB106: 26,060 | EC106: 18,845 | ED106: 7,153 | EE106: 62 | EF106: 169 | EG106: 145 | EH106: 53 | EI106: 78 | EJ106: 14 | EK106: 10 | EL106: 14 | EN106: 163 | EO106: 96 | EP106: 33 | EQ106: 59 | ER106: 4 | ES106: 10 | ET106: 57
A107: 茨城県 | B107: 常総市 | C107: 玉村2-2 | D107: 211-14 | E107: 70 | F107: 69 | G107: 5 | H107: 8 | I107: 56 | J107: 1 | K107: 1 | M107: 177 | N107: 1 | O107: 3 | P107: 11 | Q107: 2 | R107: 5 | S107: 7 | T107: 7 | U107: 21 | V107: 16 | W107: 23 | X107: 32 | Y107: 18 | Z107: 19 | AA107: 8 | AB107: 4 | AC107: 59.8 | AD107: 59.9 | AE107: 59.7 | AY107: 72 | AZ107: - | BA107: - | BB107: 1 | BC107: - | BD107: 1 | BE107: 2 | BF107: 1 | BG107: 1 | BH107: 1 | BI107: 6 | BJ107: 22 | BK107: 14 | BL107: 15 | BM107: 5 | BN107: 3 | BO107: 69.2 | BP107: 68.9 | BQ107: 69.8 | BR107: 69 | BS107: - | BT107: - | BU107: - | BV107: - | BW107: - | BX107: 3 | BY107: 3 | BZ107: 5 | CA107: 9 | CB107: 10 | CC107: 18 | CD107: 12 | CE107: 6 | CF107: 1 | CG107: 2 | CH107: 69 | CI107: 10 | CJ107: 10 | CK107: - | CL107: - | CM107: 5 | CN107: 54 | CO107: 39 | CP107: 8 | CQ107: 8 | CR107: - | CS107: - | CT107: - | CU107: 31 | DC107: 252 | DD107: 190 | DE107: 72 | DF107: 109 | DG107: 9 | DH107: 21 | DI107: 41 | DK107: 67 | DL107: 63 | DM107: - | DN107: - | DO107: - | DP107: - | DQ107: 1 | DR107: 1 | DS107: 1 | DT107: - | DU107: 1 | DV107: - | DW107: - | DX107: - | DY107: - | DZ107: - | EA107: 69 | EB107: 16,566 | EC107: 13,810 | ED107: 2,676 | EE107: 80 | EF107: 117 | EG107: 104 | EH107: 43 | EI107: 54 | EJ107: 7 | EK107: 9 | EL107: 4 | EN107: 135 | EO107: 86 | EP107: 29 | EQ107: 55 | ER107: 2 | ES107: 12 | ET107: 37
A108: 茨城県 | B108: 常総市 | C108: 豊田村 | D108: 211-15 | E108: 105 | F108: 103 | G108: 9 | H108: 13 | I108: 81 | J108: 2 | K108: 2 | M108: 272 | N108: 1 | O108: 4 | P108: 4 | Q108: 5 | R108: 20 | S108: 17 | T108: 14 | U108: 18 | V108: 14 | W108: 38 | X108: 60 | Y108: 32 | Z108: 21 | AA108: 17 | AB108: 7 | AC108: 60.9 | AD108: 59.8 | AE108: 62.5 | AY108: 102 | AZ108: - | BA108: - | BB108: - | BC108: - | BD108: - | BE108: 3 | BF108: - | BG108: - | BH108: - | BI108: 12 | BJ108: 33 | BK108: 27 | BL108: 14 | BM108: 13 | BN108: - | BO108: 70.4 | BP108: 70.1 | BQ108: 71.0 | BR108: 103 | BS108: - | BT108: - | BU108: - | BV108: - | BW108: 1 | BX108: 1 | BY108: 1 | BZ108: 8 | CA108: 3 | CB108: 17 | CC108: 33 | CD108: 22 | CE108: 10 | CF108: 6 | CG108: 1 | CH108: 103 | CI108: 28 | CJ108: 28 | CK108: - | CL108: - | CM108: - | CN108: 75 | CO108: 72 | CP108: 22 | CQ108: 22 | CR108: - | CS108: - | CT108: - | CU108: 50 | DC108: 375 | DD108: 292 | DE108: 102 | DF108: 163 | DG108: 27 | DH108: 14 | DI108: 69 | DK108: 99 | DL108: 98 | DM108: - | DN108: - | DO108: - | DP108: - | DQ108: - | DR108: - | DS108: 1 | DT108: - | DU108: - | DV108: - | DW108: - | DX108: - | DY108: - | DZ108: - | EA108: 103 | EB108: 33,081 | EC108: 25,617 | ED108: 7,458 | EE108: 6 | EF108: 187 | EG108: 171 | EH108: 67 | EI108: 87 | EJ108: 17 | EK108: 6 | EL108: 10 | EN108: 188 | EO108: 121 | EP108: 35 | EQ108: 76 | ER108: 10 | ES108: 8 | ET108: 59
A109: 茨城県 | B109: 常総市 | C109: 岡田村 | D109: 211-16 | E109: 98 | F109: 96 | G109: 22 | H109: 8 | I109: 66 | J109: 2 | K109: 2 | M109: 254 | N109: 4 | O109: 4 | P109: 6 | Q109: 18 | R109: 14 | S109: 11 | T109: 9 | U109: 10 | V109: 29 | W109: 35 | X109: 43 | Y109: 36 | Z109: 16 | AA109: 9 | AB109: 10 | AC109: 58.8 | AD109: 58.0 | AE109: 60.0 | AY109: 135 | AZ109: 1 | BA109: - | BB109: 1 | BC109: 4 | BD109: 5 | BE109: - | BF109: 4 | BG109: 3 | BH109: 16 | BI109: 19 | BJ109: 31 | BK109: 27 | BL109: 13 | BM109: 4 | BN109: 7 | BO109: 64.7 | BP109: 64.3 | BQ109: 65.2 | BR109: 96 | BS109: - | BT109: - | BU109: - | BV109: - | BW109: 1 | BX109: - | BY109: 2 | BZ109: 1 | CA109: 12 | CB109: 20 | CC109: 22 | CD109: 22 | CE109: 12 | CF109: 3 | CG109: 1 | CH109: 96 | CI109: 32 | CJ109: 32 | CK109: - | CL109: - | CM109: 1 | CN109: 63 | CO109: 60 | CP109: 17 | CQ109: 17 | CR109: - | CS109: - | CT109: - | CU109: 43 | DC109: 373 | DD109: 282 | DE109: 135 | DF109: 126 | DG109: 21 | DH109: 21 | DI109: 70 | DK109: 91 | DL109: 57 | DM109: - | DN109: - | DO109: - | DP109: 22 | DQ109: 9 | DR109: 1 | DS109: 1 | DT109: 1 | DU109: - | DV109: - | DW109: - | DX109: - | DY109: - | DZ109: - | EA109: 95 | EB109: 19,589 | EC109: 12,125 | ED109: 7,454 | EE109: 10 | EF109: 188 | EG109: 165 | EH109: 82 | EI109: 68 | EJ109: 15 | EK109: 9 | EL109: 14 | EN109: 185 | EO109: 117 | EP109: 53 | EQ109: 58 | ER109: 6 | ES109: 12 | ET109: 56
A110: 茨城県 | B110: 常総市 | C110: 飯沼村 | D110: 211-17 | E110: 210 | F110: 205 | G110: 55 | H110: 20 | I110: 130 | J110: 5 | K110: 4 | M110: 516 | N110: 3 | O110: 12 | P110: 9 | Q110: 13 | R110: 16 | S110: 29 | T110: 34 | U110: 36 | V110: 43 | W110: 51 | X110: 81 | Y110: 85 | Z110: 58 | AA110: 31 | AB110: 15 | AC110: 61.5 | AD110: 60.7 | AE110: 62.5 | AY110: 302 | AZ110: - | BA110: 1 | BB110: 2 | BC110: 2 | BD110: 5 | BE110: 15 | BF110: 14 | BG110: 19 | BH110: 24 | BI110: 20 | BJ110: 58 | BK110: 57 | BL110: 49 | BM110: 23 | BN110: 13 | BO110: 66.2 | BP110: 65.2 | BQ110: 67.5 | BR110: 205 | BS110: - | BT110: - | BU110: - | BV110: - | BW110: 1 | BX110: 5 | BY110: 14 | BZ110: 15 | CA110: 14 | CB110: 31 | CC110: 29 | CD110: 44 | CE110: 28 | CF110: 18 | CG110: 6 | CH110: 205 | CI110: 47 | CJ110: 47 | CK110: - | CL110: - | CM110: 2 | CN110: 156 | CO110: 125 | CP110: 34 | CQ110: 34 | CR110: - | CS110: - | CT110: - | CU110: 91 | DC110: 780 | DD110: 588 | DE110: 302 | DF110: 247 | DG110: 39 | DH110: 54 | DI110: 138 | DK110: 188 | DL110: 108 | DM110: - | DN110: - | DO110: 1 | DP110: 50 | DQ110: 22 | DR110: 4 | DS110: 1 | DT110: - | DU110: 2 | DV110: - | DW110: - | DX110: - | DY110: - | DZ110: - | EA110: 205 | EB110: 45,870 | EC110: 24,564 | ED110: 20,446 | EE110: 860 | EF110: 386 | EG110: 340 | EH110: 179 | EI110: 133 | EJ110: 28 | EK110: 26 | EL110: 20 | EN110: 394 | EO110: 248 | EP110: 123 | EQ110: 114 | ER110: 11 | ES110: 28 | ET110: 118
A111: 茨城県 | B111: 常陸太田市 | D111: 212-00 | E111: 2,012 | F111: 1,999 | G111: 172 | H111: 180 | I111: 1,647 | J111: 13 | K111: 11 | M111: 4,254 | N111: 29 | O111: 63 | P111: 64 | Q111: 93 | R111: 102 | S111: 140 | T111: 142 | U111: 209 | V111: 343 | W111: 557 | X111: 725 | Y111: 613 | Z111: 466 | AA111: 373 | AB111: 335 | AC111: 65.0 | AD111: 64.0 | AE111: 66.3 | AY111: 1,915 | AZ111: - | BA111: 3 | BB111: 8 | BC111: 17 | BD111: 12 | BE111: 24 | BF111: 21 | BG111: 35 | BH111: 46 | BI111: 145 | BJ111: 379 | BK111: 408 | BL111: 341 | BM111: 263 | BN111: 213 | BO111: 72.0 | BP111: 72.0 | BQ111: 72.0 | BR111: 1,999 | BS111: - | BT111: - | BU111: 1 | BV111: 5 | BW111: 5 | BX111: 9 | BY111: 23 | BZ111: 58 | CA111: 128 | CB111: 252 | CC111: 396 | CD111: 360 | CE111: 303 | CF111: 234 | CG111: 225 | CH111: 1 999 | CI111: 665 | CJ111: 661 | CK111: - | CL111: 4 | CM111: 72 | CN111: 1 262 | CO111: 1 518 | CP111: 543 | CQ111: 541 | CR111: - | CS111: 2 | CT111: 22 | CU111: 953 | DC111: 5,430 | DD111: 3,892 | DE111: 1,915 | DF111: 1,757 | DG111: 220 | DH111: 189 | DI111: 1,349 | DK111: 1,711 | DL111: 1,478 | DM111: 1 | DN111: 43 | DO111: 4 | DP111: 43 | DQ111: 8 | DR111: 77 | DS111: 18 | DT111: 11 | DU111: 6 | DV111: 18 | DW111: - | DX111: 4 | DY111: - | DZ111: - | EA111: 1,996 | EB111: 230,288 | EC111: 194,225 | ED111: 30,321 | EE111: 5,742 | EF111: 2,820 | EG111: 2,447 | EH111: 1,243 | EI111: 1,058 | EJ111: 146 | EK111: 109 | EL111: 264 | EN111: 2,610 | EO111: 1,445 | EP111: 672 | EQ111: 699 | ER111: 74 | ES111: 80 | ET111: 1,085
A112: 茨城県 | B112: 常陸太田市 | C112: 太田町 | D112: 212-01 | E112: 7 | F112: 7 | G112: 2 | H112: 1 | I112: 4 | J112: - | K112: - | M112: 13 | N112: - | O112: - | P112: - | Q112: - | R112: - | S112: - | T112: 1 | U112: 2 | V112: 1 | W112: 1 | X112: 2 | Y112: 1 | Z112: 1 | AA112: 1 | AB112: 3 | AC112: 68.9 | AD112: 69.9 | AE112: 67.4 | AY112: 6 | AZ112: - | BA112: - | BB112: - | BC112: - | BD112: - | BE112: - | BF112: - | BG112: 1 | BH112: - | BI112: 1 | BJ112: 1 | BK112: - | BL112: - | BM112: 1 | BN112: 2 | BO112: 72.2 | BP112: 69.6 | BQ112: 85.0 | BR112: 7 | BS112: - | BT112: - | BU112: - | BV112: - | BW112: - | BX112: - | BY112: - | BZ112: 2 | CA112: - | CB112: 1 | CC112: 2 | CD112: 1 | CE112: - | CF112: 1 | CG112: - | CH112: 7 | CI112: 3 | CJ112: 3 | CK112: - | CL112: - | CM112: - | CN112: 4 | CO112: 4 | CP112: 2 | CQ112: 2 | CR112: - | CS112: - | CT112: - | CU112: 2 | DC112: 23 | DD112: 19 | DE112: 6 | DF112: 7 | DG112: 6 | DH112: 2 | DI112: 2 | DK112: 6 | DL112: 4 | DM112: - | DN112: - | DO112: - | DP112: 1 | DQ112: - | DR112: - | DS112: 1 | DT112: - | DU112: - | DV112: - | DW112: - | DX112: - | DY112: - | DZ112: - | EA112: 7 | EB112: 1,809 | EC112: 1,689 | ED112: 120 | EE112: - | EF112: 14 | EG112: 12 | EH112: 5 | EI112: 3 | EJ112: 4 | EK112: 2 | EL112: - | EN112: 9 | EO112: 7 | EP112: 1 | EQ112: 4 | ER112: 2 | ES112: - | ET112: 2
A113: 茨城県 | B113: 常陸太田市 | C113: 機初村 | D113: 212-02 | E113: 171 | F113: 171 | G113: 13 | H113: 19 | I113: 139 | J113: - | K113: - | M113: 365 | N113: 5 | O113: 5 | P113: 2 | Q113: 11 | R113: 7 | S113: 8 | T113: 16 | U113: 17 | V113: 27 | W113: 39 | X113: 67 | Y113: 57 | Z113: 39 | AA113: 31 | AB113: 34 | AC113: 65.4 | AD113: 63.9 | AE113: 67.7 | AY113: 165 | AZ113: - | BA113: - | BB113: - | BC113: 3 | BD113: 1 | BE113: 2 | BF113: 1 | BG113: - | BH113: 7 | BI113: 15 | BJ113: 26 | BK113: 38 | BL113: 26 | BM113: 20 | BN113: 26 | BO113: 72.8 | BP113: 72.3 | BQ113: 73.7 | BR113: 171 | BS113: - | BT113: - | BU113: - | BV113: 1 | BW113: 2 | BX113: 1 | BY113: 2 | BZ113: 3 | CA113: 12 | CB113: 15 | CC113: 33 | CD113: 36 | CE113: 23 | CF113: 19 | CG113: 24 | CH113: 171 | CI113: 63 | CJ113: 62 | CK113: - | CL113: 1 | CM113: 10 | CN113: 98 | CO113: 135 | CP113: 55 | CQ113: 54 | CR113: - | CS113: 1 | CT113: - | CU113: 80 | DC113: 446 | DD113: 309 | DE113: 165 | DF113: 131 | DG113: 13 | DH113: 19 | DI113: 118 | DK113: 131 | DL113: 119 | DM113: - | DN113: 2 | DO113: - | DP113: 2 | DQ113: 5 | DR113: 2 | DS113: 1 | DT113: - | DU113: - | DV113: - | DW113: - | DX113: - | DY113: - | DZ113: - | EA113: 171 | EB113: 17,894 | EC113: 15,617 | ED113: 2,109 | EE113: 168 | EF113: 241 | EG113: 204 | EH113: 112 | EI113: 83 | EJ113: 9 | EK113: 13 | EL113: 24 | EN113: 205 | EO113: 105 | EP113: 53 | EQ113: 48 | ER113: 4 | ES113: 6 | ET113: 94
A114: 茨城県 | B114: 常陸太田市 | C114: 世矢村 | D114: 212-03 | E114: 165 | F114: 165 | G114: 10 | H114: 11 | I114: 144 | J114: - | K114: - | M114: 338 | N114: 1 | O114: 2 | P114: 4 | Q114: 10 | R114: 14 | S114: 11 | T114: 10 | U114: 13 | V114: 20 | W114: 39 | X114: 65 | Y114: 55 | Z114: 41 | AA114: 22 | AB114: 31 | AC114: 65.7 | AD114: 64.9 | AE114: 66.8 | AY114: 167 | AZ114: - | BA114: 1 | BB114: 1 | BC114: 1 | BD114: 4 | BE114: - | BF114: 1 | BG114: 2 | BH114: 6 | BI114: 10 | BJ114: 38 | BK114: 39 | BL114: 34 | BM114: 11 | BN114: 19 | BO114: 71.2 | BP114: 71.2 | BQ114: 71.2 | BR114: 165 | BS114: - | BT114: - | BU114: - | BV114: 1 | BW114: 1 | BX114: - | BY114: 1 | BZ114: 5 | CA114: 9 | CB114: 18 | CC114: 37 | CD114: 32 | CE114: 27 | CF114: 17 | CG114: 17 | CH114: 165 | CI114: 49 | CJ114: 49 | CK114: - | CL114: - | CM114: 9 | CN114: 107 | CO114: 130 | CP114: 39 | CQ114: 39 | CR114: - | CS114: - | CT114: 6 | CU114: 85 | DC114: 425 | DD114: 291 | DE114: 167 | DF114: 117 | DG114: 7 | DH114: 13 | DI114: 121 | DK114: 138 | DL114: 122 | DM114: - | DN114: 2 | DO114: - | DP114: 2 | DQ114: - | DR114: 10 | DS114: - | DT114: 1 | DU114: - | DV114: 1 | DW114: - | DX114: - | DY114: - | DZ114: - | EA114: 165 | EB114: 18,225 | EC114: 15,573 | ED114: 1,845 | EE114: 807 | EF114: 214 | EG114: 186 | EH114: 105 | EI114: 75 | EJ114: 6 | EK114: 5 | EL114: 23 | EN114: 211 | EO114: 105 | EP114: 62 | EQ114: 42 | ER114: 1 | ES114: 8 | ET114: 98
A115: 茨城県 | B115: 常陸太田市 | C115: 西小沢村 | D115: 212-04 | E115: 134 | F115: 133 | G115: 13 | H115: 9 | I115: 111 | J115: 1 | K115: 1 | M115: 284 | N115: 4 | O115: 4 | P115: 3 | Q115: 8 | R115: 4 | S115: 10 | T115: 12 | U115: 19 | V115: 17 | W115: 35 | X115: 51 | Y115: 37 | Z115: 39 | AA115: 26 | AB115: 15 | AC115: 64.3 | AD115: 63.5 | AE115: 65.3 | AY115: 127 | AZ115: - | BA115: - | BB115: 1 | BC115: 1 | BD115: 1 | BE115: 2 | BF115: 2 | BG115: 4 | BH115: 2 | BI115: 11 | BJ115: 26 | BK115: 23 | BL115: 29 | BM115: 16 | BN115: 9 | BO115: 71.0 | BP115: 70.1 | BQ115: 72.6 | BR115: 133 | BS115: - | BT115: - | BU115: - | BV115: - | BW115: - | BX115: 1 | BY115: 3 | BZ115: 6 | CA115: 8 | CB115: 16 | CC115: 27 | CD115: 25 | CE115: 25 | CF115: 13 | CG115: 9 | CH115: 133 | CI115: 43 | CJ115: 43 | CK115: - | CL115: - | CM115: 4 | CN115: 86 | CO115: 99 | CP115: 33 | CQ115: 33 | CR115: - | CS115: - | CT115: 1 | CU115: 65 | DC115: 367 | DD115: 272 | DE115: 127 | DF115: 132 | DG115: 13 | DH115: 12 | DI115: 83 | DK115: 108 | DL115: 103 | DM115: - | DN115: - | DO115: - | DP115: - | DQ115: - | DR115: 4 | DS115: 1 | DT115: - | DU115: - | DV115: - | DW115: - | DX115: - | DY115: - | DZ115: - | EA115: 133 | EB115: 15,803 | EC115: 14,727 | ED115: 899 | EE115: 177 | EF115: 191 | EG115: 163 | EH115: 84 | EI115: 70 | EJ115: 9 | EK115: 9 | EL115: 19 | EN115: 176 | EO115: 109 | EP115: 43 | EQ115: 62 | ER115: 4 | ES115: 3 | ET115: 64
A116: 茨城県 | B116: 常陸太田市 | C116: 幸久村 | D116: 212-05 | E116: 179 | F116: 179 | G116: 13 | H116: 14 | I116: 152 | J116: - | K116: - | M116: 399 | N116: 6 | O116: 6 | P116: 7 | Q116: 12 | R116: 14 | S116: 13 | T116: 20 | U116: 26 | V116: 27 | W116: 51 | X116: 57 | Y116: 52 | Z116: 48 | AA116: 35 | AB116: 25 | AC116: 63.1 | AD116: 62.2 | AE116: 64.3 | AY116: 173 | AZ116: - | BA116: - | BB116: - | BC116: 2 | BD116: 1 | BE116: 6 | BF116: 2 | BG116: 2 | BH116: 3 | BI116: 14 | BJ116: 32 | BK116: 32 | BL116: 36 | BM116: 25 | BN116: 18 | BO116: 71.9 | BP116: 72.6 | BQ116: 70.7 | BR116: 179 | BS116: - | BT116: - | BU116: - | BV116: - | BW116: - | BX116: 2 | BY116: 3 | BZ116: 10 | CA116: 14 | CB116: 26 | CC116: 27 | CD116: 26 | CE116: 36 | CF116: 18 | CG116: 17 | CH116: 179 | CI116: 67 | CJ116: 67 | CK116: - | CL116: - | CM116: 5 | CN116: 107 | CO116: 124 | CP116: 49 | CQ116: 49 | CR116: - | CS116: - | CT116: 2 | CU116: 73 | DC116: 523 | DD116: 367 | DE116: 173 | DF116: 173 | DG116: 21 | DH116: 30 | DI116: 126 | DK116: 159 | DL116: 153 | DM116: - | DN116: - | DO116: - | DP116: 4 | DQ116: - | DR116: 1 | DS116: 1 | DT116: - | DU116: - | DV116: - | DW116: - | DX116: - | DY116: - | DZ116: - | EA116: 179 | EB116: 28,461 | EC116: 26,431 | ED116: 2,025 | EE116: 5 | EF116: 269 | EG116: 229 | EH116: 112 | EI116: 104 | EJ116: 13 | EK116: 15 | EL116: 25 | EN116: 254 | EO116: 138 | EP116: 61 | EQ116: 69 | ER116: 8 | ES116: 15 | ET116: 101
A117: 茨城県 | B117: 常陸太田市 | C117: 佐竹村 | D117: 212-06 | E117: 116 | F117: 115 | G117: 11 | H117: 9 | I117: 95 | J117: 1 | K117: 1 | M117: 238 | N117: - | O117: 1 | P117: 3 | Q117: 4 | R117: 1 | S117: 9 | T117: 11 | U117: 6 | V117: 20 | W117: 40 | X117: 45 | Y117: 37 | Z117: 27 | AA117: 22 | AB117: 12 | AC117: 66.1 | AD117: 64.8 | AE117: 68.1 | AY117: 103 | AZ117: - | BA117: - | BB117: - | BC117: - | BD117: - | BE117: 1 | BF117: 4 | BG117: 1 | BH117: 1 | BI117: 6 | BJ117: 27 | BK117: 23 | BL117: 15 | BM117: 18 | BN117: 7 | BO117: 72.3 | BP117: 72.1 | BQ117: 72.6 | BR117: 115 | BS117: - | BT117: - | BU117: - | BV117: - | BW117: - | BX117: - | BY117: 3 | BZ117: 1 | CA117: 8 | CB117: 16 | CC117: 25 | CD117: 21 | CE117: 18 | CF117: 12 | CG117: 11 | CH117: 115 | CI117: 40 | CJ117: 40 | CK117: - | CL117: - | CM117: 1 | CN117: 74 | CO117: 87 | CP117: 29 | CQ117: 29 | CR117: - | CS117: - | CT117: - | CU117: 58 | DC117: 314 | DD117: 220 | DE117: 103 | DF117: 109 | DG117: 8 | DH117: 4 | DI117: 90 | DK117: 96 | DL117: 91 | DM117: - | DN117: - | DO117: - | DP117: 2 | DQ117: - | DR117: 2 | DS117: 1 | DT117: - | DU117: - | DV117: - | DW117: - | DX117: - | DY117: - | DZ117: - | EA117: 115 | EB117: 18,534 | EC117: 17,140 | ED117: 1,128 | EE117: 266 | EF117: 166 | EG117: 144 | EH117: 69 | EI117: 71 | EJ117: 4 | EK117: 2 | EL117: 20 | EN117: 148 | EO117: 76 | EP117: 34 | EQ117: 38 | ER117: 4 | ES117: 2 | ET117: 70
A118: 茨城県 | B118: 常陸太田市 | C118: 誉田村 | D118: 212-07 | E118: 97 | F118: 97 | G118: 21 | H118: 12 | I118: 64 | J118: - | K118: - | M118: 227 | N118: 1 | O118: 5 | P118: 7 | Q118: 4 | R118: 9 | S118: 7 | T118: 8 | U118: 19 | V118: 20 | W118: 25 | X118: 42 | Y118: 27 | Z118: 15 | AA118: 24 | AB118: 14 | AC118: 62.6 | AD118: 61.3 | AE118: 64.3 | AY118: 127 | AZ118: - | BA118: 1 | BB118: 2 | BC118: 2 | BD118: - | BE118: - | BF118: 3 | BG118: 10 | BH118: 9 | BI118: 12 | BJ118: 29 | BK118: 21 | BL118: 12 | BM118: 17 | BN118: 9 | BO118: 67.7 | BP118: 67.4 | BQ118: 68.2 | BR118: 97 | BS118: - | BT118: - | BU118: - | BV118: - | BW118: - | BX118: - | BY118: 2 | BZ118: 6 | CA118: 7 | CB118: 7 | CC118: 25 | CD118: 16 | CE118: 10 | CF118: 13 | CG118: 11 | CH118: 97 | CI118: 27 | CJ118: 27 | CK118: - | CL118: - | CM118: 9 | CN118: 61 | CO118: 75 | CP118: 24 | CQ118: 24 | CR118: - | CS118: - | CT118: 4 | CU118: 47 | DC118: 280 | DD118: 212 | DE118: 127 | DF118: 76 | DG118: 9 | DH118: 10 | DI118: 58 | DK118: 88 | DL118: 40 | DM118: - | DN118: 3 | DO118: - | DP118: 3 | DQ118: - | DR118: 37 | DS118: 4 | DT118: 1 | DU118: - | DV118: - | DW118: - | DX118: - | DY118: - | DZ118: - | EA118: 97 | EB118: 8,264 | EC118: 4,545 | ED118: 1,170 | EE118: 2,549 | EF118: 143 | EG118: 127 | EH118: 74 | EI118: 46 | EJ118: 7 | EK118: 6 | EL118: 10 | EN118: 137 | EO118: 85 | EP118: 53 | EQ118: 30 | ER118: 2 | ES118: 4 | ET118: 48
A119: 茨城県 | B119: 常陸太田市 | C119: 佐都村 | D119: 212-08 | E119: 87 | F119: 87 | G119: 3 | H119: 12 | I119: 72 | J119: - | K119: - | M119: 189 | N119: 1 | O119: 5 | P119: 2 | Q119: 6 | R119: 4 | S119: 6 | T119: 3 | U119: 5 | V119: 20 | W119: 32 | X119: 37 | Y119: 22 | Z119: 20 | AA119: 11 | AB119: 15 | AC119: 64.2 | AD119: 64.0 | AE119: 64.3 | AY119: 75 | AZ119: - | BA119: - | BB119: - | BC119: - | BD119: - | BE119: 2 | BF119: 2 | BG119: - | BH119: 3 | BI119: 4 | BJ119: 21 | BK119: 14 | BL119: 15 | BM119: 8 | BN119: 6 | BO119: 71.3 | BP119: 74.6 | BQ119: 66.0 | BR119: 87 | BS119: - | BT119: - | BU119: - | BV119: - | BW119: - | BX119: - | BY119: - | BZ119: 1 | CA119: 9 | CB119: 15 | CC119: 20 | CD119: 12 | CE119: 11 | CF119: 9 | CG119: 10 | CH119: 87 | CI119: 29 | CJ119: 29 | CK119: - | CL119: - | CM119: - | CN119: 58 | CO119: 62 | CP119: 26 | CQ119: 26 | CR119: - | CS119: - | CT119: - | CU119: 36 | DC119: 233 | DD119: 160 | DE119: 75 | DF119: 82 | DG119: 3 | DH119: 7 | DI119: 66 | DK119: 66 | DL119: 60 | DM119: - | DN119: 3 | DO119: - | DP119: 1 | DQ119: - | DR119: 1 | DS119: - | DT119: 1 | DU119: - | DV119: - | DW119: - | DX119: - | DY119: - | DZ119: - | EA119: 87 | EB119: 7,223 | EC119: 5,696 | ED119: 1,340 | EE119: 187 | EF119: 121 | EG119: 105 | EH119: 46 | EI119: 57 | EJ119: 2 | EK119: 4 | EL119: 12 | EN119: 112 | EO119: 55 | EP119: 29 | EQ119: 25 | ER119: 1 | ES119: 3 | ET119: 54
A120: 茨城県 | B120: 常陸太田市 | C120: 河内村2-1 | D120: 212-09 | E120: 27 | F120: 25 | G120: 2 | H120: 3 | I120: 20 | J120: 2 | K120: 1 | M120: 60 | N120: - | O120: 3 | P120: 1 | Q120: - | R120: - | S120: 4 | T120: 3 | U120: 6 | V120: 3 | W120: 4 | X120: 8 | Y120: 11 | Z120: 5 | AA120: 5 | AB120: 7 | AC120: 64.3 | AD120: 62.2 | AE120: 67.2 | AY120: 28 | AZ120: - | BA120: - | BB120: - | BC120: - | BD120: - | BE120: 1 | BF120: - | BG120: 1 | BH120: 1 | BI120: - | BJ120: 5 | BK120: 6 | BL120: 5 | BM120: 3 | BN120: 6 | BO120: 74.0 | BP120: 75.1 | BQ120: 72.2 | BR120: 25 | BS120: - | BT120: - | BU120: - | BV120: - | BW120: - | BX120: 1 | BY120: - | BZ120: 2 | CA120: 2 | CB120: 2 | CC120: 4 | CD120: 4 | CE120: 4 | CF120: 2 | CG120: 4 | CH120: 25 | CI120: 6 | CJ120: 6 | CK120: - | CL120: - | CM120: 1 | CN120: 18 | CO120: 18 | CP120: 3 | CQ120: 3 | CR120: - | CS120: - | CT120: - | CU120: 15 | DC120: 72 | DD120: 55 | DE120: 28 | DF120: 20 | DG120: 7 | DH120: 2 | DI120: 15 | DK120: 18 | DL120: 13 | DM120: - | DN120: 3 | DO120: - | DP120: 1 | DQ120: - | DR120: 1 | DS120: - | DT120: - | DU120: - | DV120: - | DW120: - | DX120: - | DY120: - | DZ120: - | EA120: 25 | EB120: 1,751 | EC120: 1,296 | ED120: 431 | EE120: 24 | EF120: 40 | EG120: 36 | EH120: 18 | EI120: 14 | EJ120: 4 | EK120: 2 | EL120: 2 | EN120: 32 | EO120: 19 | EP120: 10 | EQ120: 6 | ER120: 3 | ES120: - | ET120: 13
A121: 茨城県 | B121: 常陸太田市 | C121: 郡戸村 | D121: 212-10 | E121: 177 | F121: 176 | G121: 13 | H121: 19 | I121: 144 | J121: 1 | K121: 1 | M121: 346 | N121: 1 | O121: 3 | P121: 8 | Q121: 9 | R121: 7 | S121: 8 | T121: 8 | U121: 18 | V121: 29 | W121: 57 | X121: 62 | Y121: 47 | Z121: 31 | AA121: 30 | AB121: 28 | AC121: 65.1 | AD121: 64.7 | AE121: 65.9 | AY121: 158 | AZ121: - | BA121: - | BB121: 1 | BC121: 3 | BD121: - | BE121: - | BF121: - | BG121: 5 | BH121: 1 | BI121: 19 | BJ121: 34 | BK121: 28 | BL121: 23 | BM121: 22 | BN121: 22 | BO121: 72.3 | BP121: 71.9 | BQ121: 73.4 | BR121: 176 | BS121: - | BT121: - | BU121: - | BV121: 1 | BW121: - | BX121: - | BY121: 1 | BZ121: 8 | CA121: 12 | CB121: 24 | CC121: 42 | CD121: 27 | CE121: 21 | CF121: 18 | CG121: 22 | CH121: 176 | CI121: 66 | CJ121: 66 | CK121: - | CL121: - | CM121: 6 | CN121: 104 | CO121: 130 | CP121: 56 | CQ121: 56 | CR121: - | CS121: - | CT121: 1 | CU121: 73 | DC121: 460 | DD121: 332 | DE121: 158 | DF121: 153 | DG121: 21 | DH121: 9 | DI121: 119 | DK121: 167 | DL121: 164 | DM121: - | DN121: - | DO121: - | DP121: 2 | DQ121: - | DR121: - | DS121: 1 | DT121: - | DU121: - | DV121: - | DW121: - | DX121: - | DY121: - | DZ121: - | EA121: 176 | EB121: 22,492 | EC121: 20,667 | ED121: 1,825 | EE121: - | EF121: 249 | EG121: 221 | EH121: 117 | EI121: 88 | EJ121: 16 | EK121: 7 | EL121: 21 | EN121: 211 | EO121: 111 | EP121: 41 | EQ121: 65 | ER121: 5 | ES121: 2 | ET121: 98
A122: 茨城県 | B122: 常陸太田市 | C122: 久米村 | D122: 212-11 | E122: 163 | F122: 162 | G122: 13 | H122: 15 | I122: 134 | J122: 1 | K122: 1 | M122: 363 | N122: 5 | O122: 9 | P122: 8 | Q122: 3 | R122: 6 | S122: 19 | T122: 8 | U122: 16 | V122: 33 | W122: 53 | X122: 57 | Y122: 40 | Z122: 47 | AA122: 31 | AB122: 28 | AC122: 64.2 | AD122: 62.4 | AE122: 66.4 | AY122: 135 | AZ122: - | BA122: - | BB122: 1 | BC122: 1 | BD122: - | BE122: 5 | BF122: - | BG122: 2 | BH122: 4 | BI122: 6 | BJ122: 29 | BK122: 22 | BL122: 30 | BM122: 19 | BN122: 16 | BO122: 72.3 | BP122: 71.8 | BQ122: 73.5 | BR122: 162 | BS122: - | BT122: - | BU122: - | BV122: - | BW122: - | BX122: 1 | BY122: 2 | BZ122: 3 | CA122: 8 | CB122: 25 | CC122: 35 | CD122: 22 | CE122: 24 | CF122: 23 | CG122: 19 | CH122: 162 | CI122: 63 | CJ122: 62 | CK122: - | CL122: 1 | CM122: 6 | CN122: 93 | CO122: 123 | CP122: 55 | CQ122: 55 | CR122: - | CS122: - | CT122: 1 | CU122: 67 | DC122: 453 | DD122: 320 | DE122: 135 | DF122: 165 | DG122: 20 | DH122: 16 | DI122: 117 | DK122: 147 | DL122: 141 | DM122: - | DN122: 2 | DO122: - | DP122: 1 | DQ122: - | DR122: 1 | DS122: 1 | DT122: - | DU122: - | DV122: 1 | DW122: - | DX122: - | DY122: - | DZ122: - | EA122: 162 | EB122: 24,422 | EC122: 22,405 | ED122: 2,017 | EE122: - | EF122: 237 | EG122: 207 | EH122: 93 | EI122: 100 | EJ122: 14 | EK122: 10 | EL122: 20 | EN122: 216 | EO122: 113 | EP122: 42 | EQ122: 65 | ER122: 6 | ES122: 6 | ET122: 97
A123: 茨城県 | B123: 常陸太田市 | C123: 金郷村 | D123: 212-12 | E123: 186 | F123: 185 | G123: 8 | H123: 10 | I123: 167 | J123: 1 | K123: 1 | M123: 385 | N123: 2 | O123: 6 | P123: 10 | Q123: 9 | R123: 9 | S123: 6 | T123: 6 | U123: 19 | V123: 40 | W123: 44 | X123: 61 | Y123: 56 | Z123: 42 | AA123: 35 | AB123: 40 | AC123: 65.7 | AD123: 64.3 | AE123: 67.7 | AY123: 153 | AZ123: - | BA123: 1 | BB123: 1 | BC123: 1 | BD123: - | BE123: - | BF123: 1 | BG123: 1 | BH123: 4 | BI123: 8 | BJ123: 22 | BK123: 35 | BL123: 30 | BM123: 27 | BN123: 22 | BO123: 74.1 | BP123: 73.1 | BQ123: 76.0 | BR123: 185 | BS123: - | BT123: - | BU123: - | BV123: - | BW123: - | BX123: - | BY123: 2 | BZ123: 3 | CA123: 13 | CB123: 17 | CC123: 36 | CD123: 40 | CE123: 25 | CF123: 25 | CG123: 24 | CH123: 185 | CI123: 67 | CJ123: 67 | CK123: - | CL123: - | CM123: 10 | CN123: 108 | CO123: 150 | CP123: 56 | CQ123: 56 | CR123: - | CS123: - | CT123: 4 | CU123: 90 | DC123: 518 | DD123: 357 | DE123: 153 | DF123: 176 | DG123: 28 | DH123: 19 | DI123: 142 | DK123: 175 | DL123: 163 | DM123: - | DN123: 3 | DO123: - | DP123: 6 | DQ123: 1 | DR123: 1 | DS123: - | DT123: - | DU123: - | DV123: - | DW123: - | DX123: 1 | DY123: - | DZ123: - | EA123: 184 | EB123: 24,746 | EC123: 20,902 | ED123: 3,782 | EE123: 62 | EF123: 256 | EG123: 220 | EH123: 101 | EI123: 102 | EJ123: 17 | EK123: 8 | EL123: 28 | EN123: 262 | EO123: 137 | EP123: 52 | EQ123: 74 | ER123: 11 | ES123: 11 | ET123: 114
A124: 茨城県 | B124: 常陸太田市 | C124: 金砂村 | D124: 212-13 | E124: 79 | F124: 77 | G124: 3 | H124: 4 | I124: 70 | J124: 2 | K124: 1 | M124: 158 | N124: 1 | O124: 1 | P124: 3 | Q124: 3 | R124: 1 | S124: 4 | T124: 2 | U124: 5 | V124: 11 | W124: 19 | X124: 23 | Y124: 28 | Z124: 16 | AA124: 18 | AB124: 23 | AC124: 68.8 | AD124: 67.8 | AE124: 70.1 | AY124: 81 | AZ124: - | BA124: - | BB124: - | BC124: - | BD124: - | BE124: - | BF124: 1 | BG124: - | BH124: 1 | BI124: 4 | BJ124: 11 | BK124: 18 | BL124: 12 | BM124: 15 | BN124: 19 | BO124: 76.6 | BP124: 75.7 | BQ124: 78.3 | BR124: 77 | BS124: - | BT124: - | BU124: - | BV124: - | BW124: - | BX124: 1 | BY124: - | BZ124: - | CA124: 3 | CB124: 11 | CC124: 11 | CD124: 17 | CE124: 9 | CF124: 10 | CG124: 15 | CH124: 77 | CI124: 12 | CJ124: 12 | CK124: - | CL124: - | CM124: 1 | CN124: 64 | CO124: 62 | CP124: 11 | CQ124: 11 | CR124: - | CS124: - | CT124: - | CU124: 51 | DC124: 192 | DD124: 141 | DE124: 81 | DF124: 53 | DG124: 7 | DH124: 5 | DI124: 46 | DK124: 62 | DL124: 39 | DM124: - | DN124: 17 | DO124: - | DP124: 1 | DQ124: - | DR124: - | DS124: 2 | DT124: - | DU124: 1 | DV124: 2 | DW124: - | DX124: - | DY124: - | DZ124: - | EA124: 77 | EB124: 6,552 | EC124: 3,710 | ED124: 2,686 | EE124: 156 | EF124: 98 | EG124: 86 | EH124: 52 | EI124: 28 | EJ124: 6 | EK124: 3 | EL124: 9 | EN124: 94 | EO124: 55 | EP124: 29 | EQ124: 25 | ER124: 1 | ES124: 2 | ET124: 37
A125: 茨城県 | B125: 常陸太田市 | C125: 天下野村 | D125: 212-14 | E125: 21 | F125: 21 | G125: 3 | H125: 1 | I125: 17 | J125: - | K125: - | M125: 39 | N125: - | O125: 1 | P125: - | Q125: 2 | R125: 1 | S125: - | T125: - | U125: 1 | V125: 2 | W125: 4 | X125: 7 | Y125: 6 | Z125: 7 | AA125: 5 | AB125: 3 | AC125: 67.9 | AD125: 68.9 | AE125: 65.9 | AY125: 28 | AZ125: - | BA125: - | BB125: - | BC125: 2 | BD125: - | BE125: - | BF125: - | BG125: - | BH125: 2 | BI125: 2 | BJ125: 4 | BK125: 5 | BL125: 7 | BM125: 4 | BN125: 2 | BO125: 70.3 | BP125: 71.1 | BQ125: 68.8 | BR125: 21 | BS125: - | BT125: - | BU125: - | BV125: 1 | BW125: - | BX125: - | BY125: - | BZ125: - | CA125: 1 | CB125: 1 | CC125: 4 | CD125: 2 | CE125: 4 | CF125: 5 | CG125: 3 | CH125: 21 | CI125: 6 | CJ125: 6 | CK125: - | CL125: - | CM125: 1 | CN125: 14 | CO125: 18 | CP125: 5 | CQ125: 5 | CR125: - | CS125: - | CT125: 1 | CU125: 12 | DC125: 49 | DD125: 40 | DE125: 28 | DF125: 11 | DG125: 1 | DH125: 2 | DI125: 7 | DK125: 19 | DL125: 9 | DM125: - | DN125: 1 | DO125: - | DP125: 1 | DQ125: - | DR125: 2 | DS125: - | DT125: 1 | DU125: 1 | DV125: 4 | DW125: - | DX125: - | DY125: - | DZ125: - | EA125: 20 | EB125: 1,766 | EC125: 921 | ED125: 818 | EE125: 27 | EF125: 30 | EG125: 28 | EH125: 19 | EI125: 8 | EJ125: 1 | EK125: 1 | EL125: 1 | EN125: 19 | EO125: 12 | EP125: 9 | EQ125: 3 | ER125: - | ES125: 1 | ET125: 6
A126: 茨城県 | B126: 常陸太田市 | C126: 染和田村 | D126: 212-15 | E126: 73 | F126: 73 | G126: 9 | H126: 8 | I126: 56 | J126: - | K126: - | M126: 149 | N126: - | O126: 1 | P126: 2 | Q126: 3 | R126: 2 | S126: 4 | T126: 6 | U126: 4 | V126: 14 | W126: 24 | X126: 18 | Y126: 29 | Z126: 17 | AA126: 10 | AB126: 15 | AC126: 66.8 | AD126: 66.5 | AE126: 67.1 | AY126: 70 | AZ126: - | BA126: - | BB126: - | BC126: - | BD126: 1 | BE126: - | BF126: - | BG126: 1 | BH126: - | BI126: 10 | BJ126: 8 | BK126: 23 | BL126: 11 | BM126: 8 | BN126: 8 | BO126: 73.0 | BP126: 73.1 | BQ126: 72.8 | BR126: 73 | BS126: - | BT126: - | BU126: - | BV126: 1 | BW126: - | BX126: - | BY126: - | BZ126: - | CA126: 5 | CB126: 10 | CC126: 11 | CD126: 14 | CE126: 13 | CF126: 7 | CG126: 12 | CH126: 73 | CI126: 27 | CJ126: 27 | CK126: - | CL126: - | CM126: 3 | CN126: 43 | CO126: 57 | CP126: 21 | CQ126: 21 | CR126: - | CS126: - | CT126: - | CU126: 36 | DC126: 181 | DD126: 136 | DE126: 70 | DF126: 54 | DG126: 12 | DH126: 6 | DI126: 39 | DK126: 57 | DL126: 46 | DM126: - | DN126: 2 | DO126: - | DP126: 3 | DQ126: - | DR126: 2 | DS126: 2 | DT126: - | DU126: - | DV126: 2 | DW126: - | DX126: - | DY126: - | DZ126: - | EA126: 73 | EB126: 5,021 | EC126: 4,004 | ED126: 871 | EE126: 146 | EF126: 92 | EG126: 80 | EH126: 42 | EI126: 30 | EJ126: 8 | EK126: 3 | EL126: 9 | EN126: 89 | EO126: 56 | EP126: 28 | EQ126: 24 | ER126: 4 | ES126: 3 | ET126: 30
A127: 茨城県 | B127: 常陸太田市 | C127: 高倉村 | D127: 212-16 | E127: 11 | F127: 11 | G127: - | H127: - | I127: 11 | J127: - | K127: - | M127: 23 | N127: - | O127: - | P127: - | Q127: - | R127: - | S127: - | T127: - | U127: 2 | V127: 2 | W127: 3 | X127: 1 | Y127: 1 | Z127: 2 | AA127: 10 | AB127: 2 | AC127: 73.5 | AD127: 74.3 | AE127: 72.6 | AY127: 13 | AZ127: - | BA127: - | BB127: - | BC127: - | BD127: - | BE127: - | BF127: - | BG127: - | BH127: - | BI127: - | BJ127: 1 | BK127: 1 | BL127: 2 | BM127: 7 | BN127: 2 | BO127: 79.8 | BP127: 79.7 | BQ127: 79.8 | BR127: 11 | BS127: - | BT127: - | BU127: - | BV127: - | BW127: - | BX127: - | BY127: - | BZ127: - | CA127: - | CB127: 1 | CC127: 1 | CD127: - | CE127: 2 | CF127: 5 | CG127: 2 | CH127: 11 | CI127: 3 | CJ127: 2 | CK127: - | CL127: 1 | CM127: - | CN127: 8 | CO127: 10 | CP127: 3 | CQ127: 2 | CR127: - | CS127: 1 | CT127: - | CU127: 7 | DC127: 29 | DD127: 23 | DE127: 13 | DF127: 8 | DG127: 2 | DH127: - | DI127: 6 | DK127: 9 | DL127: 4 | DM127: - | DN127: - | DO127: 2 | DP127: - | DQ127: - | DR127: - | DS127: - | DT127: 2 | DU127: - | DV127: - | DW127: - | DX127: 1 | DY127: - | DZ127: - | EA127: 11 | EB127: 634 | EC127: 300 | ED127: 334 | EE127: - | EF127: 14 | EG127: 12 | EH127: 7 | EI127: 5 | EJ127: - | EK127: - | EL127: 2 | EN127: 15 | EO127: 11 | EP127: 6 | EQ127: 3 | ER127: 2 | ES127: - | ET127: 4
A128: 茨城県 | B128: 常陸太田市 | C128: 山田村 | D128: 212-17 | E128: 102 | F128: 100 | G128: 14 | H128: 12 | I128: 74 | J128: 2 | K128: 2 | M128: 218 | N128: - | O128: 5 | P128: - | Q128: 2 | R128: 6 | S128: 12 | T128: 9 | U128: 9 | V128: 20 | W128: 24 | X128: 39 | Y128: 33 | Z128: 26 | AA128: 18 | AB128: 15 | AC128: 65.2 | AD128: 65.0 | AE128: 65.5 | AY128: 110 | AZ128: - | BA128: - | BB128: - | BC128: - | BD128: 3 | BE128: 2 | BF128: - | BG128: 2 | BH128: - | BI128: 11 | BJ128: 21 | BK128: 28 | BL128: 20 | BM128: 13 | BN128: 10 | BO128: 71.6 | BP128: 72.4 | BQ128: 70.3 | BR128: 100 | BS128: - | BT128: - | BU128: - | BV128: - | BW128: 1 | BX128: - | BY128: 1 | BZ128: 1 | CA128: 5 | CB128: 15 | CC128: 15 | CD128: 21 | CE128: 19 | CF128: 9 | CG128: 13 | CH128: 100 | CI128: 28 | CJ128: 28 | CK128: - | CL128: - | CM128: - | CN128: 72 | CO128: 77 | CP128: 25 | CQ128: 25 | CR128: - | CS128: - | CT128: - | CU128: 52 | DC128: 270 | DD128: 195 | DE128: 110 | DF128: 76 | DG128: 9 | DH128: 11 | DI128: 64 | DK128: 93 | DL128: 71 | DM128: - | DN128: 1 | DO128: - | DP128: 3 | DQ128: 2 | DR128: 11 | DS128: 3 | DT128: 1 | DU128: - | DV128: 1 | DW128: - | DX128: - | DY128: - | DZ128: - | EA128: 100 | EB128: 7,249 | EC128: 4,720 | ED128: 1,655 | EE128: 874 | EF128: 146 | EG128: 126 | EH128: 69 | EI128: 51 | EJ128: 6 | EK128: 8 | EL128: 12 | EN128: 124 | EO128: 69 | EP128: 41 | EQ128: 25 | ER128: 3 | ES128: 3 | ET128: 52
A129: 茨城県 | B129: 常陸太田市 | C129: 河内村2-2 | D129: 212-18 | E129: - | F129: - | G129: - | H129: - | I129: - | J129: - | K129: - | M129: - | N129: - | O129: - | P129: - | Q129: - | R129: - | S129: - | T129: - | U129: - | V129: - | W129: - | X129: - | Y129: - | Z129: - | AA129: - | AB129: - | AC129: - | AD129: - | AE129: - | AY129: - | AZ129: - | BA129: - | BB129: - | BC129: - | BD129: - | BE129: - | BF129: - | BG129: - | BH129: - | BI129: - | BJ129: - | BK129: - | BL129: - | BM129: - | BN129: - | BO129: - | BP129: - | BQ129: - | BR129: - | BS129: - | BT129: - | BU129: - | BV129: - | BW129: - | BX129: - | BY129: - | BZ129: - | CA129: - | CB129: - | CC129: - | CD129: - | CE129: - | CF129: - | CG129: - | CH129: - | CI129: - | CJ129: - | CK129: - | CL129: - | CM129: - | CN129: - | CO129: - | CP129: - | CQ129: - | CR129: - | CS129: - | CT129: - | CU129: - | DC129: - | DD129: - | DE129: - | DF129: - | DG129: - | DH129: - | DI129: - | DK129: - | DL129: - | DM129: - | DN129: - | DO129: - | DP129: - | DQ129: - | DR129: - | DS129: - | DT129: - | DU129: - | DV129: - | DW129: - | DX129: - | DY129: - | DZ129: - | EA129: - | EB129: - | EC129: - | ED129: - | EE129: - | EF129: - | EG129: - | EH129: - | EI129: - | EJ129: - | EK129: - | EL129: - | EN129: - | EO129: - | EP129: - | EQ129: - | ER129: - | ES129: - | ET129: -
A130: 茨城県 | B130: 常陸太田市 | C130: 小里村 | D130: 212-19 | E130: 151 | F130: 150 | G130: 15 | H130: 15 | I130: 120 | J130: 1 | K130: 1 | M130: 326 | N130: 2 | O130: 4 | P130: 2 | Q130: 7 | R130: 11 | S130: 14 | T130: 16 | U130: 14 | V130: 24 | W130: 51 | X130: 51 | Y130: 55 | Z130: 31 | AA130: 28 | AB130: 16 | AC130: 64.1 | AD130: 62.3 | AE130: 66.3 | AY130: 140 | AZ130: - | BA130: - | BB130: 1 | BC130: 1 | BD130: 1 | BE130: 3 | BF130: 3 | BG130: 1 | BH130: - | BI130: 10 | BJ130: 28 | BK130: 39 | BL130: 27 | BM130: 20 | BN130: 6 | BO130: 71.2 | BP130: 71.5 | BQ130: 70.8 | BR130: 150 | BS130: - | BT130: - | BU130: 1 | BV130: - | BW130: 1 | BX130: 2 | BY130: 3 | BZ130: 5 | CA130: 7 | CB130: 26 | CC130: 24 | CD130: 34 | CE130: 21 | CF130: 20 | CG130: 6 | CH130: 150 | CI130: 48 | CJ130: 47 | CK130: - | CL130: 1 | CM130: 4 | CN130: 98 | CO130: 105 | CP130: 34 | CQ130: 34 | CR130: - | CS130: - | CT130: 2 | CU130: 69 | DC130: 415 | DD130: 315 | DE130: 140 | DF130: 154 | DG130: 21 | DH130: 18 | DI130: 82 | DK130: 122 | DL130: 103 | DM130: - | DN130: 2 | DO130: - | DP130: 6 | DQ130: - | DR130: 1 | DS130: - | DT130: - | DU130: 3 | DV130: 6 | DW130: - | DX130: 1 | DY130: - | DZ130: - | EA130: 150 | EB130: 14,483 | EC130: 10,416 | ED130: 3,914 | EE130: 153 | EF130: 210 | EG130: 183 | EH130: 82 | EI130: 87 | EJ130: 14 | EK130: 8 | EL130: 19 | EN130: 205 | EO130: 132 | EP130: 58 | EQ130: 67 | ER130: 7 | ES130: 10 | ET130: 63
A131: 茨城県 | B131: 常陸太田市 | C131: 賀美村 | D131: 212-20 | E131: 66 | F131: 65 | G131: 6 | H131: 6 | I131: 53 | J131: 1 | K131: 1 | M131: 134 | N131: - | O131: 2 | P131: 2 | Q131: - | R131: 6 | S131: 5 | T131: 3 | U131: 8 | V131: 13 | W131: 12 | X131: 32 | Y131: 19 | Z131: 12 | AA131: 11 | AB131: 9 | AC131: 65.2 | AD131: 65.1 | AE131: 65.3 | AY131: 56 | AZ131: - | BA131: - | BB131: - | BC131: - | BD131: - | BE131: - | BF131: 1 | BG131: 2 | BH131: 2 | BI131: 2 | BJ131: 16 | BK131: 13 | BL131: 7 | BM131: 9 | BN131: 4 | BO131: 72.0 | BP131: 72.8 | BQ131: 70.4 | BR131: 65 | BS131: - | BT131: - | BU131: - | BV131: - | BW131: - | BX131: - | BY131: - | BZ131: 2 | CA131: 5 | CB131: 6 | CC131: 17 | CD131: 10 | CE131: 11 | CF131: 8 | CG131: 6 | CH131: 65 | CI131: 18 | CJ131: 18 | CK131: - | CL131: - | CM131: 2 | CN131: 45 | CO131: 52 | CP131: 17 | CQ131: 17 | CR131: - | CS131: - | CT131: - | CU131: 35 | DC131: 180 | DD131: 128 | DE131: 56 | DF131: 60 | DG131: 12 | DH131: 4 | DI131: 48 | DK131: 50 | DL131: 33 | DM131: 1 | DN131: 2 | DO131: 2 | DP131: 4 | DQ131: - | DR131: 1 | DS131: - | DT131: 4 | DU131: 1 | DV131: 1 | DW131: - | DX131: 1 | DY131: - | DZ131: - | EA131: 64 | EB131: 4,959 | EC131: 3,466 | ED131: 1,352 | EE131: 141 | EF131: 89 | EG131: 78 | EH131: 36 | EI131: 36 | EJ131: 6 | EK131: 3 | EL131: 8 | EN131: 91 | EO131: 50 | EP131: 20 | EQ131: 24 | ER131: 6 | ES131: 1 | ET131: 40
A132: 茨城県 | B132: 高萩市 | D132: 214-00 | E132: 280 | F132: 266 | G132: 35 | H132: 32 | I132: 199 | J132: 14 | K132: 12 | M132: 610 | N132: 7 | O132: 11 | P132: 12 | Q132: 21 | R132: 13 | S132: 16 | T132: 25 | U132: 33 | V132: 60 | W132: 79 | X132: 99 | Y132: 79 | Z132: 66 | AA132: 49 | AB132: 40 | AC132: 63.4 | AD132: 63.0 | AE132: 63.9 | AY132: 288 | AZ132: - | BA132: - | BB132: - | BC132: 1 | BD132: 4 | BE132: 5 | BF132: 7 | BG132: 7 | BH132: 13 | BI132: 21 | BJ132: 53 | BK132: 62 | BL132: 52 | BM132: 42 | BN132: 21 | BO132: 71.0 | BP132: 70.4 | BQ132: 72.2 | BR132: 266 | BS132: - | BT132: - | BU132: - | BV132: - | BW132: 1 | BX132: 2 | BY132: 8 | BZ132: 6 | CA132: 24 | CB132: 37 | CC132: 55 | CD132: 49 | CE132: 36 | CF132: 25 | CG132: 23 | CH132: 266 | CI132: 60 | CJ132: 60 | CK132: - | CL132: - | CM132: 3 | CN132: 203 | CO132: 188 | CP132: 45 | CQ132: 45 | CR132: - | CS132: - | CT132: 2 | CU132: 141 | DC132: 736 | DD132: 556 | DE132: 288 | DF132: 240 | DG132: 28 | DH132: 31 | DI132: 149 | DK132: 234 | DL132: 189 | DM132: - | DN132: 2 | DO132: - | DP132: 18 | DQ132: 4 | DR132: 1 | DS132: 4 | DT132: 2 | DU132: 2 | DV132: 9 | DW132: - | DX132: 3 | DY132: - | DZ132: - | EA132: 266 | EB132: 34,781 | EC132: 27,528 | ED132: 7,097 | EE132: 156 | EF132: 376 | EG132: 336 | EH132: 186 | EI132: 132 | EJ132: 18 | EK132: 14 | EL132: 26 | EN132: 360 | EO132: 220 | EP132: 102 | EQ132: 108 | ER132: 10 | ES132: 17 | ET132: 123
A133: 茨城県 | B133: 高萩市 | C133: 高萩町 | D133: 214-01 | E133: 122 | F133: 111 | G133: 21 | H133: 17 | I133: 73 | J133: 11 | K133: 10 | M133: 258 | N133: 3 | O133: 6 | P133: 3 | Q133: 16 | R133: 8 | S133: 4 | T133: 11 | U133: 17 | V133: 27 | W133: 37 | X133: 45 | Y133: 17 | Z133: 25 | AA133: 20 | AB133: 19 | AC133: 61.8 | AD133: 61.0 | AE133: 63.1 | AY133: 109 | AZ133: - | BA133: - | BB133: - | BC133: 1 | BD133: 3 | BE133: 2 | BF133: 3 | BG133: 3 | BH133: 8 | BI133: 8 | BJ133: 21 | BK133: 13 | BL133: 18 | BM133: 17 | BN133: 12 | BO133: 70.3 | BP133: 69.5 | BQ133: 71.9 | BR133: 111 | BS133: - | BT133: - | BU133: - | BV133: - | BW133: - | BX133: - | BY133: 5 | BZ133: 4 | CA133: 11 | CB133: 14 | CC133: 29 | CD133: 15 | CE133: 10 | CF133: 11 | CG133: 12 | CH133: 111 | CI133: 33 | CJ133: 33 | CK133: - | CL133: - | CM133: 3 | CN133: 75 | CO133: 77 | CP133: 25 | CQ133: 25 | CR133: - | CS133: - | CT133: 2 | CU133: 50 | DC133: 312 | DD133: 231 | DE133: 109 | DF133: 109 | DG133: 13 | DH133: 15 | DI133: 66 | DK133: 99 | DL133: 85 | DM133: - | DN133: 2 | DO133: - | DP133: 3 | DQ133: 1 | DR133: 1 | DS133: 1 | DT133: 1 | DU133: 1 | DV133: 4 | DW133: - | DX133: - | DY133: - | DZ133: - | EA133: 111 | EB133: 19,130 | EC133: 15,381 | ED133: 3,664 | EE133: 85 | EF133: 170 | EG133: 149 | EH133: 73 | EI133: 69 | EJ133: 7 | EK133: 10 | EL133: 11 | EN133: 142 | EO133: 82 | EP133: 36 | EQ133: 40 | ER133: 6 | ES133: 5 | ET133: 55
A134: 茨城県 | B134: 高萩市 | C134: 松岡町 | D134: 214-02 | E134: 90 | F134: 89 | G134: 9 | H134: 7 | I134: 73 | J134: 1 | K134: - | M134: 206 | N134: 3 | O134: 4 | P134: 7 | Q134: 2 | R134: 4 | S134: 9 | T134: 9 | U134: 8 | V134: 22 | W134: 17 | X134: 32 | Y134: 43 | Z134: 25 | AA134: 13 | AB134: 8 | AC134: 63.1 | AD134: 63.8 | AE134: 62.2 | AY134: 110 | AZ134: - | BA134: - | BB134: - | BC134: - | BD134: 1 | BE134: 3 | BF134: 2 | BG134: 2 | BH134: 3 | BI134: 6 | BJ134: 20 | BK134: 35 | BL134: 21 | BM134: 13 | BN134: 4 | BO134: 71.0 | BP134: 70.6 | BQ134: 71.5 | BR134: 89 | BS134: - | BT134: - | BU134: - | BV134: - | BW134: - | BX134: 2 | BY134: 2 | BZ134: 1 | CA134: 7 | CB134: 11 | CC134: 15 | CD134: 21 | CE134: 18 | CF134: 8 | CG134: 4 | CH134: 89 | CI134: 13 | CJ134: 13 | CK134: - | CL134: - | CM134: - | CN134: 76 | CO134: 66 | CP134: 8 | CQ134: 8 | CR134: - | CS134: - | CT134: - | CU134: 58 | DC134: 253 | DD134: 200 | DE134: 110 | DF134: 87 | DG134: 3 | DH134: 12 | DI134: 41 | DK134: 77 | DL134: 55 | DM134: - | DN134: - | DO134: - | DP134: 15 | DQ134: 2 | DR134: - | DS134: 2 | DT134: - | DU134: - | DV134: - | DW134: - | DX134: 3 | DY134: - | DZ134: - | EA134: 89 | EB134: 10,143 | EC134: 7,850 | ED134: 2,254 | EE134: 39 | EF134: 120 | EG134: 110 | EH134: 71 | EI134: 37 | EJ134: 2 | EK134: 4 | EL134: 6 | EN134: 133 | EO134: 90 | EP134: 39 | EQ134: 50 | ER134: 1 | ES134: 8 | ET134: 35
A135: 茨城県 | B135: 高萩市 | C135: 高岡村 | D135: 214-03 | E135: 63 | F135: 61 | G135: 5 | H135: 8 | I135: 48 | J135: 2 | K135: 2 | M135: 138 | N135: 1 | O135: 1 | P135: 2 | Q135: 3 | R135: 1 | S135: 3 | T135: 5 | U135: 7 | V135: 9 | W135: 25 | X135: 21 | Y135: 18 | Z135: 15 | AA135: 15 | AB135: 12 | AC135: 66.5 | AD135: 65.6 | AE135: 67.5 | AY135: 64 | AZ135: - | BA135: - | BB135: - | BC135: - | BD135: - | BE135: - | BF135: 2 | BG135: 2 | BH135: 1 | BI135: 7 | BJ135: 11 | BK135: 13 | BL135: 13 | BM135: 11 | BN135: 4 | BO135: 72.3 | BP135: 71.0 | BQ135: 74.1 | BR135: 61 | BS135: - | BT135: - | BU135: - | BV135: - | BW135: 1 | BX135: - | BY135: 1 | BZ135: 1 | CA135: 5 | CB135: 12 | CC135: 10 | CD135: 12 | CE135: 8 | CF135: 5 | CG135: 6 | CH135: 61 | CI135: 14 | CJ135: 14 | CK135: - | CL135: - | CM135: - | CN135: 47 | CO135: 41 | CP135: 12 | CQ135: 12 | CR135: - | CS135: - | CT135: - | CU135: 29 | DC135: 160 | DD135: 118 | DE135: 64 | DF135: 43 | DG135: 11 | DH135: 4 | DI135: 38 | DK135: 54 | DL135: 45 | DM135: - | DN135: - | DO135: - | DP135: - | DQ135: 1 | DR135: - | DS135: 1 | DT135: 1 | DU135: 1 | DV135: 5 | DW135: - | DX135: - | DY135: - | DZ135: - | EA135: 61 | EB135: 5,248 | EC135: 4,080 | ED135: 1,136 | EE135: 32 | EF135: 79 | EG135: 71 | EH135: 38 | EI135: 25 | EJ135: 8 | EK135: - | EL135: 8 | EN135: 81 | EO135: 47 | EP135: 26 | EQ135: 18 | ER135: 3 | ES135: 4 | ET135: 30
A136: 茨城県 | B136: 高萩市 | C136: 黒前村2-2 | D136: 214-04 | E136: 5 | F136: 5 | G136: - | H136: - | I136: 5 | J136: - | K136: - | M136: 8 | N136: - | O136: - | P136: - | Q136: - | R136: - | S136: - | T136: - | U136: 1 | V136: 2 | W136: - | X136: 1 | Y136: 1 | Z136: 1 | AA136: 1 | AB136: 1 | AC136: 69.0 | AD136: 70.3 | AE136: 65.0 | AY136: 5 | AZ136: - | BA136: - | BB136: - | BC136: - | BD136: - | BE136: - | BF136: - | BG136: - | BH136: 1 | BI136: - | BJ136: 1 | BK136: 1 | BL136: - | BM136: 1 | BN136: 1 | BO136: 73.0 | BP136: 77.5 | BQ136: 55.0 | BR136: 5 | BS136: - | BT136: - | BU136: - | BV136: - | BW136: - | BX136: - | BY136: - | BZ136: - | CA136: 1 | CB136: - | CC136: 1 | CD136: 1 | CE136: - | CF136: 1 | CG136: 1 | CH136: 5 | CI136: - | CJ136: - | CK136: - | CL136: - | CM136: - | CN136: 5 | CO136: 4 | CP136: - | CQ136: - | CR136: - | CS136: - | CT136: - | CU136: 4 | DC136: 11 | DD136: 7 | DE136: 5 | DF136: 1 | DG136: 1 | DH136: - | DI136: 4 | DK136: 4 | DL136: 4 | DM136: - | DN136: - | DO136: - | DP136: - | DQ136: - | DR136: - | DS136: - | DT136: - | DU136: - | DV136: - | DW136: - | DX136: - | DY136: - | DZ136: - | EA136: 5 | EB136: 260 | EC136: 217 | ED136: 43 | EE136: - | EF136: 7 | EG136: 6 | EH136: 4 | EI136: 1 | EJ136: 1 | EK136: - | EL136: 1 | EN136: 4 | EO136: 1 | EP136: 1 | EQ136: - | ER136: - | ES136: - | ET136: 3
A137: 茨城県 | B137: 北茨城市 | D137: 215-00 | E137: 653 | F137: 649 | G137: 49 | H137: 101 | I137: 499 | J137: 4 | K137: 4 | M137: 1,524 | N137: 28 | O137: 33 | P137: 41 | Q137: 47 | R137: 44 | S137: 59 | T137: 69 | U137: 89 | V137: 157 | W137: 211 | X137: 232 | Y137: 162 | Z137: 144 | AA137: 98 | AB137: 110 | AC137: 61.6 | AD137: 60.7 | AE137: 62.9 | AY137: 560 | AZ137: - | BA137: - | BB137: 2 | BC137: 5 | BD137: 6 | BE137: 10 | BF137: 5 | BG137: 6 | BH137: 12 | BI137: 44 | BJ137: 121 | BK137: 112 | BL137: 94 | BM137: 77 | BN137: 66 | BO137: 72.1 | BP137: 72.1 | BQ137: 71.9 | BR137: 649 | BS137: - | BT137: - | BU137: - | BV137: - | BW137: 4 | BX137: 9 | BY137: 17 | BZ137: 22 | CA137: 64 | CB137: 112 | CC137: 123 | CD137: 94 | CE137: 85 | CF137: 58 | CG137: 61 | CH137: 649 | CI137: 199 | CJ137: 198 | CK137: - | CL137: 1 | CM137: 28 | CN137: 422 | CO137: 421 | CP137: 164 | CQ137: 163 | CR137: - | CS137: 1 | CT137: 8 | CU137: 249 | DC137: 1,906 | DD137: 1,344 | DE137: 560 | DF137: 694 | DG137: 90 | DH137: 93 | DI137: 469 | DK137: 568 | DL137: 475 | DM137: - | DN137: 4 | DO137: - | DP137: 15 | DQ137: 6 | DR137: 2 | DS137: 9 | DT137: 44 | DU137: - | DV137: 13 | DW137: - | DX137: - | DY137: - | DZ137: - | EA137: 649 | EB137: 79,843 | EC137: 72,357 | ED137: 7,285 | EE137: 201 | EF137: 987 | EG137: 863 | EH137: 375 | EI137: 423 | EJ137: 65 | EK137: 49 | EL137: 75 | EN137: 919 | EO137: 481 | EP137: 185 | EQ137: 271 | ER137: 25 | ES137: 44 | ET137: 394
A138: 茨城県 | B138: 北茨城市 | C138: 南中郷村 | D138: 215-01 | E138: 150 | F138: 150 | G138: 15 | H138: 18 | I138: 117 | J138: - | K138: - | M138: 332 | N138: 1 | O138: 3 | P138: 11 | Q138: 10 | R138: 11 | S138: 17 | T138: 12 | U138: 14 | V138: 28 | W138: 43 | X138: 55 | Y138: 40 | Z138: 37 | AA138: 27 | AB138: 23 | AC138: 63.3 | AD138: 62.5 | AE138: 64.4 | AY138: 149 | AZ138: - | BA138: - | BB138: 1 | BC138: 2 | BD138: 1 | BE138: 4 | BF138: 3 | BG138: 4 | BH138: 3 | BI138: 10 | BJ138: 28 | BK138: 30 | BL138: 25 | BM138: 23 | BN138: 15 | BO138: 71.2 | BP138: 71.9 | BQ138: 69.8 | BR138: 150 | BS138: - | BT138: - | BU138: - | BV138: - | BW138: 1 | BX138: 5 | BY138: 6 | BZ138: 3 | CA138: 11 | CB138: 24 | CC138: 30 | CD138: 23 | CE138: 22 | CF138: 18 | CG138: 7 | CH138: 150 | CI138: 40 | CJ138: 40 | CK138: - | CL138: - | CM138: 11 | CN138: 99 | CO138: 100 | CP138: 34 | CQ138: 34 | CR138: - | CS138: - | CT138: 3 | CU138: 63 | DC138: 407 | DD138: 304 | DE138: 149 | DF138: 142 | DG138: 13 | DH138: 14 | DI138: 89 | DK138: 130 | DL138: 104 | DM138: - | DN138: - | DO138: - | DP138: 1 | DQ138: 4 | DR138: 1 | DS138: 2 | DT138: 14 | DU138: - | DV138: 4 | DW138: - | DX138: - | DY138: - | DZ138: - | EA138: 150 | EB138: 22,787 | EC138: 21,302 | ED138: 1,385 | EE138: 100 | EF138: 212 | EG138: 196 | EH138: 98 | EI138: 90 | EJ138: 8 | EK138: 7 | EL138: 9 | EN138: 195 | EO138: 108 | EP138: 51 | EQ138: 52 | ER138: 5 | ES138: 7 | ET138: 80
A139: 茨城県 | B139: 北茨城市 | C139: 磯原町 | D139: 215-02 | E139: 141 | F139: 140 | G139: 7 | H139: 29 | I139: 104 | J139: 1 | K139: 1 | M139: 322 | N139: 6 | O139: 8 | P139: 8 | Q139: 13 | R139: 7 | S139: 12 | T139: 15 | U139: 21 | V139: 33 | W139: 50 | X139: 53 | Y139: 33 | Z139: 24 | AA139: 23 | AB139: 16 | AC139: 60.6 | AD139: 59.6 | AE139: 62.1 | AY139: 103 | AZ139: - | BA139: - | BB139: - | BC139: 2 | BD139: 1 | BE139: 1 | BF139: - | BG139: 2 | BH139: 2 | BI139: 11 | BJ139: 21 | BK139: 22 | BL139: 16 | BM139: 17 | BN139: 8 | BO139: 71.5 | BP139: 71.0 | BQ139: 72.8 | BR139: 140 | BS139: - | BT139: - | BU139: - | BV139: - | BW139: - | BX139: - | BY139: 5 | BZ139: 6 | CA139: 15 | CB139: 25 | CC139: 30 | CD139: 20 | CE139: 14 | CF139: 16 | CG139: 9 | CH139: 140 | CI139: 39 | CJ139: 38 | CK139: - | CL139: 1 | CM139: 8 | CN139: 93 | CO139: 89 | CP139: 33 | CQ139: 32 | CR139: - | CS139: 1 | CT139: 1 | CU139: 55 | DC139: 401 | DD139: 266 | DE139: 103 | DF139: 136 | DG139: 27 | DH139: 20 | DI139: 115 | DK139: 124 | DL139: 110 | DM139: - | DN139: 1 | DO139: - | DP139: 4 | DQ139: - | DR139: - | DS139: 3 | DT139: 5 | DU139: - | DV139: 1 | DW139: - | DX139: - | DY139: - | DZ139: - | EA139: 140 | EB139: 16,470 | EC139: 15,396 | ED139: 1,045 | EE139: 29 | EF139: 207 | EG139: 179 | EH139: 75 | EI139: 86 | EJ139: 18 | EK139: 10 | EL139: 18 | EN139: 194 | EO139: 87 | EP139: 28 | EQ139: 50 | ER139: 9 | ES139: 10 | ET139: 97
A140: 茨城県 | B140: 北茨城市 | C140: 華川村 | D140: 215-03 | E140: 122 | F140: 120 | G140: 12 | H140: 20 | I140: 88 | J140: 2 | K140: 2 | M140: 299 | N140: 7 | O140: 9 | P140: 5 | Q140: 6 | R140: 16 | S140: 15 | T140: 16 | U140: 19 | V140: 29 | W140: 39 | X140: 39 | Y140: 36 | Z140: 29 | AA140: 17 | AB140: 17 | AC140: 60.2 | AD140: 60.2 | AE140: 60.3 | AY140: 116 | AZ140: - | BA140: - | BB140: - | BC140: 1 | BD140: 4 | BE140: 4 | BF140: 1 | BG140: - | BH140: 4 | BI140: 6 | BJ140: 24 | BK140: 29 | BL140: 22 | BM140: 11 | BN140: 10 | BO140: 70.5 | BP140: 71.2 | BQ140: 69.3 | BR140: 120 | BS140: - | BT140: - | BU140: - | BV140: - | BW140: 1 | BX140: 2 | BY140: 2 | BZ140: 6 | CA140: 11 | CB140: 24 | CC140: 16 | CD140: 20 | CE140: 20 | CF140: 7 | CG140: 11 | CH140: 120 | CI140: 51 | CJ140: 51 | CK140: - | CL140: - | CM140: 2 | CN140: 67 | CO140: 74 | CP140: 37 | CQ140: 37 | CR140: - | CS140: - | CT140: 1 | CU140: 36 | DC140: 368 | DD140: 272 | DE140: 116 | DF140: 139 | DG140: 17 | DH140: 18 | DI140: 78 | DK140: 103 | DL140: 81 | DM140: - | DN140: 3 | DO140: - | DP140: 2 | DQ140: - | DR140: - | DS140: 1 | DT140: 9 | DU140: - | DV140: 7 | DW140: - | DX140: - | DY140: - | DZ140: - | EA140: 120 | EB140: 15,025 | EC140: 12,941 | ED140: 2,045 | EE140: 39 | EF140: 189 | EG140: 162 | EH140: 69 | EI140: 82 | EJ140: 11 | EK140: 11 | EL140: 16 | EN140: 179 | EO140: 110 | EP140: 47 | EQ140: 57 | ER140: 6 | ES140: 7 | ET140: 62
A141: 茨城県 | B141: 北茨城市 | C141: 関南村 | D141: 215-04 | E141: 88 | F141: 88 | G141: 5 | H141: 16 | I141: 67 | J141: - | K141: - | M141: 213 | N141: 6 | O141: 7 | P141: 6 | Q141: 10 | R141: 3 | S141: 6 | T141: 9 | U141: 9 | V141: 22 | W141: 34 | X141: 31 | Y141: 20 | Z141: 18 | AA141: 10 | AB141: 22 | AC141: 61.1 | AD141: 59.6 | AE141: 63.5 | AY141: 67 | AZ141: - | BA141: - | BB141: - | BC141: - | BD141: - | BE141: 1 | BF141: 1 | BG141: - | BH141: 1 | BI141: 6 | BJ141: 21 | BK141: 12 | BL141: 9 | BM141: 7 | BN141: 9 | BO141: 72.3 | BP141: 72.1 | BQ141: 72.8 | BR141: 88 | BS141: - | BT141: - | BU141: - | BV141: - | BW141: - | BX141: - | BY141: 2 | BZ141: 2 | CA141: 9 | CB141: 17 | CC141: 19 | CD141: 12 | CE141: 9 | CF141: 6 | CG141: 12 | CH141: 88 | CI141: 23 | CJ141: 23 | CK141: - | CL141: - | CM141: 2 | CN141: 63 | CO141: 58 | CP141: 19 | CQ141: 19 | CR141: - | CS141: - | CT141: 1 | CU141: 38 | DC141: 260 | DD141: 167 | DE141: 67 | DF141: 90 | DG141: 10 | DH141: 18 | DI141: 75 | DK141: 79 | DL141: 67 | DM141: - | DN141: - | DO141: - | DP141: 2 | DQ141: 2 | DR141: - | DS141: - | DT141: 8 | DU141: - | DV141: - | DW141: - | DX141: - | DY141: - | DZ141: - | EA141: 88 | EB141: 9,508 | EC141: 8,799 | ED141: 705 | EE141: 4 | EF141: 135 | EG141: 108 | EH141: 46 | EI141: 53 | EJ141: 9 | EK141: 11 | EL141: 16 | EN141: 125 | EO141: 59 | EP141: 21 | EQ141: 37 | ER141: 1 | ES141: 7 | ET141: 59
A142: 茨城県 | B142: 北茨城市 | C142: 大津町 | D142: 215-05 | E142: 11 | F142: 11 | G142: 1 | H142: 1 | I142: 9 | J142: - | K142: - | M142: 28 | N142: - | O142: - | P142: 2 | Q142: 1 | R142: - | S142: 1 | T142: 1 | U142: - | V142: 1 | W142: 6 | X142: 7 | Y142: 1 | Z142: 3 | AA142: 1 | AB142: 4 | AC142: 65.0 | AD142: 64.3 | AE142: 66.1 | AY142: 8 | AZ142: - | BA142: - | BB142: - | BC142: - | BD142: - | BE142: - | BF142: - | BG142: - | BH142: - | BI142: 2 | BJ142: 1 | BK142: - | BL142: 2 | BM142: - | BN142: 3 | BO142: 75.6 | BP142: 79.5 | BQ142: 71.8 | BR142: 11 | BS142: - | BT142: - | BU142: - | BV142: - | BW142: - | BX142: - | BY142: - | BZ142: - | CA142: - | CB142: 2 | CC142: 4 | CD142: - | CE142: 2 | CF142: - | CG142: 3 | CH142: 11 | CI142: 4 | CJ142: 4 | CK142: - | CL142: - | CM142: 1 | CN142: 6 | CO142: 9 | CP142: 3 | CQ142: 3 | CR142: - | CS142: - | CT142: 1 | CU142: 5 | DC142: 37 | DD142: 24 | DE142: 8 | DF142: 12 | DG142: 4 | DH142: - | DI142: 13 | DK142: 9 | DL142: 8 | DM142: - | DN142: - | DO142: - | DP142: - | DQ142: - | DR142: - | DS142: - | DT142: 1 | DU142: - | DV142: - | DW142: - | DX142: - | DY142: - | DZ142: - | EA142: 11 | EB142: 753 | EC142: 706 | ED142: 47 | EE142: - | EF142: 18 | EG142: 16 | EH142: 4 | EI142: 8 | EJ142: 4 | EK142: - | EL142: 2 | EN142: 19 | EO142: 8 | EP142: 4 | EQ142: 4 | ER142: - | ES142: - | ET142: 11
A143: 茨城県 | B143: 北茨城市 | C143: 平潟町 | D143: 215-06 | E143: - | F143: - | G143: - | H143: - | I143: - | J143: - | K143: - | M143: - | N143: - | O143: - | P143: - | Q143: - | R143: - | S143: - | T143: - | U143: - | V143: - | W143: - | X143: - | Y143: - | Z143: - | AA143: - | AB143: - | AC143: - | AD143: - | AE143: - | AY143: - | AZ143: - | BA143: - | BB143: - | BC143: - | BD143: - | BE143: - | BF143: - | BG143: - | BH143: - | BI143: - | BJ143: - | BK143: - | BL143: - | BM143: - | BN143: - | BO143: - | BP143: - | BQ143: - | BR143: - | BS143: - | BT143: - | BU143: - | BV143: - | BW143: - | BX143: - | BY143: - | BZ143: - | CA143: - | CB143: - | CC143: - | CD143: - | CE143: - | CF143: - | CG143: - | CH143: - | CI143: - | CJ143: - | CK143: - | CL143: - | CM143: - | CN143: - | CO143: - | CP143: - | CQ143: - | CR143: - | CS143: - | CT143: - | CU143: - | DC143: - | DD143: - | DE143: - | DF143: - | DG143: - | DH143: - | DI143: - | DK143: - | DL143: - | DM143: - | DN143: - | DO143: - | DP143: - | DQ143: - | DR143: - | DS143: - | DT143: - | DU143: - | DV143: - | DW143: - | DX143: - | DY143: - | DZ143: - | EA143: - | EB143: - | EC143: - | ED143: - | EE143: - | EF143: - | EG143: - | EH143: - | EI143: - | EJ143: - | EK143: - | EL143: - | EN143: - | EO143: - | EP143: - | EQ143: - | ER143: - | ES143: - | ET143: -
A144: 茨城県 | B144: 北茨城市 | C144: 関本村 | D144: 215-07 | E144: 141 | F144: 140 | G144: 9 | H144: 17 | I144: 114 | J144: 1 | K144: 1 | M144: 330 | N144: 8 | O144: 6 | P144: 9 | Q144: 7 | R144: 7 | S144: 8 | T144: 16 | U144: 26 | V144: 44 | W144: 39 | X144: 47 | Y144: 32 | Z144: 33 | AA144: 20 | AB144: 28 | AC144: 62.0 | AD144: 60.7 | AE144: 64.0 | AY144: 117 | AZ144: - | BA144: - | BB144: 1 | BC144: - | BD144: - | BE144: - | BF144: - | BG144: - | BH144: 2 | BI144: 9 | BJ144: 26 | BK144: 19 | BL144: 20 | BM144: 19 | BN144: 21 | BO144: 74.9 | BP144: 73.8 | BQ144: 77.6 | BR144: 140 | BS144: - | BT144: - | BU144: - | BV144: - | BW144: 2 | BX144: 2 | BY144: 2 | BZ144: 5 | CA144: 18 | CB144: 20 | CC144: 24 | CD144: 19 | CE144: 18 | CF144: 11 | CG144: 19 | CH144: 140 | CI144: 42 | CJ144: 42 | CK144: - | CL144: - | CM144: 4 | CN144: 94 | CO144: 91 | CP144: 38 | CQ144: 38 | CR144: - | CS144: - | CT144: 1 | CU144: 52 | DC144: 433 | DD144: 311 | DE144: 117 | DF144: 175 | DG144: 19 | DH144: 23 | DI144: 99 | DK144: 123 | DL144: 105 | DM144: - | DN144: - | DO144: - | DP144: 6 | DQ144: - | DR144: 1 | DS144: 3 | DT144: 7 | DU144: - | DV144: 1 | DW144: - | DX144: - | DY144: - | DZ144: - | EA144: 140 | EB144: 15,300 | EC144: 13,213 | ED144: 2,058 | EE144: 29 | EF144: 226 | EG144: 202 | EH144: 83 | EI144: 104 | EJ144: 15 | EK144: 10 | EL144: 14 | EN144: 207 | EO144: 109 | EP144: 34 | EQ144: 71 | ER144: 4 | ES144: 13 | ET144: 85
A145: 茨城県 | B145: 笠間市 | D145: 216-00 | E145: 2,106 | F145: 2,073 | G145: 211 | H145: 298 | I145: 1,564 | J145: 33 | K145: 25 | M145: 4,734 | N145: 37 | O145: 52 | P145: 96 | Q145: 117 | R145: 142 | S145: 172 | T145: 242 | U145: 259 | V145: 432 | W145: 661 | X145: 821 | Y145: 604 | Z145: 432 | AA145: 371 | AB145: 296 | AC145: 63.2 | AD145: 61.9 | AE145: 65.0 | AY145: 2,206 | AZ145: - | BA145: 1 | BB145: 10 | BC145: 19 | BD145: 17 | BE145: 28 | BF145: 34 | BG145: 29 | BH145: 77 | BI145: 208 | BJ145: 486 | BK145: 432 | BL145: 351 | BM145: 291 | BN145: 223 | BO145: 71.3 | BP145: 70.9 | BQ145: 72.0 | BR145: 2,073 | BS145: - | BT145: - | BU145: 1 | BV145: 8 | BW145: 9 | BX145: 17 | BY145: 54 | BZ145: 91 | CA145: 196 | CB145: 331 | CC145: 458 | CD145: 355 | CE145: 246 | CF145: 194 | CG145: 113 | CH145: 2 073 | CI145: 382 | CJ145: 378 | CK145: 1 | CL145: 3 | CM145: 55 | CN145: 1 636 | CO145: 1 366 | CP145: 300 | CQ145: 296 | CR145: 1 | CS145: 3 | CT145: 22 | CU145: 1 044 | DC145: 6,433 | DD145: 4,927 | DE145: 2,206 | DF145: 2,446 | DG145: 275 | DH145: 295 | DI145: 1,211 | DK145: 1,734 | DL145: 1,165 | DM145: 2 | DN145: 10 | DO145: 2 | DP145: 55 | DQ145: 30 | DR145: 378 | DS145: 48 | DT145: 10 | DU145: 26 | DV145: 6 | DW145: - | DX145: 2 | DY145: - | DZ145: - | EA145: 2,069 | EB145: 297,243 | EC145: 180,886 | ED145: 60,601 | EE145: 55,756 | EF145: 3,240 | EG145: 2,942 | EH145: 1,334 | EI145: 1,409 | EJ145: 199 | EK145: 134 | EL145: 164 | EN145: 3,193 | EO145: 1,985 | EP145: 872 | EQ145: 1,037 | ER145: 76 | ES145: 161 | ET145: 1,047
A146: 茨城県 | B146: 笠間市 | C146: 笠間町 | D146: 216-01 | E146: 80 | F146: 80 | G146: 7 | H146: 11 | I146: 62 | J146: - | K146: - | M146: 190 | N146: 2 | O146: 1 | P146: 2 | Q146: 3 | R146: 6 | S146: 4 | T146: 4 | U146: 11 | V146: 16 | W146: 23 | X146: 39 | Y146: 29 | Z146: 12 | AA146: 26 | AB146: 12 | AC146: 65.8 | AD146: 64.8 | AE146: 67.1 | AY146: 95 | AZ146: - | BA146: - | BB146: - | BC146: 1 | BD146: 1 | BE146: 1 | BF146: - | BG146: 2 | BH146: 1 | BI146: 9 | BJ146: 18 | BK146: 19 | BL146: 8 | BM146: 24 | BN146: 11 | BO146: 73.2 | BP146: 72.2 | BQ146: 74.5 | BR146: 80 | BS146: - | BT146: - | BU146: - | BV146: - | BW146: - | BX146: 1 | BY146: - | BZ146: 3 | CA146: 5 | CB146: 9 | CC146: 19 | CD146: 14 | CE146: 9 | CF146: 14 | CG146: 6 | CH146: 80 | CI146: 30 | CJ146: 30 | CK146: - | CL146: - | CM146: 2 | CN146: 48 | CO146: 62 | CP146: 24 | CQ146: 24 | CR146: - | CS146: - | CT146: 2 | CU146: 36 | DC146: 248 | DD146: 185 | DE146: 95 | DF146: 80 | DG146: 10 | DH146: 12 | DI146: 51 | DK146: 70 | DL146: 53 | DM146: - | DN146: - | DO146: 1 | DP146: 2 | DQ146: 2 | DR146: 5 | DS146: 2 | DT146: 1 | DU146: 3 | DV146: 1 | DW146: - | DX146: - | DY146: - | DZ146: - | EA146: 80 | EB146: 8,422 | EC146: 5,477 | ED146: 2,150 | EE146: 795 | EF146: 121 | EG146: 111 | EH146: 56 | EI146: 47 | EJ146: 8 | EK146: 7 | EL146: 3 | EN146: 127 | EO146: 74 | EP146: 39 | EQ146: 33 | ER146: 2 | ES146: 5 | ET146: 48
A147: 茨城県 | B147: 笠間市 | C147: 大池田村 | D147: 216-02 | E147: 188 | F147: 186 | G147: 15 | H147: 24 | I147: 147 | J147: 2 | K147: 2 | M147: 429 | N147: 4 | O147: 3 | P147: 8 | Q147: 14 | R147: 7 | S147: 22 | T147: 30 | U147: 24 | V147: 38 | W147: 54 | X147: 66 | Y147: 68 | Z147: 35 | AA147: 29 | AB147: 27 | AC147: 62.8 | AD147: 61.5 | AE147: 64.6 | AY147: 188 | AZ147: - | BA147: - | BB147: 1 | BC147: 1 | BD147: - | BE147: 1 | BF147: 5 | BG147: 3 | BH147: 6 | BI147: 16 | BJ147: 36 | BK147: 53 | BL147: 27 | BM147: 19 | BN147: 20 | BO147: 71.6 | BP147: 72.0 | BQ147: 71.0 | BR147: 186 | BS147: - | BT147: - | BU147: - | BV147: 1 | BW147: 1 | BX147: 1 | BY147: 8 | BZ147: 8 | CA147: 17 | CB147: 23 | CC147: 38 | CD147: 45 | CE147: 20 | CF147: 12 | CG147: 12 | CH147: 186 | CI147: 38 | CJ147: 38 | CK147: - | CL147: - | CM147: 2 | CN147: 146 | CO147: 127 | CP147: 30 | CQ147: 30 | CR147: - | CS147: - | CT147: 2 | CU147: 95 | DC147: 592 | DD147: 418 | DE147: 188 | DF147: 201 | DG147: 29 | DH147: 36 | DI147: 138 | DK147: 151 | DL147: 128 | DM147: - | DN147: - | DO147: - | DP147: 3 | DQ147: 8 | DR147: 12 | DS147: - | DT147: - | DU147: - | DV147: - | DW147: - | DX147: - | DY147: - | DZ147: - | EA147: 186 | EB147: 24,674 | EC147: 17,084 | ED147: 5,889 | EE147: 1,701 | EF147: 292 | EG147: 256 | EH147: 115 | EI147: 117 | EJ147: 24 | EK147: 15 | EL147: 21 | EN147: 300 | EO147: 162 | EP147: 73 | EQ147: 84 | ER147: 5 | ES147: 21 | ET147: 117
A148: 茨城県 | B148: 笠間市 | C148: 北山内村 | D148: 216-03 | E148: 188 | F148: 183 | G148: 13 | H148: 23 | I148: 147 | J148: 5 | K148: 3 | M148: 420 | N148: 3 | O148: 4 | P148: 10 | Q148: 12 | R148: 9 | S148: 17 | T148: 20 | U148: 26 | V148: 28 | W148: 50 | X148: 75 | Y148: 53 | Z148: 49 | AA148: 32 | AB148: 32 | AC148: 64.0 | AD148: 62.3 | AE148: 66.3 | AY148: 189 | AZ148: - | BA148: - | BB148: - | BC148: 1 | BD148: - | BE148: - | BF148: - | BG148: 1 | BH148: 5 | BI148: 16 | BJ148: 47 | BK148: 35 | BL148: 43 | BM148: 18 | BN148: 23 | BO148: 73.2 | BP148: 72.9 | BQ148: 73.6 | BR148: 183 | BS148: - | BT148: - | BU148: - | BV148: 2 | BW148: - | BX148: 3 | BY148: 2 | BZ148: 9 | CA148: 10 | CB148: 26 | CC148: 37 | CD148: 35 | CE148: 29 | CF148: 16 | CG148: 14 | CH148: 183 | CI148: 25 | CJ148: 25 | CK148: - | CL148: - | CM148: 2 | CN148: 156 | CO148: 131 | CP148: 23 | CQ148: 23 | CR148: - | CS148: - | CT148: 1 | CU148: 107 | DC148: 556 | DD148: 437 | DE148: 189 | DF148: 220 | DG148: 28 | DH148: 24 | DI148: 95 | DK148: 154 | DL148: 142 | DM148: - | DN148: 3 | DO148: - | DP148: 2 | DQ148: 3 | DR148: - | DS148: 2 | DT148: 1 | DU148: - | DV148: 1 | DW148: - | DX148: - | DY148: - | DZ148: - | EA148: 183 | EB148: 25,216 | EC148: 19,811 | ED148: 5,027 | EE148: 378 | EF148: 289 | EG148: 261 | EH148: 120 | EI148: 123 | EJ148: 18 | EK148: 13 | EL148: 15 | EN148: 267 | EO148: 176 | EP148: 69 | EQ148: 97 | ER148: 10 | ES148: 11 | ET148: 80
A149: 茨城県 | B149: 笠間市 | C149: 南山内村 | D149: 216-04 | E149: 257 | F149: 253 | G149: 13 | H149: 41 | I149: 199 | J149: 4 | K149: 2 | M149: 608 | N149: 6 | O149: 10 | P149: 6 | Q149: 8 | R149: 25 | S149: 25 | T149: 41 | U149: 32 | V149: 45 | W149: 96 | X149: 111 | Y149: 71 | Z149: 54 | AA149: 38 | AB149: 40 | AC149: 62.9 | AD149: 60.9 | AE149: 65.7 | AY149: 239 | AZ149: - | BA149: - | BB149: 1 | BC149: - | BD149: - | BE149: 1 | BF149: 4 | BG149: 1 | BH149: 4 | BI149: 21 | BJ149: 53 | BK149: 50 | BL149: 40 | BM149: 33 | BN149: 31 | BO149: 73.5 | BP149: 73.4 | BQ149: 73.7 | BR149: 253 | BS149: - | BT149: - | BU149: - | BV149: - | BW149: 2 | BX149: 2 | BY149: 7 | BZ149: 11 | CA149: 20 | CB149: 42 | CC149: 64 | CD149: 39 | CE149: 30 | CF149: 21 | CG149: 15 | CH149: 253 | CI149: 70 | CJ149: 68 | CK149: - | CL149: 2 | CM149: 4 | CN149: 179 | CO149: 169 | CP149: 53 | CQ149: 51 | CR149: - | CS149: 2 | CT149: 1 | CU149: 115 | DC149: 801 | DD149: 627 | DE149: 239 | DF149: 351 | DG149: 37 | DH149: 31 | DI149: 143 | DK149: 209 | DL149: 190 | DM149: - | DN149: 1 | DO149: 1 | DP149: 1 | DQ149: - | DR149: 13 | DS149: - | DT149: 2 | DU149: 1 | DV149: - | DW149: - | DX149: - | DY149: - | DZ149: - | EA149: 253 | EB149: 33,766 | EC149: 26,122 | ED149: 4,093 | EE149: 3,551 | EF149: 399 | EG149: 374 | EH149: 138 | EI149: 209 | EJ149: 27 | EK149: 12 | EL149: 13 | EN149: 402 | EO149: 253 | EP149: 101 | EQ149: 142 | ER149: 10 | ES149: 19 | ET149: 130
A150: 茨城県 | B150: 笠間市 | C150: 西山内村 | D150: 216-05 | E150: 133 | F150: 131 | G150: 8 | H150: 20 | I150: 103 | J150: 2 | K150: 1 | M150: 315 | N150: 4 | O150: 5 | P150: 5 | Q150: 12 | R150: 11 | S150: 15 | T150: 17 | U150: 22 | V150: 33 | W150: 42 | X150: 38 | Y150: 34 | Z150: 40 | AA150: 21 | AB150: 16 | AC150: 61.4 | AD150: 59.6 | AE150: 63.5 | AY150: 136 | AZ150: - | BA150: - | BB150: - | BC150: 1 | BD150: 1 | BE150: 2 | BF150: 2 | BG150: 2 | BH150: 3 | BI150: 18 | BJ150: 26 | BK150: 24 | BL150: 30 | BM150: 16 | BN150: 11 | BO150: 71.4 | BP150: 70.9 | BQ150: 72.1 | BR150: 131 | BS150: - | BT150: - | BU150: - | BV150: - | BW150: - | BX150: 1 | BY150: 5 | BZ150: 6 | CA150: 15 | CB150: 19 | CC150: 26 | CD150: 19 | CE150: 23 | CF150: 12 | CG150: 5 | CH150: 131 | CI150: 17 | CJ150: 17 | CK150: - | CL150: - | CM150: 1 | CN150: 113 | CO150: 85 | CP150: 10 | CQ150: 10 | CR150: - | CS150: - | CT150: 1 | CU150: 74 | DC150: 394 | DD150: 308 | DE150: 136 | DF150: 151 | DG150: 21 | DH150: 18 | DI150: 68 | DK150: 111 | DL150: 107 | DM150: - | DN150: - | DO150: - | DP150: 2 | DQ150: 2 | DR150: - | DS150: - | DT150: - | DU150: - | DV150: - | DW150: - | DX150: - | DY150: - | DZ150: - | EA150: 131 | EB150: 16,244 | EC150: 14,350 | ED150: 1,706 | EE150: 188 | EF150: 199 | EG150: 182 | EH150: 82 | EI150: 84 | EJ150: 16 | EK150: 7 | EL150: 10 | EN150: 195 | EO150: 126 | EP150: 54 | EQ150: 67 | ER150: 5 | ES150: 11 | ET150: 58
A151: 茨城県 | B151: 笠間市 | C151: 宍戸町 | D151: 216-06 | E151: 250 | F151: 245 | G151: 33 | H151: 35 | I151: 177 | J151: 5 | K151: 4 | M151: 553 | N151: 3 | O151: 9 | P151: 16 | Q151: 10 | R151: 23 | S151: 18 | T151: 21 | U151: 26 | V151: 65 | W151: 73 | X151: 104 | Y151: 63 | Z151: 32 | AA151: 42 | AB151: 48 | AC151: 63.1 | AD151: 61.4 | AE151: 65.4 | AY151: 265 | AZ151: - | BA151: - | BB151: 2 | BC151: 1 | BD151: 5 | BE151: 7 | BF151: 4 | BG151: 3 | BH151: 15 | BI151: 27 | BJ151: 66 | BK151: 43 | BL151: 28 | BM151: 32 | BN151: 32 | BO151: 70.2 | BP151: 69.3 | BQ151: 71.3 | BR151: 245 | BS151: - | BT151: - | BU151: - | BV151: - | BW151: - | BX151: - | BY151: 7 | BZ151: 13 | CA151: 28 | CB151: 45 | CC151: 53 | CD151: 45 | CE151: 19 | CF151: 17 | CG151: 18 | CH151: 245 | CI151: 34 | CJ151: 33 | CK151: 1 | CL151: - | CM151: 4 | CN151: 207 | CO151: 152 | CP151: 27 | CQ151: 26 | CR151: 1 | CS151: - | CT151: 3 | CU151: 122 | DC151: 746 | DD151: 575 | DE151: 265 | DF151: 275 | DG151: 35 | DH151: 29 | DI151: 142 | DK151: 197 | DL151: 115 | DM151: 2 | DN151: - | DO151: - | DP151: 11 | DQ151: 2 | DR151: 51 | DS151: 8 | DT151: 2 | DU151: 3 | DV151: 2 | DW151: - | DX151: 1 | DY151: - | DZ151: - | EA151: 244 | EB151: 35,438 | EC151: 20,623 | ED151: 7,529 | EE151: 7,286 | EF151: 378 | EG151: 338 | EH151: 155 | EI151: 157 | EJ151: 26 | EK151: 12 | EL151: 28 | EN151: 368 | EO151: 237 | EP151: 110 | EQ151: 118 | ER151: 9 | ES151: 17 | ET151: 114
A152: 茨城県 | B152: 笠間市 | C152: 北川根村 | D152: 216-07 | E152: 200 | F152: 196 | G152: 34 | H152: 25 | I152: 137 | J152: 4 | K152: 2 | M152: 426 | N152: 3 | O152: 5 | P152: 13 | Q152: 10 | R152: 8 | S152: 18 | T152: 24 | U152: 24 | V152: 33 | W152: 70 | X152: 77 | Y152: 56 | Z152: 36 | AA152: 25 | AB152: 24 | AC152: 62.5 | AD152: 62.8 | AE152: 62.2 | AY152: 222 | AZ152: - | BA152: - | BB152: 2 | BC152: 1 | BD152: 2 | BE152: 8 | BF152: 8 | BG152: 4 | BH152: 12 | BI152: 25 | BJ152: 50 | BK152: 42 | BL152: 33 | BM152: 17 | BN152: 18 | BO152: 68.4 | BP152: 68.1 | BQ152: 68.9 | BR152: 196 | BS152: - | BT152: - | BU152: 1 | BV152: 1 | BW152: 2 | BX152: 3 | BY152: 8 | BZ152: 13 | CA152: 17 | CB152: 36 | CC152: 44 | CD152: 32 | CE152: 21 | CF152: 14 | CG152: 4 | CH152: 196 | CI152: 24 | CJ152: 24 | CK152: - | CL152: - | CM152: 13 | CN152: 159 | CO152: 115 | CP152: 15 | CQ152: 15 | CR152: - | CS152: - | CT152: 4 | CU152: 96 | DC152: 594 | DD152: 467 | DE152: 222 | DF152: 220 | DG152: 25 | DH152: 22 | DI152: 105 | DK152: 172 | DL152: 55 | DM152: - | DN152: 2 | DO152: - | DP152: 2 | DQ152: 6 | DR152: 78 | DS152: 21 | DT152: - | DU152: 8 | DV152: - | DW152: - | DX152: - | DY152: - | DZ152: - | EA152: 196 | EB152: 33,214 | EC152: 13,279 | ED152: 9,735 | EE152: 10,200 | EF152: 306 | EG152: 276 | EH152: 138 | EI152: 123 | EJ152: 15 | EK152: 10 | EL152: 20 | EN152: 288 | EO152: 191 | EP152: 84 | EQ152: 97 | ER152: 10 | ES152: 12 | ET152: 85
A153: 茨城県 | B153: 笠間市 | C153: 大原村 | D153: 216-08 | E153: 150 | F153: 149 | G153: 18 | H153: 20 | I153: 111 | J153: 1 | K153: 1 | M153: 335 | N153: 2 | O153: 5 | P153: 5 | Q153: 13 | R153: 11 | S153: 13 | T153: 15 | U153: 9 | V153: 25 | W153: 42 | X153: 75 | Y153: 53 | Z153: 22 | AA153: 21 | AB153: 24 | AC153: 63.4 | AD153: 61.9 | AE153: 65.6 | AY153: 168 | AZ153: - | BA153: - | BB153: - | BC153: 4 | BD153: 2 | BE153: 1 | BF153: - | BG153: 2 | BH153: 3 | BI153: 17 | BJ153: 46 | BK153: 38 | BL153: 20 | BM153: 17 | BN153: 18 | BO153: 71.0 | BP153: 70.7 | BQ153: 71.5 | BR153: 149 | BS153: - | BT153: - | BU153: - | BV153: 1 | BW153: - | BX153: 1 | BY153: 3 | BZ153: 2 | CA153: 14 | CB153: 19 | CC153: 39 | CD153: 33 | CE153: 15 | CF153: 14 | CG153: 8 | CH153: 149 | CI153: 25 | CJ153: 25 | CK153: - | CL153: - | CM153: 6 | CN153: 118 | CO153: 109 | CP153: 21 | CQ153: 21 | CR153: - | CS153: - | CT153: 1 | CU153: 87 | DC153: 446 | DD153: 338 | DE153: 168 | DF153: 157 | DG153: 13 | DH153: 17 | DI153: 91 | DK153: 133 | DL153: 100 | DM153: - | DN153: 2 | DO153: - | DP153: 5 | DQ153: 3 | DR153: 15 | DS153: 5 | DT153: 2 | DU153: - | DV153: 1 | DW153: - | DX153: - | DY153: - | DZ153: - | EA153: 148 | EB153: 27,918 | EC153: 19,240 | ED153: 6,381 | EE153: 2,297 | EF153: 228 | EG153: 210 | EH153: 108 | EI153: 93 | EJ153: 9 | EK153: 8 | EL153: 10 | EN153: 218 | EO153: 128 | EP153: 60 | EQ153: 64 | ER153: 4 | ES153: 9 | ET153: 81
A154: 茨城県 | B154: 笠間市 | C154: 鯉渕村2-2 | D154: 216-09 | E154: 35 | F154: 35 | G154: 2 | H154: 4 | I154: 29 | J154: - | K154: - | M154: 79 | N154: - | O154: 1 | P154: 1 | Q154: 1 | R154: 3 | S154: 3 | T154: 3 | U154: 4 | V154: 6 | W154: 16 | X154: 10 | Y154: 11 | Z154: 3 | AA154: 6 | AB154: 11 | AC154: 65.5 | AD154: 63.8 | AE154: 67.5 | AY154: 31 | AZ154: - | BA154: - | BB154: - | BC154: - | BD154: 1 | BE154: 1 | BF154: 1 | BG154: - | BH154: - | BI154: 1 | BJ154: 4 | BK154: 10 | BL154: 2 | BM154: 4 | BN154: 7 | BO154: 73.9 | BP154: 72.4 | BQ154: 76.8 | BR154: 35 | BS154: - | BT154: - | BU154: - | BV154: - | BW154: - | BX154: - | BY154: 2 | BZ154: 1 | CA154: 4 | CB154: 8 | CC154: 6 | CD154: 4 | CE154: 2 | CF154: 4 | CG154: 4 | CH154: 35 | CI154: 5 | CJ154: 5 | CK154: - | CL154: - | CM154: - | CN154: 30 | CO154: 20 | CP154: 5 | CQ154: 5 | CR154: - | CS154: - | CT154: - | CU154: 15 | DC154: 107 | DD154: 83 | DE154: 31 | DF154: 50 | DG154: 2 | DH154: 2 | DI154: 22 | DK154: 29 | DL154: 20 | DM154: - | DN154: - | DO154: - | DP154: 1 | DQ154: - | DR154: 7 | DS154: 1 | DT154: - | DU154: - | DV154: - | DW154: - | DX154: - | DY154: - | DZ154: - | EA154: 35 | EB154: 4,361 | EC154: 2,993 | ED154: 220 | EE154: 1,148 | EF154: 52 | EG154: 47 | EH154: 20 | EI154: 26 | EJ154: 1 | EK154: 1 | EL154: 4 | EN154: 55 | EO154: 36 | EP154: 11 | EQ154: 24 | ER154: 1 | ES154: 1 | ET154: 18
A155: 茨城県 | B155: 笠間市 | C155: 岩間町 | D155: 216-10 | E155: 384 | F155: 380 | G155: 34 | H155: 56 | I155: 290 | J155: 4 | K155: 4 | M155: 845 | N155: 2 | O155: 6 | P155: 19 | Q155: 16 | R155: 24 | S155: 24 | T155: 43 | U155: 52 | V155: 92 | W155: 116 | X155: 131 | Y155: 106 | Z155: 93 | AA155: 81 | AB155: 40 | AC155: 63.8 | AD155: 62.7 | AE155: 65.1 | AY155: 415 | AZ155: - | BA155: 1 | BB155: 3 | BC155: 5 | BD155: 2 | BE155: 3 | BF155: 5 | BG155: 7 | BH155: 16 | BI155: 35 | BJ155: 83 | BK155: 78 | BL155: 74 | BM155: 69 | BN155: 34 | BO155: 71.5 | BP155: 70.7 | BQ155: 72.6 | BR155: 380 | BS155: - | BT155: - | BU155: - | BV155: 1 | BW155: 3 | BX155: 3 | BY155: 10 | BZ155: 14 | CA155: 46 | CB155: 65 | CC155: 74 | CD155: 59 | CE155: 48 | CF155: 39 | CG155: 18 | CH155: 380 | CI155: 62 | CJ155: 61 | CK155: - | CL155: 1 | CM155: 12 | CN155: 306 | CO155: 238 | CP155: 49 | CQ155: 48 | CR155: - | CS155: 1 | CT155: 4 | CU155: 185 | DC155: 1,202 | DD155: 927 | DE155: 415 | DF155: 460 | DG155: 52 | DH155: 63 | DI155: 212 | DK155: 305 | DL155: 159 | DM155: - | DN155: 2 | DO155: - | DP155: 11 | DQ155: 1 | DR155: 121 | DS155: 5 | DT155: 1 | DU155: 5 | DV155: - | DW155: - | DX155: - | DY155: - | DZ155: - | EA155: 379 | EB155: 48,957 | EC155: 23,761 | ED155: 8,289 | EE155: 16,907 | EF155: 602 | EG155: 546 | EH155: 240 | EI155: 267 | EJ155: 39 | EK155: 32 | EL155: 24 | EN155: 600 | EO155: 381 | EP155: 175 | EQ155: 193 | ER155: 13 | ES155: 31 | ET155: 188
A156: 茨城県 | B156: 笠間市 | C156: 南川根村 | D156: 216-11 | E156: 241 | F156: 235 | G156: 34 | H156: 39 | I156: 162 | J156: 6 | K156: 6 | M156: 534 | N156: 8 | O156: 3 | P156: 11 | Q156: 18 | R156: 15 | S156: 13 | T156: 24 | U156: 29 | V156: 51 | W156: 79 | X156: 95 | Y156: 60 | Z156: 56 | AA156: 50 | AB156: 22 | AC156: 63.0 | AD156: 61.7 | AE156: 64.7 | AY156: 258 | AZ156: - | BA156: - | BB156: 1 | BC156: 4 | BD156: 3 | BE156: 3 | BF156: 5 | BG156: 4 | BH156: 12 | BI156: 23 | BJ156: 57 | BK156: 40 | BL156: 46 | BM156: 42 | BN156: 18 | BO156: 70.4 | BP156: 70.0 | BQ156: 71.0 | BR156: 235 | BS156: - | BT156: - | BU156: - | BV156: 2 | BW156: 1 | BX156: 2 | BY156: 2 | BZ156: 11 | CA156: 20 | CB156: 39 | CC156: 58 | CD156: 30 | CE156: 30 | CF156: 31 | CG156: 9 | CH156: 235 | CI156: 52 | CJ156: 52 | CK156: - | CL156: - | CM156: 9 | CN156: 174 | CO156: 158 | CP156: 43 | CQ156: 43 | CR156: - | CS156: - | CT156: 3 | CU156: 112 | DC156: 747 | DD156: 562 | DE156: 258 | DF156: 281 | DG156: 23 | DH156: 41 | DI156: 144 | DK156: 203 | DL156: 96 | DM156: - | DN156: - | DO156: - | DP156: 15 | DQ156: 3 | DR156: 76 | DS156: 4 | DT156: 1 | DU156: 6 | DV156: 1 | DW156: - | DX156: 1 | DY156: - | DZ156: - | EA156: 234 | EB156: 39,033 | EC156: 18,146 | ED156: 9,582 | EE156: 11,305 | EF156: 374 | EG156: 341 | EH156: 162 | EI156: 163 | EJ156: 16 | EK156: 17 | EL156: 16 | EN156: 373 | EO156: 221 | EP156: 96 | EQ156: 118 | ER156: 7 | ES156: 24 | ET156: 128
A157: 茨城県 | B157: 取手市 | D157: 217-00 | E157: 797 | F157: 788 | G157: 81 | H157: 112 | I157: 595 | J157: 9 | K157: 8 | M157: 1,899 | N157: 22 | O157: 29 | P157: 41 | Q157: 53 | R157: 78 | S157: 99 | T157: 101 | U157: 112 | V157: 142 | W157: 231 | X157: 320 | Y157: 274 | Z157: 187 | AA157: 134 | AB157: 76 | AC157: 61.7 | AD157: 59.9 | AE157: 64.0 | AY157: 806 | AZ157: - | BA157: - | BB157: 1 | BC157: 2 | BD157: 5 | BE157: 10 | BF157: 11 | BG157: 12 | BH157: 15 | BI157: 65 | BJ157: 198 | BK157: 209 | BL157: 146 | BM157: 92 | BN157: 40 | BO157: 71.1 | BP157: 70.7 | BQ157: 71.7 | BR157: 788 | BS157: - | BT157: - | BU157: 1 | BV157: - | BW157: 3 | BX157: 14 | BY157: 20 | BZ157: 33 | CA157: 58 | CB157: 111 | CC157: 177 | CD157: 163 | CE157: 107 | CF157: 69 | CG157: 32 | CH157: 788 | CI157: 206 | CJ157: 201 | CK157: 1 | CL157: 4 | CM157: 17 | CN157: 565 | CO157: 548 | CP157: 158 | CQ157: 155 | CR157: - | CS157: 3 | CT157: 8 | CU157: 382 | DC157: 2,513 | DD157: 1,817 | DE157: 806 | DF157: 912 | DG157: 99 | DH157: 130 | DI157: 566 | DK157: 735 | DL157: 698 | DM157: - | DN157: - | DO157: - | DP157: 16 | DQ157: 9 | DR157: 3 | DS157: 6 | DT157: 1 | DU157: 2 | DV157: - | DW157: - | DX157: - | DY157: - | DZ157: - | EA157: 788 | EB157: 167,093 | EC157: 157,904 | ED157: 8,699 | EE157: 490 | EF157: 1,275 | EG157: 1,114 | EH157: 489 | EI157: 547 | EJ157: 78 | EK157: 60 | EL157: 101 | EN157: 1,238 | EO157: 703 | EP157: 317 | EQ157: 365 | ER157: 21 | ES157: 70 | ET157: 465
A158: 茨城県 | B158: 取手市 | C158: 取手町 | D158: 217-01 | E158: 44 | F158: 44 | G158: 5 | H158: 9 | I158: 30 | J158: - | K158: - | M158: 100 | N158: - | O158: 1 | P158: 2 | Q158: - | R158: 6 | S158: 7 | T158: 6 | U158: 5 | V158: 5 | W158: 9 | X158: 14 | Y158: 17 | Z158: 16 | AA158: 7 | AB158: 5 | AC158: 63.6 | AD158: 60.5 | AE158: 68.3 | AY158: 58 | AZ158: - | BA158: - | BB158: - | BC158: - | BD158: 3 | BE158: - | BF158: 2 | BG158: 2 | BH158: - | BI158: 4 | BJ158: 9 | BK158: 13 | BL158: 15 | BM158: 5 | BN158: 5 | BO158: 70.5 | BP158: 68.8 | BQ158: 73.0 | BR158: 44 | BS158: - | BT158: - | BU158: - | BV158: - | BW158: 1 | BX158: 3 | BY158: 2 | BZ158: 3 | CA158: 2 | CB158: 4 | CC158: 8 | CD158: 6 | CE158: 11 | CF158: 3 | CG158: 1 | CH158: 44 | CI158: 8 | CJ158: 7 | CK158: - | CL158: 1 | CM158: - | CN158: 36 | CO158: 29 | CP158: 5 | CQ158: 5 | CR158: - | CS158: - | CT158: - | CU158: 24 | DC158: 134 | DD158: 104 | DE158: 58 | DF158: 43 | DG158: 3 | DH158: 6 | DI158: 24 | DK158: 37 | DL158: 28 | DM158: - | DN158: - | DO158: - | DP158: 7 | DQ158: 1 | DR158: - | DS158: - | DT158: 1 | DU158: - | DV158: - | DW158: - | DX158: - | DY158: - | DZ158: - | EA158: 44 | EB158: 14,273 | EC158: 13,062 | ED158: 1,179 | EE158: 32 | EF158: 71 | EG158: 64 | EH158: 34 | EI158: 28 | EJ158: 2 | EK158: 5 | EL158: 2 | EN158: 63 | EO158: 40 | EP158: 24 | EQ158: 15 | ER158: 1 | ES158: 1 | ET158: 22
A159: 茨城県 | B159: 取手市 | C159: 小文間村 | D159: 217-02 | E159: 65 | F159: 65 | G159: 4 | H159: 11 | I159: 50 | J159: - | K159: - | M159: 164 | N159: 3 | O159: 4 | P159: 4 | Q159: 4 | R159: 9 | S159: 13 | T159: 2 | U159: 4 | V159: 12 | W159: 27 | X159: 34 | Y159: 17 | Z159: 11 | AA159: 12 | AB159: 8 | AC159: 60.7 | AD159: 59.7 | AE159: 62.2 | AY159: 54 | AZ159: - | BA159: - | BB159: - | BC159: 1 | BD159: - | BE159: - | BF159: - | BG159: 2 | BH159: - | BI159: 7 | BJ159: 20 | BK159: 12 | BL159: 6 | BM159: 4 | BN159: 2 | BO159: 69.1 | BP159: 69.3 | BQ159: 68.7 | BR159: 65 | BS159: - | BT159: - | BU159: - | BV159: - | BW159: - | BX159: 2 | BY159: 1 | BZ159: 1 | CA159: 5 | CB159: 10 | CC159: 21 | CD159: 10 | CE159: 8 | CF159: 3 | CG159: 4 | CH159: 65 | CI159: 26 | CJ159: 26 | CK159: - | CL159: - | CM159: 2 | CN159: 37 | CO159: 46 | CP159: 19 | CQ159: 19 | CR159: - | CS159: - | CT159: 2 | CU159: 25 | DC159: 207 | DD159: 147 | DE159: 54 | DF159: 84 | DG159: 9 | DH159: 13 | DI159: 47 | DK159: 59 | DL159: 57 | DM159: - | DN159: - | DO159: - | DP159: - | DQ159: 1 | DR159: - | DS159: - | DT159: - | DU159: 1 | DV159: - | DW159: - | DX159: - | DY159: - | DZ159: - | EA159: 65 | EB159: 13,591 | EC159: 13,053 | ED159: 528 | EE159: 10 | EF159: 108 | EG159: 96 | EH159: 40 | EI159: 47 | EJ159: 9 | EK159: 7 | EL159: 5 | EN159: 99 | EO159: 51 | EP159: 14 | EQ159: 37 | ER159: - | ES159: 6 | ET159: 42
A160: 茨城県 | B160: 取手市 | C160: 寺原村 | D160: 217-03 | E160: 76 | F160: 76 | G160: 6 | H160: 11 | I160: 59 | J160: - | K160: - | M160: 177 | N160: - | O160: 6 | P160: 2 | Q160: 5 | R160: 3 | S160: 7 | T160: 9 | U160: 8 | V160: 13 | W160: 24 | X160: 24 | Y160: 31 | Z160: 22 | AA160: 13 | AB160: 10 | AC160: 63.9 | AD160: 61.7 | AE160: 66.7 | AY160: 90 | AZ160: - | BA160: - | BB160: - | BC160: - | BD160: - | BE160: 2 | BF160: - | BG160: 1 | BH160: 2 | BI160: 4 | BJ160: 19 | BK160: 26 | BL160: 18 | BM160: 10 | BN160: 8 | BO160: 72.8 | BP160: 71.2 | BQ160: 74.7 | BR160: 76 | BS160: - | BT160: - | BU160: - | BV160: - | BW160: - | BX160: 1 | BY160: 1 | BZ160: 2 | CA160: 5 | CB160: 14 | CC160: 13 | CD160: 19 | CE160: 11 | CF160: 8 | CG160: 2 | CH160: 76 | CI160: 10 | CJ160: 10 | CK160: - | CL160: - | CM160: 3 | CN160: 63 | CO160: 53 | CP160: 7 | CQ160: 7 | CR160: - | CS160: - | CT160: 1 | CU160: 45 | DC160: 232 | DD160: 180 | DE160: 90 | DF160: 85 | DG160: 5 | DH160: 14 | DI160: 38 | DK160: 69 | DL160: 65 | DM160: - | DN160: - | DO160: - | DP160: 1 | DQ160: 1 | DR160: 1 | DS160: 1 | DT160: - | DU160: - | DV160: - | DW160: - | DX160: - | DY160: - | DZ160: - | EA160: 76 | EB160: 13,273 | EC160: 11,711 | ED160: 1,303 | EE160: 259 | EF160: 113 | EG160: 101 | EH160: 49 | EI160: 49 | EJ160: 3 | EK160: 7 | EL160: 5 | EN160: 119 | EO160: 79 | EP160: 41 | EQ160: 36 | ER160: 2 | ES160: 7 | ET160: 33
A161: 茨城県 | B161: 取手市 | C161: 高井村2-2 | D161: 217-04 | E161: 42 | F161: 40 | G161: 2 | H161: 9 | I161: 29 | J161: 2 | K161: 2 | M161: 90 | N161: - | O161: 3 | P161: 2 | Q161: 4 | R161: 6 | S161: 4 | T161: 4 | U161: 6 | V161: 4 | W161: 10 | X161: 16 | Y161: 17 | Z161: 8 | AA161: 3 | AB161: 3 | AC161: 60.4 | AD161: 59.8 | AE161: 61.1 | AY161: 45 | AZ161: - | BA161: - | BB161: - | BC161: - | BD161: 2 | BE161: 1 | BF161: 1 | BG161: - | BH161: 1 | BI161: 3 | BJ161: 12 | BK161: 12 | BL161: 8 | BM161: 3 | BN161: 2 | BO161: 69.3 | BP161: 67.6 | BQ161: 71.6 | BR161: 40 | BS161: - | BT161: - | BU161: - | BV161: - | BW161: - | BX161: 1 | BY161: - | BZ161: 2 | CA161: 2 | CB161: 8 | CC161: 7 | CD161: 11 | CE161: 5 | CF161: 2 | CG161: 2 | CH161: 40 | CI161: 21 | CJ161: 21 | CK161: - | CL161: - | CM161: 1 | CN161: 18 | CO161: 27 | CP161: 16 | CQ161: 16 | CR161: - | CS161: - | CT161: - | CU161: 11 | DC161: 133 | DD161: 104 | DE161: 45 | DF161: 48 | DG161: 11 | DH161: 5 | DI161: 24 | DK161: 33 | DL161: 32 | DM161: - | DN161: - | DO161: - | DP161: 1 | DQ161: - | DR161: - | DS161: - | DT161: - | DU161: - | DV161: - | DW161: - | DX161: - | DY161: - | DZ161: - | EA161: 40 | EB161: 6,906 | EC161: 6,034 | ED161: 872 | EE161: - | EF161: 66 | EG161: 59 | EH161: 25 | EI161: 24 | EJ161: 10 | EK161: 1 | EL161: 6 | EN161: 67 | EO161: 45 | EP161: 20 | EQ161: 24 | ER161: 1 | ES161: 4 | ET161: 18
A162: 茨城県 | B162: 取手市 | C162: 稲戸井村 | D162: 217-05 | E162: 25 | F162: 24 | G162: 4 | H162: 5 | I162: 15 | J162: 1 | K162: 1 | M162: 57 | N162: 3 | O162: 1 | P162: 1 | Q162: - | R162: - | S162: 2 | T162: 3 | U162: 6 | V162: 8 | W162: 5 | X162: 7 | Y162: 5 | Z162: 5 | AA162: 9 | AB162: 2 | AC162: 62.0 | AD162: 59.5 | AE162: 65.1 | AY162: 29 | AZ162: - | BA162: - | BB162: - | BC162: - | BD162: - | BE162: 2 | BF162: 3 | BG162: - | BH162: 3 | BI162: 2 | BJ162: 2 | BK162: 4 | BL162: 5 | BM162: 7 | BN162: 1 | BO162: 68.8 | BP162: 67.5 | BQ162: 70.4 | BR162: 24 | BS162: - | BT162: - | BU162: - | BV162: - | BW162: - | BX162: - | BY162: 2 | BZ162: - | CA162: 4 | CB162: 4 | CC162: 3 | CD162: 3 | CE162: 1 | CF162: 5 | CG162: 2 | CH162: 24 | CI162: 2 | CJ162: 2 | CK162: - | CL162: - | CM162: - | CN162: 22 | CO162: 14 | CP162: 1 | CQ162: 1 | CR162: - | CS162: - | CT162: - | CU162: 13 | DC162: 87 | DD162: 61 | DE162: 29 | DF162: 25 | DG162: 7 | DH162: 9 | DI162: 17 | DK162: 19 | DL162: 13 | DM162: - | DN162: - | DO162: - | DP162: 5 | DQ162: - | DR162: - | DS162: 1 | DT162: - | DU162: - | DV162: - | DW162: - | DX162: - | DY162: - | DZ162: - | EA162: 24 | EB162: 2,687 | EC162: 2,136 | ED162: 551 | EE162: - | EF162: 45 | EG162: 38 | EH162: 16 | EI162: 17 | EJ162: 5 | EK162: 4 | EL162: 3 | EN162: 42 | EO162: 23 | EP162: 13 | EQ162: 8 | ER162: 2 | ES162: 5 | ET162: 14
A163: 茨城県 | B163: 取手市 | C163: 相馬町 | D163: 217-06 | E163: 70 | F163: 68 | G163: 7 | H163: 6 | I163: 55 | J163: 2 | K163: 2 | M163: 168 | N163: 4 | O163: 1 | P163: 4 | Q163: 6 | R163: 10 | S163: 4 | T163: 6 | U163: 11 | V163: 11 | W163: 21 | X163: 29 | Y163: 21 | Z163: 17 | AA163: 16 | AB163: 7 | AC163: 61.8 | AD163: 60.2 | AE163: 64.0 | AY163: 75 | AZ163: - | BA163: - | BB163: - | BC163: - | BD163: - | BE163: - | BF163: - | BG163: 1 | BH163: - | BI163: 8 | BJ163: 19 | BK163: 15 | BL163: 15 | BM163: 14 | BN163: 3 | BO163: 72.8 | BP163: 72.9 | BQ163: 72.7 | BR163: 68 | BS163: - | BT163: - | BU163: - | BV163: - | BW163: - | BX163: 1 | BY163: 1 | BZ163: 3 | CA163: 4 | CB163: 5 | CC163: 19 | CD163: 10 | CE163: 11 | CF163: 10 | CG163: 4 | CH163: 68 | CI163: 24 | CJ163: 24 | CK163: - | CL163: - | CM163: 1 | CN163: 43 | CO163: 54 | CP163: 20 | CQ163: 20 | CR163: - | CS163: - | CT163: 1 | CU163: 33 | DC163: 228 | DD163: 162 | DE163: 75 | DF163: 81 | DG163: 6 | DH163: 15 | DI163: 51 | DK163: 66 | DL163: 64 | DM163: - | DN163: - | DO163: - | DP163: - | DQ163: 1 | DR163: - | DS163: 1 | DT163: - | DU163: - | DV163: - | DW163: - | DX163: - | DY163: - | DZ163: - | EA163: 68 | EB163: 14,725 | EC163: 14,376 | ED163: 349 | EE163: - | EF163: 120 | EG163: 105 | EH163: 47 | EI163: 52 | EJ163: 6 | EK163: 6 | EL163: 9 | EN163: 108 | EO163: 57 | EP163: 28 | EQ163: 29 | ER163: - | ES163: 9 | ET163: 42
A164: 茨城県 | B164: 取手市 | C164: 山王村 | D164: 217-07 | E164: 109 | F164: 107 | G164: 13 | H164: 19 | I164: 75 | J164: 2 | K164: 2 | M164: 263 | N164: 2 | O164: 6 | P164: 6 | Q164: 6 | R164: 9 | S164: 10 | T164: 9 | U164: 17 | V164: 22 | W164: 31 | X164: 52 | Y164: 41 | Z164: 22 | AA164: 21 | AB164: 9 | AC164: 62.4 | AD164: 60.9 | AE164: 64.2 | AY164: 124 | AZ164: - | BA164: - | BB164: - | BC164: - | BD164: - | BE164: 2 | BF164: - | BG164: 4 | BH164: 3 | BI164: 8 | BJ164: 33 | BK164: 32 | BL164: 18 | BM164: 17 | BN164: 7 | BO164: 71.5 | BP164: 71.2 | BQ164: 72.0 | BR164: 107 | BS164: - | BT164: - | BU164: 1 | BV164: - | BW164: 1 | BX164: 2 | BY164: 2 | BZ164: 5 | CA164: 8 | CB164: 13 | CC164: 25 | CD164: 27 | CE164: 11 | CF164: 11 | CG164: 1 | CH164: 107 | CI164: 37 | CJ164: 36 | CK164: 1 | CL164: - | CM164: 3 | CN164: 67 | CO164: 75 | CP164: 28 | CQ164: 28 | CR164: - | CS164: - | CT164: 3 | CU164: 44 | DC164: 336 | DD164: 261 | DE164: 124 | DF164: 126 | DG164: 11 | DH164: 11 | DI164: 64 | DK164: 105 | DL164: 102 | DM164: - | DN164: - | DO164: - | DP164: - | DQ164: - | DR164: 1 | DS164: 2 | DT164: - | DU164: - | DV164: - | DW164: - | DX164: - | DY164: - | DZ164: - | EA164: 107 | EB164: 24,823 | EC164: 23,143 | ED164: 1,645 | EE164: 35 | EF164: 167 | EG164: 149 | EH164: 72 | EI164: 68 | EJ164: 9 | EK164: 5 | EL164: 13 | EN164: 169 | EO164: 112 | EP164: 52 | EQ164: 58 | ER164: 2 | ES164: 6 | ET164: 51
A165: 茨城県 | B165: 取手市 | C165: 久賀村2-2 | D165: 217-08 | E165: 117 | F165: 117 | G165: 8 | H165: 10 | I165: 99 | J165: - | K165: - | M165: 290 | N165: 3 | O165: 6 | P165: 11 | Q165: 3 | R165: 18 | S165: 19 | T165: 15 | U165: 14 | V165: 25 | W165: 30 | X165: 54 | Y165: 35 | Z165: 19 | AA165: 25 | AB165: 13 | AC165: 60.5 | AD165: 58.3 | AE165: 63.3 | AY165: 105 | AZ165: - | BA165: - | BB165: 1 | BC165: - | BD165: - | BE165: - | BF165: 1 | BG165: - | BH165: 4 | BI165: 8 | BJ165: 27 | BK165: 27 | BL165: 14 | BM165: 18 | BN165: 5 | BO165: 71.6 | BP165: 71.5 | BQ165: 71.7 | BR165: 117 | BS165: - | BT165: - | BU165: - | BV165: - | BW165: 1 | BX165: - | BY165: 2 | BZ165: 4 | CA165: 10 | CB165: 17 | CC165: 31 | CD165: 23 | CE165: 11 | CF165: 13 | CG165: 5 | CH165: 117 | CI165: 23 | CJ165: 20 | CK165: - | CL165: 3 | CM165: 2 | CN165: 92 | CO165: 83 | CP165: 20 | CQ165: 17 | CR165: - | CS165: 3 | CT165: - | CU165: 63 | DC165: 393 | DD165: 270 | DE165: 105 | DF165: 148 | DG165: 17 | DH165: 18 | DI165: 105 | DK165: 108 | DL165: 105 | DM165: - | DN165: - | DO165: - | DP165: 1 | DQ165: 1 | DR165: - | DS165: - | DT165: - | DU165: 1 | DV165: - | DW165: - | DX165: - | DY165: - | DZ165: - | EA165: 117 | EB165: 20,955 | EC165: 19,645 | ED165: 1,310 | EE165: - | EF165: 195 | EG165: 169 | EH165: 63 | EI165: 92 | EJ165: 14 | EK165: 7 | EL165: 19 | EN165: 198 | EO165: 101 | EP165: 42 | EQ165: 56 | ER165: 3 | ES165: 11 | ET165: 86
A166: 茨城県 | B166: 取手市 | C166: 高須村2-1 | D166: 217-09 | E166: 89 | F166: 88 | G166: 10 | H166: 8 | I166: 70 | J166: 1 | K166: 1 | M166: 193 | N166: 3 | O166: - | P166: 1 | Q166: 7 | R166: - | S166: 8 | T166: 18 | U166: 11 | V166: 14 | W166: 25 | X166: 35 | Y166: 30 | Z166: 24 | AA166: 6 | AB166: 11 | AC166: 63.4 | AD166: 62.9 | AE166: 63.9 | AY166: 86 | AZ166: - | BA166: - | BB166: - | BC166: - | BD166: - | BE166: 2 | BF166: 2 | BG166: 1 | BH166: 1 | BI166: 5 | BJ166: 24 | BK166: 24 | BL166: 17 | BM166: 4 | BN166: 6 | BO166: 71.1 | BP166: 71.3 | BQ166: 70.6 | BR166: 88 | BS166: - | BT166: - | BU166: - | BV166: - | BW166: - | BX166: 1 | BY166: 4 | BZ166: 2 | CA166: 7 | CB166: 13 | CC166: 20 | CD166: 18 | CE166: 12 | CF166: 4 | CG166: 7 | CH166: 88 | CI166: 15 | CJ166: 15 | CK166: - | CL166: - | CM166: 2 | CN166: 71 | CO166: 61 | CP166: 11 | CQ166: 11 | CR166: - | CS166: - | CT166: - | CU166: 50 | DC166: 254 | DD166: 176 | DE166: 86 | DF166: 79 | DG166: 11 | DH166: 14 | DI166: 64 | DK166: 86 | DL166: 81 | DM166: - | DN166: - | DO166: - | DP166: 1 | DQ166: 2 | DR166: 1 | DS166: 1 | DT166: - | DU166: - | DV166: - | DW166: - | DX166: - | DY166: - | DZ166: - | EA166: 88 | EB166: 20,381 | EC166: 19,897 | ED166: 384 | EE166: 100 | EF166: 130 | EG166: 116 | EH166: 55 | EI166: 55 | EJ166: 6 | EK166: 4 | EL166: 10 | EN166: 124 | EO166: 60 | EP166: 31 | EQ166: 24 | ER166: 5 | ES166: 10 | ET166: 54
A167: 茨城県 | B167: 取手市 | C167: 六郷村 | D167: 217-10 | E167: 160 | F167: 159 | G167: 22 | H167: 24 | I167: 113 | J167: 1 | K167: - | M167: 397 | N167: 4 | O167: 1 | P167: 8 | Q167: 18 | R167: 17 | S167: 25 | T167: 29 | U167: 30 | V167: 28 | W167: 49 | X167: 55 | Y167: 60 | Z167: 43 | AA167: 22 | AB167: 8 | AC167: 60.4 | AD167: 58.3 | AE167: 63.2 | AY167: 140 | AZ167: - | BA167: - | BB167: - | BC167: 1 | BD167: - | BE167: 1 | BF167: 2 | BG167: 1 | BH167: 1 | BI167: 16 | BJ167: 33 | BK167: 44 | BL167: 30 | BM167: 10 | BN167: 1 | BO167: 70.4 | BP167: 70.8 | BQ167: 69.8 | BR167: 159 | BS167: - | BT167: - | BU167: - | BV167: - | BW167: - | BX167: 3 | BY167: 5 | BZ167: 11 | CA167: 11 | CB167: 23 | CC167: 30 | CD167: 36 | CE167: 26 | CF167: 10 | CG167: 4 | CH167: 159 | CI167: 40 | CJ167: 40 | CK167: - | CL167: - | CM167: 3 | CN167: 116 | CO167: 106 | CP167: 31 | CQ167: 31 | CR167: - | CS167: - | CT167: 1 | CU167: 74 | DC167: 509 | DD167: 352 | DE167: 140 | DF167: 193 | DG167: 19 | DH167: 25 | DI167: 132 | DK167: 153 | DL167: 151 | DM167: - | DN167: - | DO167: - | DP167: - | DQ167: 2 | DR167: - | DS167: - | DT167: - | DU167: - | DV167: - | DW167: - | DX167: - | DY167: - | DZ167: - | EA167: 159 | EB167: 35,479 | EC167: 34,847 | ED167: 578 | EE167: 54 | EF167: 260 | EG167: 217 | EH167: 88 | EI167: 115 | EJ167: 14 | EK167: 14 | EL167: 29 | EN167: 249 | EO167: 135 | EP167: 52 | EQ167: 78 | ER167: 5 | ES167: 11 | ET167: 103
A168: 茨城県 | B168: 牛久市 | D168: 219-00 | E168: 321 | F168: 309 | G168: 71 | H168: 37 | I168: 201 | J168: 12 | K168: 12 | M168: 704 | N168: 2 | O168: 14 | P168: 17 | Q168: 15 | R168: 25 | S168: 36 | T168: 33 | U168: 32 | V168: 50 | W168: 63 | X168: 123 | Y168: 108 | Z168: 60 | AA168: 77 | AB168: 49 | AC168: 63.9 | AD168: 62.2 | AE168: 66.1 | AY168: 430 | AZ168: - | BA168: 3 | BB168: 6 | BC168: 3 | BD168: 14 | BE168: 11 | BF168: 10 | BG168: 8 | BH168: 25 | BI168: 23 | BJ168: 84 | BK168: 86 | BL168: 56 | BM168: 67 | BN168: 34 | BO168: 69.0 | BP168: 67.3 | BQ168: 71.3 | BR168: 309 | BS168: - | BT168: - | BU168: 1 | BV168: 2 | BW168: 4 | BX168: 9 | BY168: 6 | BZ168: 9 | CA168: 24 | CB168: 25 | CC168: 72 | CD168: 59 | CE168: 36 | CF168: 41 | CG168: 21 | CH168: 309 | CI168: 75 | CJ168: 75 | CK168: - | CL168: - | CM168: 6 | CN168: 228 | CO168: 229 | CP168: 54 | CQ168: 54 | CR168: - | CS168: - | CT168: 1 | CU168: 174 | DC168: 1,011 | DD168: 802 | DE168: 430 | DF168: 319 | DG168: 53 | DH168: 58 | DI168: 151 | DK168: 271 | DL168: 125 | DM168: - | DN168: 37 | DO168: - | DP168: 59 | DQ168: 12 | DR168: 13 | DS168: 18 | DT168: 3 | DU168: 2 | DV168: 1 | DW168: - | DX168: 1 | DY168: - | DZ168: - | EA168: 308 | EB168: 59,429 | EC168: 30,259 | ED168: 27,835 | EE168: 1,335 | EF168: 523 | EG168: 467 | EH168: 249 | EI168: 182 | EJ168: 36 | EK168: 31 | EL168: 25 | EN168: 488 | EO168: 335 | EP168: 181 | EQ168: 137 | ER168: 17 | ES168: 27 | ET168: 126
A169: 茨城県 | B169: 牛久市 | C169: 牛久町 | D169: 219-01 | E169: 55 | F169: 53 | G169: 9 | H169: 10 | I169: 34 | J169: 2 | K169: 2 | M169: 133 | N169: - | O169: 2 | P169: 6 | Q169: 7 | R169: 3 | S169: 9 | T169: 4 | U169: 6 | V169: 10 | W169: 18 | X169: 21 | Y169: 22 | Z169: 6 | AA169: 11 | AB169: 8 | AC169: 61.5 | AD169: 59.2 | AE169: 64.1 | AY169: 64 | AZ169: - | BA169: - | BB169: 1 | BC169: - | BD169: 1 | BE169: 2 | BF169: - | BG169: - | BH169: 2 | BI169: 6 | BJ169: 15 | BK169: 17 | BL169: 5 | BM169: 9 | BN169: 6 | BO169: 70.7 | BP169: 68.1 | BQ169: 73.6 | BR169: 53 | BS169: - | BT169: - | BU169: - | BV169: - | BW169: 1 | BX169: 2 | BY169: - | BZ169: - | CA169: 4 | CB169: 6 | CC169: 11 | CD169: 13 | CE169: 5 | CF169: 8 | CG169: 3 | CH169: 53 | CI169: 27 | CJ169: 27 | CK169: - | CL169: - | CM169: 1 | CN169: 25 | CO169: 40 | CP169: 20 | CQ169: 20 | CR169: - | CS169: - | CT169: 1 | CU169: 19 | DC169: 186 | DD169: 147 | DE169: 64 | DF169: 73 | DG169: 10 | DH169: 12 | DI169: 27 | DK169: 41 | DL169: 28 | DM169: - | DN169: - | DO169: - | DP169: 6 | DQ169: 5 | DR169: - | DS169: 2 | DT169: - | DU169: - | DV169: - | DW169: - | DX169: - | DY169: - | DZ169: - | EA169: 53 | EB169: 7,646 | EC169: 5,788 | ED169: 1,823 | EE169: 35 | EF169: 92 | EG169: 81 | EH169: 34 | EI169: 39 | EJ169: 8 | EK169: 6 | EL169: 5 | EN169: 94 | EO169: 66 | EP169: 30 | EQ169: 34 | ER169: 2 | ES169: 6 | ET169: 22
A170: 茨城県 | B170: 牛久市 | C170: 岡田村 | D170: 219-02 | E170: 161 | F170: 155 | G170: 33 | H170: 21 | I170: 101 | J170: 6 | K170: 6 | M170: 340 | N170: - | O170: 6 | P170: 6 | Q170: 6 | R170: 14 | S170: 11 | T170: 21 | U170: 17 | V170: 23 | W170: 25 | X170: 61 | Y170: 50 | Z170: 34 | AA170: 36 | AB170: 30 | AC170: 65.1 | AD170: 63.0 | AE170: 67.8 | AY170: 226 | AZ170: - | BA170: 1 | BB170: 3 | BC170: 2 | BD170: 9 | BE170: 3 | BF170: 7 | BG170: 4 | BH170: 16 | BI170: 12 | BJ170: 42 | BK170: 39 | BL170: 32 | BM170: 34 | BN170: 22 | BO170: 69.2 | BP170: 68.6 | BQ170: 69.9 | BR170: 155 | BS170: - | BT170: - | BU170: - | BV170: 1 | BW170: 3 | BX170: 2 | BY170: 5 | BZ170: 6 | CA170: 9 | CB170: 11 | CC170: 38 | CD170: 25 | CE170: 21 | CF170: 19 | CG170: 15 | CH170: 155 | CI170: 33 | CJ170: 33 | CK170: - | CL170: - | CM170: 3 | CN170: 119 | CO170: 118 | CP170: 24 | CQ170: 24 | CR170: - | CS170: - | CT170: - | CU170: 94 | DC170: 487 | DD170: 387 | DE170: 226 | DF170: 132 | DG170: 29 | DH170: 33 | DI170: 67 | DK170: 140 | DL170: 53 | DM170: - | DN170: 33 | DO170: - | DP170: 37 | DQ170: 3 | DR170: 5 | DS170: 6 | DT170: 3 | DU170: - | DV170: - | DW170: - | DX170: - | DY170: - | DZ170: - | EA170: 155 | EB170: 27,426 | EC170: 10,561 | ED170: 16,489 | EE170: 376 | EF170: 255 | EG170: 225 | EH170: 124 | EI170: 81 | EJ170: 20 | EK170: 19 | EL170: 11 | EN170: 232 | EO170: 162 | EP170: 102 | EQ170: 51 | ER170: 9 | ES170: 14 | ET170: 56
A171: 茨城県 | B171: 牛久市 | C171: 奥野村 | D171: 219-03 | E171: 105 | F171: 101 | G171: 29 | H171: 6 | I171: 66 | J171: 4 | K171: 4 | M171: 231 | N171: 2 | O171: 6 | P171: 5 | Q171: 2 | R171: 8 | S171: 16 | T171: 8 | U171: 9 | V171: 17 | W171: 20 | X171: 41 | Y171: 36 | Z171: 20 | AA171: 30 | AB171: 11 | AC171: 63.5 | AD171: 62.6 | AE171: 64.7 | AY171: 140 | AZ171: - | BA171: 2 | BB171: 2 | BC171: 1 | BD171: 4 | BE171: 6 | BF171: 3 | BG171: 4 | BH171: 7 | BI171: 5 | BJ171: 27 | BK171: 30 | BL171: 19 | BM171: 24 | BN171: 6 | BO171: 67.9 | BP171: 65.3 | BQ171: 72.6 | BR171: 101 | BS171: - | BT171: - | BU171: 1 | BV171: 1 | BW171: - | BX171: 5 | BY171: 1 | BZ171: 3 | CA171: 11 | CB171: 8 | CC171: 23 | CD171: 21 | CE171: 10 | CF171: 14 | CG171: 3 | CH171: 101 | CI171: 15 | CJ171: 15 | CK171: - | CL171: - | CM171: 2 | CN171: 84 | CO171: 71 | CP171: 10 | CQ171: 10 | CR171: - | CS171: - | CT171: - | CU171: 61 | DC171: 338 | DD171: 268 | DE171: 140 | DF171: 114 | DG171: 14 | DH171: 13 | DI171: 57 | DK171: 90 | DL171: 44 | DM171: - | DN171: 4 | DO171: - | DP171: 16 | DQ171: 4 | DR171: 8 | DS171: 10 | DT171: - | DU171: 2 | DV171: 1 | DW171: - | DX171: 1 | DY171: - | DZ171: - | EA171: 100 | EB171: 24,357 | EC171: 13,910 | ED171: 9,523 | EE171: 924 | EF171: 176 | EG171: 161 | EH171: 91 | EI171: 62 | EJ171: 8 | EK171: 6 | EL171: 9 | EN171: 162 | EO171: 107 | EP171: 49 | EQ171: 52 | ER171: 6 | ES171: 7 | ET171: 48
A172: 茨城県 | B172: つくば市 | D172: 220-00 | E172: 2,196 | F172: 2,137 | G172: 237 | H172: 228 | I172: 1,672 | J172: 59 | K172: 56 | M172: 4,805 | N172: 38 | O172: 65 | P172: 83 | Q172: 113 | R172: 149 | S172: 199 | T172: 263 | U172: 274 | V172: 394 | W172: 567 | X172: 732 | Y172: 786 | Z172: 545 | AA172: 375 | AB172: 222 | AC172: 63.3 | AD172: 62.4 | AE172: 64.4 | AY172: 2,162 | AZ172: 1 | BA172: 3 | BB172: 10 | BC172: 17 | BD172: 29 | BE172: 49 | BF172: 68 | BG172: 42 | BH172: 55 | BI172: 177 | BJ172: 403 | BK172: 510 | BL172: 406 | BM172: 257 | BN172: 135 | BO172: 70.1 | BP172: 69.7 | BQ172: 70.7 | BR172: 2,137 | BS172: - | BT172: - | BU172: 1 | BV172: 4 | BW172: 14 | BX172: 28 | BY172: 53 | BZ172: 96 | CA172: 163 | CB172: 294 | CC172: 410 | CD172: 458 | CE172: 321 | CF172: 201 | CG172: 94 | CH172: 2 137 | CI172: 257 | CJ172: 251 | CK172: 1 | CL172: 5 | CM172: 101 | CN172: 1 779 | CO172: 1 484 | CP172: 211 | CQ172: 205 | CR172: 1 | CS172: 5 | CT172: 29 | CU172: 1 244 | DC172: 7,192 | DD172: 5,135 | DE172: 2,162 | DF172: 2,649 | DG172: 324 | DH172: 374 | DI172: 1,683 | DK172: 1,726 | DL172: 1,120 | DM172: 1 | DN172: 21 | DO172: 4 | DP172: 139 | DQ172: 47 | DR172: 64 | DS172: 18 | DT172: 303 | DU172: - | DV172: 5 | DW172: 2 | DX172: 1 | DY172: - | DZ172: 1 | EA172: 2,093 | EB172: 426,896 | EC172: 296,455 | ED172: 123,031 | EE172: 7,410 | EF172: 3,628 | EG172: 3,073 | EH172: 1,360 | EI172: 1,488 | EJ172: 225 | EK172: 195 | EL172: 360 | EN172: 3,564 | EO172: 2,062 | EP172: 802 | EQ172: 1,161 | ER172: 99 | ES172: 179 | ET172: 1,323
A173: 茨城県 | B173: つくば市 | C173: 栄村 | D173: 220-01 | E173: 83 | F173: 82 | G173: 8 | H173: 11 | I173: 63 | J173: 1 | K173: 1 | M173: 194 | N173: 2 | O173: 1 | P173: 4 | Q173: 3 | R173: 5 | S173: 7 | T173: 18 | U173: 12 | V173: 17 | W173: 16 | X173: 31 | Y173: 27 | Z173: 29 | AA173: 18 | AB173: 4 | AC173: 63.3 | AD173: 62.5 | AE173: 64.3 | AY173: 93 | AZ173: - | BA173: - | BB173: 1 | BC173: - | BD173: - | BE173: 1 | BF173: 5 | BG173: 4 | BH173: 3 | BI173: 5 | BJ173: 16 | BK173: 19 | BL173: 25 | BM173: 11 | BN173: 3 | BO173: 70.2 | BP173: 69.3 | BQ173: 71.6 | BR173: 82 | BS173: - | BT173: - | BU173: - | BV173: - | BW173: - | BX173: 1 | BY173: 6 | BZ173: 4 | CA173: 8 | CB173: 7 | CC173: 13 | CD173: 17 | CE173: 14 | CF173: 10 | CG173: 2 | CH173: 82 | CI173: 11 | CJ173: 11 | CK173: - | CL173: - | CM173: 6 | CN173: 65 | CO173: 56 | CP173: 9 | CQ173: 9 | CR173: - | CS173: - | CT173: 3 | CU173: 44 | DC173: 291 | DD173: 204 | DE173: 93 | DF173: 101 | DG173: 10 | DH173: 16 | DI173: 71 | DK173: 74 | DL173: 52 | DM173: - | DN173: 1 | DO173: - | DP173: 7 | DQ173: 8 | DR173: 2 | DS173: 2 | DT173: - | DU173: - | DV173: 2 | DW173: - | DX173: - | DY173: - | DZ173: - | EA173: 81 | EB173: 19,594 | EC173: 17,137 | ED173: 2,116 | EE173: 341 | EF173: 150 | EG173: 123 | EH173: 58 | EI173: 58 | EJ173: 7 | EK173: 9 | EL173: 18 | EN173: 141 | EO173: 81 | EP173: 35 | EQ173: 43 | ER173: 3 | ES173: 7 | ET173: 53
A174: 茨城県 | B174: つくば市 | C174: 九重村 | D174: 220-02 | E174: 130 | F174: 126 | G174: 12 | H174: 27 | I174: 87 | J174: 4 | K174: 4 | M174: 305 | N174: 3 | O174: 2 | P174: 8 | Q174: 7 | R174: 6 | S174: 14 | T174: 20 | U174: 17 | V174: 32 | W174: 37 | X174: 29 | Y174: 50 | Z174: 35 | AA174: 21 | AB174: 24 | AC174: 63.5 | AD174: 62.4 | AE174: 64.8 | AY174: 154 | AZ174: - | BA174: - | BB174: 1 | BC174: 2 | BD174: 1 | BE174: 3 | BF174: 8 | BG174: 5 | BH174: 7 | BI174: 14 | BJ174: 18 | BK174: 36 | BL174: 28 | BM174: 16 | BN174: 15 | BO174: 69.7 | BP174: 69.3 | BQ174: 70.2 | BR174: 126 | BS174: - | BT174: - | BU174: 1 | BV174: - | BW174: 1 | BX174: - | BY174: 2 | BZ174: 5 | CA174: 11 | CB174: 18 | CC174: 15 | CD174: 32 | CE174: 22 | CF174: 11 | CG174: 8 | CH174: 126 | CI174: 23 | CJ174: 23 | CK174: - | CL174: - | CM174: 12 | CN174: 91 | CO174: 88 | CP174: 19 | CQ174: 19 | CR174: - | CS174: - | CT174: 4 | CU174: 65 | DC174: 405 | DD174: 308 | DE174: 154 | DF174: 133 | DG174: 21 | DH174: 16 | DI174: 81 | DK174: 97 | DL174: 65 | DM174: - | DN174: - | DO174: - | DP174: 9 | DQ174: 4 | DR174: 13 | DS174: 2 | DT174: 4 | DU174: - | DV174: - | DW174: - | DX174: - | DY174: - | DZ174: - | EA174: 125 | EB174: 18,455 | EC174: 12,491 | ED174: 4,759 | EE174: 1,205 | EF174: 203 | EG174: 176 | EH174: 92 | EI174: 71 | EJ174: 13 | EK174: 10 | EL174: 17 | EN174: 202 | EO174: 132 | EP174: 62 | EQ174: 62 | ER174: 8 | ES174: 6 | ET174: 64
A175: 茨城県 | B175: つくば市 | C175: 栗原村2-1 | D175: 220-03 | E175: 61 | F175: 61 | G175: 2 | H175: 4 | I175: 55 | J175: - | K175: - | M175: 146 | N175: 1 | O175: 2 | P175: - | Q175: 1 | R175: 3 | S175: 6 | T175: 8 | U175: 8 | V175: 11 | W175: 17 | X175: 20 | Y175: 28 | Z175: 16 | AA175: 13 | AB175: 12 | AC175: 65.9 | AD175: 65.0 | AE175: 67.0 | AY175: 56 | AZ175: - | BA175: - | BB175: - | BC175: - | BD175: - | BE175: - | BF175: - | BG175: 1 | BH175: 1 | BI175: - | BJ175: 10 | BK175: 16 | BL175: 14 | BM175: 10 | BN175: 4 | BO175: 74.5 | BP175: 73.4 | BQ175: 75.8 | BR175: 61 | BS175: - | BT175: - | BU175: - | BV175: - | BW175: - | BX175: - | BY175: - | BZ175: 4 | CA175: 4 | CB175: 10 | CC175: 9 | CD175: 16 | CE175: 7 | CF175: 8 | CG175: 3 | CH175: 61 | CI175: 8 | CJ175: 8 | CK175: - | CL175: - | CM175: 6 | CN175: 47 | CO175: 43 | CP175: 8 | CQ175: 8 | CR175: - | CS175: - | CT175: 1 | CU175: 34 | DC175: 200 | DD175: 138 | DE175: 56 | DF175: 77 | DG175: 5 | DH175: 16 | DI175: 46 | DK175: 51 | DL175: 45 | DM175: 1 | DN175: - | DO175: - | DP175: 2 | DQ175: 1 | DR175: 1 | DS175: 1 | DT175: - | DU175: - | DV175: - | DW175: - | DX175: - | DY175: - | DZ175: - | EA175: 61 | EB175: 10,905 | EC175: 9,542 | ED175: 1,093 | EE175: 270 | EF175: 98 | EG175: 81 | EH175: 32 | EI175: 46 | EJ175: 3 | EK175: 8 | EL175: 9 | EN175: 102 | EO175: 57 | EP175: 24 | EQ175: 31 | ER175: 2 | ES175: 8 | ET175: 37
